Workbook

Sheet Historical
A1: Date,Open,High,Low,Close,Adj Close,Volume | C1: Raw | D1: Date | E1: Open | F1: High | G1: Low | H1: Close | I1: Adj Close | J1: Volume | L1: Ticker: | M1: BHP.ax
A2: 1998-12-31,5.404980,5.471700,5.204790,5.321340,1.957774,26645198 | C2: =IF(ISBLANK(OFFSET($A$1,ROW()-1,0)),"",OFFSET($A$1,ROW()-1,0)) -> 1998-12-31,5.404980,5.471700,5.204790,5.321340,1.957774,26645198 | D2: =IFERROR(DATEVALUE(LEFT(Parse[[#This Row],[Raw]],FIND(",",Parse[[#This Row],[Raw]])-1)),"") -> 1998-12-31 | E2: =IFERROR(VALUE(MID(Parse[[#This Row],[Raw]],FIND(CHAR(1),SUBSTITUTE(Parse[[#This Row],[Raw]],",",CHAR(1),1))+1,FIND(CHAR(1), SUBSTITUTE(Parse[[#This Row],[Raw]],",",CHAR(1),2))-FIND(CHAR(1),SUBSTITUTE(Parse[[#This Row],[Raw]],",",CHAR(1),1))-1)),"") -> 5.40498 | F2: =IFERROR(VALUE(MID(Parse[[#This Row],[Raw]],FIND(CHAR(1),SUBSTITUTE(Parse[[#This Row],[Raw]],",",CHAR(1),2))+1,FIND(CHAR(1), SUBSTITUTE(Parse[[#This Row],[Raw]],",",CHAR(1),3))-FIND(CHAR(1),SUBSTITUTE(Parse[[#This Row],[Raw]],",",CHAR(1),2))-1)),"") -> 5.4717 | G2: =IFERROR(VALUE(MID(Parse[[#This Row],[Raw]],FIND(CHAR(1),SUBSTITUTE(Parse[[#This Row],[Raw]],",",CHAR(1),3))+1,FIND(CHAR(1), SUBSTITUTE(Parse[[#This Row],[Raw]],",",CHAR(1),4))-FIND(CHAR(1),SUBSTITUTE(Parse[[#This Row],[Raw]],",",CHAR(1),3))-1)),"") -> 5.20479 | H2: =IFERROR(VALUE(MID(Parse[[#This Row],[Raw]],FIND(CHAR(1),SUBSTITUTE(Parse[[#This Row],[Raw]],",",CHAR(1),4))+1,FIND(CHAR(1), SUBSTITUTE(Parse[[#This Row],[Raw]],",",CHAR(1),5))-FIND(CHAR(1),SUBSTITUTE(Parse[[#This Row],[Raw]],",",CHAR(1),4))-1)),"") -> 5.32134 | I2: =IFERROR(VALUE(MID(Parse[[#This Row],[Raw]],FIND(CHAR(1),SUBSTITUTE(Parse[[#This Row],[Raw]],",",CHAR(1),5))+1,FIND(CHAR(1), SUBSTITUTE(Parse[[#This Row],[Raw]],",",CHAR(1),6))-FIND(CHAR(1),SUBSTITUTE(Parse[[#This Row],[Raw]],",",CHAR(1),5))-1)),"") -> 1.957774 | J2: =IFERROR(VALUE(RIGHT(Parse[[#This Row],[Raw]],LEN(Parse[[#This Row],[Raw]])-FIND(CHAR(1),SUBSTITUTE(Parse[[#This Row],[Raw]],",",CHAR(1),6)))),"") -> 26645198
A3: 1999-01-07,5.280420,5.756410,5.138060,5.438780,2.000981,52137843 | C3: 1999-01-07,5.280420,5.756410,5.138060,5.438780,2.000981,52137843 | D3: =IFERROR(DATEVALUE(LEFT(Parse[[#This Row],[Raw]],FIND(",",Parse[[#This Row],[Raw]])-1)),"") -> 1999-01-07 | E3: =IFERROR(VALUE(MID(Parse[[#This Row],[Raw]],FIND(CHAR(1),SUBSTITUTE(Parse[[#This Row],[Raw]],",",CHAR(1),1))+1,FIND(CHAR(1), SUBSTITUTE(Parse[[#This Row],[Raw]],",",CHAR(1),2))-FIND(CHAR(1),SUBSTITUTE(Parse[[#This Row],[Raw]],",",CHAR(1),1))-1)),"") -> 5.28042 | F3: =IFERROR(VALUE(MID(Parse[[#This Row],[Raw]],FIND(CHAR(1),SUBSTITUTE(Parse[[#This Row],[Raw]],",",CHAR(1),2))+1,FIND(CHAR(1), SUBSTITUTE(Parse[[#This Row],[Raw]],",",CHAR(1),3))-FIND(CHAR(1),SUBSTITUTE(Parse[[#This Row],[Raw]],",",CHAR(1),2))-1)),"") -> 5.75641 | G3: =IFERROR(VALUE(MID(Parse[[#This Row],[Raw]],FIND(CHAR(1),SUBSTITUTE(Parse[[#This Row],[Raw]],",",CHAR(1),3))+1,FIND(CHAR(1), SUBSTITUTE(Parse[[#This Row],[Raw]],",",CHAR(1),4))-FIND(CHAR(1),SUBSTITUTE(Parse[[#This Row],[Raw]],",",CHAR(1),3))-1)),"") -> 5.13806 | H3: =IFERROR(VALUE(MID(Parse[[#This Row],[Raw]],FIND(CHAR(1),SUBSTITUTE(Parse[[#This Row],[Raw]],",",CHAR(1),4))+1,FIND(CHAR(1), SUBSTITUTE(Parse[[#This Row],[Raw]],",",CHAR(1),5))-FIND(CHAR(1),SUBSTITUTE(Parse[[#This Row],[Raw]],",",CHAR(1),4))-1)),"") -> 5.43878 | I3: =IFERROR(VALUE(MID(Parse[[#This Row],[Raw]],FIND(CHAR(1),SUBSTITUTE(Parse[[#This Row],[Raw]],",",CHAR(1),5))+1,FIND(CHAR(1), SUBSTITUTE(Parse[[#This Row],[Raw]],",",CHAR(1),6))-FIND(CHAR(1),SUBSTITUTE(Parse[[#This Row],[Raw]],",",CHAR(1),5))-1)),"") -> 2.000981 | J3: =IFERROR(VALUE(RIGHT(Parse[[#This Row],[Raw]],LEN(Parse[[#This Row],[Raw]])-FIND(CHAR(1),SUBSTITUTE(Parse[[#This Row],[Raw]],",",CHAR(1),6)))),"") -> 52137843 | L3: Start date | M3: 1999-01-01
A4: 1999-01-14,5.424550,5.538430,5.262620,5.409420,1.990180,24114753 | C4: 1999-01-14,5.424550,5.538430,5.262620,5.409420,1.990180,24114753 | D4: =IFERROR(DATEVALUE(LEFT(Parse[[#This Row],[Raw]],FIND(",",Parse[[#This Row],[Raw]])-1)),"") -> 1999-01-14 | E4: =IFERROR(VALUE(MID(Parse[[#This Row],[Raw]],FIND(CHAR(1),SUBSTITUTE(Parse[[#This Row],[Raw]],",",CHAR(1),1))+1,FIND(CHAR(1), SUBSTITUTE(Parse[[#This Row],[Raw]],",",CHAR(1),2))-FIND(CHAR(1),SUBSTITUTE(Parse[[#This Row],[Raw]],",",CHAR(1),1))-1)),"") -> 5.42455 | F4: =IFERROR(VALUE(MID(Parse[[#This Row],[Raw]],FIND(CHAR(1),SUBSTITUTE(Parse[[#This Row],[Raw]],",",CHAR(1),2))+1,FIND(CHAR(1), SUBSTITUTE(Parse[[#This Row],[Raw]],",",CHAR(1),3))-FIND(CHAR(1),SUBSTITUTE(Parse[[#This Row],[Raw]],",",CHAR(1),2))-1)),"") -> 5.53843 | G4: =IFERROR(VALUE(MID(Parse[[#This Row],[Raw]],FIND(CHAR(1),SUBSTITUTE(Parse[[#This Row],[Raw]],",",CHAR(1),3))+1,FIND(CHAR(1), SUBSTITUTE(Parse[[#This Row],[Raw]],",",CHAR(1),4))-FIND(CHAR(1),SUBSTITUTE(Parse[[#This Row],[Raw]],",",CHAR(1),3))-1)),"") -> 5.26262 | H4: =IFERROR(VALUE(MID(Parse[[#This Row],[Raw]],FIND(CHAR(1),SUBSTITUTE(Parse[[#This Row],[Raw]],",",CHAR(1),4))+1,FIND(CHAR(1), SUBSTITUTE(Parse[[#This Row],[Raw]],",",CHAR(1),5))-FIND(CHAR(1),SUBSTITUTE(Parse[[#This Row],[Raw]],",",CHAR(1),4))-1)),"") -> 5.40942 | I4: =IFERROR(VALUE(MID(Parse[[#This Row],[Raw]],FIND(CHAR(1),SUBSTITUTE(Parse[[#This Row],[Raw]],",",CHAR(1),5))+1,FIND(CHAR(1), SUBSTITUTE(Parse[[#This Row],[Raw]],",",CHAR(1),6))-FIND(CHAR(1),SUBSTITUTE(Parse[[#This Row],[Raw]],",",CHAR(1),5))-1)),"") -> 1.99018 | J4: =IFERROR(VALUE(RIGHT(Parse[[#This Row],[Raw]],LEN(Parse[[#This Row],[Raw]])-FIND(CHAR(1),SUBSTITUTE(Parse[[#This Row],[Raw]],",",CHAR(1),6)))),"") -> 24114753 | L4: End date | M4: =TODAY() -> 2018-04-04 | N4: default =TODAY()
A5: 1999-01-21,5.382730,5.382730,5.173650,5.316010,1.955813,24552827 | C5: 1999-01-21,5.382730,5.382730,5.173650,5.316010,1.955813,24552827 | D5: =IFERROR(DATEVALUE(LEFT(Parse[[#This Row],[Raw]],FIND(",",Parse[[#This Row],[Raw]])-1)),"") -> 1999-01-21 | E5: =IFERROR(VALUE(MID(Parse[[#This Row],[Raw]],FIND(CHAR(1),SUBSTITUTE(Parse[[#This Row],[Raw]],",",CHAR(1),1))+1,FIND(CHAR(1), SUBSTITUTE(Parse[[#This Row],[Raw]],",",CHAR(1),2))-FIND(CHAR(1),SUBSTITUTE(Parse[[#This Row],[Raw]],",",CHAR(1),1))-1)),"") -> 5.38273 | F5: =IFERROR(VALUE(MID(Parse[[#This Row],[Raw]],FIND(CHAR(1),SUBSTITUTE(Parse[[#This Row],[Raw]],",",CHAR(1),2))+1,FIND(CHAR(1), SUBSTITUTE(Parse[[#This Row],[Raw]],",",CHAR(1),3))-FIND(CHAR(1),SUBSTITUTE(Parse[[#This Row],[Raw]],",",CHAR(1),2))-1)),"") -> 5.38273 | G5: =IFERROR(VALUE(MID(Parse[[#This Row],[Raw]],FIND(CHAR(1),SUBSTITUTE(Parse[[#This Row],[Raw]],",",CHAR(1),3))+1,FIND(CHAR(1), SUBSTITUTE(Parse[[#This Row],[Raw]],",",CHAR(1),4))-FIND(CHAR(1),SUBSTITUTE(Parse[[#This Row],[Raw]],",",CHAR(1),3))-1)),"") -> 5.17365 | H5: =IFERROR(VALUE(MID(Parse[[#This Row],[Raw]],FIND(CHAR(1),SUBSTITUTE(Parse[[#This Row],[Raw]],",",CHAR(1),4))+1,FIND(CHAR(1), SUBSTITUTE(Parse[[#This Row],[Raw]],",",CHAR(1),5))-FIND(CHAR(1),SUBSTITUTE(Parse[[#This Row],[Raw]],",",CHAR(1),4))-1)),"") -> 5.31601 | I5: =IFERROR(VALUE(MID(Parse[[#This Row],[Raw]],FIND(CHAR(1),SUBSTITUTE(Parse[[#This Row],[Raw]],",",CHAR(1),5))+1,FIND(CHAR(1), SUBSTITUTE(Parse[[#This Row],[Raw]],",",CHAR(1),6))-FIND(CHAR(1),SUBSTITUTE(Parse[[#This Row],[Raw]],",",CHAR(1),5))-1)),"") -> 1.955813 | J5: =IFERROR(VALUE(RIGHT(Parse[[#This Row],[Raw]],LEN(Parse[[#This Row],[Raw]])-FIND(CHAR(1),SUBSTITUTE(Parse[[#This Row],[Raw]],",",CHAR(1),6)))),"") -> 24552827
A6: 1999-01-28,5.311560,5.311560,5.080230,5.160310,1.898530,38765583 | C6: 1999-01-28,5.311560,5.311560,5.080230,5.160310,1.898530,38765583 | D6: =IFERROR(DATEVALUE(LEFT(Parse[[#This Row],[Raw]],FIND(",",Parse[[#This Row],[Raw]])-1)),"") -> 1999-01-28 | E6: =IFERROR(VALUE(MID(Parse[[#This Row],[Raw]],FIND(CHAR(1),SUBSTITUTE(Parse[[#This Row],[Raw]],",",CHAR(1),1))+1,FIND(CHAR(1), SUBSTITUTE(Parse[[#This Row],[Raw]],",",CHAR(1),2))-FIND(CHAR(1),SUBSTITUTE(Parse[[#This Row],[Raw]],",",CHAR(1),1))-1)),"") -> 5.31156 | F6: =IFERROR(VALUE(MID(Parse[[#This Row],[Raw]],FIND(CHAR(1),SUBSTITUTE(Parse[[#This Row],[Raw]],",",CHAR(1),2))+1,FIND(CHAR(1), SUBSTITUTE(Parse[[#This Row],[Raw]],",",CHAR(1),3))-FIND(CHAR(1),SUBSTITUTE(Parse[[#This Row],[Raw]],",",CHAR(1),2))-1)),"") -> 5.31156 | G6: =IFERROR(VALUE(MID(Parse[[#This Row],[Raw]],FIND(CHAR(1),SUBSTITUTE(Parse[[#This Row],[Raw]],",",CHAR(1),3))+1,FIND(CHAR(1), SUBSTITUTE(Parse[[#This Row],[Raw]],",",CHAR(1),4))-FIND(CHAR(1),SUBSTITUTE(Parse[[#This Row],[Raw]],",",CHAR(1),3))-1)),"") -> 5.08023 | H6: =IFERROR(VALUE(MID(Parse[[#This Row],[Raw]],FIND(CHAR(1),SUBSTITUTE(Parse[[#This Row],[Raw]],",",CHAR(1),4))+1,FIND(CHAR(1), SUBSTITUTE(Parse[[#This Row],[Raw]],",",CHAR(1),5))-FIND(CHAR(1),SUBSTITUTE(Parse[[#This Row],[Raw]],",",CHAR(1),4))-1)),"") -> 5.16031 | I6: =IFERROR(VALUE(MID(Parse[[#This Row],[Raw]],FIND(CHAR(1),SUBSTITUTE(Parse[[#This Row],[Raw]],",",CHAR(1),5))+1,FIND(CHAR(1), SUBSTITUTE(Parse[[#This Row],[Raw]],",",CHAR(1),6))-FIND(CHAR(1),SUBSTITUTE(Parse[[#This Row],[Raw]],",",CHAR(1),5))-1)),"") -> 1.89853 | J6: =IFERROR(VALUE(RIGHT(Parse[[#This Row],[Raw]],LEN(Parse[[#This Row],[Raw]])-FIND(CHAR(1),SUBSTITUTE(Parse[[#This Row],[Raw]],",",CHAR(1),6)))),"") -> 38765583 | L6: Interval | M6: 1wk
A7: 1999-02-04,5.311560,5.445010,5.182550,5.404980,1.988547,50593138 | C7: 1999-02-04,5.311560,5.445010,5.182550,5.404980,1.988547,50593138 | D7: =IFERROR(DATEVALUE(LEFT(Parse[[#This Row],[Raw]],FIND(",",Parse[[#This Row],[Raw]])-1)),"") -> 1999-02-04 | E7: =IFERROR(VALUE(MID(Parse[[#This Row],[Raw]],FIND(CHAR(1),SUBSTITUTE(Parse[[#This Row],[Raw]],",",CHAR(1),1))+1,FIND(CHAR(1), SUBSTITUTE(Parse[[#This Row],[Raw]],",",CHAR(1),2))-FIND(CHAR(1),SUBSTITUTE(Parse[[#This Row],[Raw]],",",CHAR(1),1))-1)),"") -> 5.31156 | F7: =IFERROR(VALUE(MID(Parse[[#This Row],[Raw]],FIND(CHAR(1),SUBSTITUTE(Parse[[#This Row],[Raw]],",",CHAR(1),2))+1,FIND(CHAR(1), SUBSTITUTE(Parse[[#This Row],[Raw]],",",CHAR(1),3))-FIND(CHAR(1),SUBSTITUTE(Parse[[#This Row],[Raw]],",",CHAR(1),2))-1)),"") -> 5.44501 | G7: =IFERROR(VALUE(MID(Parse[[#This Row],[Raw]],FIND(CHAR(1),SUBSTITUTE(Parse[[#This Row],[Raw]],",",CHAR(1),3))+1,FIND(CHAR(1), SUBSTITUTE(Parse[[#This Row],[Raw]],",",CHAR(1),4))-FIND(CHAR(1),SUBSTITUTE(Parse[[#This Row],[Raw]],",",CHAR(1),3))-1)),"") -> 5.18255 | H7: =IFERROR(VALUE(MID(Parse[[#This Row],[Raw]],FIND(CHAR(1),SUBSTITUTE(Parse[[#This Row],[Raw]],",",CHAR(1),4))+1,FIND(CHAR(1), SUBSTITUTE(Parse[[#This Row],[Raw]],",",CHAR(1),5))-FIND(CHAR(1),SUBSTITUTE(Parse[[#This Row],[Raw]],",",CHAR(1),4))-1)),"") -> 5.40498 | I7: =IFERROR(VALUE(MID(Parse[[#This Row],[Raw]],FIND(CHAR(1),SUBSTITUTE(Parse[[#This Row],[Raw]],",",CHAR(1),5))+1,FIND(CHAR(1), SUBSTITUTE(Parse[[#This Row],[Raw]],",",CHAR(1),6))-FIND(CHAR(1),SUBSTITUTE(Parse[[#This Row],[Raw]],",",CHAR(1),5))-1)),"") -> 1.988547 | J7: =IFERROR(VALUE(RIGHT(Parse[[#This Row],[Raw]],LEN(Parse[[#This Row],[Raw]])-FIND(CHAR(1),SUBSTITUTE(Parse[[#This Row],[Raw]],",",CHAR(1),6)))),"") -> 50593138
A8: 1999-02-11,5.449460,5.449460,5.115820,5.124720,1.885435,32166655 | C8: 1999-02-11,5.449460,5.449460,5.115820,5.124720,1.885435,32166655 | D8: =IFERROR(DATEVALUE(LEFT(Parse[[#This Row],[Raw]],FIND(",",Parse[[#This Row],[Raw]])-1)),"") -> 1999-02-11 | E8: =IFERROR(VALUE(MID(Parse[[#This Row],[Raw]],FIND(CHAR(1),SUBSTITUTE(Parse[[#This Row],[Raw]],",",CHAR(1),1))+1,FIND(CHAR(1), SUBSTITUTE(Parse[[#This Row],[Raw]],",",CHAR(1),2))-FIND(CHAR(1),SUBSTITUTE(Parse[[#This Row],[Raw]],",",CHAR(1),1))-1)),"") -> 5.44946 | F8: =IFERROR(VALUE(MID(Parse[[#This Row],[Raw]],FIND(CHAR(1),SUBSTITUTE(Parse[[#This Row],[Raw]],",",CHAR(1),2))+1,FIND(CHAR(1), SUBSTITUTE(Parse[[#This Row],[Raw]],",",CHAR(1),3))-FIND(CHAR(1),SUBSTITUTE(Parse[[#This Row],[Raw]],",",CHAR(1),2))-1)),"") -> 5.44946 | G8: =IFERROR(VALUE(MID(Parse[[#This Row],[Raw]],FIND(CHAR(1),SUBSTITUTE(Parse[[#This Row],[Raw]],",",CHAR(1),3))+1,FIND(CHAR(1), SUBSTITUTE(Parse[[#This Row],[Raw]],",",CHAR(1),4))-FIND(CHAR(1),SUBSTITUTE(Parse[[#This Row],[Raw]],",",CHAR(1),3))-1)),"") -> 5.11582 | H8: =IFERROR(VALUE(MID(Parse[[#This Row],[Raw]],FIND(CHAR(1),SUBSTITUTE(Parse[[#This Row],[Raw]],",",CHAR(1),4))+1,FIND(CHAR(1), SUBSTITUTE(Parse[[#This Row],[Raw]],",",CHAR(1),5))-FIND(CHAR(1),SUBSTITUTE(Parse[[#This Row],[Raw]],",",CHAR(1),4))-1)),"") -> 5.12472 | I8: =IFERROR(VALUE(MID(Parse[[#This Row],[Raw]],FIND(CHAR(1),SUBSTITUTE(Parse[[#This Row],[Raw]],",",CHAR(1),5))+1,FIND(CHAR(1), SUBSTITUTE(Parse[[#This Row],[Raw]],",",CHAR(1),6))-FIND(CHAR(1),SUBSTITUTE(Parse[[#This Row],[Raw]],",",CHAR(1),5))-1)),"") -> 1.885435 | J8: =IFERROR(VALUE(RIGHT(Parse[[#This Row],[Raw]],LEN(Parse[[#This Row],[Raw]])-FIND(CHAR(1),SUBSTITUTE(Parse[[#This Row],[Raw]],",",CHAR(1),6)))),"") -> 32166655 | L8: Crumb | M8: k3gEejzEY5Q
A9: 1999-02-18,5.222590,5.565120,5.120270,5.498400,2.022916,53290383 | C9: 1999-02-18,5.222590,5.565120,5.120270,5.498400,2.022916,53290383 | D9: =IFERROR(DATEVALUE(LEFT(Parse[[#This Row],[Raw]],FIND(",",Parse[[#This Row],[Raw]])-1)),"") -> 1999-02-18 | E9: =IFERROR(VALUE(MID(Parse[[#This Row],[Raw]],FIND(CHAR(1),SUBSTITUTE(Parse[[#This Row],[Raw]],",",CHAR(1),1))+1,FIND(CHAR(1), SUBSTITUTE(Parse[[#This Row],[Raw]],",",CHAR(1),2))-FIND(CHAR(1),SUBSTITUTE(Parse[[#This Row],[Raw]],",",CHAR(1),1))-1)),"") -> 5.22259 | F9: =IFERROR(VALUE(MID(Parse[[#This Row],[Raw]],FIND(CHAR(1),SUBSTITUTE(Parse[[#This Row],[Raw]],",",CHAR(1),2))+1,FIND(CHAR(1), SUBSTITUTE(Parse[[#This Row],[Raw]],",",CHAR(1),3))-FIND(CHAR(1),SUBSTITUTE(Parse[[#This Row],[Raw]],",",CHAR(1),2))-1)),"") -> 5.56512 | G9: =IFERROR(VALUE(MID(Parse[[#This Row],[Raw]],FIND(CHAR(1),SUBSTITUTE(Parse[[#This Row],[Raw]],",",CHAR(1),3))+1,FIND(CHAR(1), SUBSTITUTE(Parse[[#This Row],[Raw]],",",CHAR(1),4))-FIND(CHAR(1),SUBSTITUTE(Parse[[#This Row],[Raw]],",",CHAR(1),3))-1)),"") -> 5.12027 | H9: =IFERROR(VALUE(MID(Parse[[#This Row],[Raw]],FIND(CHAR(1),SUBSTITUTE(Parse[[#This Row],[Raw]],",",CHAR(1),4))+1,FIND(CHAR(1), SUBSTITUTE(Parse[[#This Row],[Raw]],",",CHAR(1),5))-FIND(CHAR(1),SUBSTITUTE(Parse[[#This Row],[Raw]],",",CHAR(1),4))-1)),"") -> 5.4984 | I9: =IFERROR(VALUE(MID(Parse[[#This Row],[Raw]],FIND(CHAR(1),SUBSTITUTE(Parse[[#This Row],[Raw]],",",CHAR(1),5))+1,FIND(CHAR(1), SUBSTITUTE(Parse[[#This Row],[Raw]],",",CHAR(1),6))-FIND(CHAR(1),SUBSTITUTE(Parse[[#This Row],[Raw]],",",CHAR(1),5))-1)),"") -> 2.022916 | J9: =IFERROR(VALUE(RIGHT(Parse[[#This Row],[Raw]],LEN(Parse[[#This Row],[Raw]])-FIND(CHAR(1),SUBSTITUTE(Parse[[#This Row],[Raw]],",",CHAR(1),6)))),"") -> 53290383
A10: 1999-02-25,5.560670,5.560670,5.182550,5.200340,1.913257,52083413 | C10: 1999-02-25,5.560670,5.560670,5.182550,5.200340,1.913257,52083413 | D10: =IFERROR(DATEVALUE(LEFT(Parse[[#This Row],[Raw]],FIND(",",Parse[[#This Row],[Raw]])-1)),"") -> 1999-02-25 | E10: =IFERROR(VALUE(MID(Parse[[#This Row],[Raw]],FIND(CHAR(1),SUBSTITUTE(Parse[[#This Row],[Raw]],",",CHAR(1),1))+1,FIND(CHAR(1), SUBSTITUTE(Parse[[#This Row],[Raw]],",",CHAR(1),2))-FIND(CHAR(1),SUBSTITUTE(Parse[[#This Row],[Raw]],",",CHAR(1),1))-1)),"") -> 5.56067 | F10: =IFERROR(VALUE(MID(Parse[[#This Row],[Raw]],FIND(CHAR(1),SUBSTITUTE(Parse[[#This Row],[Raw]],",",CHAR(1),2))+1,FIND(CHAR(1), SUBSTITUTE(Parse[[#This Row],[Raw]],",",CHAR(1),3))-FIND(CHAR(1),SUBSTITUTE(Parse[[#This Row],[Raw]],",",CHAR(1),2))-1)),"") -> 5.56067 | G10: =IFERROR(VALUE(MID(Parse[[#This Row],[Raw]],FIND(CHAR(1),SUBSTITUTE(Parse[[#This Row],[Raw]],",",CHAR(1),3))+1,FIND(CHAR(1), SUBSTITUTE(Parse[[#This Row],[Raw]],",",CHAR(1),4))-FIND(CHAR(1),SUBSTITUTE(Parse[[#This Row],[Raw]],",",CHAR(1),3))-1)),"") -> 5.18255 | H10: =IFERROR(VALUE(MID(Parse[[#This Row],[Raw]],FIND(CHAR(1),SUBSTITUTE(Parse[[#This Row],[Raw]],",",CHAR(1),4))+1,FIND(CHAR(1), SUBSTITUTE(Parse[[#This Row],[Raw]],",",CHAR(1),5))-FIND(CHAR(1),SUBSTITUTE(Parse[[#This Row],[Raw]],",",CHAR(1),4))-1)),"") -> 5.20034 | I10: =IFERROR(VALUE(MID(Parse[[#This Row],[Raw]],FIND(CHAR(1),SUBSTITUTE(Parse[[#This Row],[Raw]],",",CHAR(1),5))+1,FIND(CHAR(1), SUBSTITUTE(Parse[[#This Row],[Raw]],",",CHAR(1),6))-FIND(CHAR(1),SUBSTITUTE(Parse[[#This Row],[Raw]],",",CHAR(1),5))-1)),"") -> 1.913257 | J10: =IFERROR(VALUE(RIGHT(Parse[[#This Row],[Raw]],LEN(Parse[[#This Row],[Raw]])-FIND(CHAR(1),SUBSTITUTE(Parse[[#This Row],[Raw]],",",CHAR(1),6)))),"") -> 52083413 | L10: Query URL: | M10: https://query1.finance.yahoo.com/v7/finance/download/BHP.ax?period1=915148800&period2=1522800000&interval=1wk&events=history&crumb=k3gEejzEY5Q
A11: 1999-03-04,5.316010,5.658540,5.222590,5.628740,2.070870,76468442 | C11: 1999-03-04,5.316010,5.658540,5.222590,5.628740,2.070870,76468442 | D11: =IFERROR(DATEVALUE(LEFT(Parse[[#This Row],[Raw]],FIND(",",Parse[[#This Row],[Raw]])-1)),"") -> 1999-03-04 | E11: =IFERROR(VALUE(MID(Parse[[#This Row],[Raw]],FIND(CHAR(1),SUBSTITUTE(Parse[[#This Row],[Raw]],",",CHAR(1),1))+1,FIND(CHAR(1), SUBSTITUTE(Parse[[#This Row],[Raw]],",",CHAR(1),2))-FIND(CHAR(1),SUBSTITUTE(Parse[[#This Row],[Raw]],",",CHAR(1),1))-1)),"") -> 5.31601 | F11: =IFERROR(VALUE(MID(Parse[[#This Row],[Raw]],FIND(CHAR(1),SUBSTITUTE(Parse[[#This Row],[Raw]],",",CHAR(1),2))+1,FIND(CHAR(1), SUBSTITUTE(Parse[[#This Row],[Raw]],",",CHAR(1),3))-FIND(CHAR(1),SUBSTITUTE(Parse[[#This Row],[Raw]],",",CHAR(1),2))-1)),"") -> 5.65854 | G11: =IFERROR(VALUE(MID(Parse[[#This Row],[Raw]],FIND(CHAR(1),SUBSTITUTE(Parse[[#This Row],[Raw]],",",CHAR(1),3))+1,FIND(CHAR(1), SUBSTITUTE(Parse[[#This Row],[Raw]],",",CHAR(1),4))-FIND(CHAR(1),SUBSTITUTE(Parse[[#This Row],[Raw]],",",CHAR(1),3))-1)),"") -> 5.22259 | H11: =IFERROR(VALUE(MID(Parse[[#This Row],[Raw]],FIND(CHAR(1),SUBSTITUTE(Parse[[#This Row],[Raw]],",",CHAR(1),4))+1,FIND(CHAR(1), SUBSTITUTE(Parse[[#This Row],[Raw]],",",CHAR(1),5))-FIND(CHAR(1),SUBSTITUTE(Parse[[#This Row],[Raw]],",",CHAR(1),4))-1)),"") -> 5.62874 | I11: =IFERROR(VALUE(MID(Parse[[#This Row],[Raw]],FIND(CHAR(1),SUBSTITUTE(Parse[[#This Row],[Raw]],",",CHAR(1),5))+1,FIND(CHAR(1), SUBSTITUTE(Parse[[#This Row],[Raw]],",",CHAR(1),6))-FIND(CHAR(1),SUBSTITUTE(Parse[[#This Row],[Raw]],",",CHAR(1),5))-1)),"") -> 2.07087 | J11: =IFERROR(VALUE(RIGHT(Parse[[#This Row],[Raw]],LEN(Parse[[#This Row],[Raw]])-FIND(CHAR(1),SUBSTITUTE(Parse[[#This Row],[Raw]],",",CHAR(1),6)))),"") -> 76468442
A12: 1999-03-11,5.845380,5.845380,5.560670,5.760860,2.119478,85640675 | C12: 1999-03-11,5.845380,5.845380,5.560670,5.760860,2.119478,85640675 | D12: =IFERROR(DATEVALUE(LEFT(Parse[[#This Row],[Raw]],FIND(",",Parse[[#This Row],[Raw]])-1)),"") -> 1999-03-11 | E12: =IFERROR(VALUE(MID(Parse[[#This Row],[Raw]],FIND(CHAR(1),SUBSTITUTE(Parse[[#This Row],[Raw]],",",CHAR(1),1))+1,FIND(CHAR(1), SUBSTITUTE(Parse[[#This Row],[Raw]],",",CHAR(1),2))-FIND(CHAR(1),SUBSTITUTE(Parse[[#This Row],[Raw]],",",CHAR(1),1))-1)),"") -> 5.84538 | F12: =IFERROR(VALUE(MID(Parse[[#This Row],[Raw]],FIND(CHAR(1),SUBSTITUTE(Parse[[#This Row],[Raw]],",",CHAR(1),2))+1,FIND(CHAR(1), SUBSTITUTE(Parse[[#This Row],[Raw]],",",CHAR(1),3))-FIND(CHAR(1),SUBSTITUTE(Parse[[#This Row],[Raw]],",",CHAR(1),2))-1)),"") -> 5.84538 | G12: =IFERROR(VALUE(MID(Parse[[#This Row],[Raw]],FIND(CHAR(1),SUBSTITUTE(Parse[[#This Row],[Raw]],",",CHAR(1),3))+1,FIND(CHAR(1), SUBSTITUTE(Parse[[#This Row],[Raw]],",",CHAR(1),4))-FIND(CHAR(1),SUBSTITUTE(Parse[[#This Row],[Raw]],",",CHAR(1),3))-1)),"") -> 5.56067 | H12: =IFERROR(VALUE(MID(Parse[[#This Row],[Raw]],FIND(CHAR(1),SUBSTITUTE(Parse[[#This Row],[Raw]],",",CHAR(1),4))+1,FIND(CHAR(1), SUBSTITUTE(Parse[[#This Row],[Raw]],",",CHAR(1),5))-FIND(CHAR(1),SUBSTITUTE(Parse[[#This Row],[Raw]],",",CHAR(1),4))-1)),"") -> 5.76086 | I12: =IFERROR(VALUE(MID(Parse[[#This Row],[Raw]],FIND(CHAR(1),SUBSTITUTE(Parse[[#This Row],[Raw]],",",CHAR(1),5))+1,FIND(CHAR(1), SUBSTITUTE(Parse[[#This Row],[Raw]],",",CHAR(1),6))-FIND(CHAR(1),SUBSTITUTE(Parse[[#This Row],[Raw]],",",CHAR(1),5))-1)),"") -> 2.119478 | J12: =IFERROR(VALUE(RIGHT(Parse[[#This Row],[Raw]],LEN(Parse[[#This Row],[Raw]])-FIND(CHAR(1),SUBSTITUTE(Parse[[#This Row],[Raw]],",",CHAR(1),6)))),"") -> 85640675
A13: 1999-03-18,5.849830,6.201260,5.741730,6.201260,2.281506,87853031 | C13: 1999-03-18,5.849830,6.201260,5.741730,6.201260,2.281506,87853031 | D13: =IFERROR(DATEVALUE(LEFT(Parse[[#This Row],[Raw]],FIND(",",Parse[[#This Row],[Raw]])-1)),"") -> 1999-03-18 | E13: =IFERROR(VALUE(MID(Parse[[#This Row],[Raw]],FIND(CHAR(1),SUBSTITUTE(Parse[[#This Row],[Raw]],",",CHAR(1),1))+1,FIND(CHAR(1), SUBSTITUTE(Parse[[#This Row],[Raw]],",",CHAR(1),2))-FIND(CHAR(1),SUBSTITUTE(Parse[[#This Row],[Raw]],",",CHAR(1),1))-1)),"") -> 5.84983 | F13: =IFERROR(VALUE(MID(Parse[[#This Row],[Raw]],FIND(CHAR(1),SUBSTITUTE(Parse[[#This Row],[Raw]],",",CHAR(1),2))+1,FIND(CHAR(1), SUBSTITUTE(Parse[[#This Row],[Raw]],",",CHAR(1),3))-FIND(CHAR(1),SUBSTITUTE(Parse[[#This Row],[Raw]],",",CHAR(1),2))-1)),"") -> 6.20126 | G13: =IFERROR(VALUE(MID(Parse[[#This Row],[Raw]],FIND(CHAR(1),SUBSTITUTE(Parse[[#This Row],[Raw]],",",CHAR(1),3))+1,FIND(CHAR(1), SUBSTITUTE(Parse[[#This Row],[Raw]],",",CHAR(1),4))-FIND(CHAR(1),SUBSTITUTE(Parse[[#This Row],[Raw]],",",CHAR(1),3))-1)),"") -> 5.74173 | H13: =IFERROR(VALUE(MID(Parse[[#This Row],[Raw]],FIND(CHAR(1),SUBSTITUTE(Parse[[#This Row],[Raw]],",",CHAR(1),4))+1,FIND(CHAR(1), SUBSTITUTE(Parse[[#This Row],[Raw]],",",CHAR(1),5))-FIND(CHAR(1),SUBSTITUTE(Parse[[#This Row],[Raw]],",",CHAR(1),4))-1)),"") -> 6.20126 | I13: =IFERROR(VALUE(MID(Parse[[#This Row],[Raw]],FIND(CHAR(1),SUBSTITUTE(Parse[[#This Row],[Raw]],",",CHAR(1),5))+1,FIND(CHAR(1), SUBSTITUTE(Parse[[#This Row],[Raw]],",",CHAR(1),6))-FIND(CHAR(1),SUBSTITUTE(Parse[[#This Row],[Raw]],",",CHAR(1),5))-1)),"") -> 2.281506 | J13: =IFERROR(VALUE(RIGHT(Parse[[#This Row],[Raw]],LEN(Parse[[#This Row],[Raw]])-FIND(CHAR(1),SUBSTITUTE(Parse[[#This Row],[Raw]],",",CHAR(1),6)))),"") -> 87853031
A14: 1999-03-25,6.339170,6.339170,5.938800,6.034440,2.220132,104131977 | C14: 1999-03-25,6.339170,6.339170,5.938800,6.034440,2.220132,104131977 | D14: =IFERROR(DATEVALUE(LEFT(Parse[[#This Row],[Raw]],FIND(",",Parse[[#This Row],[Raw]])-1)),"") -> 1999-03-25 | E14: =IFERROR(VALUE(MID(Parse[[#This Row],[Raw]],FIND(CHAR(1),SUBSTITUTE(Parse[[#This Row],[Raw]],",",CHAR(1),1))+1,FIND(CHAR(1), SUBSTITUTE(Parse[[#This Row],[Raw]],",",CHAR(1),2))-FIND(CHAR(1),SUBSTITUTE(Parse[[#This Row],[Raw]],",",CHAR(1),1))-1)),"") -> 6.33917 | F14: =IFERROR(VALUE(MID(Parse[[#This Row],[Raw]],FIND(CHAR(1),SUBSTITUTE(Parse[[#This Row],[Raw]],",",CHAR(1),2))+1,FIND(CHAR(1), SUBSTITUTE(Parse[[#This Row],[Raw]],",",CHAR(1),3))-FIND(CHAR(1),SUBSTITUTE(Parse[[#This Row],[Raw]],",",CHAR(1),2))-1)),"") -> 6.33917 | G14: =IFERROR(VALUE(MID(Parse[[#This Row],[Raw]],FIND(CHAR(1),SUBSTITUTE(Parse[[#This Row],[Raw]],",",CHAR(1),3))+1,FIND(CHAR(1), SUBSTITUTE(Parse[[#This Row],[Raw]],",",CHAR(1),4))-FIND(CHAR(1),SUBSTITUTE(Parse[[#This Row],[Raw]],",",CHAR(1),3))-1)),"") -> 5.9388 | H14: =IFERROR(VALUE(MID(Parse[[#This Row],[Raw]],FIND(CHAR(1),SUBSTITUTE(Parse[[#This Row],[Raw]],",",CHAR(1),4))+1,FIND(CHAR(1), SUBSTITUTE(Parse[[#This Row],[Raw]],",",CHAR(1),5))-FIND(CHAR(1),SUBSTITUTE(Parse[[#This Row],[Raw]],",",CHAR(1),4))-1)),"") -> 6.03444 | I14: =IFERROR(VALUE(MID(Parse[[#This Row],[Raw]],FIND(CHAR(1),SUBSTITUTE(Parse[[#This Row],[Raw]],",",CHAR(1),5))+1,FIND(CHAR(1), SUBSTITUTE(Parse[[#This Row],[Raw]],",",CHAR(1),6))-FIND(CHAR(1),SUBSTITUTE(Parse[[#This Row],[Raw]],",",CHAR(1),5))-1)),"") -> 2.220132 | J14: =IFERROR(VALUE(RIGHT(Parse[[#This Row],[Raw]],LEN(Parse[[#This Row],[Raw]])-FIND(CHAR(1),SUBSTITUTE(Parse[[#This Row],[Raw]],",",CHAR(1),6)))),"") -> 104131977
A15: 1999-04-01,6.205710,6.205710,6.005530,6.063360,2.230771,23860494 | C15: 1999-04-01,6.205710,6.205710,6.005530,6.063360,2.230771,23860494 | D15: =IFERROR(DATEVALUE(LEFT(Parse[[#This Row],[Raw]],FIND(",",Parse[[#This Row],[Raw]])-1)),"") -> 1999-04-01 | E15: =IFERROR(VALUE(MID(Parse[[#This Row],[Raw]],FIND(CHAR(1),SUBSTITUTE(Parse[[#This Row],[Raw]],",",CHAR(1),1))+1,FIND(CHAR(1), SUBSTITUTE(Parse[[#This Row],[Raw]],",",CHAR(1),2))-FIND(CHAR(1),SUBSTITUTE(Parse[[#This Row],[Raw]],",",CHAR(1),1))-1)),"") -> 6.20571 | F15: =IFERROR(VALUE(MID(Parse[[#This Row],[Raw]],FIND(CHAR(1),SUBSTITUTE(Parse[[#This Row],[Raw]],",",CHAR(1),2))+1,FIND(CHAR(1), SUBSTITUTE(Parse[[#This Row],[Raw]],",",CHAR(1),3))-FIND(CHAR(1),SUBSTITUTE(Parse[[#This Row],[Raw]],",",CHAR(1),2))-1)),"") -> 6.20571 | G15: =IFERROR(VALUE(MID(Parse[[#This Row],[Raw]],FIND(CHAR(1),SUBSTITUTE(Parse[[#This Row],[Raw]],",",CHAR(1),3))+1,FIND(CHAR(1), SUBSTITUTE(Parse[[#This Row],[Raw]],",",CHAR(1),4))-FIND(CHAR(1),SUBSTITUTE(Parse[[#This Row],[Raw]],",",CHAR(1),3))-1)),"") -> 6.00553 | H15: =IFERROR(VALUE(MID(Parse[[#This Row],[Raw]],FIND(CHAR(1),SUBSTITUTE(Parse[[#This Row],[Raw]],",",CHAR(1),4))+1,FIND(CHAR(1), SUBSTITUTE(Parse[[#This Row],[Raw]],",",CHAR(1),5))-FIND(CHAR(1),SUBSTITUTE(Parse[[#This Row],[Raw]],",",CHAR(1),4))-1)),"") -> 6.06336 | I15: =IFERROR(VALUE(MID(Parse[[#This Row],[Raw]],FIND(CHAR(1),SUBSTITUTE(Parse[[#This Row],[Raw]],",",CHAR(1),5))+1,FIND(CHAR(1), SUBSTITUTE(Parse[[#This Row],[Raw]],",",CHAR(1),6))-FIND(CHAR(1),SUBSTITUTE(Parse[[#This Row],[Raw]],",",CHAR(1),5))-1)),"") -> 2.230771 | J15: =IFERROR(VALUE(RIGHT(Parse[[#This Row],[Raw]],LEN(Parse[[#This Row],[Raw]])-FIND(CHAR(1),SUBSTITUTE(Parse[[#This Row],[Raw]],",",CHAR(1),6)))),"") -> 23860494
A16: 1999-04-08,6.116740,6.970860,6.023320,6.917920,2.545171,75667353 | C16: 1999-04-08,6.116740,6.970860,6.023320,6.917920,2.545171,75667353 | D16: =IFERROR(DATEVALUE(LEFT(Parse[[#This Row],[Raw]],FIND(",",Parse[[#This Row],[Raw]])-1)),"") -> 1999-04-08 | E16: =IFERROR(VALUE(MID(Parse[[#This Row],[Raw]],FIND(CHAR(1),SUBSTITUTE(Parse[[#This Row],[Raw]],",",CHAR(1),1))+1,FIND(CHAR(1), SUBSTITUTE(Parse[[#This Row],[Raw]],",",CHAR(1),2))-FIND(CHAR(1),SUBSTITUTE(Parse[[#This Row],[Raw]],",",CHAR(1),1))-1)),"") -> 6.11674 | F16: =IFERROR(VALUE(MID(Parse[[#This Row],[Raw]],FIND(CHAR(1),SUBSTITUTE(Parse[[#This Row],[Raw]],",",CHAR(1),2))+1,FIND(CHAR(1), SUBSTITUTE(Parse[[#This Row],[Raw]],",",CHAR(1),3))-FIND(CHAR(1),SUBSTITUTE(Parse[[#This Row],[Raw]],",",CHAR(1),2))-1)),"") -> 6.97086 | G16: =IFERROR(VALUE(MID(Parse[[#This Row],[Raw]],FIND(CHAR(1),SUBSTITUTE(Parse[[#This Row],[Raw]],",",CHAR(1),3))+1,FIND(CHAR(1), SUBSTITUTE(Parse[[#This Row],[Raw]],",",CHAR(1),4))-FIND(CHAR(1),SUBSTITUTE(Parse[[#This Row],[Raw]],",",CHAR(1),3))-1)),"") -> 6.02332 | H16: =IFERROR(VALUE(MID(Parse[[#This Row],[Raw]],FIND(CHAR(1),SUBSTITUTE(Parse[[#This Row],[Raw]],",",CHAR(1),4))+1,FIND(CHAR(1), SUBSTITUTE(Parse[[#This Row],[Raw]],",",CHAR(1),5))-FIND(CHAR(1),SUBSTITUTE(Parse[[#This Row],[Raw]],",",CHAR(1),4))-1)),"") -> 6.91792 | I16: =IFERROR(VALUE(MID(Parse[[#This Row],[Raw]],FIND(CHAR(1),SUBSTITUTE(Parse[[#This Row],[Raw]],",",CHAR(1),5))+1,FIND(CHAR(1), SUBSTITUTE(Parse[[#This Row],[Raw]],",",CHAR(1),6))-FIND(CHAR(1),SUBSTITUTE(Parse[[#This Row],[Raw]],",",CHAR(1),5))-1)),"") -> 2.545171 | J16: =IFERROR(VALUE(RIGHT(Parse[[#This Row],[Raw]],LEN(Parse[[#This Row],[Raw]])-FIND(CHAR(1),SUBSTITUTE(Parse[[#This Row],[Raw]],",",CHAR(1),6)))),"") -> 75667353
A17: 1999-04-15,7.300050,7.562520,6.895240,7.113220,2.617025,101240562 | C17: 1999-04-15,7.300050,7.562520,6.895240,7.113220,2.617025,101240562 | D17: =IFERROR(DATEVALUE(LEFT(Parse[[#This Row],[Raw]],FIND(",",Parse[[#This Row],[Raw]])-1)),"") -> 1999-04-15 | E17: =IFERROR(VALUE(MID(Parse[[#This Row],[Raw]],FIND(CHAR(1),SUBSTITUTE(Parse[[#This Row],[Raw]],",",CHAR(1),1))+1,FIND(CHAR(1), SUBSTITUTE(Parse[[#This Row],[Raw]],",",CHAR(1),2))-FIND(CHAR(1),SUBSTITUTE(Parse[[#This Row],[Raw]],",",CHAR(1),1))-1)),"") -> 7.30005 | F17: =IFERROR(VALUE(MID(Parse[[#This Row],[Raw]],FIND(CHAR(1),SUBSTITUTE(Parse[[#This Row],[Raw]],",",CHAR(1),2))+1,FIND(CHAR(1), SUBSTITUTE(Parse[[#This Row],[Raw]],",",CHAR(1),3))-FIND(CHAR(1),SUBSTITUTE(Parse[[#This Row],[Raw]],",",CHAR(1),2))-1)),"") -> 7.56252 | G17: =IFERROR(VALUE(MID(Parse[[#This Row],[Raw]],FIND(CHAR(1),SUBSTITUTE(Parse[[#This Row],[Raw]],",",CHAR(1),3))+1,FIND(CHAR(1), SUBSTITUTE(Parse[[#This Row],[Raw]],",",CHAR(1),4))-FIND(CHAR(1),SUBSTITUTE(Parse[[#This Row],[Raw]],",",CHAR(1),3))-1)),"") -> 6.89524 | H17: =IFERROR(VALUE(MID(Parse[[#This Row],[Raw]],FIND(CHAR(1),SUBSTITUTE(Parse[[#This Row],[Raw]],",",CHAR(1),4))+1,FIND(CHAR(1), SUBSTITUTE(Parse[[#This Row],[Raw]],",",CHAR(1),5))-FIND(CHAR(1),SUBSTITUTE(Parse[[#This Row],[Raw]],",",CHAR(1),4))-1)),"") -> 7.11322 | I17: =IFERROR(VALUE(MID(Parse[[#This Row],[Raw]],FIND(CHAR(1),SUBSTITUTE(Parse[[#This Row],[Raw]],",",CHAR(1),5))+1,FIND(CHAR(1), SUBSTITUTE(Parse[[#This Row],[Raw]],",",CHAR(1),6))-FIND(CHAR(1),SUBSTITUTE(Parse[[#This Row],[Raw]],",",CHAR(1),5))-1)),"") -> 2.617025 | J17: =IFERROR(VALUE(RIGHT(Parse[[#This Row],[Raw]],LEN(Parse[[#This Row],[Raw]])-FIND(CHAR(1),SUBSTITUTE(Parse[[#This Row],[Raw]],",",CHAR(1),6)))),"") -> 101240562
A18: 1999-04-22,7.206630,7.429060,6.984210,7.375680,2.713586,48147305 | C18: 1999-04-22,7.206630,7.429060,6.984210,7.375680,2.713586,48147305 | D18: =IFERROR(DATEVALUE(LEFT(Parse[[#This Row],[Raw]],FIND(",",Parse[[#This Row],[Raw]])-1)),"") -> 1999-04-22 | E18: =IFERROR(VALUE(MID(Parse[[#This Row],[Raw]],FIND(CHAR(1),SUBSTITUTE(Parse[[#This Row],[Raw]],",",CHAR(1),1))+1,FIND(CHAR(1), SUBSTITUTE(Parse[[#This Row],[Raw]],",",CHAR(1),2))-FIND(CHAR(1),SUBSTITUTE(Parse[[#This Row],[Raw]],",",CHAR(1),1))-1)),"") -> 7.20663 | F18: =IFERROR(VALUE(MID(Parse[[#This Row],[Raw]],FIND(CHAR(1),SUBSTITUTE(Parse[[#This Row],[Raw]],",",CHAR(1),2))+1,FIND(CHAR(1), SUBSTITUTE(Parse[[#This Row],[Raw]],",",CHAR(1),3))-FIND(CHAR(1),SUBSTITUTE(Parse[[#This Row],[Raw]],",",CHAR(1),2))-1)),"") -> 7.42906 | G18: =IFERROR(VALUE(MID(Parse[[#This Row],[Raw]],FIND(CHAR(1),SUBSTITUTE(Parse[[#This Row],[Raw]],",",CHAR(1),3))+1,FIND(CHAR(1), SUBSTITUTE(Parse[[#This Row],[Raw]],",",CHAR(1),4))-FIND(CHAR(1),SUBSTITUTE(Parse[[#This Row],[Raw]],",",CHAR(1),3))-1)),"") -> 6.98421 | H18: =IFERROR(VALUE(MID(Parse[[#This Row],[Raw]],FIND(CHAR(1),SUBSTITUTE(Parse[[#This Row],[Raw]],",",CHAR(1),4))+1,FIND(CHAR(1), SUBSTITUTE(Parse[[#This Row],[Raw]],",",CHAR(1),5))-FIND(CHAR(1),SUBSTITUTE(Parse[[#This Row],[Raw]],",",CHAR(1),4))-1)),"") -> 7.37568 | I18: =IFERROR(VALUE(MID(Parse[[#This Row],[Raw]],FIND(CHAR(1),SUBSTITUTE(Parse[[#This Row],[Raw]],",",CHAR(1),5))+1,FIND(CHAR(1), SUBSTITUTE(Parse[[#This Row],[Raw]],",",CHAR(1),6))-FIND(CHAR(1),SUBSTITUTE(Parse[[#This Row],[Raw]],",",CHAR(1),5))-1)),"") -> 2.713586 | J18: =IFERROR(VALUE(RIGHT(Parse[[#This Row],[Raw]],LEN(Parse[[#This Row],[Raw]])-FIND(CHAR(1),SUBSTITUTE(Parse[[#This Row],[Raw]],",",CHAR(1),6)))),"") -> 48147305
A19: 1999-04-29,7.718220,7.873920,7.495790,7.873920,2.896894,110048206 | C19: 1999-04-29,7.718220,7.873920,7.495790,7.873920,2.896894,110048206 | D19: =IFERROR(DATEVALUE(LEFT(Parse[[#This Row],[Raw]],FIND(",",Parse[[#This Row],[Raw]])-1)),"") -> 1999-04-29 | E19: =IFERROR(VALUE(MID(Parse[[#This Row],[Raw]],FIND(CHAR(1),SUBSTITUTE(Parse[[#This Row],[Raw]],",",CHAR(1),1))+1,FIND(CHAR(1), SUBSTITUTE(Parse[[#This Row],[Raw]],",",CHAR(1),2))-FIND(CHAR(1),SUBSTITUTE(Parse[[#This Row],[Raw]],",",CHAR(1),1))-1)),"") -> 7.71822 | F19: =IFERROR(VALUE(MID(Parse[[#This Row],[Raw]],FIND(CHAR(1),SUBSTITUTE(Parse[[#This Row],[Raw]],",",CHAR(1),2))+1,FIND(CHAR(1), SUBSTITUTE(Parse[[#This Row],[Raw]],",",CHAR(1),3))-FIND(CHAR(1),SUBSTITUTE(Parse[[#This Row],[Raw]],",",CHAR(1),2))-1)),"") -> 7.87392 | G19: =IFERROR(VALUE(MID(Parse[[#This Row],[Raw]],FIND(CHAR(1),SUBSTITUTE(Parse[[#This Row],[Raw]],",",CHAR(1),3))+1,FIND(CHAR(1), SUBSTITUTE(Parse[[#This Row],[Raw]],",",CHAR(1),4))-FIND(CHAR(1),SUBSTITUTE(Parse[[#This Row],[Raw]],",",CHAR(1),3))-1)),"") -> 7.49579 | H19: =IFERROR(VALUE(MID(Parse[[#This Row],[Raw]],FIND(CHAR(1),SUBSTITUTE(Parse[[#This Row],[Raw]],",",CHAR(1),4))+1,FIND(CHAR(1), SUBSTITUTE(Parse[[#This Row],[Raw]],",",CHAR(1),5))-FIND(CHAR(1),SUBSTITUTE(Parse[[#This Row],[Raw]],",",CHAR(1),4))-1)),"") -> 7.87392 | I19: =IFERROR(VALUE(MID(Parse[[#This Row],[Raw]],FIND(CHAR(1),SUBSTITUTE(Parse[[#This Row],[Raw]],",",CHAR(1),5))+1,FIND(CHAR(1), SUBSTITUTE(Parse[[#This Row],[Raw]],",",CHAR(1),6))-FIND(CHAR(1),SUBSTITUTE(Parse[[#This Row],[Raw]],",",CHAR(1),5))-1)),"") -> 2.896894 | J19: =IFERROR(VALUE(RIGHT(Parse[[#This Row],[Raw]],LEN(Parse[[#This Row],[Raw]])-FIND(CHAR(1),SUBSTITUTE(Parse[[#This Row],[Raw]],",",CHAR(1),6)))),"") -> 110048206
A20: 1999-05-06,7.971780,7.971780,7.340090,7.629250,2.806878,111074007 | C20: 1999-05-06,7.971780,7.971780,7.340090,7.629250,2.806878,111074007 | D20: =IFERROR(DATEVALUE(LEFT(Parse[[#This Row],[Raw]],FIND(",",Parse[[#This Row],[Raw]])-1)),"") -> 1999-05-06 | E20: =IFERROR(VALUE(MID(Parse[[#This Row],[Raw]],FIND(CHAR(1),SUBSTITUTE(Parse[[#This Row],[Raw]],",",CHAR(1),1))+1,FIND(CHAR(1), SUBSTITUTE(Parse[[#This Row],[Raw]],",",CHAR(1),2))-FIND(CHAR(1),SUBSTITUTE(Parse[[#This Row],[Raw]],",",CHAR(1),1))-1)),"") -> 7.97178 | F20: =IFERROR(VALUE(MID(Parse[[#This Row],[Raw]],FIND(CHAR(1),SUBSTITUTE(Parse[[#This Row],[Raw]],",",CHAR(1),2))+1,FIND(CHAR(1), SUBSTITUTE(Parse[[#This Row],[Raw]],",",CHAR(1),3))-FIND(CHAR(1),SUBSTITUTE(Parse[[#This Row],[Raw]],",",CHAR(1),2))-1)),"") -> 7.97178 | G20: =IFERROR(VALUE(MID(Parse[[#This Row],[Raw]],FIND(CHAR(1),SUBSTITUTE(Parse[[#This Row],[Raw]],",",CHAR(1),3))+1,FIND(CHAR(1), SUBSTITUTE(Parse[[#This Row],[Raw]],",",CHAR(1),4))-FIND(CHAR(1),SUBSTITUTE(Parse[[#This Row],[Raw]],",",CHAR(1),3))-1)),"") -> 7.34009 | H20: =IFERROR(VALUE(MID(Parse[[#This Row],[Raw]],FIND(CHAR(1),SUBSTITUTE(Parse[[#This Row],[Raw]],",",CHAR(1),4))+1,FIND(CHAR(1), SUBSTITUTE(Parse[[#This Row],[Raw]],",",CHAR(1),5))-FIND(CHAR(1),SUBSTITUTE(Parse[[#This Row],[Raw]],",",CHAR(1),4))-1)),"") -> 7.62925 | I20: =IFERROR(VALUE(MID(Parse[[#This Row],[Raw]],FIND(CHAR(1),SUBSTITUTE(Parse[[#This Row],[Raw]],",",CHAR(1),5))+1,FIND(CHAR(1), SUBSTITUTE(Parse[[#This Row],[Raw]],",",CHAR(1),6))-FIND(CHAR(1),SUBSTITUTE(Parse[[#This Row],[Raw]],",",CHAR(1),5))-1)),"") -> 2.806878 | J20: =IFERROR(VALUE(RIGHT(Parse[[#This Row],[Raw]],LEN(Parse[[#This Row],[Raw]])-FIND(CHAR(1),SUBSTITUTE(Parse[[#This Row],[Raw]],",",CHAR(1),6)))),"") -> 111074007
A21: 1999-05-13,7.713770,7.744910,7.206630,7.473550,2.884980,50569410 | C21: 1999-05-13,7.713770,7.744910,7.206630,7.473550,2.884980,50569410 | D21: =IFERROR(DATEVALUE(LEFT(Parse[[#This Row],[Raw]],FIND(",",Parse[[#This Row],[Raw]])-1)),"") -> 1999-05-13 | E21: =IFERROR(VALUE(MID(Parse[[#This Row],[Raw]],FIND(CHAR(1),SUBSTITUTE(Parse[[#This Row],[Raw]],",",CHAR(1),1))+1,FIND(CHAR(1), SUBSTITUTE(Parse[[#This Row],[Raw]],",",CHAR(1),2))-FIND(CHAR(1),SUBSTITUTE(Parse[[#This Row],[Raw]],",",CHAR(1),1))-1)),"") -> 7.71377 | F21: =IFERROR(VALUE(MID(Parse[[#This Row],[Raw]],FIND(CHAR(1),SUBSTITUTE(Parse[[#This Row],[Raw]],",",CHAR(1),2))+1,FIND(CHAR(1), SUBSTITUTE(Parse[[#This Row],[Raw]],",",CHAR(1),3))-FIND(CHAR(1),SUBSTITUTE(Parse[[#This Row],[Raw]],",",CHAR(1),2))-1)),"") -> 7.74491 | G21: =IFERROR(VALUE(MID(Parse[[#This Row],[Raw]],FIND(CHAR(1),SUBSTITUTE(Parse[[#This Row],[Raw]],",",CHAR(1),3))+1,FIND(CHAR(1), SUBSTITUTE(Parse[[#This Row],[Raw]],",",CHAR(1),4))-FIND(CHAR(1),SUBSTITUTE(Parse[[#This Row],[Raw]],",",CHAR(1),3))-1)),"") -> 7.20663 | H21: =IFERROR(VALUE(MID(Parse[[#This Row],[Raw]],FIND(CHAR(1),SUBSTITUTE(Parse[[#This Row],[Raw]],",",CHAR(1),4))+1,FIND(CHAR(1), SUBSTITUTE(Parse[[#This Row],[Raw]],",",CHAR(1),5))-FIND(CHAR(1),SUBSTITUTE(Parse[[#This Row],[Raw]],",",CHAR(1),4))-1)),"") -> 7.47355 | I21: =IFERROR(VALUE(MID(Parse[[#This Row],[Raw]],FIND(CHAR(1),SUBSTITUTE(Parse[[#This Row],[Raw]],",",CHAR(1),5))+1,FIND(CHAR(1), SUBSTITUTE(Parse[[#This Row],[Raw]],",",CHAR(1),6))-FIND(CHAR(1),SUBSTITUTE(Parse[[#This Row],[Raw]],",",CHAR(1),5))-1)),"") -> 2.88498 | J21: =IFERROR(VALUE(RIGHT(Parse[[#This Row],[Raw]],LEN(Parse[[#This Row],[Raw]])-FIND(CHAR(1),SUBSTITUTE(Parse[[#This Row],[Raw]],",",CHAR(1),6)))),"") -> 50569410
A22: 1999-05-20,7.584760,7.584760,6.984210,7.028690,2.713254,52216271 | C22: 1999-05-20,7.584760,7.584760,6.984210,7.028690,2.713254,52216271 | D22: =IFERROR(DATEVALUE(LEFT(Parse[[#This Row],[Raw]],FIND(",",Parse[[#This Row],[Raw]])-1)),"") -> 1999-05-20 | E22: =IFERROR(VALUE(MID(Parse[[#This Row],[Raw]],FIND(CHAR(1),SUBSTITUTE(Parse[[#This Row],[Raw]],",",CHAR(1),1))+1,FIND(CHAR(1), SUBSTITUTE(Parse[[#This Row],[Raw]],",",CHAR(1),2))-FIND(CHAR(1),SUBSTITUTE(Parse[[#This Row],[Raw]],",",CHAR(1),1))-1)),"") -> 7.58476 | F22: =IFERROR(VALUE(MID(Parse[[#This Row],[Raw]],FIND(CHAR(1),SUBSTITUTE(Parse[[#This Row],[Raw]],",",CHAR(1),2))+1,FIND(CHAR(1), SUBSTITUTE(Parse[[#This Row],[Raw]],",",CHAR(1),3))-FIND(CHAR(1),SUBSTITUTE(Parse[[#This Row],[Raw]],",",CHAR(1),2))-1)),"") -> 7.58476 | G22: =IFERROR(VALUE(MID(Parse[[#This Row],[Raw]],FIND(CHAR(1),SUBSTITUTE(Parse[[#This Row],[Raw]],",",CHAR(1),3))+1,FIND(CHAR(1), SUBSTITUTE(Parse[[#This Row],[Raw]],",",CHAR(1),4))-FIND(CHAR(1),SUBSTITUTE(Parse[[#This Row],[Raw]],",",CHAR(1),3))-1)),"") -> 6.98421 | H22: =IFERROR(VALUE(MID(Parse[[#This Row],[Raw]],FIND(CHAR(1),SUBSTITUTE(Parse[[#This Row],[Raw]],",",CHAR(1),4))+1,FIND(CHAR(1), SUBSTITUTE(Parse[[#This Row],[Raw]],",",CHAR(1),5))-FIND(CHAR(1),SUBSTITUTE(Parse[[#This Row],[Raw]],",",CHAR(1),4))-1)),"") -> 7.02869 | I22: =IFERROR(VALUE(MID(Parse[[#This Row],[Raw]],FIND(CHAR(1),SUBSTITUTE(Parse[[#This Row],[Raw]],",",CHAR(1),5))+1,FIND(CHAR(1), SUBSTITUTE(Parse[[#This Row],[Raw]],",",CHAR(1),6))-FIND(CHAR(1),SUBSTITUTE(Parse[[#This Row],[Raw]],",",CHAR(1),5))-1)),"") -> 2.713254 | J22: =IFERROR(VALUE(RIGHT(Parse[[#This Row],[Raw]],LEN(Parse[[#This Row],[Raw]])-FIND(CHAR(1),SUBSTITUTE(Parse[[#This Row],[Raw]],",",CHAR(1),6)))),"") -> 52216271
A23: 1999-05-27,7.010900,7.317850,6.855200,7.211080,2.783661,32530629 | C23: 1999-05-27,7.010900,7.317850,6.855200,7.211080,2.783661,32530629 | D23: =IFERROR(DATEVALUE(LEFT(Parse[[#This Row],[Raw]],FIND(",",Parse[[#This Row],[Raw]])-1)),"") -> 1999-05-27 | E23: =IFERROR(VALUE(MID(Parse[[#This Row],[Raw]],FIND(CHAR(1),SUBSTITUTE(Parse[[#This Row],[Raw]],",",CHAR(1),1))+1,FIND(CHAR(1), SUBSTITUTE(Parse[[#This Row],[Raw]],",",CHAR(1),2))-FIND(CHAR(1),SUBSTITUTE(Parse[[#This Row],[Raw]],",",CHAR(1),1))-1)),"") -> 7.0109 | F23: =IFERROR(VALUE(MID(Parse[[#This Row],[Raw]],FIND(CHAR(1),SUBSTITUTE(Parse[[#This Row],[Raw]],",",CHAR(1),2))+1,FIND(CHAR(1), SUBSTITUTE(Parse[[#This Row],[Raw]],",",CHAR(1),3))-FIND(CHAR(1),SUBSTITUTE(Parse[[#This Row],[Raw]],",",CHAR(1),2))-1)),"") -> 7.31785 | G23: =IFERROR(VALUE(MID(Parse[[#This Row],[Raw]],FIND(CHAR(1),SUBSTITUTE(Parse[[#This Row],[Raw]],",",CHAR(1),3))+1,FIND(CHAR(1), SUBSTITUTE(Parse[[#This Row],[Raw]],",",CHAR(1),4))-FIND(CHAR(1),SUBSTITUTE(Parse[[#This Row],[Raw]],",",CHAR(1),3))-1)),"") -> 6.8552 | H23: =IFERROR(VALUE(MID(Parse[[#This Row],[Raw]],FIND(CHAR(1),SUBSTITUTE(Parse[[#This Row],[Raw]],",",CHAR(1),4))+1,FIND(CHAR(1), SUBSTITUTE(Parse[[#This Row],[Raw]],",",CHAR(1),5))-FIND(CHAR(1),SUBSTITUTE(Parse[[#This Row],[Raw]],",",CHAR(1),4))-1)),"") -> 7.21108 | I23: =IFERROR(VALUE(MID(Parse[[#This Row],[Raw]],FIND(CHAR(1),SUBSTITUTE(Parse[[#This Row],[Raw]],",",CHAR(1),5))+1,FIND(CHAR(1), SUBSTITUTE(Parse[[#This Row],[Raw]],",",CHAR(1),6))-FIND(CHAR(1),SUBSTITUTE(Parse[[#This Row],[Raw]],",",CHAR(1),5))-1)),"") -> 2.783661 | J23: =IFERROR(VALUE(RIGHT(Parse[[#This Row],[Raw]],LEN(Parse[[#This Row],[Raw]])-FIND(CHAR(1),SUBSTITUTE(Parse[[#This Row],[Raw]],",",CHAR(1),6)))),"") -> 32530629
A24: 1999-06-03,7.274700,7.575860,7.184390,7.575860,2.924474,44788114 | C24: 1999-06-03,7.274700,7.575860,7.184390,7.575860,2.924474,44788114 | D24: =IFERROR(DATEVALUE(LEFT(Parse[[#This Row],[Raw]],FIND(",",Parse[[#This Row],[Raw]])-1)),"") -> 1999-06-03 | E24: =IFERROR(VALUE(MID(Parse[[#This Row],[Raw]],FIND(CHAR(1),SUBSTITUTE(Parse[[#This Row],[Raw]],",",CHAR(1),1))+1,FIND(CHAR(1), SUBSTITUTE(Parse[[#This Row],[Raw]],",",CHAR(1),2))-FIND(CHAR(1),SUBSTITUTE(Parse[[#This Row],[Raw]],",",CHAR(1),1))-1)),"") -> 7.2747 | F24: =IFERROR(VALUE(MID(Parse[[#This Row],[Raw]],FIND(CHAR(1),SUBSTITUTE(Parse[[#This Row],[Raw]],",",CHAR(1),2))+1,FIND(CHAR(1), SUBSTITUTE(Parse[[#This Row],[Raw]],",",CHAR(1),3))-FIND(CHAR(1),SUBSTITUTE(Parse[[#This Row],[Raw]],",",CHAR(1),2))-1)),"") -> 7.57586 | G24: =IFERROR(VALUE(MID(Parse[[#This Row],[Raw]],FIND(CHAR(1),SUBSTITUTE(Parse[[#This Row],[Raw]],",",CHAR(1),3))+1,FIND(CHAR(1), SUBSTITUTE(Parse[[#This Row],[Raw]],",",CHAR(1),4))-FIND(CHAR(1),SUBSTITUTE(Parse[[#This Row],[Raw]],",",CHAR(1),3))-1)),"") -> 7.18439 | H24: =IFERROR(VALUE(MID(Parse[[#This Row],[Raw]],FIND(CHAR(1),SUBSTITUTE(Parse[[#This Row],[Raw]],",",CHAR(1),4))+1,FIND(CHAR(1), SUBSTITUTE(Parse[[#This Row],[Raw]],",",CHAR(1),5))-FIND(CHAR(1),SUBSTITUTE(Parse[[#This Row],[Raw]],",",CHAR(1),4))-1)),"") -> 7.57586 | I24: =IFERROR(VALUE(MID(Parse[[#This Row],[Raw]],FIND(CHAR(1),SUBSTITUTE(Parse[[#This Row],[Raw]],",",CHAR(1),5))+1,FIND(CHAR(1), SUBSTITUTE(Parse[[#This Row],[Raw]],",",CHAR(1),6))-FIND(CHAR(1),SUBSTITUTE(Parse[[#This Row],[Raw]],",",CHAR(1),5))-1)),"") -> 2.924474 | J24: =IFERROR(VALUE(RIGHT(Parse[[#This Row],[Raw]],LEN(Parse[[#This Row],[Raw]])-FIND(CHAR(1),SUBSTITUTE(Parse[[#This Row],[Raw]],",",CHAR(1),6)))),"") -> 44788114
A25: 1999-06-10,7.833880,7.940640,7.602550,7.876580,3.040560,43532398 | C25: 1999-06-10,7.833880,7.940640,7.602550,7.876580,3.040560,43532398 | D25: =IFERROR(DATEVALUE(LEFT(Parse[[#This Row],[Raw]],FIND(",",Parse[[#This Row],[Raw]])-1)),"") -> 1999-06-10 | E25: =IFERROR(VALUE(MID(Parse[[#This Row],[Raw]],FIND(CHAR(1),SUBSTITUTE(Parse[[#This Row],[Raw]],",",CHAR(1),1))+1,FIND(CHAR(1), SUBSTITUTE(Parse[[#This Row],[Raw]],",",CHAR(1),2))-FIND(CHAR(1),SUBSTITUTE(Parse[[#This Row],[Raw]],",",CHAR(1),1))-1)),"") -> 7.83388 | F25: =IFERROR(VALUE(MID(Parse[[#This Row],[Raw]],FIND(CHAR(1),SUBSTITUTE(Parse[[#This Row],[Raw]],",",CHAR(1),2))+1,FIND(CHAR(1), SUBSTITUTE(Parse[[#This Row],[Raw]],",",CHAR(1),3))-FIND(CHAR(1),SUBSTITUTE(Parse[[#This Row],[Raw]],",",CHAR(1),2))-1)),"") -> 7.94064 | G25: =IFERROR(VALUE(MID(Parse[[#This Row],[Raw]],FIND(CHAR(1),SUBSTITUTE(Parse[[#This Row],[Raw]],",",CHAR(1),3))+1,FIND(CHAR(1), SUBSTITUTE(Parse[[#This Row],[Raw]],",",CHAR(1),4))-FIND(CHAR(1),SUBSTITUTE(Parse[[#This Row],[Raw]],",",CHAR(1),3))-1)),"") -> 7.60255 | H25: =IFERROR(VALUE(MID(Parse[[#This Row],[Raw]],FIND(CHAR(1),SUBSTITUTE(Parse[[#This Row],[Raw]],",",CHAR(1),4))+1,FIND(CHAR(1), SUBSTITUTE(Parse[[#This Row],[Raw]],",",CHAR(1),5))-FIND(CHAR(1),SUBSTITUTE(Parse[[#This Row],[Raw]],",",CHAR(1),4))-1)),"") -> 7.87658 | I25: =IFERROR(VALUE(MID(Parse[[#This Row],[Raw]],FIND(CHAR(1),SUBSTITUTE(Parse[[#This Row],[Raw]],",",CHAR(1),5))+1,FIND(CHAR(1), SUBSTITUTE(Parse[[#This Row],[Raw]],",",CHAR(1),6))-FIND(CHAR(1),SUBSTITUTE(Parse[[#This Row],[Raw]],",",CHAR(1),5))-1)),"") -> 3.04056 | J25: =IFERROR(VALUE(RIGHT(Parse[[#This Row],[Raw]],LEN(Parse[[#This Row],[Raw]])-FIND(CHAR(1),SUBSTITUTE(Parse[[#This Row],[Raw]],",",CHAR(1),6)))),"") -> 43532398
A26: 1999-06-17,7.873920,7.918400,7.317850,7.470430,2.883776,39933048 | C26: 1999-06-17,7.873920,7.918400,7.317850,7.470430,2.883776,39933048 | D26: =IFERROR(DATEVALUE(LEFT(Parse[[#This Row],[Raw]],FIND(",",Parse[[#This Row],[Raw]])-1)),"") -> 1999-06-17 | E26: =IFERROR(VALUE(MID(Parse[[#This Row],[Raw]],FIND(CHAR(1),SUBSTITUTE(Parse[[#This Row],[Raw]],",",CHAR(1),1))+1,FIND(CHAR(1), SUBSTITUTE(Parse[[#This Row],[Raw]],",",CHAR(1),2))-FIND(CHAR(1),SUBSTITUTE(Parse[[#This Row],[Raw]],",",CHAR(1),1))-1)),"") -> 7.87392 | F26: =IFERROR(VALUE(MID(Parse[[#This Row],[Raw]],FIND(CHAR(1),SUBSTITUTE(Parse[[#This Row],[Raw]],",",CHAR(1),2))+1,FIND(CHAR(1), SUBSTITUTE(Parse[[#This Row],[Raw]],",",CHAR(1),3))-FIND(CHAR(1),SUBSTITUTE(Parse[[#This Row],[Raw]],",",CHAR(1),2))-1)),"") -> 7.9184 | G26: =IFERROR(VALUE(MID(Parse[[#This Row],[Raw]],FIND(CHAR(1),SUBSTITUTE(Parse[[#This Row],[Raw]],",",CHAR(1),3))+1,FIND(CHAR(1), SUBSTITUTE(Parse[[#This Row],[Raw]],",",CHAR(1),4))-FIND(CHAR(1),SUBSTITUTE(Parse[[#This Row],[Raw]],",",CHAR(1),3))-1)),"") -> 7.31785 | H26: =IFERROR(VALUE(MID(Parse[[#This Row],[Raw]],FIND(CHAR(1),SUBSTITUTE(Parse[[#This Row],[Raw]],",",CHAR(1),4))+1,FIND(CHAR(1), SUBSTITUTE(Parse[[#This Row],[Raw]],",",CHAR(1),5))-FIND(CHAR(1),SUBSTITUTE(Parse[[#This Row],[Raw]],",",CHAR(1),4))-1)),"") -> 7.47043 | I26: =IFERROR(VALUE(MID(Parse[[#This Row],[Raw]],FIND(CHAR(1),SUBSTITUTE(Parse[[#This Row],[Raw]],",",CHAR(1),5))+1,FIND(CHAR(1), SUBSTITUTE(Parse[[#This Row],[Raw]],",",CHAR(1),6))-FIND(CHAR(1),SUBSTITUTE(Parse[[#This Row],[Raw]],",",CHAR(1),5))-1)),"") -> 2.883776 | J26: =IFERROR(VALUE(RIGHT(Parse[[#This Row],[Raw]],LEN(Parse[[#This Row],[Raw]])-FIND(CHAR(1),SUBSTITUTE(Parse[[#This Row],[Raw]],",",CHAR(1),6)))),"") -> 39933048
A27: 1999-06-24,7.678180,8.042960,7.406820,8.004260,3.089848,86767054 | C27: 1999-06-24,7.678180,8.042960,7.406820,8.004260,3.089848,86767054 | D27: =IFERROR(DATEVALUE(LEFT(Parse[[#This Row],[Raw]],FIND(",",Parse[[#This Row],[Raw]])-1)),"") -> 1999-06-24 | E27: =IFERROR(VALUE(MID(Parse[[#This Row],[Raw]],FIND(CHAR(1),SUBSTITUTE(Parse[[#This Row],[Raw]],",",CHAR(1),1))+1,FIND(CHAR(1), SUBSTITUTE(Parse[[#This Row],[Raw]],",",CHAR(1),2))-FIND(CHAR(1),SUBSTITUTE(Parse[[#This Row],[Raw]],",",CHAR(1),1))-1)),"") -> 7.67818 | F27: =IFERROR(VALUE(MID(Parse[[#This Row],[Raw]],FIND(CHAR(1),SUBSTITUTE(Parse[[#This Row],[Raw]],",",CHAR(1),2))+1,FIND(CHAR(1), SUBSTITUTE(Parse[[#This Row],[Raw]],",",CHAR(1),3))-FIND(CHAR(1),SUBSTITUTE(Parse[[#This Row],[Raw]],",",CHAR(1),2))-1)),"") -> 8.04296 | G27: =IFERROR(VALUE(MID(Parse[[#This Row],[Raw]],FIND(CHAR(1),SUBSTITUTE(Parse[[#This Row],[Raw]],",",CHAR(1),3))+1,FIND(CHAR(1), SUBSTITUTE(Parse[[#This Row],[Raw]],",",CHAR(1),4))-FIND(CHAR(1),SUBSTITUTE(Parse[[#This Row],[Raw]],",",CHAR(1),3))-1)),"") -> 7.40682 | H27: =IFERROR(VALUE(MID(Parse[[#This Row],[Raw]],FIND(CHAR(1),SUBSTITUTE(Parse[[#This Row],[Raw]],",",CHAR(1),4))+1,FIND(CHAR(1), SUBSTITUTE(Parse[[#This Row],[Raw]],",",CHAR(1),5))-FIND(CHAR(1),SUBSTITUTE(Parse[[#This Row],[Raw]],",",CHAR(1),4))-1)),"") -> 8.00426 | I27: =IFERROR(VALUE(MID(Parse[[#This Row],[Raw]],FIND(CHAR(1),SUBSTITUTE(Parse[[#This Row],[Raw]],",",CHAR(1),5))+1,FIND(CHAR(1), SUBSTITUTE(Parse[[#This Row],[Raw]],",",CHAR(1),6))-FIND(CHAR(1),SUBSTITUTE(Parse[[#This Row],[Raw]],",",CHAR(1),5))-1)),"") -> 3.089848 | J27: =IFERROR(VALUE(RIGHT(Parse[[#This Row],[Raw]],LEN(Parse[[#This Row],[Raw]])-FIND(CHAR(1),SUBSTITUTE(Parse[[#This Row],[Raw]],",",CHAR(1),6)))),"") -> 86767054
A28: 1999-07-01,8.096340,8.381050,7.985130,8.381050,3.235300,59759623 | C28: 1999-07-01,8.096340,8.381050,7.985130,8.381050,3.235300,59759623 | D28: =IFERROR(DATEVALUE(LEFT(Parse[[#This Row],[Raw]],FIND(",",Parse[[#This Row],[Raw]])-1)),"") -> 1999-07-01 | E28: =IFERROR(VALUE(MID(Parse[[#This Row],[Raw]],FIND(CHAR(1),SUBSTITUTE(Parse[[#This Row],[Raw]],",",CHAR(1),1))+1,FIND(CHAR(1), SUBSTITUTE(Parse[[#This Row],[Raw]],",",CHAR(1),2))-FIND(CHAR(1),SUBSTITUTE(Parse[[#This Row],[Raw]],",",CHAR(1),1))-1)),"") -> 8.09634 | F28: =IFERROR(VALUE(MID(Parse[[#This Row],[Raw]],FIND(CHAR(1),SUBSTITUTE(Parse[[#This Row],[Raw]],",",CHAR(1),2))+1,FIND(CHAR(1), SUBSTITUTE(Parse[[#This Row],[Raw]],",",CHAR(1),3))-FIND(CHAR(1),SUBSTITUTE(Parse[[#This Row],[Raw]],",",CHAR(1),2))-1)),"") -> 8.38105 | G28: =IFERROR(VALUE(MID(Parse[[#This Row],[Raw]],FIND(CHAR(1),SUBSTITUTE(Parse[[#This Row],[Raw]],",",CHAR(1),3))+1,FIND(CHAR(1), SUBSTITUTE(Parse[[#This Row],[Raw]],",",CHAR(1),4))-FIND(CHAR(1),SUBSTITUTE(Parse[[#This Row],[Raw]],",",CHAR(1),3))-1)),"") -> 7.98513 | H28: =IFERROR(VALUE(MID(Parse[[#This Row],[Raw]],FIND(CHAR(1),SUBSTITUTE(Parse[[#This Row],[Raw]],",",CHAR(1),4))+1,FIND(CHAR(1), SUBSTITUTE(Parse[[#This Row],[Raw]],",",CHAR(1),5))-FIND(CHAR(1),SUBSTITUTE(Parse[[#This Row],[Raw]],",",CHAR(1),4))-1)),"") -> 8.38105 | I28: =IFERROR(VALUE(MID(Parse[[#This Row],[Raw]],FIND(CHAR(1),SUBSTITUTE(Parse[[#This Row],[Raw]],",",CHAR(1),5))+1,FIND(CHAR(1), SUBSTITUTE(Parse[[#This Row],[Raw]],",",CHAR(1),6))-FIND(CHAR(1),SUBSTITUTE(Parse[[#This Row],[Raw]],",",CHAR(1),5))-1)),"") -> 3.2353 | J28: =IFERROR(VALUE(RIGHT(Parse[[#This Row],[Raw]],LEN(Parse[[#This Row],[Raw]])-FIND(CHAR(1),SUBSTITUTE(Parse[[#This Row],[Raw]],",",CHAR(1),6)))),"") -> 59759623
A29: 1999-07-08,8.407740,8.407740,7.985130,8.268950,3.192025,44301227 | C29: 1999-07-08,8.407740,8.407740,7.985130,8.268950,3.192025,44301227 | D29: =IFERROR(DATEVALUE(LEFT(Parse[[#This Row],[Raw]],FIND(",",Parse[[#This Row],[Raw]])-1)),"") -> 1999-07-08 | E29: =IFERROR(VALUE(MID(Parse[[#This Row],[Raw]],FIND(CHAR(1),SUBSTITUTE(Parse[[#This Row],[Raw]],",",CHAR(1),1))+1,FIND(CHAR(1), SUBSTITUTE(Parse[[#This Row],[Raw]],",",CHAR(1),2))-FIND(CHAR(1),SUBSTITUTE(Parse[[#This Row],[Raw]],",",CHAR(1),1))-1)),"") -> 8.40774 | F29: =IFERROR(VALUE(MID(Parse[[#This Row],[Raw]],FIND(CHAR(1),SUBSTITUTE(Parse[[#This Row],[Raw]],",",CHAR(1),2))+1,FIND(CHAR(1), SUBSTITUTE(Parse[[#This Row],[Raw]],",",CHAR(1),3))-FIND(CHAR(1),SUBSTITUTE(Parse[[#This Row],[Raw]],",",CHAR(1),2))-1)),"") -> 8.40774 | G29: =IFERROR(VALUE(MID(Parse[[#This Row],[Raw]],FIND(CHAR(1),SUBSTITUTE(Parse[[#This Row],[Raw]],",",CHAR(1),3))+1,FIND(CHAR(1), SUBSTITUTE(Parse[[#This Row],[Raw]],",",CHAR(1),4))-FIND(CHAR(1),SUBSTITUTE(Parse[[#This Row],[Raw]],",",CHAR(1),3))-1)),"") -> 7.98513 | H29: =IFERROR(VALUE(MID(Parse[[#This Row],[Raw]],FIND(CHAR(1),SUBSTITUTE(Parse[[#This Row],[Raw]],",",CHAR(1),4))+1,FIND(CHAR(1), SUBSTITUTE(Parse[[#This Row],[Raw]],",",CHAR(1),5))-FIND(CHAR(1),SUBSTITUTE(Parse[[#This Row],[Raw]],",",CHAR(1),4))-1)),"") -> 8.26895 | I29: =IFERROR(VALUE(MID(Parse[[#This Row],[Raw]],FIND(CHAR(1),SUBSTITUTE(Parse[[#This Row],[Raw]],",",CHAR(1),5))+1,FIND(CHAR(1), SUBSTITUTE(Parse[[#This Row],[Raw]],",",CHAR(1),6))-FIND(CHAR(1),SUBSTITUTE(Parse[[#This Row],[Raw]],",",CHAR(1),5))-1)),"") -> 3.192025 | J29: =IFERROR(VALUE(RIGHT(Parse[[#This Row],[Raw]],LEN(Parse[[#This Row],[Raw]])-FIND(CHAR(1),SUBSTITUTE(Parse[[#This Row],[Raw]],",",CHAR(1),6)))),"") -> 44301227
A30: 1999-07-15,8.478920,8.502490,7.985130,7.985130,3.082463,44137425 | C30: 1999-07-15,8.478920,8.502490,7.985130,7.985130,3.082463,44137425 | D30: =IFERROR(DATEVALUE(LEFT(Parse[[#This Row],[Raw]],FIND(",",Parse[[#This Row],[Raw]])-1)),"") -> 1999-07-15 | E30: =IFERROR(VALUE(MID(Parse[[#This Row],[Raw]],FIND(CHAR(1),SUBSTITUTE(Parse[[#This Row],[Raw]],",",CHAR(1),1))+1,FIND(CHAR(1), SUBSTITUTE(Parse[[#This Row],[Raw]],",",CHAR(1),2))-FIND(CHAR(1),SUBSTITUTE(Parse[[#This Row],[Raw]],",",CHAR(1),1))-1)),"") -> 8.47892 | F30: =IFERROR(VALUE(MID(Parse[[#This Row],[Raw]],FIND(CHAR(1),SUBSTITUTE(Parse[[#This Row],[Raw]],",",CHAR(1),2))+1,FIND(CHAR(1), SUBSTITUTE(Parse[[#This Row],[Raw]],",",CHAR(1),3))-FIND(CHAR(1),SUBSTITUTE(Parse[[#This Row],[Raw]],",",CHAR(1),2))-1)),"") -> 8.50249 | G30: =IFERROR(VALUE(MID(Parse[[#This Row],[Raw]],FIND(CHAR(1),SUBSTITUTE(Parse[[#This Row],[Raw]],",",CHAR(1),3))+1,FIND(CHAR(1), SUBSTITUTE(Parse[[#This Row],[Raw]],",",CHAR(1),4))-FIND(CHAR(1),SUBSTITUTE(Parse[[#This Row],[Raw]],",",CHAR(1),3))-1)),"") -> 7.98513 | H30: =IFERROR(VALUE(MID(Parse[[#This Row],[Raw]],FIND(CHAR(1),SUBSTITUTE(Parse[[#This Row],[Raw]],",",CHAR(1),4))+1,FIND(CHAR(1), SUBSTITUTE(Parse[[#This Row],[Raw]],",",CHAR(1),5))-FIND(CHAR(1),SUBSTITUTE(Parse[[#This Row],[Raw]],",",CHAR(1),4))-1)),"") -> 7.98513 | I30: =IFERROR(VALUE(MID(Parse[[#This Row],[Raw]],FIND(CHAR(1),SUBSTITUTE(Parse[[#This Row],[Raw]],",",CHAR(1),5))+1,FIND(CHAR(1), SUBSTITUTE(Parse[[#This Row],[Raw]],",",CHAR(1),6))-FIND(CHAR(1),SUBSTITUTE(Parse[[#This Row],[Raw]],",",CHAR(1),5))-1)),"") -> 3.082463 | J30: =IFERROR(VALUE(RIGHT(Parse[[#This Row],[Raw]],LEN(Parse[[#This Row],[Raw]])-FIND(CHAR(1),SUBSTITUTE(Parse[[#This Row],[Raw]],",",CHAR(1),6)))),"") -> 44137425
A31: 1999-07-22,7.909500,7.909500,7.660390,7.722670,2.981148,53680941 | C31: 1999-07-22,7.909500,7.909500,7.660390,7.722670,2.981148,53680941 | D31: =IFERROR(DATEVALUE(LEFT(Parse[[#This Row],[Raw]],FIND(",",Parse[[#This Row],[Raw]])-1)),"") -> 1999-07-22 | E31: =IFERROR(VALUE(MID(Parse[[#This Row],[Raw]],FIND(CHAR(1),SUBSTITUTE(Parse[[#This Row],[Raw]],",",CHAR(1),1))+1,FIND(CHAR(1), SUBSTITUTE(Parse[[#This Row],[Raw]],",",CHAR(1),2))-FIND(CHAR(1),SUBSTITUTE(Parse[[#This Row],[Raw]],",",CHAR(1),1))-1)),"") -> 7.9095 | F31: =IFERROR(VALUE(MID(Parse[[#This Row],[Raw]],FIND(CHAR(1),SUBSTITUTE(Parse[[#This Row],[Raw]],",",CHAR(1),2))+1,FIND(CHAR(1), SUBSTITUTE(Parse[[#This Row],[Raw]],",",CHAR(1),3))-FIND(CHAR(1),SUBSTITUTE(Parse[[#This Row],[Raw]],",",CHAR(1),2))-1)),"") -> 7.9095 | G31: =IFERROR(VALUE(MID(Parse[[#This Row],[Raw]],FIND(CHAR(1),SUBSTITUTE(Parse[[#This Row],[Raw]],",",CHAR(1),3))+1,FIND(CHAR(1), SUBSTITUTE(Parse[[#This Row],[Raw]],",",CHAR(1),4))-FIND(CHAR(1),SUBSTITUTE(Parse[[#This Row],[Raw]],",",CHAR(1),3))-1)),"") -> 7.66039 | H31: =IFERROR(VALUE(MID(Parse[[#This Row],[Raw]],FIND(CHAR(1),SUBSTITUTE(Parse[[#This Row],[Raw]],",",CHAR(1),4))+1,FIND(CHAR(1), SUBSTITUTE(Parse[[#This Row],[Raw]],",",CHAR(1),5))-FIND(CHAR(1),SUBSTITUTE(Parse[[#This Row],[Raw]],",",CHAR(1),4))-1)),"") -> 7.72267 | I31: =IFERROR(VALUE(MID(Parse[[#This Row],[Raw]],FIND(CHAR(1),SUBSTITUTE(Parse[[#This Row],[Raw]],",",CHAR(1),5))+1,FIND(CHAR(1), SUBSTITUTE(Parse[[#This Row],[Raw]],",",CHAR(1),6))-FIND(CHAR(1),SUBSTITUTE(Parse[[#This Row],[Raw]],",",CHAR(1),5))-1)),"") -> 2.981148 | J31: =IFERROR(VALUE(RIGHT(Parse[[#This Row],[Raw]],LEN(Parse[[#This Row],[Raw]])-FIND(CHAR(1),SUBSTITUTE(Parse[[#This Row],[Raw]],",",CHAR(1),6)))),"") -> 53680941
A32: 1999-07-29,7.607000,8.007370,7.455750,7.972670,3.077653,49034638 | C32: 1999-07-29,7.607000,8.007370,7.455750,7.972670,3.077653,49034638 | D32: =IFERROR(DATEVALUE(LEFT(Parse[[#This Row],[Raw]],FIND(",",Parse[[#This Row],[Raw]])-1)),"") -> 1999-07-29 | E32: =IFERROR(VALUE(MID(Parse[[#This Row],[Raw]],FIND(CHAR(1),SUBSTITUTE(Parse[[#This Row],[Raw]],",",CHAR(1),1))+1,FIND(CHAR(1), SUBSTITUTE(Parse[[#This Row],[Raw]],",",CHAR(1),2))-FIND(CHAR(1),SUBSTITUTE(Parse[[#This Row],[Raw]],",",CHAR(1),1))-1)),"") -> 7.607 | F32: =IFERROR(VALUE(MID(Parse[[#This Row],[Raw]],FIND(CHAR(1),SUBSTITUTE(Parse[[#This Row],[Raw]],",",CHAR(1),2))+1,FIND(CHAR(1), SUBSTITUTE(Parse[[#This Row],[Raw]],",",CHAR(1),3))-FIND(CHAR(1),SUBSTITUTE(Parse[[#This Row],[Raw]],",",CHAR(1),2))-1)),"") -> 8.00737 | G32: =IFERROR(VALUE(MID(Parse[[#This Row],[Raw]],FIND(CHAR(1),SUBSTITUTE(Parse[[#This Row],[Raw]],",",CHAR(1),3))+1,FIND(CHAR(1), SUBSTITUTE(Parse[[#This Row],[Raw]],",",CHAR(1),4))-FIND(CHAR(1),SUBSTITUTE(Parse[[#This Row],[Raw]],",",CHAR(1),3))-1)),"") -> 7.45575 | H32: =IFERROR(VALUE(MID(Parse[[#This Row],[Raw]],FIND(CHAR(1),SUBSTITUTE(Parse[[#This Row],[Raw]],",",CHAR(1),4))+1,FIND(CHAR(1), SUBSTITUTE(Parse[[#This Row],[Raw]],",",CHAR(1),5))-FIND(CHAR(1),SUBSTITUTE(Parse[[#This Row],[Raw]],",",CHAR(1),4))-1)),"") -> 7.97267 | I32: =IFERROR(VALUE(MID(Parse[[#This Row],[Raw]],FIND(CHAR(1),SUBSTITUTE(Parse[[#This Row],[Raw]],",",CHAR(1),5))+1,FIND(CHAR(1), SUBSTITUTE(Parse[[#This Row],[Raw]],",",CHAR(1),6))-FIND(CHAR(1),SUBSTITUTE(Parse[[#This Row],[Raw]],",",CHAR(1),5))-1)),"") -> 3.077653 | J32: =IFERROR(VALUE(RIGHT(Parse[[#This Row],[Raw]],LEN(Parse[[#This Row],[Raw]])-FIND(CHAR(1),SUBSTITUTE(Parse[[#This Row],[Raw]],",",CHAR(1),6)))),"") -> 49034638
A33: 1999-08-05,8.163070,8.185310,7.784940,7.829430,3.022360,36678896 | C33: 1999-08-05,8.163070,8.185310,7.784940,7.829430,3.022360,36678896 | D33: =IFERROR(DATEVALUE(LEFT(Parse[[#This Row],[Raw]],FIND(",",Parse[[#This Row],[Raw]])-1)),"") -> 1999-08-05 | E33: =IFERROR(VALUE(MID(Parse[[#This Row],[Raw]],FIND(CHAR(1),SUBSTITUTE(Parse[[#This Row],[Raw]],",",CHAR(1),1))+1,FIND(CHAR(1), SUBSTITUTE(Parse[[#This Row],[Raw]],",",CHAR(1),2))-FIND(CHAR(1),SUBSTITUTE(Parse[[#This Row],[Raw]],",",CHAR(1),1))-1)),"") -> 8.16307 | F33: =IFERROR(VALUE(MID(Parse[[#This Row],[Raw]],FIND(CHAR(1),SUBSTITUTE(Parse[[#This Row],[Raw]],",",CHAR(1),2))+1,FIND(CHAR(1), SUBSTITUTE(Parse[[#This Row],[Raw]],",",CHAR(1),3))-FIND(CHAR(1),SUBSTITUTE(Parse[[#This Row],[Raw]],",",CHAR(1),2))-1)),"") -> 8.18531 | G33: =IFERROR(VALUE(MID(Parse[[#This Row],[Raw]],FIND(CHAR(1),SUBSTITUTE(Parse[[#This Row],[Raw]],",",CHAR(1),3))+1,FIND(CHAR(1), SUBSTITUTE(Parse[[#This Row],[Raw]],",",CHAR(1),4))-FIND(CHAR(1),SUBSTITUTE(Parse[[#This Row],[Raw]],",",CHAR(1),3))-1)),"") -> 7.78494 | H33: =IFERROR(VALUE(MID(Parse[[#This Row],[Raw]],FIND(CHAR(1),SUBSTITUTE(Parse[[#This Row],[Raw]],",",CHAR(1),4))+1,FIND(CHAR(1), SUBSTITUTE(Parse[[#This Row],[Raw]],",",CHAR(1),5))-FIND(CHAR(1),SUBSTITUTE(Parse[[#This Row],[Raw]],",",CHAR(1),4))-1)),"") -> 7.82943 | I33: =IFERROR(VALUE(MID(Parse[[#This Row],[Raw]],FIND(CHAR(1),SUBSTITUTE(Parse[[#This Row],[Raw]],",",CHAR(1),5))+1,FIND(CHAR(1), SUBSTITUTE(Parse[[#This Row],[Raw]],",",CHAR(1),6))-FIND(CHAR(1),SUBSTITUTE(Parse[[#This Row],[Raw]],",",CHAR(1),5))-1)),"") -> 3.02236 | J33: =IFERROR(VALUE(RIGHT(Parse[[#This Row],[Raw]],LEN(Parse[[#This Row],[Raw]])-FIND(CHAR(1),SUBSTITUTE(Parse[[#This Row],[Raw]],",",CHAR(1),6)))),"") -> 36678896
A34: 1999-08-12,8.220900,8.220900,7.789390,8.074100,3.116808,41032619 | C34: 1999-08-12,8.220900,8.220900,7.789390,8.074100,3.116808,41032619 | D34: =IFERROR(DATEVALUE(LEFT(Parse[[#This Row],[Raw]],FIND(",",Parse[[#This Row],[Raw]])-1)),"") -> 1999-08-12 | E34: =IFERROR(VALUE(MID(Parse[[#This Row],[Raw]],FIND(CHAR(1),SUBSTITUTE(Parse[[#This Row],[Raw]],",",CHAR(1),1))+1,FIND(CHAR(1), SUBSTITUTE(Parse[[#This Row],[Raw]],",",CHAR(1),2))-FIND(CHAR(1),SUBSTITUTE(Parse[[#This Row],[Raw]],",",CHAR(1),1))-1)),"") -> 8.2209 | F34: =IFERROR(VALUE(MID(Parse[[#This Row],[Raw]],FIND(CHAR(1),SUBSTITUTE(Parse[[#This Row],[Raw]],",",CHAR(1),2))+1,FIND(CHAR(1), SUBSTITUTE(Parse[[#This Row],[Raw]],",",CHAR(1),3))-FIND(CHAR(1),SUBSTITUTE(Parse[[#This Row],[Raw]],",",CHAR(1),2))-1)),"") -> 8.2209 | G34: =IFERROR(VALUE(MID(Parse[[#This Row],[Raw]],FIND(CHAR(1),SUBSTITUTE(Parse[[#This Row],[Raw]],",",CHAR(1),3))+1,FIND(CHAR(1), SUBSTITUTE(Parse[[#This Row],[Raw]],",",CHAR(1),4))-FIND(CHAR(1),SUBSTITUTE(Parse[[#This Row],[Raw]],",",CHAR(1),3))-1)),"") -> 7.78939 | H34: =IFERROR(VALUE(MID(Parse[[#This Row],[Raw]],FIND(CHAR(1),SUBSTITUTE(Parse[[#This Row],[Raw]],",",CHAR(1),4))+1,FIND(CHAR(1), SUBSTITUTE(Parse[[#This Row],[Raw]],",",CHAR(1),5))-FIND(CHAR(1),SUBSTITUTE(Parse[[#This Row],[Raw]],",",CHAR(1),4))-1)),"") -> 8.0741 | I34: =IFERROR(VALUE(MID(Parse[[#This Row],[Raw]],FIND(CHAR(1),SUBSTITUTE(Parse[[#This Row],[Raw]],",",CHAR(1),5))+1,FIND(CHAR(1), SUBSTITUTE(Parse[[#This Row],[Raw]],",",CHAR(1),6))-FIND(CHAR(1),SUBSTITUTE(Parse[[#This Row],[Raw]],",",CHAR(1),5))-1)),"") -> 3.116808 | J34: =IFERROR(VALUE(RIGHT(Parse[[#This Row],[Raw]],LEN(Parse[[#This Row],[Raw]])-FIND(CHAR(1),SUBSTITUTE(Parse[[#This Row],[Raw]],",",CHAR(1),6)))),"") -> 41032619
A35: 1999-08-19,8.096340,8.318770,7.918400,7.918400,3.056704,32387894 | C35: 1999-08-19,8.096340,8.318770,7.918400,7.918400,3.056704,32387894 | D35: =IFERROR(DATEVALUE(LEFT(Parse[[#This Row],[Raw]],FIND(",",Parse[[#This Row],[Raw]])-1)),"") -> 1999-08-19 | E35: =IFERROR(VALUE(MID(Parse[[#This Row],[Raw]],FIND(CHAR(1),SUBSTITUTE(Parse[[#This Row],[Raw]],",",CHAR(1),1))+1,FIND(CHAR(1), SUBSTITUTE(Parse[[#This Row],[Raw]],",",CHAR(1),2))-FIND(CHAR(1),SUBSTITUTE(Parse[[#This Row],[Raw]],",",CHAR(1),1))-1)),"") -> 8.09634 | F35: =IFERROR(VALUE(MID(Parse[[#This Row],[Raw]],FIND(CHAR(1),SUBSTITUTE(Parse[[#This Row],[Raw]],",",CHAR(1),2))+1,FIND(CHAR(1), SUBSTITUTE(Parse[[#This Row],[Raw]],",",CHAR(1),3))-FIND(CHAR(1),SUBSTITUTE(Parse[[#This Row],[Raw]],",",CHAR(1),2))-1)),"") -> 8.31877 | G35: =IFERROR(VALUE(MID(Parse[[#This Row],[Raw]],FIND(CHAR(1),SUBSTITUTE(Parse[[#This Row],[Raw]],",",CHAR(1),3))+1,FIND(CHAR(1), SUBSTITUTE(Parse[[#This Row],[Raw]],",",CHAR(1),4))-FIND(CHAR(1),SUBSTITUTE(Parse[[#This Row],[Raw]],",",CHAR(1),3))-1)),"") -> 7.9184 | H35: =IFERROR(VALUE(MID(Parse[[#This Row],[Raw]],FIND(CHAR(1),SUBSTITUTE(Parse[[#This Row],[Raw]],",",CHAR(1),4))+1,FIND(CHAR(1), SUBSTITUTE(Parse[[#This Row],[Raw]],",",CHAR(1),5))-FIND(CHAR(1),SUBSTITUTE(Parse[[#This Row],[Raw]],",",CHAR(1),4))-1)),"") -> 7.9184 | I35: =IFERROR(VALUE(MID(Parse[[#This Row],[Raw]],FIND(CHAR(1),SUBSTITUTE(Parse[[#This Row],[Raw]],",",CHAR(1),5))+1,FIND(CHAR(1), SUBSTITUTE(Parse[[#This Row],[Raw]],",",CHAR(1),6))-FIND(CHAR(1),SUBSTITUTE(Parse[[#This Row],[Raw]],",",CHAR(1),5))-1)),"") -> 3.056704 | J35: =IFERROR(VALUE(RIGHT(Parse[[#This Row],[Raw]],LEN(Parse[[#This Row],[Raw]])-FIND(CHAR(1),SUBSTITUTE(Parse[[#This Row],[Raw]],",",CHAR(1),6)))),"") -> 32387894
A36: 1999-08-26,7.918400,8.011820,7.460200,7.976230,3.079028,49881034 | C36: 1999-08-26,7.918400,8.011820,7.460200,7.976230,3.079028,49881034 | D36: =IFERROR(DATEVALUE(LEFT(Parse[[#This Row],[Raw]],FIND(",",Parse[[#This Row],[Raw]])-1)),"") -> 1999-08-26 | E36: =IFERROR(VALUE(MID(Parse[[#This Row],[Raw]],FIND(CHAR(1),SUBSTITUTE(Parse[[#This Row],[Raw]],",",CHAR(1),1))+1,FIND(CHAR(1), SUBSTITUTE(Parse[[#This Row],[Raw]],",",CHAR(1),2))-FIND(CHAR(1),SUBSTITUTE(Parse[[#This Row],[Raw]],",",CHAR(1),1))-1)),"") -> 7.9184 | F36: =IFERROR(VALUE(MID(Parse[[#This Row],[Raw]],FIND(CHAR(1),SUBSTITUTE(Parse[[#This Row],[Raw]],",",CHAR(1),2))+1,FIND(CHAR(1), SUBSTITUTE(Parse[[#This Row],[Raw]],",",CHAR(1),3))-FIND(CHAR(1),SUBSTITUTE(Parse[[#This Row],[Raw]],",",CHAR(1),2))-1)),"") -> 8.01182 | G36: =IFERROR(VALUE(MID(Parse[[#This Row],[Raw]],FIND(CHAR(1),SUBSTITUTE(Parse[[#This Row],[Raw]],",",CHAR(1),3))+1,FIND(CHAR(1), SUBSTITUTE(Parse[[#This Row],[Raw]],",",CHAR(1),4))-FIND(CHAR(1),SUBSTITUTE(Parse[[#This Row],[Raw]],",",CHAR(1),3))-1)),"") -> 7.4602 | H36: =IFERROR(VALUE(MID(Parse[[#This Row],[Raw]],FIND(CHAR(1),SUBSTITUTE(Parse[[#This Row],[Raw]],",",CHAR(1),4))+1,FIND(CHAR(1), SUBSTITUTE(Parse[[#This Row],[Raw]],",",CHAR(1),5))-FIND(CHAR(1),SUBSTITUTE(Parse[[#This Row],[Raw]],",",CHAR(1),4))-1)),"") -> 7.97623 | I36: =IFERROR(VALUE(MID(Parse[[#This Row],[Raw]],FIND(CHAR(1),SUBSTITUTE(Parse[[#This Row],[Raw]],",",CHAR(1),5))+1,FIND(CHAR(1), SUBSTITUTE(Parse[[#This Row],[Raw]],",",CHAR(1),6))-FIND(CHAR(1),SUBSTITUTE(Parse[[#This Row],[Raw]],",",CHAR(1),5))-1)),"") -> 3.079028 | J36: =IFERROR(VALUE(RIGHT(Parse[[#This Row],[Raw]],LEN(Parse[[#This Row],[Raw]])-FIND(CHAR(1),SUBSTITUTE(Parse[[#This Row],[Raw]],",",CHAR(1),6)))),"") -> 49881034
A37: 1999-09-02,7.980680,8.074100,7.833880,7.918400,3.056704,28588044 | C37: 1999-09-02,7.980680,8.074100,7.833880,7.918400,3.056704,28588044 | D37: =IFERROR(DATEVALUE(LEFT(Parse[[#This Row],[Raw]],FIND(",",Parse[[#This Row],[Raw]])-1)),"") -> 1999-09-02 | E37: =IFERROR(VALUE(MID(Parse[[#This Row],[Raw]],FIND(CHAR(1),SUBSTITUTE(Parse[[#This Row],[Raw]],",",CHAR(1),1))+1,FIND(CHAR(1), SUBSTITUTE(Parse[[#This Row],[Raw]],",",CHAR(1),2))-FIND(CHAR(1),SUBSTITUTE(Parse[[#This Row],[Raw]],",",CHAR(1),1))-1)),"") -> 7.98068 | F37: =IFERROR(VALUE(MID(Parse[[#This Row],[Raw]],FIND(CHAR(1),SUBSTITUTE(Parse[[#This Row],[Raw]],",",CHAR(1),2))+1,FIND(CHAR(1), SUBSTITUTE(Parse[[#This Row],[Raw]],",",CHAR(1),3))-FIND(CHAR(1),SUBSTITUTE(Parse[[#This Row],[Raw]],",",CHAR(1),2))-1)),"") -> 8.0741 | G37: =IFERROR(VALUE(MID(Parse[[#This Row],[Raw]],FIND(CHAR(1),SUBSTITUTE(Parse[[#This Row],[Raw]],",",CHAR(1),3))+1,FIND(CHAR(1), SUBSTITUTE(Parse[[#This Row],[Raw]],",",CHAR(1),4))-FIND(CHAR(1),SUBSTITUTE(Parse[[#This Row],[Raw]],",",CHAR(1),3))-1)),"") -> 7.83388 | H37: =IFERROR(VALUE(MID(Parse[[#This Row],[Raw]],FIND(CHAR(1),SUBSTITUTE(Parse[[#This Row],[Raw]],",",CHAR(1),4))+1,FIND(CHAR(1), SUBSTITUTE(Parse[[#This Row],[Raw]],",",CHAR(1),5))-FIND(CHAR(1),SUBSTITUTE(Parse[[#This Row],[Raw]],",",CHAR(1),4))-1)),"") -> 7.9184 | I37: =IFERROR(VALUE(MID(Parse[[#This Row],[Raw]],FIND(CHAR(1),SUBSTITUTE(Parse[[#This Row],[Raw]],",",CHAR(1),5))+1,FIND(CHAR(1), SUBSTITUTE(Parse[[#This Row],[Raw]],",",CHAR(1),6))-FIND(CHAR(1),SUBSTITUTE(Parse[[#This Row],[Raw]],",",CHAR(1),5))-1)),"") -> 3.056704 | J37: =IFERROR(VALUE(RIGHT(Parse[[#This Row],[Raw]],LEN(Parse[[#This Row],[Raw]])-FIND(CHAR(1),SUBSTITUTE(Parse[[#This Row],[Raw]],",",CHAR(1),6)))),"") -> 28588044
A38: 1999-09-09,8.083000,8.185310,7.784940,7.978460,3.079889,47433464 | C38: 1999-09-09,8.083000,8.185310,7.784940,7.978460,3.079889,47433464 | D38: =IFERROR(DATEVALUE(LEFT(Parse[[#This Row],[Raw]],FIND(",",Parse[[#This Row],[Raw]])-1)),"") -> 1999-09-09 | E38: =IFERROR(VALUE(MID(Parse[[#This Row],[Raw]],FIND(CHAR(1),SUBSTITUTE(Parse[[#This Row],[Raw]],",",CHAR(1),1))+1,FIND(CHAR(1), SUBSTITUTE(Parse[[#This Row],[Raw]],",",CHAR(1),2))-FIND(CHAR(1),SUBSTITUTE(Parse[[#This Row],[Raw]],",",CHAR(1),1))-1)),"") -> 8.083 | F38: =IFERROR(VALUE(MID(Parse[[#This Row],[Raw]],FIND(CHAR(1),SUBSTITUTE(Parse[[#This Row],[Raw]],",",CHAR(1),2))+1,FIND(CHAR(1), SUBSTITUTE(Parse[[#This Row],[Raw]],",",CHAR(1),3))-FIND(CHAR(1),SUBSTITUTE(Parse[[#This Row],[Raw]],",",CHAR(1),2))-1)),"") -> 8.18531 | G38: =IFERROR(VALUE(MID(Parse[[#This Row],[Raw]],FIND(CHAR(1),SUBSTITUTE(Parse[[#This Row],[Raw]],",",CHAR(1),3))+1,FIND(CHAR(1), SUBSTITUTE(Parse[[#This Row],[Raw]],",",CHAR(1),4))-FIND(CHAR(1),SUBSTITUTE(Parse[[#This Row],[Raw]],",",CHAR(1),3))-1)),"") -> 7.78494 | H38: =IFERROR(VALUE(MID(Parse[[#This Row],[Raw]],FIND(CHAR(1),SUBSTITUTE(Parse[[#This Row],[Raw]],",",CHAR(1),4))+1,FIND(CHAR(1), SUBSTITUTE(Parse[[#This Row],[Raw]],",",CHAR(1),5))-FIND(CHAR(1),SUBSTITUTE(Parse[[#This Row],[Raw]],",",CHAR(1),4))-1)),"") -> 7.97846 | I38: =IFERROR(VALUE(MID(Parse[[#This Row],[Raw]],FIND(CHAR(1),SUBSTITUTE(Parse[[#This Row],[Raw]],",",CHAR(1),5))+1,FIND(CHAR(1), SUBSTITUTE(Parse[[#This Row],[Raw]],",",CHAR(1),6))-FIND(CHAR(1),SUBSTITUTE(Parse[[#This Row],[Raw]],",",CHAR(1),5))-1)),"") -> 3.079889 | J38: =IFERROR(VALUE(RIGHT(Parse[[#This Row],[Raw]],LEN(Parse[[#This Row],[Raw]])-FIND(CHAR(1),SUBSTITUTE(Parse[[#This Row],[Raw]],",",CHAR(1),6)))),"") -> 47433464
A39: 1999-09-16,8.198660,8.229800,7.962890,8.051860,3.108223,46264833 | C39: 1999-09-16,8.198660,8.229800,7.962890,8.051860,3.108223,46264833 | D39: =IFERROR(DATEVALUE(LEFT(Parse[[#This Row],[Raw]],FIND(",",Parse[[#This Row],[Raw]])-1)),"") -> 1999-09-16 | E39: =IFERROR(VALUE(MID(Parse[[#This Row],[Raw]],FIND(CHAR(1),SUBSTITUTE(Parse[[#This Row],[Raw]],",",CHAR(1),1))+1,FIND(CHAR(1), SUBSTITUTE(Parse[[#This Row],[Raw]],",",CHAR(1),2))-FIND(CHAR(1),SUBSTITUTE(Parse[[#This Row],[Raw]],",",CHAR(1),1))-1)),"") -> 8.19866 | F39: =IFERROR(VALUE(MID(Parse[[#This Row],[Raw]],FIND(CHAR(1),SUBSTITUTE(Parse[[#This Row],[Raw]],",",CHAR(1),2))+1,FIND(CHAR(1), SUBSTITUTE(Parse[[#This Row],[Raw]],",",CHAR(1),3))-FIND(CHAR(1),SUBSTITUTE(Parse[[#This Row],[Raw]],",",CHAR(1),2))-1)),"") -> 8.2298 | G39: =IFERROR(VALUE(MID(Parse[[#This Row],[Raw]],FIND(CHAR(1),SUBSTITUTE(Parse[[#This Row],[Raw]],",",CHAR(1),3))+1,FIND(CHAR(1), SUBSTITUTE(Parse[[#This Row],[Raw]],",",CHAR(1),4))-FIND(CHAR(1),SUBSTITUTE(Parse[[#This Row],[Raw]],",",CHAR(1),3))-1)),"") -> 7.96289 | H39: =IFERROR(VALUE(MID(Parse[[#This Row],[Raw]],FIND(CHAR(1),SUBSTITUTE(Parse[[#This Row],[Raw]],",",CHAR(1),4))+1,FIND(CHAR(1), SUBSTITUTE(Parse[[#This Row],[Raw]],",",CHAR(1),5))-FIND(CHAR(1),SUBSTITUTE(Parse[[#This Row],[Raw]],",",CHAR(1),4))-1)),"") -> 8.05186 | I39: =IFERROR(VALUE(MID(Parse[[#This Row],[Raw]],FIND(CHAR(1),SUBSTITUTE(Parse[[#This Row],[Raw]],",",CHAR(1),5))+1,FIND(CHAR(1), SUBSTITUTE(Parse[[#This Row],[Raw]],",",CHAR(1),6))-FIND(CHAR(1),SUBSTITUTE(Parse[[#This Row],[Raw]],",",CHAR(1),5))-1)),"") -> 3.108223 | J39: =IFERROR(VALUE(RIGHT(Parse[[#This Row],[Raw]],LEN(Parse[[#This Row],[Raw]])-FIND(CHAR(1),SUBSTITUTE(Parse[[#This Row],[Raw]],",",CHAR(1),6)))),"") -> 46264833
A40: 1999-09-23,7.960660,7.960660,7.740460,7.851670,3.030945,95903863 | C40: 1999-09-23,7.960660,7.960660,7.740460,7.851670,3.030945,95903863 | D40: =IFERROR(DATEVALUE(LEFT(Parse[[#This Row],[Raw]],FIND(",",Parse[[#This Row],[Raw]])-1)),"") -> 1999-09-23 | E40: =IFERROR(VALUE(MID(Parse[[#This Row],[Raw]],FIND(CHAR(1),SUBSTITUTE(Parse[[#This Row],[Raw]],",",CHAR(1),1))+1,FIND(CHAR(1), SUBSTITUTE(Parse[[#This Row],[Raw]],",",CHAR(1),2))-FIND(CHAR(1),SUBSTITUTE(Parse[[#This Row],[Raw]],",",CHAR(1),1))-1)),"") -> 7.96066 | F40: =IFERROR(VALUE(MID(Parse[[#This Row],[Raw]],FIND(CHAR(1),SUBSTITUTE(Parse[[#This Row],[Raw]],",",CHAR(1),2))+1,FIND(CHAR(1), SUBSTITUTE(Parse[[#This Row],[Raw]],",",CHAR(1),3))-FIND(CHAR(1),SUBSTITUTE(Parse[[#This Row],[Raw]],",",CHAR(1),2))-1)),"") -> 7.96066 | G40: =IFERROR(VALUE(MID(Parse[[#This Row],[Raw]],FIND(CHAR(1),SUBSTITUTE(Parse[[#This Row],[Raw]],",",CHAR(1),3))+1,FIND(CHAR(1), SUBSTITUTE(Parse[[#This Row],[Raw]],",",CHAR(1),4))-FIND(CHAR(1),SUBSTITUTE(Parse[[#This Row],[Raw]],",",CHAR(1),3))-1)),"") -> 7.74046 | H40: =IFERROR(VALUE(MID(Parse[[#This Row],[Raw]],FIND(CHAR(1),SUBSTITUTE(Parse[[#This Row],[Raw]],",",CHAR(1),4))+1,FIND(CHAR(1), SUBSTITUTE(Parse[[#This Row],[Raw]],",",CHAR(1),5))-FIND(CHAR(1),SUBSTITUTE(Parse[[#This Row],[Raw]],",",CHAR(1),4))-1)),"") -> 7.85167 | I40: =IFERROR(VALUE(MID(Parse[[#This Row],[Raw]],FIND(CHAR(1),SUBSTITUTE(Parse[[#This Row],[Raw]],",",CHAR(1),5))+1,FIND(CHAR(1), SUBSTITUTE(Parse[[#This Row],[Raw]],",",CHAR(1),6))-FIND(CHAR(1),SUBSTITUTE(Parse[[#This Row],[Raw]],",",CHAR(1),5))-1)),"") -> 3.030945 | J40: =IFERROR(VALUE(RIGHT(Parse[[#This Row],[Raw]],LEN(Parse[[#This Row],[Raw]])-FIND(CHAR(1),SUBSTITUTE(Parse[[#This Row],[Raw]],",",CHAR(1),6)))),"") -> 95903863
A41: 1999-09-30,7.881030,8.154170,7.873920,7.918400,3.056704,37338025 | C41: 1999-09-30,7.881030,8.154170,7.873920,7.918400,3.056704,37338025 | D41: =IFERROR(DATEVALUE(LEFT(Parse[[#This Row],[Raw]],FIND(",",Parse[[#This Row],[Raw]])-1)),"") -> 1999-09-30 | E41: =IFERROR(VALUE(MID(Parse[[#This Row],[Raw]],FIND(CHAR(1),SUBSTITUTE(Parse[[#This Row],[Raw]],",",CHAR(1),1))+1,FIND(CHAR(1), SUBSTITUTE(Parse[[#This Row],[Raw]],",",CHAR(1),2))-FIND(CHAR(1),SUBSTITUTE(Parse[[#This Row],[Raw]],",",CHAR(1),1))-1)),"") -> 7.88103 | F41: =IFERROR(VALUE(MID(Parse[[#This Row],[Raw]],FIND(CHAR(1),SUBSTITUTE(Parse[[#This Row],[Raw]],",",CHAR(1),2))+1,FIND(CHAR(1), SUBSTITUTE(Parse[[#This Row],[Raw]],",",CHAR(1),3))-FIND(CHAR(1),SUBSTITUTE(Parse[[#This Row],[Raw]],",",CHAR(1),2))-1)),"") -> 8.15417 | G41: =IFERROR(VALUE(MID(Parse[[#This Row],[Raw]],FIND(CHAR(1),SUBSTITUTE(Parse[[#This Row],[Raw]],",",CHAR(1),3))+1,FIND(CHAR(1), SUBSTITUTE(Parse[[#This Row],[Raw]],",",CHAR(1),4))-FIND(CHAR(1),SUBSTITUTE(Parse[[#This Row],[Raw]],",",CHAR(1),3))-1)),"") -> 7.87392 | H41: =IFERROR(VALUE(MID(Parse[[#This Row],[Raw]],FIND(CHAR(1),SUBSTITUTE(Parse[[#This Row],[Raw]],",",CHAR(1),4))+1,FIND(CHAR(1), SUBSTITUTE(Parse[[#This Row],[Raw]],",",CHAR(1),5))-FIND(CHAR(1),SUBSTITUTE(Parse[[#This Row],[Raw]],",",CHAR(1),4))-1)),"") -> 7.9184 | I41: =IFERROR(VALUE(MID(Parse[[#This Row],[Raw]],FIND(CHAR(1),SUBSTITUTE(Parse[[#This Row],[Raw]],",",CHAR(1),5))+1,FIND(CHAR(1), SUBSTITUTE(Parse[[#This Row],[Raw]],",",CHAR(1),6))-FIND(CHAR(1),SUBSTITUTE(Parse[[#This Row],[Raw]],",",CHAR(1),5))-1)),"") -> 3.056704 | J41: =IFERROR(VALUE(RIGHT(Parse[[#This Row],[Raw]],LEN(Parse[[#This Row],[Raw]])-FIND(CHAR(1),SUBSTITUTE(Parse[[#This Row],[Raw]],",",CHAR(1),6)))),"") -> 37338025
A42: 1999-10-07,7.955320,8.007370,7.749360,7.985130,3.082463,29112475 | C42: 1999-10-07,7.955320,8.007370,7.749360,7.985130,3.082463,29112475 | D42: =IFERROR(DATEVALUE(LEFT(Parse[[#This Row],[Raw]],FIND(",",Parse[[#This Row],[Raw]])-1)),"") -> 1999-10-07 | E42: =IFERROR(VALUE(MID(Parse[[#This Row],[Raw]],FIND(CHAR(1),SUBSTITUTE(Parse[[#This Row],[Raw]],",",CHAR(1),1))+1,FIND(CHAR(1), SUBSTITUTE(Parse[[#This Row],[Raw]],",",CHAR(1),2))-FIND(CHAR(1),SUBSTITUTE(Parse[[#This Row],[Raw]],",",CHAR(1),1))-1)),"") -> 7.95532 | F42: =IFERROR(VALUE(MID(Parse[[#This Row],[Raw]],FIND(CHAR(1),SUBSTITUTE(Parse[[#This Row],[Raw]],",",CHAR(1),2))+1,FIND(CHAR(1), SUBSTITUTE(Parse[[#This Row],[Raw]],",",CHAR(1),3))-FIND(CHAR(1),SUBSTITUTE(Parse[[#This Row],[Raw]],",",CHAR(1),2))-1)),"") -> 8.00737 | G42: =IFERROR(VALUE(MID(Parse[[#This Row],[Raw]],FIND(CHAR(1),SUBSTITUTE(Parse[[#This Row],[Raw]],",",CHAR(1),3))+1,FIND(CHAR(1), SUBSTITUTE(Parse[[#This Row],[Raw]],",",CHAR(1),4))-FIND(CHAR(1),SUBSTITUTE(Parse[[#This Row],[Raw]],",",CHAR(1),3))-1)),"") -> 7.74936 | H42: =IFERROR(VALUE(MID(Parse[[#This Row],[Raw]],FIND(CHAR(1),SUBSTITUTE(Parse[[#This Row],[Raw]],",",CHAR(1),4))+1,FIND(CHAR(1), SUBSTITUTE(Parse[[#This Row],[Raw]],",",CHAR(1),5))-FIND(CHAR(1),SUBSTITUTE(Parse[[#This Row],[Raw]],",",CHAR(1),4))-1)),"") -> 7.98513 | I42: =IFERROR(VALUE(MID(Parse[[#This Row],[Raw]],FIND(CHAR(1),SUBSTITUTE(Parse[[#This Row],[Raw]],",",CHAR(1),5))+1,FIND(CHAR(1), SUBSTITUTE(Parse[[#This Row],[Raw]],",",CHAR(1),6))-FIND(CHAR(1),SUBSTITUTE(Parse[[#This Row],[Raw]],",",CHAR(1),5))-1)),"") -> 3.082463 | J42: =IFERROR(VALUE(RIGHT(Parse[[#This Row],[Raw]],LEN(Parse[[#This Row],[Raw]])-FIND(CHAR(1),SUBSTITUTE(Parse[[#This Row],[Raw]],",",CHAR(1),6)))),"") -> 29112475
A43: 1999-10-14,7.965110,8.096340,7.589210,7.678180,2.963973,55189127 | C43: 1999-10-14,7.965110,8.096340,7.589210,7.678180,2.963973,55189127 | D43: =IFERROR(DATEVALUE(LEFT(Parse[[#This Row],[Raw]],FIND(",",Parse[[#This Row],[Raw]])-1)),"") -> 1999-10-14 | E43: =IFERROR(VALUE(MID(Parse[[#This Row],[Raw]],FIND(CHAR(1),SUBSTITUTE(Parse[[#This Row],[Raw]],",",CHAR(1),1))+1,FIND(CHAR(1), SUBSTITUTE(Parse[[#This Row],[Raw]],",",CHAR(1),2))-FIND(CHAR(1),SUBSTITUTE(Parse[[#This Row],[Raw]],",",CHAR(1),1))-1)),"") -> 7.96511 | F43: =IFERROR(VALUE(MID(Parse[[#This Row],[Raw]],FIND(CHAR(1),SUBSTITUTE(Parse[[#This Row],[Raw]],",",CHAR(1),2))+1,FIND(CHAR(1), SUBSTITUTE(Parse[[#This Row],[Raw]],",",CHAR(1),3))-FIND(CHAR(1),SUBSTITUTE(Parse[[#This Row],[Raw]],",",CHAR(1),2))-1)),"") -> 8.09634 | G43: =IFERROR(VALUE(MID(Parse[[#This Row],[Raw]],FIND(CHAR(1),SUBSTITUTE(Parse[[#This Row],[Raw]],",",CHAR(1),3))+1,FIND(CHAR(1), SUBSTITUTE(Parse[[#This Row],[Raw]],",",CHAR(1),4))-FIND(CHAR(1),SUBSTITUTE(Parse[[#This Row],[Raw]],",",CHAR(1),3))-1)),"") -> 7.58921 | H43: =IFERROR(VALUE(MID(Parse[[#This Row],[Raw]],FIND(CHAR(1),SUBSTITUTE(Parse[[#This Row],[Raw]],",",CHAR(1),4))+1,FIND(CHAR(1), SUBSTITUTE(Parse[[#This Row],[Raw]],",",CHAR(1),5))-FIND(CHAR(1),SUBSTITUTE(Parse[[#This Row],[Raw]],",",CHAR(1),4))-1)),"") -> 7.67818 | I43: =IFERROR(VALUE(MID(Parse[[#This Row],[Raw]],FIND(CHAR(1),SUBSTITUTE(Parse[[#This Row],[Raw]],",",CHAR(1),5))+1,FIND(CHAR(1), SUBSTITUTE(Parse[[#This Row],[Raw]],",",CHAR(1),6))-FIND(CHAR(1),SUBSTITUTE(Parse[[#This Row],[Raw]],",",CHAR(1),5))-1)),"") -> 2.963973 | J43: =IFERROR(VALUE(RIGHT(Parse[[#This Row],[Raw]],LEN(Parse[[#This Row],[Raw]])-FIND(CHAR(1),SUBSTITUTE(Parse[[#This Row],[Raw]],",",CHAR(1),6)))),"") -> 55189127
A44: 1999-10-21,7.718220,7.722670,7.393470,7.446860,2.874678,30481009 | C44: 1999-10-21,7.718220,7.722670,7.393470,7.446860,2.874678,30481009 | D44: =IFERROR(DATEVALUE(LEFT(Parse[[#This Row],[Raw]],FIND(",",Parse[[#This Row],[Raw]])-1)),"") -> 1999-10-21 | E44: =IFERROR(VALUE(MID(Parse[[#This Row],[Raw]],FIND(CHAR(1),SUBSTITUTE(Parse[[#This Row],[Raw]],",",CHAR(1),1))+1,FIND(CHAR(1), SUBSTITUTE(Parse[[#This Row],[Raw]],",",CHAR(1),2))-FIND(CHAR(1),SUBSTITUTE(Parse[[#This Row],[Raw]],",",CHAR(1),1))-1)),"") -> 7.71822 | F44: =IFERROR(VALUE(MID(Parse[[#This Row],[Raw]],FIND(CHAR(1),SUBSTITUTE(Parse[[#This Row],[Raw]],",",CHAR(1),2))+1,FIND(CHAR(1), SUBSTITUTE(Parse[[#This Row],[Raw]],",",CHAR(1),3))-FIND(CHAR(1),SUBSTITUTE(Parse[[#This Row],[Raw]],",",CHAR(1),2))-1)),"") -> 7.72267 | G44: =IFERROR(VALUE(MID(Parse[[#This Row],[Raw]],FIND(CHAR(1),SUBSTITUTE(Parse[[#This Row],[Raw]],",",CHAR(1),3))+1,FIND(CHAR(1), SUBSTITUTE(Parse[[#This Row],[Raw]],",",CHAR(1),4))-FIND(CHAR(1),SUBSTITUTE(Parse[[#This Row],[Raw]],",",CHAR(1),3))-1)),"") -> 7.39347 | H44: =IFERROR(VALUE(MID(Parse[[#This Row],[Raw]],FIND(CHAR(1),SUBSTITUTE(Parse[[#This Row],[Raw]],",",CHAR(1),4))+1,FIND(CHAR(1), SUBSTITUTE(Parse[[#This Row],[Raw]],",",CHAR(1),5))-FIND(CHAR(1),SUBSTITUTE(Parse[[#This Row],[Raw]],",",CHAR(1),4))-1)),"") -> 7.44686 | I44: =IFERROR(VALUE(MID(Parse[[#This Row],[Raw]],FIND(CHAR(1),SUBSTITUTE(Parse[[#This Row],[Raw]],",",CHAR(1),5))+1,FIND(CHAR(1), SUBSTITUTE(Parse[[#This Row],[Raw]],",",CHAR(1),6))-FIND(CHAR(1),SUBSTITUTE(Parse[[#This Row],[Raw]],",",CHAR(1),5))-1)),"") -> 2.874678 | J44: =IFERROR(VALUE(RIGHT(Parse[[#This Row],[Raw]],LEN(Parse[[#This Row],[Raw]])-FIND(CHAR(1),SUBSTITUTE(Parse[[#This Row],[Raw]],",",CHAR(1),6)))),"") -> 30481009
A45: 1999-10-28,7.429060,7.446860,6.872990,7.411270,2.860939,78161511 | C45: 1999-10-28,7.429060,7.446860,6.872990,7.411270,2.860939,78161511 | D45: =IFERROR(DATEVALUE(LEFT(Parse[[#This Row],[Raw]],FIND(",",Parse[[#This Row],[Raw]])-1)),"") -> 1999-10-28 | E45: =IFERROR(VALUE(MID(Parse[[#This Row],[Raw]],FIND(CHAR(1),SUBSTITUTE(Parse[[#This Row],[Raw]],",",CHAR(1),1))+1,FIND(CHAR(1), SUBSTITUTE(Parse[[#This Row],[Raw]],",",CHAR(1),2))-FIND(CHAR(1),SUBSTITUTE(Parse[[#This Row],[Raw]],",",CHAR(1),1))-1)),"") -> 7.42906 | F45: =IFERROR(VALUE(MID(Parse[[#This Row],[Raw]],FIND(CHAR(1),SUBSTITUTE(Parse[[#This Row],[Raw]],",",CHAR(1),2))+1,FIND(CHAR(1), SUBSTITUTE(Parse[[#This Row],[Raw]],",",CHAR(1),3))-FIND(CHAR(1),SUBSTITUTE(Parse[[#This Row],[Raw]],",",CHAR(1),2))-1)),"") -> 7.44686 | G45: =IFERROR(VALUE(MID(Parse[[#This Row],[Raw]],FIND(CHAR(1),SUBSTITUTE(Parse[[#This Row],[Raw]],",",CHAR(1),3))+1,FIND(CHAR(1), SUBSTITUTE(Parse[[#This Row],[Raw]],",",CHAR(1),4))-FIND(CHAR(1),SUBSTITUTE(Parse[[#This Row],[Raw]],",",CHAR(1),3))-1)),"") -> 6.87299 | H45: =IFERROR(VALUE(MID(Parse[[#This Row],[Raw]],FIND(CHAR(1),SUBSTITUTE(Parse[[#This Row],[Raw]],",",CHAR(1),4))+1,FIND(CHAR(1), SUBSTITUTE(Parse[[#This Row],[Raw]],",",CHAR(1),5))-FIND(CHAR(1),SUBSTITUTE(Parse[[#This Row],[Raw]],",",CHAR(1),4))-1)),"") -> 7.41127 | I45: =IFERROR(VALUE(MID(Parse[[#This Row],[Raw]],FIND(CHAR(1),SUBSTITUTE(Parse[[#This Row],[Raw]],",",CHAR(1),5))+1,FIND(CHAR(1), SUBSTITUTE(Parse[[#This Row],[Raw]],",",CHAR(1),6))-FIND(CHAR(1),SUBSTITUTE(Parse[[#This Row],[Raw]],",",CHAR(1),5))-1)),"") -> 2.860939 | J45: =IFERROR(VALUE(RIGHT(Parse[[#This Row],[Raw]],LEN(Parse[[#This Row],[Raw]])-FIND(CHAR(1),SUBSTITUTE(Parse[[#This Row],[Raw]],",",CHAR(1),6)))),"") -> 78161511
A46: 1999-11-04,7.406820,7.535830,7.162150,7.491340,3.123517,29585434 | C46: 1999-11-04,7.406820,7.535830,7.162150,7.491340,3.123517,29585434 | D46: =IFERROR(DATEVALUE(LEFT(Parse[[#This Row],[Raw]],FIND(",",Parse[[#This Row],[Raw]])-1)),"") -> 1999-11-04 | E46: =IFERROR(VALUE(MID(Parse[[#This Row],[Raw]],FIND(CHAR(1),SUBSTITUTE(Parse[[#This Row],[Raw]],",",CHAR(1),1))+1,FIND(CHAR(1), SUBSTITUTE(Parse[[#This Row],[Raw]],",",CHAR(1),2))-FIND(CHAR(1),SUBSTITUTE(Parse[[#This Row],[Raw]],",",CHAR(1),1))-1)),"") -> 7.40682 | F46: =IFERROR(VALUE(MID(Parse[[#This Row],[Raw]],FIND(CHAR(1),SUBSTITUTE(Parse[[#This Row],[Raw]],",",CHAR(1),2))+1,FIND(CHAR(1), SUBSTITUTE(Parse[[#This Row],[Raw]],",",CHAR(1),3))-FIND(CHAR(1),SUBSTITUTE(Parse[[#This Row],[Raw]],",",CHAR(1),2))-1)),"") -> 7.53583 | G46: =IFERROR(VALUE(MID(Parse[[#This Row],[Raw]],FIND(CHAR(1),SUBSTITUTE(Parse[[#This Row],[Raw]],",",CHAR(1),3))+1,FIND(CHAR(1), SUBSTITUTE(Parse[[#This Row],[Raw]],",",CHAR(1),4))-FIND(CHAR(1),SUBSTITUTE(Parse[[#This Row],[Raw]],",",CHAR(1),3))-1)),"") -> 7.16215 | H46: =IFERROR(VALUE(MID(Parse[[#This Row],[Raw]],FIND(CHAR(1),SUBSTITUTE(Parse[[#This Row],[Raw]],",",CHAR(1),4))+1,FIND(CHAR(1), SUBSTITUTE(Parse[[#This Row],[Raw]],",",CHAR(1),5))-FIND(CHAR(1),SUBSTITUTE(Parse[[#This Row],[Raw]],",",CHAR(1),4))-1)),"") -> 7.49134 | I46: =IFERROR(VALUE(MID(Parse[[#This Row],[Raw]],FIND(CHAR(1),SUBSTITUTE(Parse[[#This Row],[Raw]],",",CHAR(1),5))+1,FIND(CHAR(1), SUBSTITUTE(Parse[[#This Row],[Raw]],",",CHAR(1),6))-FIND(CHAR(1),SUBSTITUTE(Parse[[#This Row],[Raw]],",",CHAR(1),5))-1)),"") -> 3.123517 | J46: =IFERROR(VALUE(RIGHT(Parse[[#This Row],[Raw]],LEN(Parse[[#This Row],[Raw]])-FIND(CHAR(1),SUBSTITUTE(Parse[[#This Row],[Raw]],",",CHAR(1),6)))),"") -> 29585434
A47: 1999-11-11,7.540270,8.176420,7.540270,8.167520,3.405450,53217107 | C47: 1999-11-11,7.540270,8.176420,7.540270,8.167520,3.405450,53217107 | D47: =IFERROR(DATEVALUE(LEFT(Parse[[#This Row],[Raw]],FIND(",",Parse[[#This Row],[Raw]])-1)),"") -> 1999-11-11 | E47: =IFERROR(VALUE(MID(Parse[[#This Row],[Raw]],FIND(CHAR(1),SUBSTITUTE(Parse[[#This Row],[Raw]],",",CHAR(1),1))+1,FIND(CHAR(1), SUBSTITUTE(Parse[[#This Row],[Raw]],",",CHAR(1),2))-FIND(CHAR(1),SUBSTITUTE(Parse[[#This Row],[Raw]],",",CHAR(1),1))-1)),"") -> 7.54027 | F47: =IFERROR(VALUE(MID(Parse[[#This Row],[Raw]],FIND(CHAR(1),SUBSTITUTE(Parse[[#This Row],[Raw]],",",CHAR(1),2))+1,FIND(CHAR(1), SUBSTITUTE(Parse[[#This Row],[Raw]],",",CHAR(1),3))-FIND(CHAR(1),SUBSTITUTE(Parse[[#This Row],[Raw]],",",CHAR(1),2))-1)),"") -> 8.17642 | G47: =IFERROR(VALUE(MID(Parse[[#This Row],[Raw]],FIND(CHAR(1),SUBSTITUTE(Parse[[#This Row],[Raw]],",",CHAR(1),3))+1,FIND(CHAR(1), SUBSTITUTE(Parse[[#This Row],[Raw]],",",CHAR(1),4))-FIND(CHAR(1),SUBSTITUTE(Parse[[#This Row],[Raw]],",",CHAR(1),3))-1)),"") -> 7.54027 | H47: =IFERROR(VALUE(MID(Parse[[#This Row],[Raw]],FIND(CHAR(1),SUBSTITUTE(Parse[[#This Row],[Raw]],",",CHAR(1),4))+1,FIND(CHAR(1), SUBSTITUTE(Parse[[#This Row],[Raw]],",",CHAR(1),5))-FIND(CHAR(1),SUBSTITUTE(Parse[[#This Row],[Raw]],",",CHAR(1),4))-1)),"") -> 8.16752 | I47: =IFERROR(VALUE(MID(Parse[[#This Row],[Raw]],FIND(CHAR(1),SUBSTITUTE(Parse[[#This Row],[Raw]],",",CHAR(1),5))+1,FIND(CHAR(1), SUBSTITUTE(Parse[[#This Row],[Raw]],",",CHAR(1),6))-FIND(CHAR(1),SUBSTITUTE(Parse[[#This Row],[Raw]],",",CHAR(1),5))-1)),"") -> 3.40545 | J47: =IFERROR(VALUE(RIGHT(Parse[[#This Row],[Raw]],LEN(Parse[[#This Row],[Raw]])-FIND(CHAR(1),SUBSTITUTE(Parse[[#This Row],[Raw]],",",CHAR(1),6)))),"") -> 53217107
A48: 1999-11-18,8.145280,8.274280,7.807190,7.896160,3.292305,39709642 | C48: 1999-11-18,8.145280,8.274280,7.807190,7.896160,3.292305,39709642 | D48: =IFERROR(DATEVALUE(LEFT(Parse[[#This Row],[Raw]],FIND(",",Parse[[#This Row],[Raw]])-1)),"") -> 1999-11-18 | E48: =IFERROR(VALUE(MID(Parse[[#This Row],[Raw]],FIND(CHAR(1),SUBSTITUTE(Parse[[#This Row],[Raw]],",",CHAR(1),1))+1,FIND(CHAR(1), SUBSTITUTE(Parse[[#This Row],[Raw]],",",CHAR(1),2))-FIND(CHAR(1),SUBSTITUTE(Parse[[#This Row],[Raw]],",",CHAR(1),1))-1)),"") -> 8.14528 | F48: =IFERROR(VALUE(MID(Parse[[#This Row],[Raw]],FIND(CHAR(1),SUBSTITUTE(Parse[[#This Row],[Raw]],",",CHAR(1),2))+1,FIND(CHAR(1), SUBSTITUTE(Parse[[#This Row],[Raw]],",",CHAR(1),3))-FIND(CHAR(1),SUBSTITUTE(Parse[[#This Row],[Raw]],",",CHAR(1),2))-1)),"") -> 8.27428 | G48: =IFERROR(VALUE(MID(Parse[[#This Row],[Raw]],FIND(CHAR(1),SUBSTITUTE(Parse[[#This Row],[Raw]],",",CHAR(1),3))+1,FIND(CHAR(1), SUBSTITUTE(Parse[[#This Row],[Raw]],",",CHAR(1),4))-FIND(CHAR(1),SUBSTITUTE(Parse[[#This Row],[Raw]],",",CHAR(1),3))-1)),"") -> 7.80719 | H48: =IFERROR(VALUE(MID(Parse[[#This Row],[Raw]],FIND(CHAR(1),SUBSTITUTE(Parse[[#This Row],[Raw]],",",CHAR(1),4))+1,FIND(CHAR(1), SUBSTITUTE(Parse[[#This Row],[Raw]],",",CHAR(1),5))-FIND(CHAR(1),SUBSTITUTE(Parse[[#This Row],[Raw]],",",CHAR(1),4))-1)),"") -> 7.89616 | I48: =IFERROR(VALUE(MID(Parse[[#This Row],[Raw]],FIND(CHAR(1),SUBSTITUTE(Parse[[#This Row],[Raw]],",",CHAR(1),5))+1,FIND(CHAR(1), SUBSTITUTE(Parse[[#This Row],[Raw]],",",CHAR(1),6))-FIND(CHAR(1),SUBSTITUTE(Parse[[#This Row],[Raw]],",",CHAR(1),5))-1)),"") -> 3.292305 | J48: =IFERROR(VALUE(RIGHT(Parse[[#This Row],[Raw]],LEN(Parse[[#This Row],[Raw]])-FIND(CHAR(1),SUBSTITUTE(Parse[[#This Row],[Raw]],",",CHAR(1),6)))),"") -> 39709642
A49: 1999-11-25,7.915730,7.998470,7.562520,7.918400,3.301579,34483755 | C49: 1999-11-25,7.915730,7.998470,7.562520,7.918400,3.301579,34483755 | D49: =IFERROR(DATEVALUE(LEFT(Parse[[#This Row],[Raw]],FIND(",",Parse[[#This Row],[Raw]])-1)),"") -> 1999-11-25 | E49: =IFERROR(VALUE(MID(Parse[[#This Row],[Raw]],FIND(CHAR(1),SUBSTITUTE(Parse[[#This Row],[Raw]],",",CHAR(1),1))+1,FIND(CHAR(1), SUBSTITUTE(Parse[[#This Row],[Raw]],",",CHAR(1),2))-FIND(CHAR(1),SUBSTITUTE(Parse[[#This Row],[Raw]],",",CHAR(1),1))-1)),"") -> 7.91573 | F49: =IFERROR(VALUE(MID(Parse[[#This Row],[Raw]],FIND(CHAR(1),SUBSTITUTE(Parse[[#This Row],[Raw]],",",CHAR(1),2))+1,FIND(CHAR(1), SUBSTITUTE(Parse[[#This Row],[Raw]],",",CHAR(1),3))-FIND(CHAR(1),SUBSTITUTE(Parse[[#This Row],[Raw]],",",CHAR(1),2))-1)),"") -> 7.99847 | G49: =IFERROR(VALUE(MID(Parse[[#This Row],[Raw]],FIND(CHAR(1),SUBSTITUTE(Parse[[#This Row],[Raw]],",",CHAR(1),3))+1,FIND(CHAR(1), SUBSTITUTE(Parse[[#This Row],[Raw]],",",CHAR(1),4))-FIND(CHAR(1),SUBSTITUTE(Parse[[#This Row],[Raw]],",",CHAR(1),3))-1)),"") -> 7.56252 | H49: =IFERROR(VALUE(MID(Parse[[#This Row],[Raw]],FIND(CHAR(1),SUBSTITUTE(Parse[[#This Row],[Raw]],",",CHAR(1),4))+1,FIND(CHAR(1), SUBSTITUTE(Parse[[#This Row],[Raw]],",",CHAR(1),5))-FIND(CHAR(1),SUBSTITUTE(Parse[[#This Row],[Raw]],",",CHAR(1),4))-1)),"") -> 7.9184 | I49: =IFERROR(VALUE(MID(Parse[[#This Row],[Raw]],FIND(CHAR(1),SUBSTITUTE(Parse[[#This Row],[Raw]],",",CHAR(1),5))+1,FIND(CHAR(1), SUBSTITUTE(Parse[[#This Row],[Raw]],",",CHAR(1),6))-FIND(CHAR(1),SUBSTITUTE(Parse[[#This Row],[Raw]],",",CHAR(1),5))-1)),"") -> 3.301579 | J49: =IFERROR(VALUE(RIGHT(Parse[[#This Row],[Raw]],LEN(Parse[[#This Row],[Raw]])-FIND(CHAR(1),SUBSTITUTE(Parse[[#This Row],[Raw]],",",CHAR(1),6)))),"") -> 34483755
A50: 1999-12-02,7.900160,8.007370,7.709320,7.893490,3.291193,32628838 | C50: 1999-12-02,7.900160,8.007370,7.709320,7.893490,3.291193,32628838 | D50: =IFERROR(DATEVALUE(LEFT(Parse[[#This Row],[Raw]],FIND(",",Parse[[#This Row],[Raw]])-1)),"") -> 1999-12-02 | E50: =IFERROR(VALUE(MID(Parse[[#This Row],[Raw]],FIND(CHAR(1),SUBSTITUTE(Parse[[#This Row],[Raw]],",",CHAR(1),1))+1,FIND(CHAR(1), SUBSTITUTE(Parse[[#This Row],[Raw]],",",CHAR(1),2))-FIND(CHAR(1),SUBSTITUTE(Parse[[#This Row],[Raw]],",",CHAR(1),1))-1)),"") -> 7.90016 | F50: =IFERROR(VALUE(MID(Parse[[#This Row],[Raw]],FIND(CHAR(1),SUBSTITUTE(Parse[[#This Row],[Raw]],",",CHAR(1),2))+1,FIND(CHAR(1), SUBSTITUTE(Parse[[#This Row],[Raw]],",",CHAR(1),3))-FIND(CHAR(1),SUBSTITUTE(Parse[[#This Row],[Raw]],",",CHAR(1),2))-1)),"") -> 8.00737 | G50: =IFERROR(VALUE(MID(Parse[[#This Row],[Raw]],FIND(CHAR(1),SUBSTITUTE(Parse[[#This Row],[Raw]],",",CHAR(1),3))+1,FIND(CHAR(1), SUBSTITUTE(Parse[[#This Row],[Raw]],",",CHAR(1),4))-FIND(CHAR(1),SUBSTITUTE(Parse[[#This Row],[Raw]],",",CHAR(1),3))-1)),"") -> 7.70932 | H50: =IFERROR(VALUE(MID(Parse[[#This Row],[Raw]],FIND(CHAR(1),SUBSTITUTE(Parse[[#This Row],[Raw]],",",CHAR(1),4))+1,FIND(CHAR(1), SUBSTITUTE(Parse[[#This Row],[Raw]],",",CHAR(1),5))-FIND(CHAR(1),SUBSTITUTE(Parse[[#This Row],[Raw]],",",CHAR(1),4))-1)),"") -> 7.89349 | I50: =IFERROR(VALUE(MID(Parse[[#This Row],[Raw]],FIND(CHAR(1),SUBSTITUTE(Parse[[#This Row],[Raw]],",",CHAR(1),5))+1,FIND(CHAR(1), SUBSTITUTE(Parse[[#This Row],[Raw]],",",CHAR(1),6))-FIND(CHAR(1),SUBSTITUTE(Parse[[#This Row],[Raw]],",",CHAR(1),5))-1)),"") -> 3.291193 | J50: =IFERROR(VALUE(RIGHT(Parse[[#This Row],[Raw]],LEN(Parse[[#This Row],[Raw]])-FIND(CHAR(1),SUBSTITUTE(Parse[[#This Row],[Raw]],",",CHAR(1),6)))),"") -> 32628838
A51: 1999-12-09,7.871250,8.354360,7.762700,8.318770,3.468514,44506517 | C51: 1999-12-09,7.871250,8.354360,7.762700,8.318770,3.468514,44506517 | D51: =IFERROR(DATEVALUE(LEFT(Parse[[#This Row],[Raw]],FIND(",",Parse[[#This Row],[Raw]])-1)),"") -> 1999-12-09 | E51: =IFERROR(VALUE(MID(Parse[[#This Row],[Raw]],FIND(CHAR(1),SUBSTITUTE(Parse[[#This Row],[Raw]],",",CHAR(1),1))+1,FIND(CHAR(1), SUBSTITUTE(Parse[[#This Row],[Raw]],",",CHAR(1),2))-FIND(CHAR(1),SUBSTITUTE(Parse[[#This Row],[Raw]],",",CHAR(1),1))-1)),"") -> 7.87125 | F51: =IFERROR(VALUE(MID(Parse[[#This Row],[Raw]],FIND(CHAR(1),SUBSTITUTE(Parse[[#This Row],[Raw]],",",CHAR(1),2))+1,FIND(CHAR(1), SUBSTITUTE(Parse[[#This Row],[Raw]],",",CHAR(1),3))-FIND(CHAR(1),SUBSTITUTE(Parse[[#This Row],[Raw]],",",CHAR(1),2))-1)),"") -> 8.35436 | G51: =IFERROR(VALUE(MID(Parse[[#This Row],[Raw]],FIND(CHAR(1),SUBSTITUTE(Parse[[#This Row],[Raw]],",",CHAR(1),3))+1,FIND(CHAR(1), SUBSTITUTE(Parse[[#This Row],[Raw]],",",CHAR(1),4))-FIND(CHAR(1),SUBSTITUTE(Parse[[#This Row],[Raw]],",",CHAR(1),3))-1)),"") -> 7.7627 | H51: =IFERROR(VALUE(MID(Parse[[#This Row],[Raw]],FIND(CHAR(1),SUBSTITUTE(Parse[[#This Row],[Raw]],",",CHAR(1),4))+1,FIND(CHAR(1), SUBSTITUTE(Parse[[#This Row],[Raw]],",",CHAR(1),5))-FIND(CHAR(1),SUBSTITUTE(Parse[[#This Row],[Raw]],",",CHAR(1),4))-1)),"") -> 8.31877 | I51: =IFERROR(VALUE(MID(Parse[[#This Row],[Raw]],FIND(CHAR(1),SUBSTITUTE(Parse[[#This Row],[Raw]],",",CHAR(1),5))+1,FIND(CHAR(1), SUBSTITUTE(Parse[[#This Row],[Raw]],",",CHAR(1),6))-FIND(CHAR(1),SUBSTITUTE(Parse[[#This Row],[Raw]],",",CHAR(1),5))-1)),"") -> 3.468514 | J51: =IFERROR(VALUE(RIGHT(Parse[[#This Row],[Raw]],LEN(Parse[[#This Row],[Raw]])-FIND(CHAR(1),SUBSTITUTE(Parse[[#This Row],[Raw]],",",CHAR(1),6)))),"") -> 44506517
A52: 1999-12-16,8.452230,8.999400,8.354360,8.883730,3.704075,59871044 | C52: 1999-12-16,8.452230,8.999400,8.354360,8.883730,3.704075,59871044 | D52: =IFERROR(DATEVALUE(LEFT(Parse[[#This Row],[Raw]],FIND(",",Parse[[#This Row],[Raw]])-1)),"") -> 1999-12-16 | E52: =IFERROR(VALUE(MID(Parse[[#This Row],[Raw]],FIND(CHAR(1),SUBSTITUTE(Parse[[#This Row],[Raw]],",",CHAR(1),1))+1,FIND(CHAR(1), SUBSTITUTE(Parse[[#This Row],[Raw]],",",CHAR(1),2))-FIND(CHAR(1),SUBSTITUTE(Parse[[#This Row],[Raw]],",",CHAR(1),1))-1)),"") -> 8.45223 | F52: =IFERROR(VALUE(MID(Parse[[#This Row],[Raw]],FIND(CHAR(1),SUBSTITUTE(Parse[[#This Row],[Raw]],",",CHAR(1),2))+1,FIND(CHAR(1), SUBSTITUTE(Parse[[#This Row],[Raw]],",",CHAR(1),3))-FIND(CHAR(1),SUBSTITUTE(Parse[[#This Row],[Raw]],",",CHAR(1),2))-1)),"") -> 8.9994 | G52: =IFERROR(VALUE(MID(Parse[[#This Row],[Raw]],FIND(CHAR(1),SUBSTITUTE(Parse[[#This Row],[Raw]],",",CHAR(1),3))+1,FIND(CHAR(1), SUBSTITUTE(Parse[[#This Row],[Raw]],",",CHAR(1),4))-FIND(CHAR(1),SUBSTITUTE(Parse[[#This Row],[Raw]],",",CHAR(1),3))-1)),"") -> 8.35436 | H52: =IFERROR(VALUE(MID(Parse[[#This Row],[Raw]],FIND(CHAR(1),SUBSTITUTE(Parse[[#This Row],[Raw]],",",CHAR(1),4))+1,FIND(CHAR(1), SUBSTITUTE(Parse[[#This Row],[Raw]],",",CHAR(1),5))-FIND(CHAR(1),SUBSTITUTE(Parse[[#This Row],[Raw]],",",CHAR(1),4))-1)),"") -> 8.88373 | I52: =IFERROR(VALUE(MID(Parse[[#This Row],[Raw]],FIND(CHAR(1),SUBSTITUTE(Parse[[#This Row],[Raw]],",",CHAR(1),5))+1,FIND(CHAR(1), SUBSTITUTE(Parse[[#This Row],[Raw]],",",CHAR(1),6))-FIND(CHAR(1),SUBSTITUTE(Parse[[#This Row],[Raw]],",",CHAR(1),5))-1)),"") -> 3.704075 | J52: =IFERROR(VALUE(RIGHT(Parse[[#This Row],[Raw]],LEN(Parse[[#This Row],[Raw]])-FIND(CHAR(1),SUBSTITUTE(Parse[[#This Row],[Raw]],",",CHAR(1),6)))),"") -> 59871044
A53: 1999-12-23,8.883730,8.968260,8.830350,8.897520,3.709824,62679237 | C53: 1999-12-23,8.883730,8.968260,8.830350,8.897520,3.709824,62679237 | D53: =IFERROR(DATEVALUE(LEFT(Parse[[#This Row],[Raw]],FIND(",",Parse[[#This Row],[Raw]])-1)),"") -> 1999-12-23 | E53: =IFERROR(VALUE(MID(Parse[[#This Row],[Raw]],FIND(CHAR(1),SUBSTITUTE(Parse[[#This Row],[Raw]],",",CHAR(1),1))+1,FIND(CHAR(1), SUBSTITUTE(Parse[[#This Row],[Raw]],",",CHAR(1),2))-FIND(CHAR(1),SUBSTITUTE(Parse[[#This Row],[Raw]],",",CHAR(1),1))-1)),"") -> 8.88373 | F53: =IFERROR(VALUE(MID(Parse[[#This Row],[Raw]],FIND(CHAR(1),SUBSTITUTE(Parse[[#This Row],[Raw]],",",CHAR(1),2))+1,FIND(CHAR(1), SUBSTITUTE(Parse[[#This Row],[Raw]],",",CHAR(1),3))-FIND(CHAR(1),SUBSTITUTE(Parse[[#This Row],[Raw]],",",CHAR(1),2))-1)),"") -> 8.96826 | G53: =IFERROR(VALUE(MID(Parse[[#This Row],[Raw]],FIND(CHAR(1),SUBSTITUTE(Parse[[#This Row],[Raw]],",",CHAR(1),3))+1,FIND(CHAR(1), SUBSTITUTE(Parse[[#This Row],[Raw]],",",CHAR(1),4))-FIND(CHAR(1),SUBSTITUTE(Parse[[#This Row],[Raw]],",",CHAR(1),3))-1)),"") -> 8.83035 | H53: =IFERROR(VALUE(MID(Parse[[#This Row],[Raw]],FIND(CHAR(1),SUBSTITUTE(Parse[[#This Row],[Raw]],",",CHAR(1),4))+1,FIND(CHAR(1), SUBSTITUTE(Parse[[#This Row],[Raw]],",",CHAR(1),5))-FIND(CHAR(1),SUBSTITUTE(Parse[[#This Row],[Raw]],",",CHAR(1),4))-1)),"") -> 8.89752 | I53: =IFERROR(VALUE(MID(Parse[[#This Row],[Raw]],FIND(CHAR(1),SUBSTITUTE(Parse[[#This Row],[Raw]],",",CHAR(1),5))+1,FIND(CHAR(1), SUBSTITUTE(Parse[[#This Row],[Raw]],",",CHAR(1),6))-FIND(CHAR(1),SUBSTITUTE(Parse[[#This Row],[Raw]],",",CHAR(1),5))-1)),"") -> 3.709824 | J53: =IFERROR(VALUE(RIGHT(Parse[[#This Row],[Raw]],LEN(Parse[[#This Row],[Raw]])-FIND(CHAR(1),SUBSTITUTE(Parse[[#This Row],[Raw]],",",CHAR(1),6)))),"") -> 62679237
A54: 1999-12-30,8.897080,9.221820,8.879290,9.052780,3.774559,23864498 | C54: 1999-12-30,8.897080,9.221820,8.879290,9.052780,3.774559,23864498 | D54: =IFERROR(DATEVALUE(LEFT(Parse[[#This Row],[Raw]],FIND(",",Parse[[#This Row],[Raw]])-1)),"") -> 1999-12-30 | E54: =IFERROR(VALUE(MID(Parse[[#This Row],[Raw]],FIND(CHAR(1),SUBSTITUTE(Parse[[#This Row],[Raw]],",",CHAR(1),1))+1,FIND(CHAR(1), SUBSTITUTE(Parse[[#This Row],[Raw]],",",CHAR(1),2))-FIND(CHAR(1),SUBSTITUTE(Parse[[#This Row],[Raw]],",",CHAR(1),1))-1)),"") -> 8.89708 | F54: =IFERROR(VALUE(MID(Parse[[#This Row],[Raw]],FIND(CHAR(1),SUBSTITUTE(Parse[[#This Row],[Raw]],",",CHAR(1),2))+1,FIND(CHAR(1), SUBSTITUTE(Parse[[#This Row],[Raw]],",",CHAR(1),3))-FIND(CHAR(1),SUBSTITUTE(Parse[[#This Row],[Raw]],",",CHAR(1),2))-1)),"") -> 9.22182 | G54: =IFERROR(VALUE(MID(Parse[[#This Row],[Raw]],FIND(CHAR(1),SUBSTITUTE(Parse[[#This Row],[Raw]],",",CHAR(1),3))+1,FIND(CHAR(1), SUBSTITUTE(Parse[[#This Row],[Raw]],",",CHAR(1),4))-FIND(CHAR(1),SUBSTITUTE(Parse[[#This Row],[Raw]],",",CHAR(1),3))-1)),"") -> 8.87929 | H54: =IFERROR(VALUE(MID(Parse[[#This Row],[Raw]],FIND(CHAR(1),SUBSTITUTE(Parse[[#This Row],[Raw]],",",CHAR(1),4))+1,FIND(CHAR(1), SUBSTITUTE(Parse[[#This Row],[Raw]],",",CHAR(1),5))-FIND(CHAR(1),SUBSTITUTE(Parse[[#This Row],[Raw]],",",CHAR(1),4))-1)),"") -> 9.05278 | I54: =IFERROR(VALUE(MID(Parse[[#This Row],[Raw]],FIND(CHAR(1),SUBSTITUTE(Parse[[#This Row],[Raw]],",",CHAR(1),5))+1,FIND(CHAR(1), SUBSTITUTE(Parse[[#This Row],[Raw]],",",CHAR(1),6))-FIND(CHAR(1),SUBSTITUTE(Parse[[#This Row],[Raw]],",",CHAR(1),5))-1)),"") -> 3.774559 | J54: =IFERROR(VALUE(RIGHT(Parse[[#This Row],[Raw]],LEN(Parse[[#This Row],[Raw]])-FIND(CHAR(1),SUBSTITUTE(Parse[[#This Row],[Raw]],",",CHAR(1),6)))),"") -> 23864498
A55: 2000-01-06,9.079020,9.791240,8.870390,9.074130,3.783461,53774886 | C55: 2000-01-06,9.079020,9.791240,8.870390,9.074130,3.783461,53774886 | D55: =IFERROR(DATEVALUE(LEFT(Parse[[#This Row],[Raw]],FIND(",",Parse[[#This Row],[Raw]])-1)),"") -> 2000-01-06 | E55: =IFERROR(VALUE(MID(Parse[[#This Row],[Raw]],FIND(CHAR(1),SUBSTITUTE(Parse[[#This Row],[Raw]],",",CHAR(1),1))+1,FIND(CHAR(1), SUBSTITUTE(Parse[[#This Row],[Raw]],",",CHAR(1),2))-FIND(CHAR(1),SUBSTITUTE(Parse[[#This Row],[Raw]],",",CHAR(1),1))-1)),"") -> 9.07902 | F55: =IFERROR(VALUE(MID(Parse[[#This Row],[Raw]],FIND(CHAR(1),SUBSTITUTE(Parse[[#This Row],[Raw]],",",CHAR(1),2))+1,FIND(CHAR(1), SUBSTITUTE(Parse[[#This Row],[Raw]],",",CHAR(1),3))-FIND(CHAR(1),SUBSTITUTE(Parse[[#This Row],[Raw]],",",CHAR(1),2))-1)),"") -> 9.79124 | G55: =IFERROR(VALUE(MID(Parse[[#This Row],[Raw]],FIND(CHAR(1),SUBSTITUTE(Parse[[#This Row],[Raw]],",",CHAR(1),3))+1,FIND(CHAR(1), SUBSTITUTE(Parse[[#This Row],[Raw]],",",CHAR(1),4))-FIND(CHAR(1),SUBSTITUTE(Parse[[#This Row],[Raw]],",",CHAR(1),3))-1)),"") -> 8.87039 | H55: =IFERROR(VALUE(MID(Parse[[#This Row],[Raw]],FIND(CHAR(1),SUBSTITUTE(Parse[[#This Row],[Raw]],",",CHAR(1),4))+1,FIND(CHAR(1), SUBSTITUTE(Parse[[#This Row],[Raw]],",",CHAR(1),5))-FIND(CHAR(1),SUBSTITUTE(Parse[[#This Row],[Raw]],",",CHAR(1),4))-1)),"") -> 9.07413 | I55: =IFERROR(VALUE(MID(Parse[[#This Row],[Raw]],FIND(CHAR(1),SUBSTITUTE(Parse[[#This Row],[Raw]],",",CHAR(1),5))+1,FIND(CHAR(1), SUBSTITUTE(Parse[[#This Row],[Raw]],",",CHAR(1),6))-FIND(CHAR(1),SUBSTITUTE(Parse[[#This Row],[Raw]],",",CHAR(1),5))-1)),"") -> 3.783461 | J55: =IFERROR(VALUE(RIGHT(Parse[[#This Row],[Raw]],LEN(Parse[[#This Row],[Raw]])-FIND(CHAR(1),SUBSTITUTE(Parse[[#This Row],[Raw]],",",CHAR(1),6)))),"") -> 53774886
A56: 2000-01-13,9.075020,9.181790,8.679100,8.937560,3.726519,37203211 | C56: 2000-01-13,9.075020,9.181790,8.679100,8.937560,3.726519,37203211 | D56: =IFERROR(DATEVALUE(LEFT(Parse[[#This Row],[Raw]],FIND(",",Parse[[#This Row],[Raw]])-1)),"") -> 2000-01-13 | E56: =IFERROR(VALUE(MID(Parse[[#This Row],[Raw]],FIND(CHAR(1),SUBSTITUTE(Parse[[#This Row],[Raw]],",",CHAR(1),1))+1,FIND(CHAR(1), SUBSTITUTE(Parse[[#This Row],[Raw]],",",CHAR(1),2))-FIND(CHAR(1),SUBSTITUTE(Parse[[#This Row],[Raw]],",",CHAR(1),1))-1)),"") -> 9.07502 | F56: =IFERROR(VALUE(MID(Parse[[#This Row],[Raw]],FIND(CHAR(1),SUBSTITUTE(Parse[[#This Row],[Raw]],",",CHAR(1),2))+1,FIND(CHAR(1), SUBSTITUTE(Parse[[#This Row],[Raw]],",",CHAR(1),3))-FIND(CHAR(1),SUBSTITUTE(Parse[[#This Row],[Raw]],",",CHAR(1),2))-1)),"") -> 9.18179 | G56: =IFERROR(VALUE(MID(Parse[[#This Row],[Raw]],FIND(CHAR(1),SUBSTITUTE(Parse[[#This Row],[Raw]],",",CHAR(1),3))+1,FIND(CHAR(1), SUBSTITUTE(Parse[[#This Row],[Raw]],",",CHAR(1),4))-FIND(CHAR(1),SUBSTITUTE(Parse[[#This Row],[Raw]],",",CHAR(1),3))-1)),"") -> 8.6791 | H56: =IFERROR(VALUE(MID(Parse[[#This Row],[Raw]],FIND(CHAR(1),SUBSTITUTE(Parse[[#This Row],[Raw]],",",CHAR(1),4))+1,FIND(CHAR(1), SUBSTITUTE(Parse[[#This Row],[Raw]],",",CHAR(1),5))-FIND(CHAR(1),SUBSTITUTE(Parse[[#This Row],[Raw]],",",CHAR(1),4))-1)),"") -> 8.93756 | I56: =IFERROR(VALUE(MID(Parse[[#This Row],[Raw]],FIND(CHAR(1),SUBSTITUTE(Parse[[#This Row],[Raw]],",",CHAR(1),5))+1,FIND(CHAR(1), SUBSTITUTE(Parse[[#This Row],[Raw]],",",CHAR(1),6))-FIND(CHAR(1),SUBSTITUTE(Parse[[#This Row],[Raw]],",",CHAR(1),5))-1)),"") -> 3.726519 | J56: =IFERROR(VALUE(RIGHT(Parse[[#This Row],[Raw]],LEN(Parse[[#This Row],[Raw]])-FIND(CHAR(1),SUBSTITUTE(Parse[[#This Row],[Raw]],",",CHAR(1),6)))),"") -> 37203211
A57: 2000-01-20,8.853930,8.853930,8.452230,8.541200,3.561255,26600533 | C57: 2000-01-20,8.853930,8.853930,8.452230,8.541200,3.561255,26600533 | D57: =IFERROR(DATEVALUE(LEFT(Parse[[#This Row],[Raw]],FIND(",",Parse[[#This Row],[Raw]])-1)),"") -> 2000-01-20 | E57: =IFERROR(VALUE(MID(Parse[[#This Row],[Raw]],FIND(CHAR(1),SUBSTITUTE(Parse[[#This Row],[Raw]],",",CHAR(1),1))+1,FIND(CHAR(1), SUBSTITUTE(Parse[[#This Row],[Raw]],",",CHAR(1),2))-FIND(CHAR(1),SUBSTITUTE(Parse[[#This Row],[Raw]],",",CHAR(1),1))-1)),"") -> 8.85393 | F57: =IFERROR(VALUE(MID(Parse[[#This Row],[Raw]],FIND(CHAR(1),SUBSTITUTE(Parse[[#This Row],[Raw]],",",CHAR(1),2))+1,FIND(CHAR(1), SUBSTITUTE(Parse[[#This Row],[Raw]],",",CHAR(1),3))-FIND(CHAR(1),SUBSTITUTE(Parse[[#This Row],[Raw]],",",CHAR(1),2))-1)),"") -> 8.85393 | G57: =IFERROR(VALUE(MID(Parse[[#This Row],[Raw]],FIND(CHAR(1),SUBSTITUTE(Parse[[#This Row],[Raw]],",",CHAR(1),3))+1,FIND(CHAR(1), SUBSTITUTE(Parse[[#This Row],[Raw]],",",CHAR(1),4))-FIND(CHAR(1),SUBSTITUTE(Parse[[#This Row],[Raw]],",",CHAR(1),3))-1)),"") -> 8.45223 | H57: =IFERROR(VALUE(MID(Parse[[#This Row],[Raw]],FIND(CHAR(1),SUBSTITUTE(Parse[[#This Row],[Raw]],",",CHAR(1),4))+1,FIND(CHAR(1), SUBSTITUTE(Parse[[#This Row],[Raw]],",",CHAR(1),5))-FIND(CHAR(1),SUBSTITUTE(Parse[[#This Row],[Raw]],",",CHAR(1),4))-1)),"") -> 8.5412 | I57: =IFERROR(VALUE(MID(Parse[[#This Row],[Raw]],FIND(CHAR(1),SUBSTITUTE(Parse[[#This Row],[Raw]],",",CHAR(1),5))+1,FIND(CHAR(1), SUBSTITUTE(Parse[[#This Row],[Raw]],",",CHAR(1),6))-FIND(CHAR(1),SUBSTITUTE(Parse[[#This Row],[Raw]],",",CHAR(1),5))-1)),"") -> 3.561255 | J57: =IFERROR(VALUE(RIGHT(Parse[[#This Row],[Raw]],LEN(Parse[[#This Row],[Raw]])-FIND(CHAR(1),SUBSTITUTE(Parse[[#This Row],[Raw]],",",CHAR(1),6)))),"") -> 26600533
A58: 2000-01-27,8.496710,8.572340,8.083000,8.229800,3.431418,48087207 | C58: 2000-01-27,8.496710,8.572340,8.083000,8.229800,3.431418,48087207 | D58: =IFERROR(DATEVALUE(LEFT(Parse[[#This Row],[Raw]],FIND(",",Parse[[#This Row],[Raw]])-1)),"") -> 2000-01-27 | E58: =IFERROR(VALUE(MID(Parse[[#This Row],[Raw]],FIND(CHAR(1),SUBSTITUTE(Parse[[#This Row],[Raw]],",",CHAR(1),1))+1,FIND(CHAR(1), SUBSTITUTE(Parse[[#This Row],[Raw]],",",CHAR(1),2))-FIND(CHAR(1),SUBSTITUTE(Parse[[#This Row],[Raw]],",",CHAR(1),1))-1)),"") -> 8.49671 | F58: =IFERROR(VALUE(MID(Parse[[#This Row],[Raw]],FIND(CHAR(1),SUBSTITUTE(Parse[[#This Row],[Raw]],",",CHAR(1),2))+1,FIND(CHAR(1), SUBSTITUTE(Parse[[#This Row],[Raw]],",",CHAR(1),3))-FIND(CHAR(1),SUBSTITUTE(Parse[[#This Row],[Raw]],",",CHAR(1),2))-1)),"") -> 8.57234 | G58: =IFERROR(VALUE(MID(Parse[[#This Row],[Raw]],FIND(CHAR(1),SUBSTITUTE(Parse[[#This Row],[Raw]],",",CHAR(1),3))+1,FIND(CHAR(1), SUBSTITUTE(Parse[[#This Row],[Raw]],",",CHAR(1),4))-FIND(CHAR(1),SUBSTITUTE(Parse[[#This Row],[Raw]],",",CHAR(1),3))-1)),"") -> 8.083 | H58: =IFERROR(VALUE(MID(Parse[[#This Row],[Raw]],FIND(CHAR(1),SUBSTITUTE(Parse[[#This Row],[Raw]],",",CHAR(1),4))+1,FIND(CHAR(1), SUBSTITUTE(Parse[[#This Row],[Raw]],",",CHAR(1),5))-FIND(CHAR(1),SUBSTITUTE(Parse[[#This Row],[Raw]],",",CHAR(1),4))-1)),"") -> 8.2298 | I58: =IFERROR(VALUE(MID(Parse[[#This Row],[Raw]],FIND(CHAR(1),SUBSTITUTE(Parse[[#This Row],[Raw]],",",CHAR(1),5))+1,FIND(CHAR(1), SUBSTITUTE(Parse[[#This Row],[Raw]],",",CHAR(1),6))-FIND(CHAR(1),SUBSTITUTE(Parse[[#This Row],[Raw]],",",CHAR(1),5))-1)),"") -> 3.431418 | J58: =IFERROR(VALUE(RIGHT(Parse[[#This Row],[Raw]],LEN(Parse[[#This Row],[Raw]])-FIND(CHAR(1),SUBSTITUTE(Parse[[#This Row],[Raw]],",",CHAR(1),6)))),"") -> 48087207
A59: 2000-02-03,8.229800,8.474470,7.784940,7.821870,3.261330,46163719 | C59: 2000-02-03,8.229800,8.474470,7.784940,7.821870,3.261330,46163719 | D59: =IFERROR(DATEVALUE(LEFT(Parse[[#This Row],[Raw]],FIND(",",Parse[[#This Row],[Raw]])-1)),"") -> 2000-02-03 | E59: =IFERROR(VALUE(MID(Parse[[#This Row],[Raw]],FIND(CHAR(1),SUBSTITUTE(Parse[[#This Row],[Raw]],",",CHAR(1),1))+1,FIND(CHAR(1), SUBSTITUTE(Parse[[#This Row],[Raw]],",",CHAR(1),2))-FIND(CHAR(1),SUBSTITUTE(Parse[[#This Row],[Raw]],",",CHAR(1),1))-1)),"") -> 8.2298 | F59: =IFERROR(VALUE(MID(Parse[[#This Row],[Raw]],FIND(CHAR(1),SUBSTITUTE(Parse[[#This Row],[Raw]],",",CHAR(1),2))+1,FIND(CHAR(1), SUBSTITUTE(Parse[[#This Row],[Raw]],",",CHAR(1),3))-FIND(CHAR(1),SUBSTITUTE(Parse[[#This Row],[Raw]],",",CHAR(1),2))-1)),"") -> 8.47447 | G59: =IFERROR(VALUE(MID(Parse[[#This Row],[Raw]],FIND(CHAR(1),SUBSTITUTE(Parse[[#This Row],[Raw]],",",CHAR(1),3))+1,FIND(CHAR(1), SUBSTITUTE(Parse[[#This Row],[Raw]],",",CHAR(1),4))-FIND(CHAR(1),SUBSTITUTE(Parse[[#This Row],[Raw]],",",CHAR(1),3))-1)),"") -> 7.78494 | H59: =IFERROR(VALUE(MID(Parse[[#This Row],[Raw]],FIND(CHAR(1),SUBSTITUTE(Parse[[#This Row],[Raw]],",",CHAR(1),4))+1,FIND(CHAR(1), SUBSTITUTE(Parse[[#This Row],[Raw]],",",CHAR(1),5))-FIND(CHAR(1),SUBSTITUTE(Parse[[#This Row],[Raw]],",",CHAR(1),4))-1)),"") -> 7.82187 | I59: =IFERROR(VALUE(MID(Parse[[#This Row],[Raw]],FIND(CHAR(1),SUBSTITUTE(Parse[[#This Row],[Raw]],",",CHAR(1),5))+1,FIND(CHAR(1), SUBSTITUTE(Parse[[#This Row],[Raw]],",",CHAR(1),6))-FIND(CHAR(1),SUBSTITUTE(Parse[[#This Row],[Raw]],",",CHAR(1),5))-1)),"") -> 3.26133 | J59: =IFERROR(VALUE(RIGHT(Parse[[#This Row],[Raw]],LEN(Parse[[#This Row],[Raw]])-FIND(CHAR(1),SUBSTITUTE(Parse[[#This Row],[Raw]],",",CHAR(1),6)))),"") -> 46163719
A60: 2000-02-10,7.862350,8.140830,7.522480,7.567410,3.155233,54888011 | C60: 2000-02-10,7.862350,8.140830,7.522480,7.567410,3.155233,54888011 | D60: =IFERROR(DATEVALUE(LEFT(Parse[[#This Row],[Raw]],FIND(",",Parse[[#This Row],[Raw]])-1)),"") -> 2000-02-10 | E60: =IFERROR(VALUE(MID(Parse[[#This Row],[Raw]],FIND(CHAR(1),SUBSTITUTE(Parse[[#This Row],[Raw]],",",CHAR(1),1))+1,FIND(CHAR(1), SUBSTITUTE(Parse[[#This Row],[Raw]],",",CHAR(1),2))-FIND(CHAR(1),SUBSTITUTE(Parse[[#This Row],[Raw]],",",CHAR(1),1))-1)),"") -> 7.86235 | F60: =IFERROR(VALUE(MID(Parse[[#This Row],[Raw]],FIND(CHAR(1),SUBSTITUTE(Parse[[#This Row],[Raw]],",",CHAR(1),2))+1,FIND(CHAR(1), SUBSTITUTE(Parse[[#This Row],[Raw]],",",CHAR(1),3))-FIND(CHAR(1),SUBSTITUTE(Parse[[#This Row],[Raw]],",",CHAR(1),2))-1)),"") -> 8.14083 | G60: =IFERROR(VALUE(MID(Parse[[#This Row],[Raw]],FIND(CHAR(1),SUBSTITUTE(Parse[[#This Row],[Raw]],",",CHAR(1),3))+1,FIND(CHAR(1), SUBSTITUTE(Parse[[#This Row],[Raw]],",",CHAR(1),4))-FIND(CHAR(1),SUBSTITUTE(Parse[[#This Row],[Raw]],",",CHAR(1),3))-1)),"") -> 7.52248 | H60: =IFERROR(VALUE(MID(Parse[[#This Row],[Raw]],FIND(CHAR(1),SUBSTITUTE(Parse[[#This Row],[Raw]],",",CHAR(1),4))+1,FIND(CHAR(1), SUBSTITUTE(Parse[[#This Row],[Raw]],",",CHAR(1),5))-FIND(CHAR(1),SUBSTITUTE(Parse[[#This Row],[Raw]],",",CHAR(1),4))-1)),"") -> 7.56741 | I60: =IFERROR(VALUE(MID(Parse[[#This Row],[Raw]],FIND(CHAR(1),SUBSTITUTE(Parse[[#This Row],[Raw]],",",CHAR(1),5))+1,FIND(CHAR(1), SUBSTITUTE(Parse[[#This Row],[Raw]],",",CHAR(1),6))-FIND(CHAR(1),SUBSTITUTE(Parse[[#This Row],[Raw]],",",CHAR(1),5))-1)),"") -> 3.155233 | J60: =IFERROR(VALUE(RIGHT(Parse[[#This Row],[Raw]],LEN(Parse[[#This Row],[Raw]])-FIND(CHAR(1),SUBSTITUTE(Parse[[#This Row],[Raw]],",",CHAR(1),6)))),"") -> 54888011
A61: 2000-02-17,7.473550,7.651490,7.273360,7.491340,3.123517,38593125 | C61: 2000-02-17,7.473550,7.651490,7.273360,7.491340,3.123517,38593125 | D61: =IFERROR(DATEVALUE(LEFT(Parse[[#This Row],[Raw]],FIND(",",Parse[[#This Row],[Raw]])-1)),"") -> 2000-02-17 | E61: =IFERROR(VALUE(MID(Parse[[#This Row],[Raw]],FIND(CHAR(1),SUBSTITUTE(Parse[[#This Row],[Raw]],",",CHAR(1),1))+1,FIND(CHAR(1), SUBSTITUTE(Parse[[#This Row],[Raw]],",",CHAR(1),2))-FIND(CHAR(1),SUBSTITUTE(Parse[[#This Row],[Raw]],",",CHAR(1),1))-1)),"") -> 7.47355 | F61: =IFERROR(VALUE(MID(Parse[[#This Row],[Raw]],FIND(CHAR(1),SUBSTITUTE(Parse[[#This Row],[Raw]],",",CHAR(1),2))+1,FIND(CHAR(1), SUBSTITUTE(Parse[[#This Row],[Raw]],",",CHAR(1),3))-FIND(CHAR(1),SUBSTITUTE(Parse[[#This Row],[Raw]],",",CHAR(1),2))-1)),"") -> 7.65149 | G61: =IFERROR(VALUE(MID(Parse[[#This Row],[Raw]],FIND(CHAR(1),SUBSTITUTE(Parse[[#This Row],[Raw]],",",CHAR(1),3))+1,FIND(CHAR(1), SUBSTITUTE(Parse[[#This Row],[Raw]],",",CHAR(1),4))-FIND(CHAR(1),SUBSTITUTE(Parse[[#This Row],[Raw]],",",CHAR(1),3))-1)),"") -> 7.27336 | H61: =IFERROR(VALUE(MID(Parse[[#This Row],[Raw]],FIND(CHAR(1),SUBSTITUTE(Parse[[#This Row],[Raw]],",",CHAR(1),4))+1,FIND(CHAR(1), SUBSTITUTE(Parse[[#This Row],[Raw]],",",CHAR(1),5))-FIND(CHAR(1),SUBSTITUTE(Parse[[#This Row],[Raw]],",",CHAR(1),4))-1)),"") -> 7.49134 | I61: =IFERROR(VALUE(MID(Parse[[#This Row],[Raw]],FIND(CHAR(1),SUBSTITUTE(Parse[[#This Row],[Raw]],",",CHAR(1),5))+1,FIND(CHAR(1), SUBSTITUTE(Parse[[#This Row],[Raw]],",",CHAR(1),6))-FIND(CHAR(1),SUBSTITUTE(Parse[[#This Row],[Raw]],",",CHAR(1),5))-1)),"") -> 3.123517 | J61: =IFERROR(VALUE(RIGHT(Parse[[#This Row],[Raw]],LEN(Parse[[#This Row],[Raw]])-FIND(CHAR(1),SUBSTITUTE(Parse[[#This Row],[Raw]],",",CHAR(1),6)))),"") -> 38593125
A62: 2000-02-24,7.551400,7.598110,7.046490,7.295610,3.041907,50102796 | C62: 2000-02-24,7.551400,7.598110,7.046490,7.295610,3.041907,50102796 | D62: =IFERROR(DATEVALUE(LEFT(Parse[[#This Row],[Raw]],FIND(",",Parse[[#This Row],[Raw]])-1)),"") -> 2000-02-24 | E62: =IFERROR(VALUE(MID(Parse[[#This Row],[Raw]],FIND(CHAR(1),SUBSTITUTE(Parse[[#This Row],[Raw]],",",CHAR(1),1))+1,FIND(CHAR(1), SUBSTITUTE(Parse[[#This Row],[Raw]],",",CHAR(1),2))-FIND(CHAR(1),SUBSTITUTE(Parse[[#This Row],[Raw]],",",CHAR(1),1))-1)),"") -> 7.5514 | F62: =IFERROR(VALUE(MID(Parse[[#This Row],[Raw]],FIND(CHAR(1),SUBSTITUTE(Parse[[#This Row],[Raw]],",",CHAR(1),2))+1,FIND(CHAR(1), SUBSTITUTE(Parse[[#This Row],[Raw]],",",CHAR(1),3))-FIND(CHAR(1),SUBSTITUTE(Parse[[#This Row],[Raw]],",",CHAR(1),2))-1)),"") -> 7.59811 | G62: =IFERROR(VALUE(MID(Parse[[#This Row],[Raw]],FIND(CHAR(1),SUBSTITUTE(Parse[[#This Row],[Raw]],",",CHAR(1),3))+1,FIND(CHAR(1), SUBSTITUTE(Parse[[#This Row],[Raw]],",",CHAR(1),4))-FIND(CHAR(1),SUBSTITUTE(Parse[[#This Row],[Raw]],",",CHAR(1),3))-1)),"") -> 7.04649 | H62: =IFERROR(VALUE(MID(Parse[[#This Row],[Raw]],FIND(CHAR(1),SUBSTITUTE(Parse[[#This Row],[Raw]],",",CHAR(1),4))+1,FIND(CHAR(1), SUBSTITUTE(Parse[[#This Row],[Raw]],",",CHAR(1),5))-FIND(CHAR(1),SUBSTITUTE(Parse[[#This Row],[Raw]],",",CHAR(1),4))-1)),"") -> 7.29561 | I62: =IFERROR(VALUE(MID(Parse[[#This Row],[Raw]],FIND(CHAR(1),SUBSTITUTE(Parse[[#This Row],[Raw]],",",CHAR(1),5))+1,FIND(CHAR(1), SUBSTITUTE(Parse[[#This Row],[Raw]],",",CHAR(1),6))-FIND(CHAR(1),SUBSTITUTE(Parse[[#This Row],[Raw]],",",CHAR(1),5))-1)),"") -> 3.041907 | J62: =IFERROR(VALUE(RIGHT(Parse[[#This Row],[Raw]],LEN(Parse[[#This Row],[Raw]])-FIND(CHAR(1),SUBSTITUTE(Parse[[#This Row],[Raw]],",",CHAR(1),6)))),"") -> 50102796
A63: 2000-03-02,7.455750,7.575860,6.939720,7.540270,3.143917,41805697 | C63: 2000-03-02,7.455750,7.575860,6.939720,7.540270,3.143917,41805697 | D63: =IFERROR(DATEVALUE(LEFT(Parse[[#This Row],[Raw]],FIND(",",Parse[[#This Row],[Raw]])-1)),"") -> 2000-03-02 | E63: =IFERROR(VALUE(MID(Parse[[#This Row],[Raw]],FIND(CHAR(1),SUBSTITUTE(Parse[[#This Row],[Raw]],",",CHAR(1),1))+1,FIND(CHAR(1), SUBSTITUTE(Parse[[#This Row],[Raw]],",",CHAR(1),2))-FIND(CHAR(1),SUBSTITUTE(Parse[[#This Row],[Raw]],",",CHAR(1),1))-1)),"") -> 7.45575 | F63: =IFERROR(VALUE(MID(Parse[[#This Row],[Raw]],FIND(CHAR(1),SUBSTITUTE(Parse[[#This Row],[Raw]],",",CHAR(1),2))+1,FIND(CHAR(1), SUBSTITUTE(Parse[[#This Row],[Raw]],",",CHAR(1),3))-FIND(CHAR(1),SUBSTITUTE(Parse[[#This Row],[Raw]],",",CHAR(1),2))-1)),"") -> 7.57586 | G63: =IFERROR(VALUE(MID(Parse[[#This Row],[Raw]],FIND(CHAR(1),SUBSTITUTE(Parse[[#This Row],[Raw]],",",CHAR(1),3))+1,FIND(CHAR(1), SUBSTITUTE(Parse[[#This Row],[Raw]],",",CHAR(1),4))-FIND(CHAR(1),SUBSTITUTE(Parse[[#This Row],[Raw]],",",CHAR(1),3))-1)),"") -> 6.93972 | H63: =IFERROR(VALUE(MID(Parse[[#This Row],[Raw]],FIND(CHAR(1),SUBSTITUTE(Parse[[#This Row],[Raw]],",",CHAR(1),4))+1,FIND(CHAR(1), SUBSTITUTE(Parse[[#This Row],[Raw]],",",CHAR(1),5))-FIND(CHAR(1),SUBSTITUTE(Parse[[#This Row],[Raw]],",",CHAR(1),4))-1)),"") -> 7.54027 | I63: =IFERROR(VALUE(MID(Parse[[#This Row],[Raw]],FIND(CHAR(1),SUBSTITUTE(Parse[[#This Row],[Raw]],",",CHAR(1),5))+1,FIND(CHAR(1), SUBSTITUTE(Parse[[#This Row],[Raw]],",",CHAR(1),6))-FIND(CHAR(1),SUBSTITUTE(Parse[[#This Row],[Raw]],",",CHAR(1),5))-1)),"") -> 3.143917 | J63: =IFERROR(VALUE(RIGHT(Parse[[#This Row],[Raw]],LEN(Parse[[#This Row],[Raw]])-FIND(CHAR(1),SUBSTITUTE(Parse[[#This Row],[Raw]],",",CHAR(1),6)))),"") -> 41805697
A64: 2000-03-09,7.607000,8.131930,7.566970,8.100790,3.377627,42453964 | C64: 2000-03-09,7.607000,8.131930,7.566970,8.100790,3.377627,42453964 | D64: =IFERROR(DATEVALUE(LEFT(Parse[[#This Row],[Raw]],FIND(",",Parse[[#This Row],[Raw]])-1)),"") -> 2000-03-09 | E64: =IFERROR(VALUE(MID(Parse[[#This Row],[Raw]],FIND(CHAR(1),SUBSTITUTE(Parse[[#This Row],[Raw]],",",CHAR(1),1))+1,FIND(CHAR(1), SUBSTITUTE(Parse[[#This Row],[Raw]],",",CHAR(1),2))-FIND(CHAR(1),SUBSTITUTE(Parse[[#This Row],[Raw]],",",CHAR(1),1))-1)),"") -> 7.607 | F64: =IFERROR(VALUE(MID(Parse[[#This Row],[Raw]],FIND(CHAR(1),SUBSTITUTE(Parse[[#This Row],[Raw]],",",CHAR(1),2))+1,FIND(CHAR(1), SUBSTITUTE(Parse[[#This Row],[Raw]],",",CHAR(1),3))-FIND(CHAR(1),SUBSTITUTE(Parse[[#This Row],[Raw]],",",CHAR(1),2))-1)),"") -> 8.13193 | G64: =IFERROR(VALUE(MID(Parse[[#This Row],[Raw]],FIND(CHAR(1),SUBSTITUTE(Parse[[#This Row],[Raw]],",",CHAR(1),3))+1,FIND(CHAR(1), SUBSTITUTE(Parse[[#This Row],[Raw]],",",CHAR(1),4))-FIND(CHAR(1),SUBSTITUTE(Parse[[#This Row],[Raw]],",",CHAR(1),3))-1)),"") -> 7.56697 | H64: =IFERROR(VALUE(MID(Parse[[#This Row],[Raw]],FIND(CHAR(1),SUBSTITUTE(Parse[[#This Row],[Raw]],",",CHAR(1),4))+1,FIND(CHAR(1), SUBSTITUTE(Parse[[#This Row],[Raw]],",",CHAR(1),5))-FIND(CHAR(1),SUBSTITUTE(Parse[[#This Row],[Raw]],",",CHAR(1),4))-1)),"") -> 8.10079 | I64: =IFERROR(VALUE(MID(Parse[[#This Row],[Raw]],FIND(CHAR(1),SUBSTITUTE(Parse[[#This Row],[Raw]],",",CHAR(1),5))+1,FIND(CHAR(1), SUBSTITUTE(Parse[[#This Row],[Raw]],",",CHAR(1),6))-FIND(CHAR(1),SUBSTITUTE(Parse[[#This Row],[Raw]],",",CHAR(1),5))-1)),"") -> 3.377627 | J64: =IFERROR(VALUE(RIGHT(Parse[[#This Row],[Raw]],LEN(Parse[[#This Row],[Raw]])-FIND(CHAR(1),SUBSTITUTE(Parse[[#This Row],[Raw]],",",CHAR(1),6)))),"") -> 42453964
A65: 2000-03-16,8.229800,8.314320,7.784940,7.873920,3.283033,31455353 | C65: 2000-03-16,8.229800,8.314320,7.784940,7.873920,3.283033,31455353 | D65: =IFERROR(DATEVALUE(LEFT(Parse[[#This Row],[Raw]],FIND(",",Parse[[#This Row],[Raw]])-1)),"") -> 2000-03-16 | E65: =IFERROR(VALUE(MID(Parse[[#This Row],[Raw]],FIND(CHAR(1),SUBSTITUTE(Parse[[#This Row],[Raw]],",",CHAR(1),1))+1,FIND(CHAR(1), SUBSTITUTE(Parse[[#This Row],[Raw]],",",CHAR(1),2))-FIND(CHAR(1),SUBSTITUTE(Parse[[#This Row],[Raw]],",",CHAR(1),1))-1)),"") -> 8.2298 | F65: =IFERROR(VALUE(MID(Parse[[#This Row],[Raw]],FIND(CHAR(1),SUBSTITUTE(Parse[[#This Row],[Raw]],",",CHAR(1),2))+1,FIND(CHAR(1), SUBSTITUTE(Parse[[#This Row],[Raw]],",",CHAR(1),3))-FIND(CHAR(1),SUBSTITUTE(Parse[[#This Row],[Raw]],",",CHAR(1),2))-1)),"") -> 8.31432 | G65: =IFERROR(VALUE(MID(Parse[[#This Row],[Raw]],FIND(CHAR(1),SUBSTITUTE(Parse[[#This Row],[Raw]],",",CHAR(1),3))+1,FIND(CHAR(1), SUBSTITUTE(Parse[[#This Row],[Raw]],",",CHAR(1),4))-FIND(CHAR(1),SUBSTITUTE(Parse[[#This Row],[Raw]],",",CHAR(1),3))-1)),"") -> 7.78494 | H65: =IFERROR(VALUE(MID(Parse[[#This Row],[Raw]],FIND(CHAR(1),SUBSTITUTE(Parse[[#This Row],[Raw]],",",CHAR(1),4))+1,FIND(CHAR(1), SUBSTITUTE(Parse[[#This Row],[Raw]],",",CHAR(1),5))-FIND(CHAR(1),SUBSTITUTE(Parse[[#This Row],[Raw]],",",CHAR(1),4))-1)),"") -> 7.87392 | I65: =IFERROR(VALUE(MID(Parse[[#This Row],[Raw]],FIND(CHAR(1),SUBSTITUTE(Parse[[#This Row],[Raw]],",",CHAR(1),5))+1,FIND(CHAR(1), SUBSTITUTE(Parse[[#This Row],[Raw]],",",CHAR(1),6))-FIND(CHAR(1),SUBSTITUTE(Parse[[#This Row],[Raw]],",",CHAR(1),5))-1)),"") -> 3.283033 | J65: =IFERROR(VALUE(RIGHT(Parse[[#This Row],[Raw]],LEN(Parse[[#This Row],[Raw]])-FIND(CHAR(1),SUBSTITUTE(Parse[[#This Row],[Raw]],",",CHAR(1),6)))),"") -> 31455353
A66: 2000-03-23,7.851670,8.002920,7.678180,7.918400,3.301579,41253240 | C66: =IF(ISBLANK(OFFSET($A$1,ROW()-1,0)),"",OFFSET($A$1,ROW()-1,0)) -> 2000-03-23,7.851670,8.002920,7.678180,7.918400,3.301579,41253240 | D66: =IFERROR(DATEVALUE(LEFT(Parse[[#This Row],[Raw]],FIND(",",Parse[[#This Row],[Raw]])-1)),"") -> 2000-03-23 | E66: =IFERROR(VALUE(MID(Parse[[#This Row],[Raw]],FIND(CHAR(1),SUBSTITUTE(Parse[[#This Row],[Raw]],",",CHAR(1),1))+1,FIND(CHAR(1), SUBSTITUTE(Parse[[#This Row],[Raw]],",",CHAR(1),2))-FIND(CHAR(1),SUBSTITUTE(Parse[[#This Row],[Raw]],",",CHAR(1),1))-1)),"") -> 7.85167 | F66: =IFERROR(VALUE(MID(Parse[[#This Row],[Raw]],FIND(CHAR(1),SUBSTITUTE(Parse[[#This Row],[Raw]],",",CHAR(1),2))+1,FIND(CHAR(1), SUBSTITUTE(Parse[[#This Row],[Raw]],",",CHAR(1),3))-FIND(CHAR(1),SUBSTITUTE(Parse[[#This Row],[Raw]],",",CHAR(1),2))-1)),"") -> 8.00292 | G66: =IFERROR(VALUE(MID(Parse[[#This Row],[Raw]],FIND(CHAR(1),SUBSTITUTE(Parse[[#This Row],[Raw]],",",CHAR(1),3))+1,FIND(CHAR(1), SUBSTITUTE(Parse[[#This Row],[Raw]],",",CHAR(1),4))-FIND(CHAR(1),SUBSTITUTE(Parse[[#This Row],[Raw]],",",CHAR(1),3))-1)),"") -> 7.67818 | H66: =IFERROR(VALUE(MID(Parse[[#This Row],[Raw]],FIND(CHAR(1),SUBSTITUTE(Parse[[#This Row],[Raw]],",",CHAR(1),4))+1,FIND(CHAR(1), SUBSTITUTE(Parse[[#This Row],[Raw]],",",CHAR(1),5))-FIND(CHAR(1),SUBSTITUTE(Parse[[#This Row],[Raw]],",",CHAR(1),4))-1)),"") -> 7.9184 | I66: =IFERROR(VALUE(MID(Parse[[#This Row],[Raw]],FIND(CHAR(1),SUBSTITUTE(Parse[[#This Row],[Raw]],",",CHAR(1),5))+1,FIND(CHAR(1), SUBSTITUTE(Parse[[#This Row],[Raw]],",",CHAR(1),6))-FIND(CHAR(1),SUBSTITUTE(Parse[[#This Row],[Raw]],",",CHAR(1),5))-1)),"") -> 3.301579 | J66: =IFERROR(VALUE(RIGHT(Parse[[#This Row],[Raw]],LEN(Parse[[#This Row],[Raw]])-FIND(CHAR(1),SUBSTITUTE(Parse[[#This Row],[Raw]],",",CHAR(1),6)))),"") -> 41253240
A67: 2000-03-30,7.829430,8.452230,7.820530,8.385500,3.496336,81346015 | C67: 2000-03-30,7.829430,8.452230,7.820530,8.385500,3.496336,81346015 | D67: =IFERROR(DATEVALUE(LEFT(Parse[[#This Row],[Raw]],FIND(",",Parse[[#This Row],[Raw]])-1)),"") -> 2000-03-30 | E67: =IFERROR(VALUE(MID(Parse[[#This Row],[Raw]],FIND(CHAR(1),SUBSTITUTE(Parse[[#This Row],[Raw]],",",CHAR(1),1))+1,FIND(CHAR(1), SUBSTITUTE(Parse[[#This Row],[Raw]],",",CHAR(1),2))-FIND(CHAR(1),SUBSTITUTE(Parse[[#This Row],[Raw]],",",CHAR(1),1))-1)),"") -> 7.82943 | F67: =IFERROR(VALUE(MID(Parse[[#This Row],[Raw]],FIND(CHAR(1),SUBSTITUTE(Parse[[#This Row],[Raw]],",",CHAR(1),2))+1,FIND(CHAR(1), SUBSTITUTE(Parse[[#This Row],[Raw]],",",CHAR(1),3))-FIND(CHAR(1),SUBSTITUTE(Parse[[#This Row],[Raw]],",",CHAR(1),2))-1)),"") -> 8.45223 | G67: =IFERROR(VALUE(MID(Parse[[#This Row],[Raw]],FIND(CHAR(1),SUBSTITUTE(Parse[[#This Row],[Raw]],",",CHAR(1),3))+1,FIND(CHAR(1), SUBSTITUTE(Parse[[#This Row],[Raw]],",",CHAR(1),4))-FIND(CHAR(1),SUBSTITUTE(Parse[[#This Row],[Raw]],",",CHAR(1),3))-1)),"") -> 7.82053 | H67: =IFERROR(VALUE(MID(Parse[[#This Row],[Raw]],FIND(CHAR(1),SUBSTITUTE(Parse[[#This Row],[Raw]],",",CHAR(1),4))+1,FIND(CHAR(1), SUBSTITUTE(Parse[[#This Row],[Raw]],",",CHAR(1),5))-FIND(CHAR(1),SUBSTITUTE(Parse[[#This Row],[Raw]],",",CHAR(1),4))-1)),"") -> 8.3855 | I67: =IFERROR(VALUE(MID(Parse[[#This Row],[Raw]],FIND(CHAR(1),SUBSTITUTE(Parse[[#This Row],[Raw]],",",CHAR(1),5))+1,FIND(CHAR(1), SUBSTITUTE(Parse[[#This Row],[Raw]],",",CHAR(1),6))-FIND(CHAR(1),SUBSTITUTE(Parse[[#This Row],[Raw]],",",CHAR(1),5))-1)),"") -> 3.496336 | J67: =IFERROR(VALUE(RIGHT(Parse[[#This Row],[Raw]],LEN(Parse[[#This Row],[Raw]])-FIND(CHAR(1),SUBSTITUTE(Parse[[#This Row],[Raw]],",",CHAR(1),6)))),"") -> 81346015
A68: 2000-04-06,8.385500,8.429980,7.784940,7.918400,3.301579,31423662 | C68: 2000-04-06,8.385500,8.429980,7.784940,7.918400,3.301579,31423662 | D68: =IFERROR(DATEVALUE(LEFT(Parse[[#This Row],[Raw]],FIND(",",Parse[[#This Row],[Raw]])-1)),"") -> 2000-04-06 | E68: =IFERROR(VALUE(MID(Parse[[#This Row],[Raw]],FIND(CHAR(1),SUBSTITUTE(Parse[[#This Row],[Raw]],",",CHAR(1),1))+1,FIND(CHAR(1), SUBSTITUTE(Parse[[#This Row],[Raw]],",",CHAR(1),2))-FIND(CHAR(1),SUBSTITUTE(Parse[[#This Row],[Raw]],",",CHAR(1),1))-1)),"") -> 8.3855 | F68: =IFERROR(VALUE(MID(Parse[[#This Row],[Raw]],FIND(CHAR(1),SUBSTITUTE(Parse[[#This Row],[Raw]],",",CHAR(1),2))+1,FIND(CHAR(1), SUBSTITUTE(Parse[[#This Row],[Raw]],",",CHAR(1),3))-FIND(CHAR(1),SUBSTITUTE(Parse[[#This Row],[Raw]],",",CHAR(1),2))-1)),"") -> 8.42998 | G68: =IFERROR(VALUE(MID(Parse[[#This Row],[Raw]],FIND(CHAR(1),SUBSTITUTE(Parse[[#This Row],[Raw]],",",CHAR(1),3))+1,FIND(CHAR(1), SUBSTITUTE(Parse[[#This Row],[Raw]],",",CHAR(1),4))-FIND(CHAR(1),SUBSTITUTE(Parse[[#This Row],[Raw]],",",CHAR(1),3))-1)),"") -> 7.78494 | H68: =IFERROR(VALUE(MID(Parse[[#This Row],[Raw]],FIND(CHAR(1),SUBSTITUTE(Parse[[#This Row],[Raw]],",",CHAR(1),4))+1,FIND(CHAR(1), SUBSTITUTE(Parse[[#This Row],[Raw]],",",CHAR(1),5))-FIND(CHAR(1),SUBSTITUTE(Parse[[#This Row],[Raw]],",",CHAR(1),4))-1)),"") -> 7.9184 | I68: =IFERROR(VALUE(MID(Parse[[#This Row],[Raw]],FIND(CHAR(1),SUBSTITUTE(Parse[[#This Row],[Raw]],",",CHAR(1),5))+1,FIND(CHAR(1), SUBSTITUTE(Parse[[#This Row],[Raw]],",",CHAR(1),6))-FIND(CHAR(1),SUBSTITUTE(Parse[[#This Row],[Raw]],",",CHAR(1),5))-1)),"") -> 3.301579 | J68: =IFERROR(VALUE(RIGHT(Parse[[#This Row],[Raw]],LEN(Parse[[#This Row],[Raw]])-FIND(CHAR(1),SUBSTITUTE(Parse[[#This Row],[Raw]],",",CHAR(1),6)))),"") -> 31423662
A69: 2000-04-13,7.829430,8.007370,7.488230,7.946430,3.313267,24483124 | C69: 2000-04-13,7.829430,8.007370,7.488230,7.946430,3.313267,24483124 | D69: =IFERROR(DATEVALUE(LEFT(Parse[[#This Row],[Raw]],FIND(",",Parse[[#This Row],[Raw]])-1)),"") -> 2000-04-13 | E69: =IFERROR(VALUE(MID(Parse[[#This Row],[Raw]],FIND(CHAR(1),SUBSTITUTE(Parse[[#This Row],[Raw]],",",CHAR(1),1))+1,FIND(CHAR(1), SUBSTITUTE(Parse[[#This Row],[Raw]],",",CHAR(1),2))-FIND(CHAR(1),SUBSTITUTE(Parse[[#This Row],[Raw]],",",CHAR(1),1))-1)),"") -> 7.82943 | F69: =IFERROR(VALUE(MID(Parse[[#This Row],[Raw]],FIND(CHAR(1),SUBSTITUTE(Parse[[#This Row],[Raw]],",",CHAR(1),2))+1,FIND(CHAR(1), SUBSTITUTE(Parse[[#This Row],[Raw]],",",CHAR(1),3))-FIND(CHAR(1),SUBSTITUTE(Parse[[#This Row],[Raw]],",",CHAR(1),2))-1)),"") -> 8.00737 | G69: =IFERROR(VALUE(MID(Parse[[#This Row],[Raw]],FIND(CHAR(1),SUBSTITUTE(Parse[[#This Row],[Raw]],",",CHAR(1),3))+1,FIND(CHAR(1), SUBSTITUTE(Parse[[#This Row],[Raw]],",",CHAR(1),4))-FIND(CHAR(1),SUBSTITUTE(Parse[[#This Row],[Raw]],",",CHAR(1),3))-1)),"") -> 7.48823 | H69: =IFERROR(VALUE(MID(Parse[[#This Row],[Raw]],FIND(CHAR(1),SUBSTITUTE(Parse[[#This Row],[Raw]],",",CHAR(1),4))+1,FIND(CHAR(1), SUBSTITUTE(Parse[[#This Row],[Raw]],",",CHAR(1),5))-FIND(CHAR(1),SUBSTITUTE(Parse[[#This Row],[Raw]],",",CHAR(1),4))-1)),"") -> 7.94643 | I69: =IFERROR(VALUE(MID(Parse[[#This Row],[Raw]],FIND(CHAR(1),SUBSTITUTE(Parse[[#This Row],[Raw]],",",CHAR(1),5))+1,FIND(CHAR(1), SUBSTITUTE(Parse[[#This Row],[Raw]],",",CHAR(1),6))-FIND(CHAR(1),SUBSTITUTE(Parse[[#This Row],[Raw]],",",CHAR(1),5))-1)),"") -> 3.313267 | J69: =IFERROR(VALUE(RIGHT(Parse[[#This Row],[Raw]],LEN(Parse[[#This Row],[Raw]])-FIND(CHAR(1),SUBSTITUTE(Parse[[#This Row],[Raw]],",",CHAR(1),6)))),"") -> 24483124
A70: 2000-04-20,7.946430,8.243140,7.946430,8.185310,3.412867,13921307 | C70: 2000-04-20,7.946430,8.243140,7.946430,8.185310,3.412867,13921307 | D70: =IFERROR(DATEVALUE(LEFT(Parse[[#This Row],[Raw]],FIND(",",Parse[[#This Row],[Raw]])-1)),"") -> 2000-04-20 | E70: =IFERROR(VALUE(MID(Parse[[#This Row],[Raw]],FIND(CHAR(1),SUBSTITUTE(Parse[[#This Row],[Raw]],",",CHAR(1),1))+1,FIND(CHAR(1), SUBSTITUTE(Parse[[#This Row],[Raw]],",",CHAR(1),2))-FIND(CHAR(1),SUBSTITUTE(Parse[[#This Row],[Raw]],",",CHAR(1),1))-1)),"") -> 7.94643 | F70: =IFERROR(VALUE(MID(Parse[[#This Row],[Raw]],FIND(CHAR(1),SUBSTITUTE(Parse[[#This Row],[Raw]],",",CHAR(1),2))+1,FIND(CHAR(1), SUBSTITUTE(Parse[[#This Row],[Raw]],",",CHAR(1),3))-FIND(CHAR(1),SUBSTITUTE(Parse[[#This Row],[Raw]],",",CHAR(1),2))-1)),"") -> 8.24314 | G70: =IFERROR(VALUE(MID(Parse[[#This Row],[Raw]],FIND(CHAR(1),SUBSTITUTE(Parse[[#This Row],[Raw]],",",CHAR(1),3))+1,FIND(CHAR(1), SUBSTITUTE(Parse[[#This Row],[Raw]],",",CHAR(1),4))-FIND(CHAR(1),SUBSTITUTE(Parse[[#This Row],[Raw]],",",CHAR(1),3))-1)),"") -> 7.94643 | H70: =IFERROR(VALUE(MID(Parse[[#This Row],[Raw]],FIND(CHAR(1),SUBSTITUTE(Parse[[#This Row],[Raw]],",",CHAR(1),4))+1,FIND(CHAR(1), SUBSTITUTE(Parse[[#This Row],[Raw]],",",CHAR(1),5))-FIND(CHAR(1),SUBSTITUTE(Parse[[#This Row],[Raw]],",",CHAR(1),4))-1)),"") -> 8.18531 | I70: =IFERROR(VALUE(MID(Parse[[#This Row],[Raw]],FIND(CHAR(1),SUBSTITUTE(Parse[[#This Row],[Raw]],",",CHAR(1),5))+1,FIND(CHAR(1), SUBSTITUTE(Parse[[#This Row],[Raw]],",",CHAR(1),6))-FIND(CHAR(1),SUBSTITUTE(Parse[[#This Row],[Raw]],",",CHAR(1),5))-1)),"") -> 3.412867 | J70: =IFERROR(VALUE(RIGHT(Parse[[#This Row],[Raw]],LEN(Parse[[#This Row],[Raw]])-FIND(CHAR(1),SUBSTITUTE(Parse[[#This Row],[Raw]],",",CHAR(1),6)))),"") -> 13921307
A71: 2000-04-27,8.140830,8.453120,7.718220,7.842780,3.270048,41865918 | C71: 2000-04-27,8.140830,8.453120,7.718220,7.842780,3.270048,41865918 | D71: =IFERROR(DATEVALUE(LEFT(Parse[[#This Row],[Raw]],FIND(",",Parse[[#This Row],[Raw]])-1)),"") -> 2000-04-27 | E71: =IFERROR(VALUE(MID(Parse[[#This Row],[Raw]],FIND(CHAR(1),SUBSTITUTE(Parse[[#This Row],[Raw]],",",CHAR(1),1))+1,FIND(CHAR(1), SUBSTITUTE(Parse[[#This Row],[Raw]],",",CHAR(1),2))-FIND(CHAR(1),SUBSTITUTE(Parse[[#This Row],[Raw]],",",CHAR(1),1))-1)),"") -> 8.14083 | F71: =IFERROR(VALUE(MID(Parse[[#This Row],[Raw]],FIND(CHAR(1),SUBSTITUTE(Parse[[#This Row],[Raw]],",",CHAR(1),2))+1,FIND(CHAR(1), SUBSTITUTE(Parse[[#This Row],[Raw]],",",CHAR(1),3))-FIND(CHAR(1),SUBSTITUTE(Parse[[#This Row],[Raw]],",",CHAR(1),2))-1)),"") -> 8.45312 | G71: =IFERROR(VALUE(MID(Parse[[#This Row],[Raw]],FIND(CHAR(1),SUBSTITUTE(Parse[[#This Row],[Raw]],",",CHAR(1),3))+1,FIND(CHAR(1), SUBSTITUTE(Parse[[#This Row],[Raw]],",",CHAR(1),4))-FIND(CHAR(1),SUBSTITUTE(Parse[[#This Row],[Raw]],",",CHAR(1),3))-1)),"") -> 7.71822 | H71: =IFERROR(VALUE(MID(Parse[[#This Row],[Raw]],FIND(CHAR(1),SUBSTITUTE(Parse[[#This Row],[Raw]],",",CHAR(1),4))+1,FIND(CHAR(1), SUBSTITUTE(Parse[[#This Row],[Raw]],",",CHAR(1),5))-FIND(CHAR(1),SUBSTITUTE(Parse[[#This Row],[Raw]],",",CHAR(1),4))-1)),"") -> 7.84278 | I71: =IFERROR(VALUE(MID(Parse[[#This Row],[Raw]],FIND(CHAR(1),SUBSTITUTE(Parse[[#This Row],[Raw]],",",CHAR(1),5))+1,FIND(CHAR(1), SUBSTITUTE(Parse[[#This Row],[Raw]],",",CHAR(1),6))-FIND(CHAR(1),SUBSTITUTE(Parse[[#This Row],[Raw]],",",CHAR(1),5))-1)),"") -> 3.270048 | J71: =IFERROR(VALUE(RIGHT(Parse[[#This Row],[Raw]],LEN(Parse[[#This Row],[Raw]])-FIND(CHAR(1),SUBSTITUTE(Parse[[#This Row],[Raw]],",",CHAR(1),6)))),"") -> 41865918
A72: 2000-05-04,7.872140,7.985130,7.295610,7.415720,3.091987,26710184 | C72: 2000-05-04,7.872140,7.985130,7.295610,7.415720,3.091987,26710184 | D72: =IFERROR(DATEVALUE(LEFT(Parse[[#This Row],[Raw]],FIND(",",Parse[[#This Row],[Raw]])-1)),"") -> 2000-05-04 | E72: =IFERROR(VALUE(MID(Parse[[#This Row],[Raw]],FIND(CHAR(1),SUBSTITUTE(Parse[[#This Row],[Raw]],",",CHAR(1),1))+1,FIND(CHAR(1), SUBSTITUTE(Parse[[#This Row],[Raw]],",",CHAR(1),2))-FIND(CHAR(1),SUBSTITUTE(Parse[[#This Row],[Raw]],",",CHAR(1),1))-1)),"") -> 7.87214 | F72: =IFERROR(VALUE(MID(Parse[[#This Row],[Raw]],FIND(CHAR(1),SUBSTITUTE(Parse[[#This Row],[Raw]],",",CHAR(1),2))+1,FIND(CHAR(1), SUBSTITUTE(Parse[[#This Row],[Raw]],",",CHAR(1),3))-FIND(CHAR(1),SUBSTITUTE(Parse[[#This Row],[Raw]],",",CHAR(1),2))-1)),"") -> 7.98513 | G72: =IFERROR(VALUE(MID(Parse[[#This Row],[Raw]],FIND(CHAR(1),SUBSTITUTE(Parse[[#This Row],[Raw]],",",CHAR(1),3))+1,FIND(CHAR(1), SUBSTITUTE(Parse[[#This Row],[Raw]],",",CHAR(1),4))-FIND(CHAR(1),SUBSTITUTE(Parse[[#This Row],[Raw]],",",CHAR(1),3))-1)),"") -> 7.29561 | H72: =IFERROR(VALUE(MID(Parse[[#This Row],[Raw]],FIND(CHAR(1),SUBSTITUTE(Parse[[#This Row],[Raw]],",",CHAR(1),4))+1,FIND(CHAR(1), SUBSTITUTE(Parse[[#This Row],[Raw]],",",CHAR(1),5))-FIND(CHAR(1),SUBSTITUTE(Parse[[#This Row],[Raw]],",",CHAR(1),4))-1)),"") -> 7.41572 | I72: =IFERROR(VALUE(MID(Parse[[#This Row],[Raw]],FIND(CHAR(1),SUBSTITUTE(Parse[[#This Row],[Raw]],",",CHAR(1),5))+1,FIND(CHAR(1), SUBSTITUTE(Parse[[#This Row],[Raw]],",",CHAR(1),6))-FIND(CHAR(1),SUBSTITUTE(Parse[[#This Row],[Raw]],",",CHAR(1),5))-1)),"") -> 3.091987 | J72: =IFERROR(VALUE(RIGHT(Parse[[#This Row],[Raw]],LEN(Parse[[#This Row],[Raw]])-FIND(CHAR(1),SUBSTITUTE(Parse[[#This Row],[Raw]],",",CHAR(1),6)))),"") -> 26710184
A73: 2000-05-11,7.491340,8.007370,7.331190,7.698640,3.209951,29141637 | C73: 2000-05-11,7.491340,8.007370,7.331190,7.698640,3.209951,29141637 | D73: =IFERROR(DATEVALUE(LEFT(Parse[[#This Row],[Raw]],FIND(",",Parse[[#This Row],[Raw]])-1)),"") -> 2000-05-11 | E73: =IFERROR(VALUE(MID(Parse[[#This Row],[Raw]],FIND(CHAR(1),SUBSTITUTE(Parse[[#This Row],[Raw]],",",CHAR(1),1))+1,FIND(CHAR(1), SUBSTITUTE(Parse[[#This Row],[Raw]],",",CHAR(1),2))-FIND(CHAR(1),SUBSTITUTE(Parse[[#This Row],[Raw]],",",CHAR(1),1))-1)),"") -> 7.49134 | F73: =IFERROR(VALUE(MID(Parse[[#This Row],[Raw]],FIND(CHAR(1),SUBSTITUTE(Parse[[#This Row],[Raw]],",",CHAR(1),2))+1,FIND(CHAR(1), SUBSTITUTE(Parse[[#This Row],[Raw]],",",CHAR(1),3))-FIND(CHAR(1),SUBSTITUTE(Parse[[#This Row],[Raw]],",",CHAR(1),2))-1)),"") -> 8.00737 | G73: =IFERROR(VALUE(MID(Parse[[#This Row],[Raw]],FIND(CHAR(1),SUBSTITUTE(Parse[[#This Row],[Raw]],",",CHAR(1),3))+1,FIND(CHAR(1), SUBSTITUTE(Parse[[#This Row],[Raw]],",",CHAR(1),4))-FIND(CHAR(1),SUBSTITUTE(Parse[[#This Row],[Raw]],",",CHAR(1),3))-1)),"") -> 7.33119 | H73: =IFERROR(VALUE(MID(Parse[[#This Row],[Raw]],FIND(CHAR(1),SUBSTITUTE(Parse[[#This Row],[Raw]],",",CHAR(1),4))+1,FIND(CHAR(1), SUBSTITUTE(Parse[[#This Row],[Raw]],",",CHAR(1),5))-FIND(CHAR(1),SUBSTITUTE(Parse[[#This Row],[Raw]],",",CHAR(1),4))-1)),"") -> 7.69864 | I73: =IFERROR(VALUE(MID(Parse[[#This Row],[Raw]],FIND(CHAR(1),SUBSTITUTE(Parse[[#This Row],[Raw]],",",CHAR(1),5))+1,FIND(CHAR(1), SUBSTITUTE(Parse[[#This Row],[Raw]],",",CHAR(1),6))-FIND(CHAR(1),SUBSTITUTE(Parse[[#This Row],[Raw]],",",CHAR(1),5))-1)),"") -> 3.209951 | J73: =IFERROR(VALUE(RIGHT(Parse[[#This Row],[Raw]],LEN(Parse[[#This Row],[Raw]])-FIND(CHAR(1),SUBSTITUTE(Parse[[#This Row],[Raw]],",",CHAR(1),6)))),"") -> 29141637
A74: 2000-05-18,7.708430,7.918400,7.522480,7.909500,3.297868,27346933 | C74: 2000-05-18,7.708430,7.918400,7.522480,7.909500,3.297868,27346933 | D74: =IFERROR(DATEVALUE(LEFT(Parse[[#This Row],[Raw]],FIND(",",Parse[[#This Row],[Raw]])-1)),"") -> 2000-05-18 | E74: =IFERROR(VALUE(MID(Parse[[#This Row],[Raw]],FIND(CHAR(1),SUBSTITUTE(Parse[[#This Row],[Raw]],",",CHAR(1),1))+1,FIND(CHAR(1), SUBSTITUTE(Parse[[#This Row],[Raw]],",",CHAR(1),2))-FIND(CHAR(1),SUBSTITUTE(Parse[[#This Row],[Raw]],",",CHAR(1),1))-1)),"") -> 7.70843 | F74: =IFERROR(VALUE(MID(Parse[[#This Row],[Raw]],FIND(CHAR(1),SUBSTITUTE(Parse[[#This Row],[Raw]],",",CHAR(1),2))+1,FIND(CHAR(1), SUBSTITUTE(Parse[[#This Row],[Raw]],",",CHAR(1),3))-FIND(CHAR(1),SUBSTITUTE(Parse[[#This Row],[Raw]],",",CHAR(1),2))-1)),"") -> 7.9184 | G74: =IFERROR(VALUE(MID(Parse[[#This Row],[Raw]],FIND(CHAR(1),SUBSTITUTE(Parse[[#This Row],[Raw]],",",CHAR(1),3))+1,FIND(CHAR(1), SUBSTITUTE(Parse[[#This Row],[Raw]],",",CHAR(1),4))-FIND(CHAR(1),SUBSTITUTE(Parse[[#This Row],[Raw]],",",CHAR(1),3))-1)),"") -> 7.52248 | H74: =IFERROR(VALUE(MID(Parse[[#This Row],[Raw]],FIND(CHAR(1),SUBSTITUTE(Parse[[#This Row],[Raw]],",",CHAR(1),4))+1,FIND(CHAR(1), SUBSTITUTE(Parse[[#This Row],[Raw]],",",CHAR(1),5))-FIND(CHAR(1),SUBSTITUTE(Parse[[#This Row],[Raw]],",",CHAR(1),4))-1)),"") -> 7.9095 | I74: =IFERROR(VALUE(MID(Parse[[#This Row],[Raw]],FIND(CHAR(1),SUBSTITUTE(Parse[[#This Row],[Raw]],",",CHAR(1),5))+1,FIND(CHAR(1), SUBSTITUTE(Parse[[#This Row],[Raw]],",",CHAR(1),6))-FIND(CHAR(1),SUBSTITUTE(Parse[[#This Row],[Raw]],",",CHAR(1),5))-1)),"") -> 3.297868 | J74: =IFERROR(VALUE(RIGHT(Parse[[#This Row],[Raw]],LEN(Parse[[#This Row],[Raw]])-FIND(CHAR(1),SUBSTITUTE(Parse[[#This Row],[Raw]],",",CHAR(1),6)))),"") -> 27346933
A75: 2000-05-25,7.762700,7.994030,7.704870,7.924630,3.304177,36961207 | C75: 2000-05-25,7.762700,7.994030,7.704870,7.924630,3.304177,36961207 | D75: =IFERROR(DATEVALUE(LEFT(Parse[[#This Row],[Raw]],FIND(",",Parse[[#This Row],[Raw]])-1)),"") -> 2000-05-25 | E75: =IFERROR(VALUE(MID(Parse[[#This Row],[Raw]],FIND(CHAR(1),SUBSTITUTE(Parse[[#This Row],[Raw]],",",CHAR(1),1))+1,FIND(CHAR(1), SUBSTITUTE(Parse[[#This Row],[Raw]],",",CHAR(1),2))-FIND(CHAR(1),SUBSTITUTE(Parse[[#This Row],[Raw]],",",CHAR(1),1))-1)),"") -> 7.7627 | F75: =IFERROR(VALUE(MID(Parse[[#This Row],[Raw]],FIND(CHAR(1),SUBSTITUTE(Parse[[#This Row],[Raw]],",",CHAR(1),2))+1,FIND(CHAR(1), SUBSTITUTE(Parse[[#This Row],[Raw]],",",CHAR(1),3))-FIND(CHAR(1),SUBSTITUTE(Parse[[#This Row],[Raw]],",",CHAR(1),2))-1)),"") -> 7.99403 | G75: =IFERROR(VALUE(MID(Parse[[#This Row],[Raw]],FIND(CHAR(1),SUBSTITUTE(Parse[[#This Row],[Raw]],",",CHAR(1),3))+1,FIND(CHAR(1), SUBSTITUTE(Parse[[#This Row],[Raw]],",",CHAR(1),4))-FIND(CHAR(1),SUBSTITUTE(Parse[[#This Row],[Raw]],",",CHAR(1),3))-1)),"") -> 7.70487 | H75: =IFERROR(VALUE(MID(Parse[[#This Row],[Raw]],FIND(CHAR(1),SUBSTITUTE(Parse[[#This Row],[Raw]],",",CHAR(1),4))+1,FIND(CHAR(1), SUBSTITUTE(Parse[[#This Row],[Raw]],",",CHAR(1),5))-FIND(CHAR(1),SUBSTITUTE(Parse[[#This Row],[Raw]],",",CHAR(1),4))-1)),"") -> 7.92463 | I75: =IFERROR(VALUE(MID(Parse[[#This Row],[Raw]],FIND(CHAR(1),SUBSTITUTE(Parse[[#This Row],[Raw]],",",CHAR(1),5))+1,FIND(CHAR(1), SUBSTITUTE(Parse[[#This Row],[Raw]],",",CHAR(1),6))-FIND(CHAR(1),SUBSTITUTE(Parse[[#This Row],[Raw]],",",CHAR(1),5))-1)),"") -> 3.304177 | J75: =IFERROR(VALUE(RIGHT(Parse[[#This Row],[Raw]],LEN(Parse[[#This Row],[Raw]])-FIND(CHAR(1),SUBSTITUTE(Parse[[#This Row],[Raw]],",",CHAR(1),6)))),"") -> 36961207
A76: 2000-06-01,7.922400,8.007370,7.762700,7.888150,3.288967,32575146 | C76: 2000-06-01,7.922400,8.007370,7.762700,7.888150,3.288967,32575146 | D76: =IFERROR(DATEVALUE(LEFT(Parse[[#This Row],[Raw]],FIND(",",Parse[[#This Row],[Raw]])-1)),"") -> 2000-06-01 | E76: =IFERROR(VALUE(MID(Parse[[#This Row],[Raw]],FIND(CHAR(1),SUBSTITUTE(Parse[[#This Row],[Raw]],",",CHAR(1),1))+1,FIND(CHAR(1), SUBSTITUTE(Parse[[#This Row],[Raw]],",",CHAR(1),2))-FIND(CHAR(1),SUBSTITUTE(Parse[[#This Row],[Raw]],",",CHAR(1),1))-1)),"") -> 7.9224 | F76: =IFERROR(VALUE(MID(Parse[[#This Row],[Raw]],FIND(CHAR(1),SUBSTITUTE(Parse[[#This Row],[Raw]],",",CHAR(1),2))+1,FIND(CHAR(1), SUBSTITUTE(Parse[[#This Row],[Raw]],",",CHAR(1),3))-FIND(CHAR(1),SUBSTITUTE(Parse[[#This Row],[Raw]],",",CHAR(1),2))-1)),"") -> 8.00737 | G76: =IFERROR(VALUE(MID(Parse[[#This Row],[Raw]],FIND(CHAR(1),SUBSTITUTE(Parse[[#This Row],[Raw]],",",CHAR(1),3))+1,FIND(CHAR(1), SUBSTITUTE(Parse[[#This Row],[Raw]],",",CHAR(1),4))-FIND(CHAR(1),SUBSTITUTE(Parse[[#This Row],[Raw]],",",CHAR(1),3))-1)),"") -> 7.7627 | H76: =IFERROR(VALUE(MID(Parse[[#This Row],[Raw]],FIND(CHAR(1),SUBSTITUTE(Parse[[#This Row],[Raw]],",",CHAR(1),4))+1,FIND(CHAR(1), SUBSTITUTE(Parse[[#This Row],[Raw]],",",CHAR(1),5))-FIND(CHAR(1),SUBSTITUTE(Parse[[#This Row],[Raw]],",",CHAR(1),4))-1)),"") -> 7.88815 | I76: =IFERROR(VALUE(MID(Parse[[#This Row],[Raw]],FIND(CHAR(1),SUBSTITUTE(Parse[[#This Row],[Raw]],",",CHAR(1),5))+1,FIND(CHAR(1), SUBSTITUTE(Parse[[#This Row],[Raw]],",",CHAR(1),6))-FIND(CHAR(1),SUBSTITUTE(Parse[[#This Row],[Raw]],",",CHAR(1),5))-1)),"") -> 3.288967 | J76: =IFERROR(VALUE(RIGHT(Parse[[#This Row],[Raw]],LEN(Parse[[#This Row],[Raw]])-FIND(CHAR(1),SUBSTITUTE(Parse[[#This Row],[Raw]],",",CHAR(1),6)))),"") -> 32575146
A77: 2000-06-08,7.891710,8.274280,7.771600,8.212000,3.690839,36955999 | C77: 2000-06-08,7.891710,8.274280,7.771600,8.212000,3.690839,36955999 | D77: =IFERROR(DATEVALUE(LEFT(Parse[[#This Row],[Raw]],FIND(",",Parse[[#This Row],[Raw]])-1)),"") -> 2000-06-08 | E77: =IFERROR(VALUE(MID(Parse[[#This Row],[Raw]],FIND(CHAR(1),SUBSTITUTE(Parse[[#This Row],[Raw]],",",CHAR(1),1))+1,FIND(CHAR(1), SUBSTITUTE(Parse[[#This Row],[Raw]],",",CHAR(1),2))-FIND(CHAR(1),SUBSTITUTE(Parse[[#This Row],[Raw]],",",CHAR(1),1))-1)),"") -> 7.89171 | F77: =IFERROR(VALUE(MID(Parse[[#This Row],[Raw]],FIND(CHAR(1),SUBSTITUTE(Parse[[#This Row],[Raw]],",",CHAR(1),2))+1,FIND(CHAR(1), SUBSTITUTE(Parse[[#This Row],[Raw]],",",CHAR(1),3))-FIND(CHAR(1),SUBSTITUTE(Parse[[#This Row],[Raw]],",",CHAR(1),2))-1)),"") -> 8.27428 | G77: =IFERROR(VALUE(MID(Parse[[#This Row],[Raw]],FIND(CHAR(1),SUBSTITUTE(Parse[[#This Row],[Raw]],",",CHAR(1),3))+1,FIND(CHAR(1), SUBSTITUTE(Parse[[#This Row],[Raw]],",",CHAR(1),4))-FIND(CHAR(1),SUBSTITUTE(Parse[[#This Row],[Raw]],",",CHAR(1),3))-1)),"") -> 7.7716 | H77: =IFERROR(VALUE(MID(Parse[[#This Row],[Raw]],FIND(CHAR(1),SUBSTITUTE(Parse[[#This Row],[Raw]],",",CHAR(1),4))+1,FIND(CHAR(1), SUBSTITUTE(Parse[[#This Row],[Raw]],",",CHAR(1),5))-FIND(CHAR(1),SUBSTITUTE(Parse[[#This Row],[Raw]],",",CHAR(1),4))-1)),"") -> 8.212 | I77: =IFERROR(VALUE(MID(Parse[[#This Row],[Raw]],FIND(CHAR(1),SUBSTITUTE(Parse[[#This Row],[Raw]],",",CHAR(1),5))+1,FIND(CHAR(1), SUBSTITUTE(Parse[[#This Row],[Raw]],",",CHAR(1),6))-FIND(CHAR(1),SUBSTITUTE(Parse[[#This Row],[Raw]],",",CHAR(1),5))-1)),"") -> 3.690839 | J77: =IFERROR(VALUE(RIGHT(Parse[[#This Row],[Raw]],LEN(Parse[[#This Row],[Raw]])-FIND(CHAR(1),SUBSTITUTE(Parse[[#This Row],[Raw]],",",CHAR(1),6)))),"") -> 36955999
A78: 2000-06-15,8.238250,8.585680,8.180860,8.530520,3.833996,37686149 | C78: 2000-06-15,8.238250,8.585680,8.180860,8.530520,3.833996,37686149 | D78: =IFERROR(DATEVALUE(LEFT(Parse[[#This Row],[Raw]],FIND(",",Parse[[#This Row],[Raw]])-1)),"") -> 2000-06-15 | E78: =IFERROR(VALUE(MID(Parse[[#This Row],[Raw]],FIND(CHAR(1),SUBSTITUTE(Parse[[#This Row],[Raw]],",",CHAR(1),1))+1,FIND(CHAR(1), SUBSTITUTE(Parse[[#This Row],[Raw]],",",CHAR(1),2))-FIND(CHAR(1),SUBSTITUTE(Parse[[#This Row],[Raw]],",",CHAR(1),1))-1)),"") -> 8.23825 | F78: =IFERROR(VALUE(MID(Parse[[#This Row],[Raw]],FIND(CHAR(1),SUBSTITUTE(Parse[[#This Row],[Raw]],",",CHAR(1),2))+1,FIND(CHAR(1), SUBSTITUTE(Parse[[#This Row],[Raw]],",",CHAR(1),3))-FIND(CHAR(1),SUBSTITUTE(Parse[[#This Row],[Raw]],",",CHAR(1),2))-1)),"") -> 8.58568 | G78: =IFERROR(VALUE(MID(Parse[[#This Row],[Raw]],FIND(CHAR(1),SUBSTITUTE(Parse[[#This Row],[Raw]],",",CHAR(1),3))+1,FIND(CHAR(1), SUBSTITUTE(Parse[[#This Row],[Raw]],",",CHAR(1),4))-FIND(CHAR(1),SUBSTITUTE(Parse[[#This Row],[Raw]],",",CHAR(1),3))-1)),"") -> 8.18086 | H78: =IFERROR(VALUE(MID(Parse[[#This Row],[Raw]],FIND(CHAR(1),SUBSTITUTE(Parse[[#This Row],[Raw]],",",CHAR(1),4))+1,FIND(CHAR(1), SUBSTITUTE(Parse[[#This Row],[Raw]],",",CHAR(1),5))-FIND(CHAR(1),SUBSTITUTE(Parse[[#This Row],[Raw]],",",CHAR(1),4))-1)),"") -> 8.53052 | I78: =IFERROR(VALUE(MID(Parse[[#This Row],[Raw]],FIND(CHAR(1),SUBSTITUTE(Parse[[#This Row],[Raw]],",",CHAR(1),5))+1,FIND(CHAR(1), SUBSTITUTE(Parse[[#This Row],[Raw]],",",CHAR(1),6))-FIND(CHAR(1),SUBSTITUTE(Parse[[#This Row],[Raw]],",",CHAR(1),5))-1)),"") -> 3.833996 | J78: =IFERROR(VALUE(RIGHT(Parse[[#This Row],[Raw]],LEN(Parse[[#This Row],[Raw]])-FIND(CHAR(1),SUBSTITUTE(Parse[[#This Row],[Raw]],",",CHAR(1),6)))),"") -> 37686149
A79: 2000-06-22,8.674650,8.767180,8.452230,8.589240,3.860388,37604338 | C79: 2000-06-22,8.674650,8.767180,8.452230,8.589240,3.860388,37604338 | D79: =IFERROR(DATEVALUE(LEFT(Parse[[#This Row],[Raw]],FIND(",",Parse[[#This Row],[Raw]])-1)),"") -> 2000-06-22 | E79: =IFERROR(VALUE(MID(Parse[[#This Row],[Raw]],FIND(CHAR(1),SUBSTITUTE(Parse[[#This Row],[Raw]],",",CHAR(1),1))+1,FIND(CHAR(1), SUBSTITUTE(Parse[[#This Row],[Raw]],",",CHAR(1),2))-FIND(CHAR(1),SUBSTITUTE(Parse[[#This Row],[Raw]],",",CHAR(1),1))-1)),"") -> 8.67465 | F79: =IFERROR(VALUE(MID(Parse[[#This Row],[Raw]],FIND(CHAR(1),SUBSTITUTE(Parse[[#This Row],[Raw]],",",CHAR(1),2))+1,FIND(CHAR(1), SUBSTITUTE(Parse[[#This Row],[Raw]],",",CHAR(1),3))-FIND(CHAR(1),SUBSTITUTE(Parse[[#This Row],[Raw]],",",CHAR(1),2))-1)),"") -> 8.76718 | G79: =IFERROR(VALUE(MID(Parse[[#This Row],[Raw]],FIND(CHAR(1),SUBSTITUTE(Parse[[#This Row],[Raw]],",",CHAR(1),3))+1,FIND(CHAR(1), SUBSTITUTE(Parse[[#This Row],[Raw]],",",CHAR(1),4))-FIND(CHAR(1),SUBSTITUTE(Parse[[#This Row],[Raw]],",",CHAR(1),3))-1)),"") -> 8.45223 | H79: =IFERROR(VALUE(MID(Parse[[#This Row],[Raw]],FIND(CHAR(1),SUBSTITUTE(Parse[[#This Row],[Raw]],",",CHAR(1),4))+1,FIND(CHAR(1), SUBSTITUTE(Parse[[#This Row],[Raw]],",",CHAR(1),5))-FIND(CHAR(1),SUBSTITUTE(Parse[[#This Row],[Raw]],",",CHAR(1),4))-1)),"") -> 8.58924 | I79: =IFERROR(VALUE(MID(Parse[[#This Row],[Raw]],FIND(CHAR(1),SUBSTITUTE(Parse[[#This Row],[Raw]],",",CHAR(1),5))+1,FIND(CHAR(1), SUBSTITUTE(Parse[[#This Row],[Raw]],",",CHAR(1),6))-FIND(CHAR(1),SUBSTITUTE(Parse[[#This Row],[Raw]],",",CHAR(1),5))-1)),"") -> 3.860388 | J79: =IFERROR(VALUE(RIGHT(Parse[[#This Row],[Raw]],LEN(Parse[[#This Row],[Raw]])-FIND(CHAR(1),SUBSTITUTE(Parse[[#This Row],[Raw]],",",CHAR(1),6)))),"") -> 37604338
A80: 2000-06-29,8.505610,8.785870,8.220900,8.385500,3.768818,76932620 | C80: 2000-06-29,8.505610,8.785870,8.220900,8.385500,3.768818,76932620 | D80: =IFERROR(DATEVALUE(LEFT(Parse[[#This Row],[Raw]],FIND(",",Parse[[#This Row],[Raw]])-1)),"") -> 2000-06-29 | E80: =IFERROR(VALUE(MID(Parse[[#This Row],[Raw]],FIND(CHAR(1),SUBSTITUTE(Parse[[#This Row],[Raw]],",",CHAR(1),1))+1,FIND(CHAR(1), SUBSTITUTE(Parse[[#This Row],[Raw]],",",CHAR(1),2))-FIND(CHAR(1),SUBSTITUTE(Parse[[#This Row],[Raw]],",",CHAR(1),1))-1)),"") -> 8.50561 | F80: =IFERROR(VALUE(MID(Parse[[#This Row],[Raw]],FIND(CHAR(1),SUBSTITUTE(Parse[[#This Row],[Raw]],",",CHAR(1),2))+1,FIND(CHAR(1), SUBSTITUTE(Parse[[#This Row],[Raw]],",",CHAR(1),3))-FIND(CHAR(1),SUBSTITUTE(Parse[[#This Row],[Raw]],",",CHAR(1),2))-1)),"") -> 8.78587 | G80: =IFERROR(VALUE(MID(Parse[[#This Row],[Raw]],FIND(CHAR(1),SUBSTITUTE(Parse[[#This Row],[Raw]],",",CHAR(1),3))+1,FIND(CHAR(1), SUBSTITUTE(Parse[[#This Row],[Raw]],",",CHAR(1),4))-FIND(CHAR(1),SUBSTITUTE(Parse[[#This Row],[Raw]],",",CHAR(1),3))-1)),"") -> 8.2209 | H80: =IFERROR(VALUE(MID(Parse[[#This Row],[Raw]],FIND(CHAR(1),SUBSTITUTE(Parse[[#This Row],[Raw]],",",CHAR(1),4))+1,FIND(CHAR(1), SUBSTITUTE(Parse[[#This Row],[Raw]],",",CHAR(1),5))-FIND(CHAR(1),SUBSTITUTE(Parse[[#This Row],[Raw]],",",CHAR(1),4))-1)),"") -> 8.3855 | I80: =IFERROR(VALUE(MID(Parse[[#This Row],[Raw]],FIND(CHAR(1),SUBSTITUTE(Parse[[#This Row],[Raw]],",",CHAR(1),5))+1,FIND(CHAR(1), SUBSTITUTE(Parse[[#This Row],[Raw]],",",CHAR(1),6))-FIND(CHAR(1),SUBSTITUTE(Parse[[#This Row],[Raw]],",",CHAR(1),5))-1)),"") -> 3.768818 | J80: =IFERROR(VALUE(RIGHT(Parse[[#This Row],[Raw]],LEN(Parse[[#This Row],[Raw]])-FIND(CHAR(1),SUBSTITUTE(Parse[[#This Row],[Raw]],",",CHAR(1),6)))),"") -> 76932620
A81: 2000-07-06,8.444220,8.834800,8.327670,8.689780,3.905575,35868729 | C81: 2000-07-06,8.444220,8.834800,8.327670,8.689780,3.905575,35868729 | D81: =IFERROR(DATEVALUE(LEFT(Parse[[#This Row],[Raw]],FIND(",",Parse[[#This Row],[Raw]])-1)),"") -> 2000-07-06 | E81: =IFERROR(VALUE(MID(Parse[[#This Row],[Raw]],FIND(CHAR(1),SUBSTITUTE(Parse[[#This Row],[Raw]],",",CHAR(1),1))+1,FIND(CHAR(1), SUBSTITUTE(Parse[[#This Row],[Raw]],",",CHAR(1),2))-FIND(CHAR(1),SUBSTITUTE(Parse[[#This Row],[Raw]],",",CHAR(1),1))-1)),"") -> 8.44422 | F81: =IFERROR(VALUE(MID(Parse[[#This Row],[Raw]],FIND(CHAR(1),SUBSTITUTE(Parse[[#This Row],[Raw]],",",CHAR(1),2))+1,FIND(CHAR(1), SUBSTITUTE(Parse[[#This Row],[Raw]],",",CHAR(1),3))-FIND(CHAR(1),SUBSTITUTE(Parse[[#This Row],[Raw]],",",CHAR(1),2))-1)),"") -> 8.8348 | G81: =IFERROR(VALUE(MID(Parse[[#This Row],[Raw]],FIND(CHAR(1),SUBSTITUTE(Parse[[#This Row],[Raw]],",",CHAR(1),3))+1,FIND(CHAR(1), SUBSTITUTE(Parse[[#This Row],[Raw]],",",CHAR(1),4))-FIND(CHAR(1),SUBSTITUTE(Parse[[#This Row],[Raw]],",",CHAR(1),3))-1)),"") -> 8.32767 | H81: =IFERROR(VALUE(MID(Parse[[#This Row],[Raw]],FIND(CHAR(1),SUBSTITUTE(Parse[[#This Row],[Raw]],",",CHAR(1),4))+1,FIND(CHAR(1), SUBSTITUTE(Parse[[#This Row],[Raw]],",",CHAR(1),5))-FIND(CHAR(1),SUBSTITUTE(Parse[[#This Row],[Raw]],",",CHAR(1),4))-1)),"") -> 8.68978 | I81: =IFERROR(VALUE(MID(Parse[[#This Row],[Raw]],FIND(CHAR(1),SUBSTITUTE(Parse[[#This Row],[Raw]],",",CHAR(1),5))+1,FIND(CHAR(1), SUBSTITUTE(Parse[[#This Row],[Raw]],",",CHAR(1),6))-FIND(CHAR(1),SUBSTITUTE(Parse[[#This Row],[Raw]],",",CHAR(1),5))-1)),"") -> 3.905575 | J81: =IFERROR(VALUE(RIGHT(Parse[[#This Row],[Raw]],LEN(Parse[[#This Row],[Raw]])-FIND(CHAR(1),SUBSTITUTE(Parse[[#This Row],[Raw]],",",CHAR(1),6)))),"") -> 35868729
A82: 2000-07-13,8.656860,8.656860,8.247590,8.363250,3.758817,34814774 | C82: 2000-07-13,8.656860,8.656860,8.247590,8.363250,3.758817,34814774 | D82: =IFERROR(DATEVALUE(LEFT(Parse[[#This Row],[Raw]],FIND(",",Parse[[#This Row],[Raw]])-1)),"") -> 2000-07-13 | E82: =IFERROR(VALUE(MID(Parse[[#This Row],[Raw]],FIND(CHAR(1),SUBSTITUTE(Parse[[#This Row],[Raw]],",",CHAR(1),1))+1,FIND(CHAR(1), SUBSTITUTE(Parse[[#This Row],[Raw]],",",CHAR(1),2))-FIND(CHAR(1),SUBSTITUTE(Parse[[#This Row],[Raw]],",",CHAR(1),1))-1)),"") -> 8.65686 | F82: =IFERROR(VALUE(MID(Parse[[#This Row],[Raw]],FIND(CHAR(1),SUBSTITUTE(Parse[[#This Row],[Raw]],",",CHAR(1),2))+1,FIND(CHAR(1), SUBSTITUTE(Parse[[#This Row],[Raw]],",",CHAR(1),3))-FIND(CHAR(1),SUBSTITUTE(Parse[[#This Row],[Raw]],",",CHAR(1),2))-1)),"") -> 8.65686 | G82: =IFERROR(VALUE(MID(Parse[[#This Row],[Raw]],FIND(CHAR(1),SUBSTITUTE(Parse[[#This Row],[Raw]],",",CHAR(1),3))+1,FIND(CHAR(1), SUBSTITUTE(Parse[[#This Row],[Raw]],",",CHAR(1),4))-FIND(CHAR(1),SUBSTITUTE(Parse[[#This Row],[Raw]],",",CHAR(1),3))-1)),"") -> 8.24759 | H82: =IFERROR(VALUE(MID(Parse[[#This Row],[Raw]],FIND(CHAR(1),SUBSTITUTE(Parse[[#This Row],[Raw]],",",CHAR(1),4))+1,FIND(CHAR(1), SUBSTITUTE(Parse[[#This Row],[Raw]],",",CHAR(1),5))-FIND(CHAR(1),SUBSTITUTE(Parse[[#This Row],[Raw]],",",CHAR(1),4))-1)),"") -> 8.36325 | I82: =IFERROR(VALUE(MID(Parse[[#This Row],[Raw]],FIND(CHAR(1),SUBSTITUTE(Parse[[#This Row],[Raw]],",",CHAR(1),5))+1,FIND(CHAR(1), SUBSTITUTE(Parse[[#This Row],[Raw]],",",CHAR(1),6))-FIND(CHAR(1),SUBSTITUTE(Parse[[#This Row],[Raw]],",",CHAR(1),5))-1)),"") -> 3.758817 | J82: =IFERROR(VALUE(RIGHT(Parse[[#This Row],[Raw]],LEN(Parse[[#This Row],[Raw]])-FIND(CHAR(1),SUBSTITUTE(Parse[[#This Row],[Raw]],",",CHAR(1),6)))),"") -> 34814774
A83: 2000-07-20,8.407740,8.656860,8.229800,8.229800,3.698839,31046615 | C83: 2000-07-20,8.407740,8.656860,8.229800,8.229800,3.698839,31046615 | D83: =IFERROR(DATEVALUE(LEFT(Parse[[#This Row],[Raw]],FIND(",",Parse[[#This Row],[Raw]])-1)),"") -> 2000-07-20 | E83: =IFERROR(VALUE(MID(Parse[[#This Row],[Raw]],FIND(CHAR(1),SUBSTITUTE(Parse[[#This Row],[Raw]],",",CHAR(1),1))+1,FIND(CHAR(1), SUBSTITUTE(Parse[[#This Row],[Raw]],",",CHAR(1),2))-FIND(CHAR(1),SUBSTITUTE(Parse[[#This Row],[Raw]],",",CHAR(1),1))-1)),"") -> 8.40774 | F83: =IFERROR(VALUE(MID(Parse[[#This Row],[Raw]],FIND(CHAR(1),SUBSTITUTE(Parse[[#This Row],[Raw]],",",CHAR(1),2))+1,FIND(CHAR(1), SUBSTITUTE(Parse[[#This Row],[Raw]],",",CHAR(1),3))-FIND(CHAR(1),SUBSTITUTE(Parse[[#This Row],[Raw]],",",CHAR(1),2))-1)),"") -> 8.65686 | G83: =IFERROR(VALUE(MID(Parse[[#This Row],[Raw]],FIND(CHAR(1),SUBSTITUTE(Parse[[#This Row],[Raw]],",",CHAR(1),3))+1,FIND(CHAR(1), SUBSTITUTE(Parse[[#This Row],[Raw]],",",CHAR(1),4))-FIND(CHAR(1),SUBSTITUTE(Parse[[#This Row],[Raw]],",",CHAR(1),3))-1)),"") -> 8.2298 | H83: =IFERROR(VALUE(MID(Parse[[#This Row],[Raw]],FIND(CHAR(1),SUBSTITUTE(Parse[[#This Row],[Raw]],",",CHAR(1),4))+1,FIND(CHAR(1), SUBSTITUTE(Parse[[#This Row],[Raw]],",",CHAR(1),5))-FIND(CHAR(1),SUBSTITUTE(Parse[[#This Row],[Raw]],",",CHAR(1),4))-1)),"") -> 8.2298 | I83: =IFERROR(VALUE(MID(Parse[[#This Row],[Raw]],FIND(CHAR(1),SUBSTITUTE(Parse[[#This Row],[Raw]],",",CHAR(1),5))+1,FIND(CHAR(1), SUBSTITUTE(Parse[[#This Row],[Raw]],",",CHAR(1),6))-FIND(CHAR(1),SUBSTITUTE(Parse[[#This Row],[Raw]],",",CHAR(1),5))-1)),"") -> 3.698839 | J83: =IFERROR(VALUE(RIGHT(Parse[[#This Row],[Raw]],LEN(Parse[[#This Row],[Raw]])-FIND(CHAR(1),SUBSTITUTE(Parse[[#This Row],[Raw]],",",CHAR(1),6)))),"") -> 31046615
A84: 2000-07-27,8.252040,8.318770,8.007370,8.096340,3.638856,35812052 | C84: 2000-07-27,8.252040,8.318770,8.007370,8.096340,3.638856,35812052 | D84: =IFERROR(DATEVALUE(LEFT(Parse[[#This Row],[Raw]],FIND(",",Parse[[#This Row],[Raw]])-1)),"") -> 2000-07-27 | E84: =IFERROR(VALUE(MID(Parse[[#This Row],[Raw]],FIND(CHAR(1),SUBSTITUTE(Parse[[#This Row],[Raw]],",",CHAR(1),1))+1,FIND(CHAR(1), SUBSTITUTE(Parse[[#This Row],[Raw]],",",CHAR(1),2))-FIND(CHAR(1),SUBSTITUTE(Parse[[#This Row],[Raw]],",",CHAR(1),1))-1)),"") -> 8.25204 | F84: =IFERROR(VALUE(MID(Parse[[#This Row],[Raw]],FIND(CHAR(1),SUBSTITUTE(Parse[[#This Row],[Raw]],",",CHAR(1),2))+1,FIND(CHAR(1), SUBSTITUTE(Parse[[#This Row],[Raw]],",",CHAR(1),3))-FIND(CHAR(1),SUBSTITUTE(Parse[[#This Row],[Raw]],",",CHAR(1),2))-1)),"") -> 8.31877 | G84: =IFERROR(VALUE(MID(Parse[[#This Row],[Raw]],FIND(CHAR(1),SUBSTITUTE(Parse[[#This Row],[Raw]],",",CHAR(1),3))+1,FIND(CHAR(1), SUBSTITUTE(Parse[[#This Row],[Raw]],",",CHAR(1),4))-FIND(CHAR(1),SUBSTITUTE(Parse[[#This Row],[Raw]],",",CHAR(1),3))-1)),"") -> 8.00737 | H84: =IFERROR(VALUE(MID(Parse[[#This Row],[Raw]],FIND(CHAR(1),SUBSTITUTE(Parse[[#This Row],[Raw]],",",CHAR(1),4))+1,FIND(CHAR(1), SUBSTITUTE(Parse[[#This Row],[Raw]],",",CHAR(1),5))-FIND(CHAR(1),SUBSTITUTE(Parse[[#This Row],[Raw]],",",CHAR(1),4))-1)),"") -> 8.09634 | I84: =IFERROR(VALUE(MID(Parse[[#This Row],[Raw]],FIND(CHAR(1),SUBSTITUTE(Parse[[#This Row],[Raw]],",",CHAR(1),5))+1,FIND(CHAR(1), SUBSTITUTE(Parse[[#This Row],[Raw]],",",CHAR(1),6))-FIND(CHAR(1),SUBSTITUTE(Parse[[#This Row],[Raw]],",",CHAR(1),5))-1)),"") -> 3.638856 | J84: =IFERROR(VALUE(RIGHT(Parse[[#This Row],[Raw]],LEN(Parse[[#This Row],[Raw]])-FIND(CHAR(1),SUBSTITUTE(Parse[[#This Row],[Raw]],",",CHAR(1),6)))),"") -> 35812052
A85: 2000-08-03,8.127480,8.429980,8.069650,8.417080,3.783010,27759194 | C85: 2000-08-03,8.127480,8.429980,8.069650,8.417080,3.783010,27759194 | D85: =IFERROR(DATEVALUE(LEFT(Parse[[#This Row],[Raw]],FIND(",",Parse[[#This Row],[Raw]])-1)),"") -> 2000-08-03 | E85: =IFERROR(VALUE(MID(Parse[[#This Row],[Raw]],FIND(CHAR(1),SUBSTITUTE(Parse[[#This Row],[Raw]],",",CHAR(1),1))+1,FIND(CHAR(1), SUBSTITUTE(Parse[[#This Row],[Raw]],",",CHAR(1),2))-FIND(CHAR(1),SUBSTITUTE(Parse[[#This Row],[Raw]],",",CHAR(1),1))-1)),"") -> 8.12748 | F85: =IFERROR(VALUE(MID(Parse[[#This Row],[Raw]],FIND(CHAR(1),SUBSTITUTE(Parse[[#This Row],[Raw]],",",CHAR(1),2))+1,FIND(CHAR(1), SUBSTITUTE(Parse[[#This Row],[Raw]],",",CHAR(1),3))-FIND(CHAR(1),SUBSTITUTE(Parse[[#This Row],[Raw]],",",CHAR(1),2))-1)),"") -> 8.42998 | G85: =IFERROR(VALUE(MID(Parse[[#This Row],[Raw]],FIND(CHAR(1),SUBSTITUTE(Parse[[#This Row],[Raw]],",",CHAR(1),3))+1,FIND(CHAR(1), SUBSTITUTE(Parse[[#This Row],[Raw]],",",CHAR(1),4))-FIND(CHAR(1),SUBSTITUTE(Parse[[#This Row],[Raw]],",",CHAR(1),3))-1)),"") -> 8.06965 | H85: =IFERROR(VALUE(MID(Parse[[#This Row],[Raw]],FIND(CHAR(1),SUBSTITUTE(Parse[[#This Row],[Raw]],",",CHAR(1),4))+1,FIND(CHAR(1), SUBSTITUTE(Parse[[#This Row],[Raw]],",",CHAR(1),5))-FIND(CHAR(1),SUBSTITUTE(Parse[[#This Row],[Raw]],",",CHAR(1),4))-1)),"") -> 8.41708 | I85: =IFERROR(VALUE(MID(Parse[[#This Row],[Raw]],FIND(CHAR(1),SUBSTITUTE(Parse[[#This Row],[Raw]],",",CHAR(1),5))+1,FIND(CHAR(1), SUBSTITUTE(Parse[[#This Row],[Raw]],",",CHAR(1),6))-FIND(CHAR(1),SUBSTITUTE(Parse[[#This Row],[Raw]],",",CHAR(1),5))-1)),"") -> 3.78301 | J85: =IFERROR(VALUE(RIGHT(Parse[[#This Row],[Raw]],LEN(Parse[[#This Row],[Raw]])-FIND(CHAR(1),SUBSTITUTE(Parse[[#This Row],[Raw]],",",CHAR(1),6)))),"") -> 27759194
A86: 2000-08-10,8.452230,8.652410,8.452230,8.611480,3.870384,26974495 | C86: 2000-08-10,8.452230,8.652410,8.452230,8.611480,3.870384,26974495 | D86: =IFERROR(DATEVALUE(LEFT(Parse[[#This Row],[Raw]],FIND(",",Parse[[#This Row],[Raw]])-1)),"") -> 2000-08-10 | E86: =IFERROR(VALUE(MID(Parse[[#This Row],[Raw]],FIND(CHAR(1),SUBSTITUTE(Parse[[#This Row],[Raw]],",",CHAR(1),1))+1,FIND(CHAR(1), SUBSTITUTE(Parse[[#This Row],[Raw]],",",CHAR(1),2))-FIND(CHAR(1),SUBSTITUTE(Parse[[#This Row],[Raw]],",",CHAR(1),1))-1)),"") -> 8.45223 | F86: =IFERROR(VALUE(MID(Parse[[#This Row],[Raw]],FIND(CHAR(1),SUBSTITUTE(Parse[[#This Row],[Raw]],",",CHAR(1),2))+1,FIND(CHAR(1), SUBSTITUTE(Parse[[#This Row],[Raw]],",",CHAR(1),3))-FIND(CHAR(1),SUBSTITUTE(Parse[[#This Row],[Raw]],",",CHAR(1),2))-1)),"") -> 8.65241 | G86: =IFERROR(VALUE(MID(Parse[[#This Row],[Raw]],FIND(CHAR(1),SUBSTITUTE(Parse[[#This Row],[Raw]],",",CHAR(1),3))+1,FIND(CHAR(1), SUBSTITUTE(Parse[[#This Row],[Raw]],",",CHAR(1),4))-FIND(CHAR(1),SUBSTITUTE(Parse[[#This Row],[Raw]],",",CHAR(1),3))-1)),"") -> 8.45223 | H86: =IFERROR(VALUE(MID(Parse[[#This Row],[Raw]],FIND(CHAR(1),SUBSTITUTE(Parse[[#This Row],[Raw]],",",CHAR(1),4))+1,FIND(CHAR(1), SUBSTITUTE(Parse[[#This Row],[Raw]],",",CHAR(1),5))-FIND(CHAR(1),SUBSTITUTE(Parse[[#This Row],[Raw]],",",CHAR(1),4))-1)),"") -> 8.61148 | I86: =IFERROR(VALUE(MID(Parse[[#This Row],[Raw]],FIND(CHAR(1),SUBSTITUTE(Parse[[#This Row],[Raw]],",",CHAR(1),5))+1,FIND(CHAR(1), SUBSTITUTE(Parse[[#This Row],[Raw]],",",CHAR(1),6))-FIND(CHAR(1),SUBSTITUTE(Parse[[#This Row],[Raw]],",",CHAR(1),5))-1)),"") -> 3.870384 | J86: =IFERROR(VALUE(RIGHT(Parse[[#This Row],[Raw]],LEN(Parse[[#This Row],[Raw]])-FIND(CHAR(1),SUBSTITUTE(Parse[[#This Row],[Raw]],",",CHAR(1),6)))),"") -> 26974495
A87: 2000-08-17,8.660860,8.888180,8.532300,8.874840,3.988749,38546400 | C87: 2000-08-17,8.660860,8.888180,8.532300,8.874840,3.988749,38546400 | D87: =IFERROR(DATEVALUE(LEFT(Parse[[#This Row],[Raw]],FIND(",",Parse[[#This Row],[Raw]])-1)),"") -> 2000-08-17 | E87: =IFERROR(VALUE(MID(Parse[[#This Row],[Raw]],FIND(CHAR(1),SUBSTITUTE(Parse[[#This Row],[Raw]],",",CHAR(1),1))+1,FIND(CHAR(1), SUBSTITUTE(Parse[[#This Row],[Raw]],",",CHAR(1),2))-FIND(CHAR(1),SUBSTITUTE(Parse[[#This Row],[Raw]],",",CHAR(1),1))-1)),"") -> 8.66086 | F87: =IFERROR(VALUE(MID(Parse[[#This Row],[Raw]],FIND(CHAR(1),SUBSTITUTE(Parse[[#This Row],[Raw]],",",CHAR(1),2))+1,FIND(CHAR(1), SUBSTITUTE(Parse[[#This Row],[Raw]],",",CHAR(1),3))-FIND(CHAR(1),SUBSTITUTE(Parse[[#This Row],[Raw]],",",CHAR(1),2))-1)),"") -> 8.88818 | G87: =IFERROR(VALUE(MID(Parse[[#This Row],[Raw]],FIND(CHAR(1),SUBSTITUTE(Parse[[#This Row],[Raw]],",",CHAR(1),3))+1,FIND(CHAR(1), SUBSTITUTE(Parse[[#This Row],[Raw]],",",CHAR(1),4))-FIND(CHAR(1),SUBSTITUTE(Parse[[#This Row],[Raw]],",",CHAR(1),3))-1)),"") -> 8.5323 | H87: =IFERROR(VALUE(MID(Parse[[#This Row],[Raw]],FIND(CHAR(1),SUBSTITUTE(Parse[[#This Row],[Raw]],",",CHAR(1),4))+1,FIND(CHAR(1), SUBSTITUTE(Parse[[#This Row],[Raw]],",",CHAR(1),5))-FIND(CHAR(1),SUBSTITUTE(Parse[[#This Row],[Raw]],",",CHAR(1),4))-1)),"") -> 8.87484 | I87: =IFERROR(VALUE(MID(Parse[[#This Row],[Raw]],FIND(CHAR(1),SUBSTITUTE(Parse[[#This Row],[Raw]],",",CHAR(1),5))+1,FIND(CHAR(1), SUBSTITUTE(Parse[[#This Row],[Raw]],",",CHAR(1),6))-FIND(CHAR(1),SUBSTITUTE(Parse[[#This Row],[Raw]],",",CHAR(1),5))-1)),"") -> 3.988749 | J87: =IFERROR(VALUE(RIGHT(Parse[[#This Row],[Raw]],LEN(Parse[[#This Row],[Raw]])-FIND(CHAR(1),SUBSTITUTE(Parse[[#This Row],[Raw]],",",CHAR(1),6)))),"") -> 38546400
A88: 2000-08-24,8.852590,8.950460,8.425530,8.437550,3.792212,40416878 | C88: 2000-08-24,8.852590,8.950460,8.425530,8.437550,3.792212,40416878 | D88: =IFERROR(DATEVALUE(LEFT(Parse[[#This Row],[Raw]],FIND(",",Parse[[#This Row],[Raw]])-1)),"") -> 2000-08-24 | E88: =IFERROR(VALUE(MID(Parse[[#This Row],[Raw]],FIND(CHAR(1),SUBSTITUTE(Parse[[#This Row],[Raw]],",",CHAR(1),1))+1,FIND(CHAR(1), SUBSTITUTE(Parse[[#This Row],[Raw]],",",CHAR(1),2))-FIND(CHAR(1),SUBSTITUTE(Parse[[#This Row],[Raw]],",",CHAR(1),1))-1)),"") -> 8.85259 | F88: =IFERROR(VALUE(MID(Parse[[#This Row],[Raw]],FIND(CHAR(1),SUBSTITUTE(Parse[[#This Row],[Raw]],",",CHAR(1),2))+1,FIND(CHAR(1), SUBSTITUTE(Parse[[#This Row],[Raw]],",",CHAR(1),3))-FIND(CHAR(1),SUBSTITUTE(Parse[[#This Row],[Raw]],",",CHAR(1),2))-1)),"") -> 8.95046 | G88: =IFERROR(VALUE(MID(Parse[[#This Row],[Raw]],FIND(CHAR(1),SUBSTITUTE(Parse[[#This Row],[Raw]],",",CHAR(1),3))+1,FIND(CHAR(1), SUBSTITUTE(Parse[[#This Row],[Raw]],",",CHAR(1),4))-FIND(CHAR(1),SUBSTITUTE(Parse[[#This Row],[Raw]],",",CHAR(1),3))-1)),"") -> 8.42553 | H88: =IFERROR(VALUE(MID(Parse[[#This Row],[Raw]],FIND(CHAR(1),SUBSTITUTE(Parse[[#This Row],[Raw]],",",CHAR(1),4))+1,FIND(CHAR(1), SUBSTITUTE(Parse[[#This Row],[Raw]],",",CHAR(1),5))-FIND(CHAR(1),SUBSTITUTE(Parse[[#This Row],[Raw]],",",CHAR(1),4))-1)),"") -> 8.43755 | I88: =IFERROR(VALUE(MID(Parse[[#This Row],[Raw]],FIND(CHAR(1),SUBSTITUTE(Parse[[#This Row],[Raw]],",",CHAR(1),5))+1,FIND(CHAR(1), SUBSTITUTE(Parse[[#This Row],[Raw]],",",CHAR(1),6))-FIND(CHAR(1),SUBSTITUTE(Parse[[#This Row],[Raw]],",",CHAR(1),5))-1)),"") -> 3.792212 | J88: =IFERROR(VALUE(RIGHT(Parse[[#This Row],[Raw]],LEN(Parse[[#This Row],[Raw]])-FIND(CHAR(1),SUBSTITUTE(Parse[[#This Row],[Raw]],",",CHAR(1),6)))),"") -> 40416878
A89: 2000-08-31,8.496270,8.759170,8.345460,8.723590,3.920771,31967784 | C89: 2000-08-31,8.496270,8.759170,8.345460,8.723590,3.920771,31967784 | D89: =IFERROR(DATEVALUE(LEFT(Parse[[#This Row],[Raw]],FIND(",",Parse[[#This Row],[Raw]])-1)),"") -> 2000-08-31 | E89: =IFERROR(VALUE(MID(Parse[[#This Row],[Raw]],FIND(CHAR(1),SUBSTITUTE(Parse[[#This Row],[Raw]],",",CHAR(1),1))+1,FIND(CHAR(1), SUBSTITUTE(Parse[[#This Row],[Raw]],",",CHAR(1),2))-FIND(CHAR(1),SUBSTITUTE(Parse[[#This Row],[Raw]],",",CHAR(1),1))-1)),"") -> 8.49627 | F89: =IFERROR(VALUE(MID(Parse[[#This Row],[Raw]],FIND(CHAR(1),SUBSTITUTE(Parse[[#This Row],[Raw]],",",CHAR(1),2))+1,FIND(CHAR(1), SUBSTITUTE(Parse[[#This Row],[Raw]],",",CHAR(1),3))-FIND(CHAR(1),SUBSTITUTE(Parse[[#This Row],[Raw]],",",CHAR(1),2))-1)),"") -> 8.75917 | G89: =IFERROR(VALUE(MID(Parse[[#This Row],[Raw]],FIND(CHAR(1),SUBSTITUTE(Parse[[#This Row],[Raw]],",",CHAR(1),3))+1,FIND(CHAR(1), SUBSTITUTE(Parse[[#This Row],[Raw]],",",CHAR(1),4))-FIND(CHAR(1),SUBSTITUTE(Parse[[#This Row],[Raw]],",",CHAR(1),3))-1)),"") -> 8.34546 | H89: =IFERROR(VALUE(MID(Parse[[#This Row],[Raw]],FIND(CHAR(1),SUBSTITUTE(Parse[[#This Row],[Raw]],",",CHAR(1),4))+1,FIND(CHAR(1), SUBSTITUTE(Parse[[#This Row],[Raw]],",",CHAR(1),5))-FIND(CHAR(1),SUBSTITUTE(Parse[[#This Row],[Raw]],",",CHAR(1),4))-1)),"") -> 8.72359 | I89: =IFERROR(VALUE(MID(Parse[[#This Row],[Raw]],FIND(CHAR(1),SUBSTITUTE(Parse[[#This Row],[Raw]],",",CHAR(1),5))+1,FIND(CHAR(1), SUBSTITUTE(Parse[[#This Row],[Raw]],",",CHAR(1),6))-FIND(CHAR(1),SUBSTITUTE(Parse[[#This Row],[Raw]],",",CHAR(1),5))-1)),"") -> 3.920771 | J89: =IFERROR(VALUE(RIGHT(Parse[[#This Row],[Raw]],LEN(Parse[[#This Row],[Raw]])-FIND(CHAR(1),SUBSTITUTE(Parse[[#This Row],[Raw]],",",CHAR(1),6)))),"") -> 31967784
A90: 2000-09-07,8.808110,9.399760,8.785870,9.377080,4.214478,54081110 | C90: 2000-09-07,8.808110,9.399760,8.785870,9.377080,4.214478,54081110 | D90: =IFERROR(DATEVALUE(LEFT(Parse[[#This Row],[Raw]],FIND(",",Parse[[#This Row],[Raw]])-1)),"") -> 2000-09-07 | E90: =IFERROR(VALUE(MID(Parse[[#This Row],[Raw]],FIND(CHAR(1),SUBSTITUTE(Parse[[#This Row],[Raw]],",",CHAR(1),1))+1,FIND(CHAR(1), SUBSTITUTE(Parse[[#This Row],[Raw]],",",CHAR(1),2))-FIND(CHAR(1),SUBSTITUTE(Parse[[#This Row],[Raw]],",",CHAR(1),1))-1)),"") -> 8.80811 | F90: =IFERROR(VALUE(MID(Parse[[#This Row],[Raw]],FIND(CHAR(1),SUBSTITUTE(Parse[[#This Row],[Raw]],",",CHAR(1),2))+1,FIND(CHAR(1), SUBSTITUTE(Parse[[#This Row],[Raw]],",",CHAR(1),3))-FIND(CHAR(1),SUBSTITUTE(Parse[[#This Row],[Raw]],",",CHAR(1),2))-1)),"") -> 9.39976 | G90: =IFERROR(VALUE(MID(Parse[[#This Row],[Raw]],FIND(CHAR(1),SUBSTITUTE(Parse[[#This Row],[Raw]],",",CHAR(1),3))+1,FIND(CHAR(1), SUBSTITUTE(Parse[[#This Row],[Raw]],",",CHAR(1),4))-FIND(CHAR(1),SUBSTITUTE(Parse[[#This Row],[Raw]],",",CHAR(1),3))-1)),"") -> 8.78587 | H90: =IFERROR(VALUE(MID(Parse[[#This Row],[Raw]],FIND(CHAR(1),SUBSTITUTE(Parse[[#This Row],[Raw]],",",CHAR(1),4))+1,FIND(CHAR(1), SUBSTITUTE(Parse[[#This Row],[Raw]],",",CHAR(1),5))-FIND(CHAR(1),SUBSTITUTE(Parse[[#This Row],[Raw]],",",CHAR(1),4))-1)),"") -> 9.37708 | I90: =IFERROR(VALUE(MID(Parse[[#This Row],[Raw]],FIND(CHAR(1),SUBSTITUTE(Parse[[#This Row],[Raw]],",",CHAR(1),5))+1,FIND(CHAR(1), SUBSTITUTE(Parse[[#This Row],[Raw]],",",CHAR(1),6))-FIND(CHAR(1),SUBSTITUTE(Parse[[#This Row],[Raw]],",",CHAR(1),5))-1)),"") -> 4.214478 | J90: =IFERROR(VALUE(RIGHT(Parse[[#This Row],[Raw]],LEN(Parse[[#This Row],[Raw]])-FIND(CHAR(1),SUBSTITUTE(Parse[[#This Row],[Raw]],",",CHAR(1),6)))),"") -> 54081110
A91: 2000-09-14,9.341930,9.377520,9.034980,9.275210,4.168694,32821815 | C91: 2000-09-14,9.341930,9.377520,9.034980,9.275210,4.168694,32821815 | D91: =IFERROR(DATEVALUE(LEFT(Parse[[#This Row],[Raw]],FIND(",",Parse[[#This Row],[Raw]])-1)),"") -> 2000-09-14 | E91: =IFERROR(VALUE(MID(Parse[[#This Row],[Raw]],FIND(CHAR(1),SUBSTITUTE(Parse[[#This Row],[Raw]],",",CHAR(1),1))+1,FIND(CHAR(1), SUBSTITUTE(Parse[[#This Row],[Raw]],",",CHAR(1),2))-FIND(CHAR(1),SUBSTITUTE(Parse[[#This Row],[Raw]],",",CHAR(1),1))-1)),"") -> 9.34193 | F91: =IFERROR(VALUE(MID(Parse[[#This Row],[Raw]],FIND(CHAR(1),SUBSTITUTE(Parse[[#This Row],[Raw]],",",CHAR(1),2))+1,FIND(CHAR(1), SUBSTITUTE(Parse[[#This Row],[Raw]],",",CHAR(1),3))-FIND(CHAR(1),SUBSTITUTE(Parse[[#This Row],[Raw]],",",CHAR(1),2))-1)),"") -> 9.37752 | G91: =IFERROR(VALUE(MID(Parse[[#This Row],[Raw]],FIND(CHAR(1),SUBSTITUTE(Parse[[#This Row],[Raw]],",",CHAR(1),3))+1,FIND(CHAR(1), SUBSTITUTE(Parse[[#This Row],[Raw]],",",CHAR(1),4))-FIND(CHAR(1),SUBSTITUTE(Parse[[#This Row],[Raw]],",",CHAR(1),3))-1)),"") -> 9.03498 | H91: =IFERROR(VALUE(MID(Parse[[#This Row],[Raw]],FIND(CHAR(1),SUBSTITUTE(Parse[[#This Row],[Raw]],",",CHAR(1),4))+1,FIND(CHAR(1), SUBSTITUTE(Parse[[#This Row],[Raw]],",",CHAR(1),5))-FIND(CHAR(1),SUBSTITUTE(Parse[[#This Row],[Raw]],",",CHAR(1),4))-1)),"") -> 9.27521 | I91: =IFERROR(VALUE(MID(Parse[[#This Row],[Raw]],FIND(CHAR(1),SUBSTITUTE(Parse[[#This Row],[Raw]],",",CHAR(1),5))+1,FIND(CHAR(1), SUBSTITUTE(Parse[[#This Row],[Raw]],",",CHAR(1),6))-FIND(CHAR(1),SUBSTITUTE(Parse[[#This Row],[Raw]],",",CHAR(1),5))-1)),"") -> 4.168694 | J91: =IFERROR(VALUE(RIGHT(Parse[[#This Row],[Raw]],LEN(Parse[[#This Row],[Raw]])-FIND(CHAR(1),SUBSTITUTE(Parse[[#This Row],[Raw]],",",CHAR(1),6)))),"") -> 32821815
A92: 2000-09-21,9.119510,9.123960,8.585680,8.674650,3.898774,40182215 | C92: 2000-09-21,9.119510,9.123960,8.585680,8.674650,3.898774,40182215 | D92: =IFERROR(DATEVALUE(LEFT(Parse[[#This Row],[Raw]],FIND(",",Parse[[#This Row],[Raw]])-1)),"") -> 2000-09-21 | E92: =IFERROR(VALUE(MID(Parse[[#This Row],[Raw]],FIND(CHAR(1),SUBSTITUTE(Parse[[#This Row],[Raw]],",",CHAR(1),1))+1,FIND(CHAR(1), SUBSTITUTE(Parse[[#This Row],[Raw]],",",CHAR(1),2))-FIND(CHAR(1),SUBSTITUTE(Parse[[#This Row],[Raw]],",",CHAR(1),1))-1)),"") -> 9.11951 | F92: =IFERROR(VALUE(MID(Parse[[#This Row],[Raw]],FIND(CHAR(1),SUBSTITUTE(Parse[[#This Row],[Raw]],",",CHAR(1),2))+1,FIND(CHAR(1), SUBSTITUTE(Parse[[#This Row],[Raw]],",",CHAR(1),3))-FIND(CHAR(1),SUBSTITUTE(Parse[[#This Row],[Raw]],",",CHAR(1),2))-1)),"") -> 9.12396 | G92: =IFERROR(VALUE(MID(Parse[[#This Row],[Raw]],FIND(CHAR(1),SUBSTITUTE(Parse[[#This Row],[Raw]],",",CHAR(1),3))+1,FIND(CHAR(1), SUBSTITUTE(Parse[[#This Row],[Raw]],",",CHAR(1),4))-FIND(CHAR(1),SUBSTITUTE(Parse[[#This Row],[Raw]],",",CHAR(1),3))-1)),"") -> 8.58568 | H92: =IFERROR(VALUE(MID(Parse[[#This Row],[Raw]],FIND(CHAR(1),SUBSTITUTE(Parse[[#This Row],[Raw]],",",CHAR(1),4))+1,FIND(CHAR(1), SUBSTITUTE(Parse[[#This Row],[Raw]],",",CHAR(1),5))-FIND(CHAR(1),SUBSTITUTE(Parse[[#This Row],[Raw]],",",CHAR(1),4))-1)),"") -> 8.67465 | I92: =IFERROR(VALUE(MID(Parse[[#This Row],[Raw]],FIND(CHAR(1),SUBSTITUTE(Parse[[#This Row],[Raw]],",",CHAR(1),5))+1,FIND(CHAR(1), SUBSTITUTE(Parse[[#This Row],[Raw]],",",CHAR(1),6))-FIND(CHAR(1),SUBSTITUTE(Parse[[#This Row],[Raw]],",",CHAR(1),5))-1)),"") -> 3.898774 | J92: =IFERROR(VALUE(RIGHT(Parse[[#This Row],[Raw]],LEN(Parse[[#This Row],[Raw]])-FIND(CHAR(1),SUBSTITUTE(Parse[[#This Row],[Raw]],",",CHAR(1),6)))),"") -> 40182215
A93: 2000-09-28,8.674650,8.843700,8.429980,8.737820,3.927167,88110663 | C93: 2000-09-28,8.674650,8.843700,8.429980,8.737820,3.927167,88110663 | D93: =IFERROR(DATEVALUE(LEFT(Parse[[#This Row],[Raw]],FIND(",",Parse[[#This Row],[Raw]])-1)),"") -> 2000-09-28 | E93: =IFERROR(VALUE(MID(Parse[[#This Row],[Raw]],FIND(CHAR(1),SUBSTITUTE(Parse[[#This Row],[Raw]],",",CHAR(1),1))+1,FIND(CHAR(1), SUBSTITUTE(Parse[[#This Row],[Raw]],",",CHAR(1),2))-FIND(CHAR(1),SUBSTITUTE(Parse[[#This Row],[Raw]],",",CHAR(1),1))-1)),"") -> 8.67465 | F93: =IFERROR(VALUE(MID(Parse[[#This Row],[Raw]],FIND(CHAR(1),SUBSTITUTE(Parse[[#This Row],[Raw]],",",CHAR(1),2))+1,FIND(CHAR(1), SUBSTITUTE(Parse[[#This Row],[Raw]],",",CHAR(1),3))-FIND(CHAR(1),SUBSTITUTE(Parse[[#This Row],[Raw]],",",CHAR(1),2))-1)),"") -> 8.8437 | G93: =IFERROR(VALUE(MID(Parse[[#This Row],[Raw]],FIND(CHAR(1),SUBSTITUTE(Parse[[#This Row],[Raw]],",",CHAR(1),3))+1,FIND(CHAR(1), SUBSTITUTE(Parse[[#This Row],[Raw]],",",CHAR(1),4))-FIND(CHAR(1),SUBSTITUTE(Parse[[#This Row],[Raw]],",",CHAR(1),3))-1)),"") -> 8.42998 | H93: =IFERROR(VALUE(MID(Parse[[#This Row],[Raw]],FIND(CHAR(1),SUBSTITUTE(Parse[[#This Row],[Raw]],",",CHAR(1),4))+1,FIND(CHAR(1), SUBSTITUTE(Parse[[#This Row],[Raw]],",",CHAR(1),5))-FIND(CHAR(1),SUBSTITUTE(Parse[[#This Row],[Raw]],",",CHAR(1),4))-1)),"") -> 8.73782 | I93: =IFERROR(VALUE(MID(Parse[[#This Row],[Raw]],FIND(CHAR(1),SUBSTITUTE(Parse[[#This Row],[Raw]],",",CHAR(1),5))+1,FIND(CHAR(1), SUBSTITUTE(Parse[[#This Row],[Raw]],",",CHAR(1),6))-FIND(CHAR(1),SUBSTITUTE(Parse[[#This Row],[Raw]],",",CHAR(1),5))-1)),"") -> 3.927167 | J93: =IFERROR(VALUE(RIGHT(Parse[[#This Row],[Raw]],LEN(Parse[[#This Row],[Raw]])-FIND(CHAR(1),SUBSTITUTE(Parse[[#This Row],[Raw]],",",CHAR(1),6)))),"") -> 88110663
A94: 2000-10-05,8.674650,8.808110,8.532300,8.674650,3.898774,32863526 | C94: 2000-10-05,8.674650,8.808110,8.532300,8.674650,3.898774,32863526 | D94: =IFERROR(DATEVALUE(LEFT(Parse[[#This Row],[Raw]],FIND(",",Parse[[#This Row],[Raw]])-1)),"") -> 2000-10-05 | E94: =IFERROR(VALUE(MID(Parse[[#This Row],[Raw]],FIND(CHAR(1),SUBSTITUTE(Parse[[#This Row],[Raw]],",",CHAR(1),1))+1,FIND(CHAR(1), SUBSTITUTE(Parse[[#This Row],[Raw]],",",CHAR(1),2))-FIND(CHAR(1),SUBSTITUTE(Parse[[#This Row],[Raw]],",",CHAR(1),1))-1)),"") -> 8.67465 | F94: =IFERROR(VALUE(MID(Parse[[#This Row],[Raw]],FIND(CHAR(1),SUBSTITUTE(Parse[[#This Row],[Raw]],",",CHAR(1),2))+1,FIND(CHAR(1), SUBSTITUTE(Parse[[#This Row],[Raw]],",",CHAR(1),3))-FIND(CHAR(1),SUBSTITUTE(Parse[[#This Row],[Raw]],",",CHAR(1),2))-1)),"") -> 8.80811 | G94: =IFERROR(VALUE(MID(Parse[[#This Row],[Raw]],FIND(CHAR(1),SUBSTITUTE(Parse[[#This Row],[Raw]],",",CHAR(1),3))+1,FIND(CHAR(1), SUBSTITUTE(Parse[[#This Row],[Raw]],",",CHAR(1),4))-FIND(CHAR(1),SUBSTITUTE(Parse[[#This Row],[Raw]],",",CHAR(1),3))-1)),"") -> 8.5323 | H94: =IFERROR(VALUE(MID(Parse[[#This Row],[Raw]],FIND(CHAR(1),SUBSTITUTE(Parse[[#This Row],[Raw]],",",CHAR(1),4))+1,FIND(CHAR(1), SUBSTITUTE(Parse[[#This Row],[Raw]],",",CHAR(1),5))-FIND(CHAR(1),SUBSTITUTE(Parse[[#This Row],[Raw]],",",CHAR(1),4))-1)),"") -> 8.67465 | I94: =IFERROR(VALUE(MID(Parse[[#This Row],[Raw]],FIND(CHAR(1),SUBSTITUTE(Parse[[#This Row],[Raw]],",",CHAR(1),5))+1,FIND(CHAR(1), SUBSTITUTE(Parse[[#This Row],[Raw]],",",CHAR(1),6))-FIND(CHAR(1),SUBSTITUTE(Parse[[#This Row],[Raw]],",",CHAR(1),5))-1)),"") -> 3.898774 | J94: =IFERROR(VALUE(RIGHT(Parse[[#This Row],[Raw]],LEN(Parse[[#This Row],[Raw]])-FIND(CHAR(1),SUBSTITUTE(Parse[[#This Row],[Raw]],",",CHAR(1),6)))),"") -> 32863526
A95: 2000-10-12,8.674650,8.696900,8.060750,8.096340,3.638856,36988519 | C95: 2000-10-12,8.674650,8.696900,8.060750,8.096340,3.638856,36988519 | D95: =IFERROR(DATEVALUE(LEFT(Parse[[#This Row],[Raw]],FIND(",",Parse[[#This Row],[Raw]])-1)),"") -> 2000-10-12 | E95: =IFERROR(VALUE(MID(Parse[[#This Row],[Raw]],FIND(CHAR(1),SUBSTITUTE(Parse[[#This Row],[Raw]],",",CHAR(1),1))+1,FIND(CHAR(1), SUBSTITUTE(Parse[[#This Row],[Raw]],",",CHAR(1),2))-FIND(CHAR(1),SUBSTITUTE(Parse[[#This Row],[Raw]],",",CHAR(1),1))-1)),"") -> 8.67465 | F95: =IFERROR(VALUE(MID(Parse[[#This Row],[Raw]],FIND(CHAR(1),SUBSTITUTE(Parse[[#This Row],[Raw]],",",CHAR(1),2))+1,FIND(CHAR(1), SUBSTITUTE(Parse[[#This Row],[Raw]],",",CHAR(1),3))-FIND(CHAR(1),SUBSTITUTE(Parse[[#This Row],[Raw]],",",CHAR(1),2))-1)),"") -> 8.6969 | G95: =IFERROR(VALUE(MID(Parse[[#This Row],[Raw]],FIND(CHAR(1),SUBSTITUTE(Parse[[#This Row],[Raw]],",",CHAR(1),3))+1,FIND(CHAR(1), SUBSTITUTE(Parse[[#This Row],[Raw]],",",CHAR(1),4))-FIND(CHAR(1),SUBSTITUTE(Parse[[#This Row],[Raw]],",",CHAR(1),3))-1)),"") -> 8.06075 | H95: =IFERROR(VALUE(MID(Parse[[#This Row],[Raw]],FIND(CHAR(1),SUBSTITUTE(Parse[[#This Row],[Raw]],",",CHAR(1),4))+1,FIND(CHAR(1), SUBSTITUTE(Parse[[#This Row],[Raw]],",",CHAR(1),5))-FIND(CHAR(1),SUBSTITUTE(Parse[[#This Row],[Raw]],",",CHAR(1),4))-1)),"") -> 8.09634 | I95: =IFERROR(VALUE(MID(Parse[[#This Row],[Raw]],FIND(CHAR(1),SUBSTITUTE(Parse[[#This Row],[Raw]],",",CHAR(1),5))+1,FIND(CHAR(1), SUBSTITUTE(Parse[[#This Row],[Raw]],",",CHAR(1),6))-FIND(CHAR(1),SUBSTITUTE(Parse[[#This Row],[Raw]],",",CHAR(1),5))-1)),"") -> 3.638856 | J95: =IFERROR(VALUE(RIGHT(Parse[[#This Row],[Raw]],LEN(Parse[[#This Row],[Raw]])-FIND(CHAR(1),SUBSTITUTE(Parse[[#This Row],[Raw]],",",CHAR(1),6)))),"") -> 36988519
A96: 2000-10-19,8.189760,8.506850,8.163070,8.316810,3.737945,35110058 | C96: 2000-10-19,8.189760,8.506850,8.163070,8.316810,3.737945,35110058 | D96: =IFERROR(DATEVALUE(LEFT(Parse[[#This Row],[Raw]],FIND(",",Parse[[#This Row],[Raw]])-1)),"") -> 2000-10-19 | E96: =IFERROR(VALUE(MID(Parse[[#This Row],[Raw]],FIND(CHAR(1),SUBSTITUTE(Parse[[#This Row],[Raw]],",",CHAR(1),1))+1,FIND(CHAR(1), SUBSTITUTE(Parse[[#This Row],[Raw]],",",CHAR(1),2))-FIND(CHAR(1),SUBSTITUTE(Parse[[#This Row],[Raw]],",",CHAR(1),1))-1)),"") -> 8.18976 | F96: =IFERROR(VALUE(MID(Parse[[#This Row],[Raw]],FIND(CHAR(1),SUBSTITUTE(Parse[[#This Row],[Raw]],",",CHAR(1),2))+1,FIND(CHAR(1), SUBSTITUTE(Parse[[#This Row],[Raw]],",",CHAR(1),3))-FIND(CHAR(1),SUBSTITUTE(Parse[[#This Row],[Raw]],",",CHAR(1),2))-1)),"") -> 8.50685 | G96: =IFERROR(VALUE(MID(Parse[[#This Row],[Raw]],FIND(CHAR(1),SUBSTITUTE(Parse[[#This Row],[Raw]],",",CHAR(1),3))+1,FIND(CHAR(1), SUBSTITUTE(Parse[[#This Row],[Raw]],",",CHAR(1),4))-FIND(CHAR(1),SUBSTITUTE(Parse[[#This Row],[Raw]],",",CHAR(1),3))-1)),"") -> 8.16307 | H96: =IFERROR(VALUE(MID(Parse[[#This Row],[Raw]],FIND(CHAR(1),SUBSTITUTE(Parse[[#This Row],[Raw]],",",CHAR(1),4))+1,FIND(CHAR(1), SUBSTITUTE(Parse[[#This Row],[Raw]],",",CHAR(1),5))-FIND(CHAR(1),SUBSTITUTE(Parse[[#This Row],[Raw]],",",CHAR(1),4))-1)),"") -> 8.31681 | I96: =IFERROR(VALUE(MID(Parse[[#This Row],[Raw]],FIND(CHAR(1),SUBSTITUTE(Parse[[#This Row],[Raw]],",",CHAR(1),5))+1,FIND(CHAR(1), SUBSTITUTE(Parse[[#This Row],[Raw]],",",CHAR(1),6))-FIND(CHAR(1),SUBSTITUTE(Parse[[#This Row],[Raw]],",",CHAR(1),5))-1)),"") -> 3.737945 | J96: =IFERROR(VALUE(RIGHT(Parse[[#This Row],[Raw]],LEN(Parse[[#This Row],[Raw]])-FIND(CHAR(1),SUBSTITUTE(Parse[[#This Row],[Raw]],",",CHAR(1),6)))),"") -> 35110058
A97: 2000-10-26,8.342140,8.683320,8.325860,8.669750,3.896572,44648893 | C97: 2000-10-26,8.342140,8.683320,8.325860,8.669750,3.896572,44648893 | D97: =IFERROR(DATEVALUE(LEFT(Parse[[#This Row],[Raw]],FIND(",",Parse[[#This Row],[Raw]])-1)),"") -> 2000-10-26 | E97: =IFERROR(VALUE(MID(Parse[[#This Row],[Raw]],FIND(CHAR(1),SUBSTITUTE(Parse[[#This Row],[Raw]],",",CHAR(1),1))+1,FIND(CHAR(1), SUBSTITUTE(Parse[[#This Row],[Raw]],",",CHAR(1),2))-FIND(CHAR(1),SUBSTITUTE(Parse[[#This Row],[Raw]],",",CHAR(1),1))-1)),"") -> 8.34214 | F97: =IFERROR(VALUE(MID(Parse[[#This Row],[Raw]],FIND(CHAR(1),SUBSTITUTE(Parse[[#This Row],[Raw]],",",CHAR(1),2))+1,FIND(CHAR(1), SUBSTITUTE(Parse[[#This Row],[Raw]],",",CHAR(1),3))-FIND(CHAR(1),SUBSTITUTE(Parse[[#This Row],[Raw]],",",CHAR(1),2))-1)),"") -> 8.68332 | G97: =IFERROR(VALUE(MID(Parse[[#This Row],[Raw]],FIND(CHAR(1),SUBSTITUTE(Parse[[#This Row],[Raw]],",",CHAR(1),3))+1,FIND(CHAR(1), SUBSTITUTE(Parse[[#This Row],[Raw]],",",CHAR(1),4))-FIND(CHAR(1),SUBSTITUTE(Parse[[#This Row],[Raw]],",",CHAR(1),3))-1)),"") -> 8.32586 | H97: =IFERROR(VALUE(MID(Parse[[#This Row],[Raw]],FIND(CHAR(1),SUBSTITUTE(Parse[[#This Row],[Raw]],",",CHAR(1),4))+1,FIND(CHAR(1), SUBSTITUTE(Parse[[#This Row],[Raw]],",",CHAR(1),5))-FIND(CHAR(1),SUBSTITUTE(Parse[[#This Row],[Raw]],",",CHAR(1),4))-1)),"") -> 8.66975 | I97: =IFERROR(VALUE(MID(Parse[[#This Row],[Raw]],FIND(CHAR(1),SUBSTITUTE(Parse[[#This Row],[Raw]],",",CHAR(1),5))+1,FIND(CHAR(1), SUBSTITUTE(Parse[[#This Row],[Raw]],",",CHAR(1),6))-FIND(CHAR(1),SUBSTITUTE(Parse[[#This Row],[Raw]],",",CHAR(1),5))-1)),"") -> 3.896572 | J97: =IFERROR(VALUE(RIGHT(Parse[[#This Row],[Raw]],LEN(Parse[[#This Row],[Raw]])-FIND(CHAR(1),SUBSTITUTE(Parse[[#This Row],[Raw]],",",CHAR(1),6)))),"") -> 44648893
A98: 2000-11-02,8.642600,8.733100,8.443500,8.515900,3.827426,35181422 | C98: 2000-11-02,8.642600,8.733100,8.443500,8.515900,3.827426,35181422 | D98: =IFERROR(DATEVALUE(LEFT(Parse[[#This Row],[Raw]],FIND(",",Parse[[#This Row],[Raw]])-1)),"") -> 2000-11-02 | E98: =IFERROR(VALUE(MID(Parse[[#This Row],[Raw]],FIND(CHAR(1),SUBSTITUTE(Parse[[#This Row],[Raw]],",",CHAR(1),1))+1,FIND(CHAR(1), SUBSTITUTE(Parse[[#This Row],[Raw]],",",CHAR(1),2))-FIND(CHAR(1),SUBSTITUTE(Parse[[#This Row],[Raw]],",",CHAR(1),1))-1)),"") -> 8.6426 | F98: =IFERROR(VALUE(MID(Parse[[#This Row],[Raw]],FIND(CHAR(1),SUBSTITUTE(Parse[[#This Row],[Raw]],",",CHAR(1),2))+1,FIND(CHAR(1), SUBSTITUTE(Parse[[#This Row],[Raw]],",",CHAR(1),3))-FIND(CHAR(1),SUBSTITUTE(Parse[[#This Row],[Raw]],",",CHAR(1),2))-1)),"") -> 8.7331 | G98: =IFERROR(VALUE(MID(Parse[[#This Row],[Raw]],FIND(CHAR(1),SUBSTITUTE(Parse[[#This Row],[Raw]],",",CHAR(1),3))+1,FIND(CHAR(1), SUBSTITUTE(Parse[[#This Row],[Raw]],",",CHAR(1),4))-FIND(CHAR(1),SUBSTITUTE(Parse[[#This Row],[Raw]],",",CHAR(1),3))-1)),"") -> 8.4435 | H98: =IFERROR(VALUE(MID(Parse[[#This Row],[Raw]],FIND(CHAR(1),SUBSTITUTE(Parse[[#This Row],[Raw]],",",CHAR(1),4))+1,FIND(CHAR(1), SUBSTITUTE(Parse[[#This Row],[Raw]],",",CHAR(1),5))-FIND(CHAR(1),SUBSTITUTE(Parse[[#This Row],[Raw]],",",CHAR(1),4))-1)),"") -> 8.5159 | I98: =IFERROR(VALUE(MID(Parse[[#This Row],[Raw]],FIND(CHAR(1),SUBSTITUTE(Parse[[#This Row],[Raw]],",",CHAR(1),5))+1,FIND(CHAR(1), SUBSTITUTE(Parse[[#This Row],[Raw]],",",CHAR(1),6))-FIND(CHAR(1),SUBSTITUTE(Parse[[#This Row],[Raw]],",",CHAR(1),5))-1)),"") -> 3.827426 | J98: =IFERROR(VALUE(RIGHT(Parse[[#This Row],[Raw]],LEN(Parse[[#This Row],[Raw]])-FIND(CHAR(1),SUBSTITUTE(Parse[[#This Row],[Raw]],",",CHAR(1),6)))),"") -> 35181422
A99: 2000-11-09,8.513640,8.597350,8.294180,8.407300,3.778617,37467777 | C99: 2000-11-09,8.513640,8.597350,8.294180,8.407300,3.778617,37467777 | D99: =IFERROR(DATEVALUE(LEFT(Parse[[#This Row],[Raw]],FIND(",",Parse[[#This Row],[Raw]])-1)),"") -> 2000-11-09 | E99: =IFERROR(VALUE(MID(Parse[[#This Row],[Raw]],FIND(CHAR(1),SUBSTITUTE(Parse[[#This Row],[Raw]],",",CHAR(1),1))+1,FIND(CHAR(1), SUBSTITUTE(Parse[[#This Row],[Raw]],",",CHAR(1),2))-FIND(CHAR(1),SUBSTITUTE(Parse[[#This Row],[Raw]],",",CHAR(1),1))-1)),"") -> 8.51364 | F99: =IFERROR(VALUE(MID(Parse[[#This Row],[Raw]],FIND(CHAR(1),SUBSTITUTE(Parse[[#This Row],[Raw]],",",CHAR(1),2))+1,FIND(CHAR(1), SUBSTITUTE(Parse[[#This Row],[Raw]],",",CHAR(1),3))-FIND(CHAR(1),SUBSTITUTE(Parse[[#This Row],[Raw]],",",CHAR(1),2))-1)),"") -> 8.59735 | G99: =IFERROR(VALUE(MID(Parse[[#This Row],[Raw]],FIND(CHAR(1),SUBSTITUTE(Parse[[#This Row],[Raw]],",",CHAR(1),3))+1,FIND(CHAR(1), SUBSTITUTE(Parse[[#This Row],[Raw]],",",CHAR(1),4))-FIND(CHAR(1),SUBSTITUTE(Parse[[#This Row],[Raw]],",",CHAR(1),3))-1)),"") -> 8.29418 | H99: =IFERROR(VALUE(MID(Parse[[#This Row],[Raw]],FIND(CHAR(1),SUBSTITUTE(Parse[[#This Row],[Raw]],",",CHAR(1),4))+1,FIND(CHAR(1), SUBSTITUTE(Parse[[#This Row],[Raw]],",",CHAR(1),5))-FIND(CHAR(1),SUBSTITUTE(Parse[[#This Row],[Raw]],",",CHAR(1),4))-1)),"") -> 8.4073 | I99: =IFERROR(VALUE(MID(Parse[[#This Row],[Raw]],FIND(CHAR(1),SUBSTITUTE(Parse[[#This Row],[Raw]],",",CHAR(1),5))+1,FIND(CHAR(1), SUBSTITUTE(Parse[[#This Row],[Raw]],",",CHAR(1),6))-FIND(CHAR(1),SUBSTITUTE(Parse[[#This Row],[Raw]],",",CHAR(1),5))-1)),"") -> 3.778617 | J99: =IFERROR(VALUE(RIGHT(Parse[[#This Row],[Raw]],LEN(Parse[[#This Row],[Raw]])-FIND(CHAR(1),SUBSTITUTE(Parse[[#This Row],[Raw]],",",CHAR(1),6)))),"") -> 37467777
A100: 2000-11-16,8.393730,8.606400,8.321330,8.461600,4.064115,28394607 | C100: 2000-11-16,8.393730,8.606400,8.321330,8.461600,4.064115,28394607 | D100: =IFERROR(DATEVALUE(LEFT(Parse[[#This Row],[Raw]],FIND(",",Parse[[#This Row],[Raw]])-1)),"") -> 2000-11-16 | E100: =IFERROR(VALUE(MID(Parse[[#This Row],[Raw]],FIND(CHAR(1),SUBSTITUTE(Parse[[#This Row],[Raw]],",",CHAR(1),1))+1,FIND(CHAR(1), SUBSTITUTE(Parse[[#This Row],[Raw]],",",CHAR(1),2))-FIND(CHAR(1),SUBSTITUTE(Parse[[#This Row],[Raw]],",",CHAR(1),1))-1)),"") -> 8.39373 | F100: =IFERROR(VALUE(MID(Parse[[#This Row],[Raw]],FIND(CHAR(1),SUBSTITUTE(Parse[[#This Row],[Raw]],",",CHAR(1),2))+1,FIND(CHAR(1), SUBSTITUTE(Parse[[#This Row],[Raw]],",",CHAR(1),3))-FIND(CHAR(1),SUBSTITUTE(Parse[[#This Row],[Raw]],",",CHAR(1),2))-1)),"") -> 8.6064 | G100: =IFERROR(VALUE(MID(Parse[[#This Row],[Raw]],FIND(CHAR(1),SUBSTITUTE(Parse[[#This Row],[Raw]],",",CHAR(1),3))+1,FIND(CHAR(1), SUBSTITUTE(Parse[[#This Row],[Raw]],",",CHAR(1),4))-FIND(CHAR(1),SUBSTITUTE(Parse[[#This Row],[Raw]],",",CHAR(1),3))-1)),"") -> 8.32133 | H100: =IFERROR(VALUE(MID(Parse[[#This Row],[Raw]],FIND(CHAR(1),SUBSTITUTE(Parse[[#This Row],[Raw]],",",CHAR(1),4))+1,FIND(CHAR(1), SUBSTITUTE(Parse[[#This Row],[Raw]],",",CHAR(1),5))-FIND(CHAR(1),SUBSTITUTE(Parse[[#This Row],[Raw]],",",CHAR(1),4))-1)),"") -> 8.4616 | I100: =IFERROR(VALUE(MID(Parse[[#This Row],[Raw]],FIND(CHAR(1),SUBSTITUTE(Parse[[#This Row],[Raw]],",",CHAR(1),5))+1,FIND(CHAR(1), SUBSTITUTE(Parse[[#This Row],[Raw]],",",CHAR(1),6))-FIND(CHAR(1),SUBSTITUTE(Parse[[#This Row],[Raw]],",",CHAR(1),5))-1)),"") -> 4.064115 | J100: =IFERROR(VALUE(RIGHT(Parse[[#This Row],[Raw]],LEN(Parse[[#This Row],[Raw]])-FIND(CHAR(1),SUBSTITUTE(Parse[[#This Row],[Raw]],",",CHAR(1),6)))),"") -> 28394607
A101: 2000-11-23,8.506850,8.963870,8.506850,8.810020,4.231462,36096610 | C101: 2000-11-23,8.506850,8.963870,8.506850,8.810020,4.231462,36096610 | D101: =IFERROR(DATEVALUE(LEFT(Parse[[#This Row],[Raw]],FIND(",",Parse[[#This Row],[Raw]])-1)),"") -> 2000-11-23 | E101: =IFERROR(VALUE(MID(Parse[[#This Row],[Raw]],FIND(CHAR(1),SUBSTITUTE(Parse[[#This Row],[Raw]],",",CHAR(1),1))+1,FIND(CHAR(1), SUBSTITUTE(Parse[[#This Row],[Raw]],",",CHAR(1),2))-FIND(CHAR(1),SUBSTITUTE(Parse[[#This Row],[Raw]],",",CHAR(1),1))-1)),"") -> 8.50685 | F101: =IFERROR(VALUE(MID(Parse[[#This Row],[Raw]],FIND(CHAR(1),SUBSTITUTE(Parse[[#This Row],[Raw]],",",CHAR(1),2))+1,FIND(CHAR(1), SUBSTITUTE(Parse[[#This Row],[Raw]],",",CHAR(1),3))-FIND(CHAR(1),SUBSTITUTE(Parse[[#This Row],[Raw]],",",CHAR(1),2))-1)),"") -> 8.96387 | G101: =IFERROR(VALUE(MID(Parse[[#This Row],[Raw]],FIND(CHAR(1),SUBSTITUTE(Parse[[#This Row],[Raw]],",",CHAR(1),3))+1,FIND(CHAR(1), SUBSTITUTE(Parse[[#This Row],[Raw]],",",CHAR(1),4))-FIND(CHAR(1),SUBSTITUTE(Parse[[#This Row],[Raw]],",",CHAR(1),3))-1)),"") -> 8.50685 | H101: =IFERROR(VALUE(MID(Parse[[#This Row],[Raw]],FIND(CHAR(1),SUBSTITUTE(Parse[[#This Row],[Raw]],",",CHAR(1),4))+1,FIND(CHAR(1), SUBSTITUTE(Parse[[#This Row],[Raw]],",",CHAR(1),5))-FIND(CHAR(1),SUBSTITUTE(Parse[[#This Row],[Raw]],",",CHAR(1),4))-1)),"") -> 8.81002 | I101: =IFERROR(VALUE(MID(Parse[[#This Row],[Raw]],FIND(CHAR(1),SUBSTITUTE(Parse[[#This Row],[Raw]],",",CHAR(1),5))+1,FIND(CHAR(1), SUBSTITUTE(Parse[[#This Row],[Raw]],",",CHAR(1),6))-FIND(CHAR(1),SUBSTITUTE(Parse[[#This Row],[Raw]],",",CHAR(1),5))-1)),"") -> 4.231462 | J101: =IFERROR(VALUE(RIGHT(Parse[[#This Row],[Raw]],LEN(Parse[[#This Row],[Raw]])-FIND(CHAR(1),SUBSTITUTE(Parse[[#This Row],[Raw]],",",CHAR(1),6)))),"") -> 36096610
A102: 2000-11-30,8.755720,8.800970,8.619970,8.763870,4.209296,29470641 | C102: 2000-11-30,8.755720,8.800970,8.619970,8.763870,4.209296,29470641 | D102: =IFERROR(DATEVALUE(LEFT(Parse[[#This Row],[Raw]],FIND(",",Parse[[#This Row],[Raw]])-1)),"") -> 2000-11-30 | E102: =IFERROR(VALUE(MID(Parse[[#This Row],[Raw]],FIND(CHAR(1),SUBSTITUTE(Parse[[#This Row],[Raw]],",",CHAR(1),1))+1,FIND(CHAR(1), SUBSTITUTE(Parse[[#This Row],[Raw]],",",CHAR(1),2))-FIND(CHAR(1),SUBSTITUTE(Parse[[#This Row],[Raw]],",",CHAR(1),1))-1)),"") -> 8.75572 | F102: =IFERROR(VALUE(MID(Parse[[#This Row],[Raw]],FIND(CHAR(1),SUBSTITUTE(Parse[[#This Row],[Raw]],",",CHAR(1),2))+1,FIND(CHAR(1), SUBSTITUTE(Parse[[#This Row],[Raw]],",",CHAR(1),3))-FIND(CHAR(1),SUBSTITUTE(Parse[[#This Row],[Raw]],",",CHAR(1),2))-1)),"") -> 8.80097 | G102: =IFERROR(VALUE(MID(Parse[[#This Row],[Raw]],FIND(CHAR(1),SUBSTITUTE(Parse[[#This Row],[Raw]],",",CHAR(1),3))+1,FIND(CHAR(1), SUBSTITUTE(Parse[[#This Row],[Raw]],",",CHAR(1),4))-FIND(CHAR(1),SUBSTITUTE(Parse[[#This Row],[Raw]],",",CHAR(1),3))-1)),"") -> 8.61997 | H102: =IFERROR(VALUE(MID(Parse[[#This Row],[Raw]],FIND(CHAR(1),SUBSTITUTE(Parse[[#This Row],[Raw]],",",CHAR(1),4))+1,FIND(CHAR(1), SUBSTITUTE(Parse[[#This Row],[Raw]],",",CHAR(1),5))-FIND(CHAR(1),SUBSTITUTE(Parse[[#This Row],[Raw]],",",CHAR(1),4))-1)),"") -> 8.76387 | I102: =IFERROR(VALUE(MID(Parse[[#This Row],[Raw]],FIND(CHAR(1),SUBSTITUTE(Parse[[#This Row],[Raw]],",",CHAR(1),5))+1,FIND(CHAR(1), SUBSTITUTE(Parse[[#This Row],[Raw]],",",CHAR(1),6))-FIND(CHAR(1),SUBSTITUTE(Parse[[#This Row],[Raw]],",",CHAR(1),5))-1)),"") -> 4.209296 | J102: =IFERROR(VALUE(RIGHT(Parse[[#This Row],[Raw]],LEN(Parse[[#This Row],[Raw]])-FIND(CHAR(1),SUBSTITUTE(Parse[[#This Row],[Raw]],",",CHAR(1),6)))),"") -> 29470641
A103: 2000-12-07,8.787400,9.000070,8.633550,8.654360,4.156698,30660120 | C103: 2000-12-07,8.787400,9.000070,8.633550,8.654360,4.156698,30660120 | D103: =IFERROR(DATEVALUE(LEFT(Parse[[#This Row],[Raw]],FIND(",",Parse[[#This Row],[Raw]])-1)),"") -> 2000-12-07 | E103: =IFERROR(VALUE(MID(Parse[[#This Row],[Raw]],FIND(CHAR(1),SUBSTITUTE(Parse[[#This Row],[Raw]],",",CHAR(1),1))+1,FIND(CHAR(1), SUBSTITUTE(Parse[[#This Row],[Raw]],",",CHAR(1),2))-FIND(CHAR(1),SUBSTITUTE(Parse[[#This Row],[Raw]],",",CHAR(1),1))-1)),"") -> 8.7874 | F103: =IFERROR(VALUE(MID(Parse[[#This Row],[Raw]],FIND(CHAR(1),SUBSTITUTE(Parse[[#This Row],[Raw]],",",CHAR(1),2))+1,FIND(CHAR(1), SUBSTITUTE(Parse[[#This Row],[Raw]],",",CHAR(1),3))-FIND(CHAR(1),SUBSTITUTE(Parse[[#This Row],[Raw]],",",CHAR(1),2))-1)),"") -> 9.00007 | G103: =IFERROR(VALUE(MID(Parse[[#This Row],[Raw]],FIND(CHAR(1),SUBSTITUTE(Parse[[#This Row],[Raw]],",",CHAR(1),3))+1,FIND(CHAR(1), SUBSTITUTE(Parse[[#This Row],[Raw]],",",CHAR(1),4))-FIND(CHAR(1),SUBSTITUTE(Parse[[#This Row],[Raw]],",",CHAR(1),3))-1)),"") -> 8.63355 | H103: =IFERROR(VALUE(MID(Parse[[#This Row],[Raw]],FIND(CHAR(1),SUBSTITUTE(Parse[[#This Row],[Raw]],",",CHAR(1),4))+1,FIND(CHAR(1), SUBSTITUTE(Parse[[#This Row],[Raw]],",",CHAR(1),5))-FIND(CHAR(1),SUBSTITUTE(Parse[[#This Row],[Raw]],",",CHAR(1),4))-1)),"") -> 8.65436 | I103: =IFERROR(VALUE(MID(Parse[[#This Row],[Raw]],FIND(CHAR(1),SUBSTITUTE(Parse[[#This Row],[Raw]],",",CHAR(1),5))+1,FIND(CHAR(1), SUBSTITUTE(Parse[[#This Row],[Raw]],",",CHAR(1),6))-FIND(CHAR(1),SUBSTITUTE(Parse[[#This Row],[Raw]],",",CHAR(1),5))-1)),"") -> 4.156698 | J103: =IFERROR(VALUE(RIGHT(Parse[[#This Row],[Raw]],LEN(Parse[[#This Row],[Raw]])-FIND(CHAR(1),SUBSTITUTE(Parse[[#This Row],[Raw]],",",CHAR(1),6)))),"") -> 30660120
A104: 2000-12-14,8.642600,8.642600,8.393730,8.461600,4.064115,30959074 | C104: 2000-12-14,8.642600,8.642600,8.393730,8.461600,4.064115,30959074 | D104: =IFERROR(DATEVALUE(LEFT(Parse[[#This Row],[Raw]],FIND(",",Parse[[#This Row],[Raw]])-1)),"") -> 2000-12-14 | E104: =IFERROR(VALUE(MID(Parse[[#This Row],[Raw]],FIND(CHAR(1),SUBSTITUTE(Parse[[#This Row],[Raw]],",",CHAR(1),1))+1,FIND(CHAR(1), SUBSTITUTE(Parse[[#This Row],[Raw]],",",CHAR(1),2))-FIND(CHAR(1),SUBSTITUTE(Parse[[#This Row],[Raw]],",",CHAR(1),1))-1)),"") -> 8.6426 | F104: =IFERROR(VALUE(MID(Parse[[#This Row],[Raw]],FIND(CHAR(1),SUBSTITUTE(Parse[[#This Row],[Raw]],",",CHAR(1),2))+1,FIND(CHAR(1), SUBSTITUTE(Parse[[#This Row],[Raw]],",",CHAR(1),3))-FIND(CHAR(1),SUBSTITUTE(Parse[[#This Row],[Raw]],",",CHAR(1),2))-1)),"") -> 8.6426 | G104: =IFERROR(VALUE(MID(Parse[[#This Row],[Raw]],FIND(CHAR(1),SUBSTITUTE(Parse[[#This Row],[Raw]],",",CHAR(1),3))+1,FIND(CHAR(1), SUBSTITUTE(Parse[[#This Row],[Raw]],",",CHAR(1),4))-FIND(CHAR(1),SUBSTITUTE(Parse[[#This Row],[Raw]],",",CHAR(1),3))-1)),"") -> 8.39373 | H104: =IFERROR(VALUE(MID(Parse[[#This Row],[Raw]],FIND(CHAR(1),SUBSTITUTE(Parse[[#This Row],[Raw]],",",CHAR(1),4))+1,FIND(CHAR(1), SUBSTITUTE(Parse[[#This Row],[Raw]],",",CHAR(1),5))-FIND(CHAR(1),SUBSTITUTE(Parse[[#This Row],[Raw]],",",CHAR(1),4))-1)),"") -> 8.4616 | I104: =IFERROR(VALUE(MID(Parse[[#This Row],[Raw]],FIND(CHAR(1),SUBSTITUTE(Parse[[#This Row],[Raw]],",",CHAR(1),5))+1,FIND(CHAR(1), SUBSTITUTE(Parse[[#This Row],[Raw]],",",CHAR(1),6))-FIND(CHAR(1),SUBSTITUTE(Parse[[#This Row],[Raw]],",",CHAR(1),5))-1)),"") -> 4.064115 | J104: =IFERROR(VALUE(RIGHT(Parse[[#This Row],[Raw]],LEN(Parse[[#This Row],[Raw]])-FIND(CHAR(1),SUBSTITUTE(Parse[[#This Row],[Raw]],",",CHAR(1),6)))),"") -> 30959074
A105: 2000-12-21,8.506850,8.710470,8.334900,8.642600,4.151049,29461848 | C105: 2000-12-21,8.506850,8.710470,8.334900,8.642600,4.151049,29461848 | D105: =IFERROR(DATEVALUE(LEFT(Parse[[#This Row],[Raw]],FIND(",",Parse[[#This Row],[Raw]])-1)),"") -> 2000-12-21 | E105: =IFERROR(VALUE(MID(Parse[[#This Row],[Raw]],FIND(CHAR(1),SUBSTITUTE(Parse[[#This Row],[Raw]],",",CHAR(1),1))+1,FIND(CHAR(1), SUBSTITUTE(Parse[[#This Row],[Raw]],",",CHAR(1),2))-FIND(CHAR(1),SUBSTITUTE(Parse[[#This Row],[Raw]],",",CHAR(1),1))-1)),"") -> 8.50685 | F105: =IFERROR(VALUE(MID(Parse[[#This Row],[Raw]],FIND(CHAR(1),SUBSTITUTE(Parse[[#This Row],[Raw]],",",CHAR(1),2))+1,FIND(CHAR(1), SUBSTITUTE(Parse[[#This Row],[Raw]],",",CHAR(1),3))-FIND(CHAR(1),SUBSTITUTE(Parse[[#This Row],[Raw]],",",CHAR(1),2))-1)),"") -> 8.71047 | G105: =IFERROR(VALUE(MID(Parse[[#This Row],[Raw]],FIND(CHAR(1),SUBSTITUTE(Parse[[#This Row],[Raw]],",",CHAR(1),3))+1,FIND(CHAR(1), SUBSTITUTE(Parse[[#This Row],[Raw]],",",CHAR(1),4))-FIND(CHAR(1),SUBSTITUTE(Parse[[#This Row],[Raw]],",",CHAR(1),3))-1)),"") -> 8.3349 | H105: =IFERROR(VALUE(MID(Parse[[#This Row],[Raw]],FIND(CHAR(1),SUBSTITUTE(Parse[[#This Row],[Raw]],",",CHAR(1),4))+1,FIND(CHAR(1), SUBSTITUTE(Parse[[#This Row],[Raw]],",",CHAR(1),5))-FIND(CHAR(1),SUBSTITUTE(Parse[[#This Row],[Raw]],",",CHAR(1),4))-1)),"") -> 8.6426 | I105: =IFERROR(VALUE(MID(Parse[[#This Row],[Raw]],FIND(CHAR(1),SUBSTITUTE(Parse[[#This Row],[Raw]],",",CHAR(1),5))+1,FIND(CHAR(1), SUBSTITUTE(Parse[[#This Row],[Raw]],",",CHAR(1),6))-FIND(CHAR(1),SUBSTITUTE(Parse[[#This Row],[Raw]],",",CHAR(1),5))-1)),"") -> 4.151049 | J105: =IFERROR(VALUE(RIGHT(Parse[[#This Row],[Raw]],LEN(Parse[[#This Row],[Raw]])-FIND(CHAR(1),SUBSTITUTE(Parse[[#This Row],[Raw]],",",CHAR(1),6)))),"") -> 29461848
A106: 2000-12-28,8.642600,8.882420,8.577440,8.873370,4.261889,25727756 | C106: 2000-12-28,8.642600,8.882420,8.577440,8.873370,4.261889,25727756 | D106: =IFERROR(DATEVALUE(LEFT(Parse[[#This Row],[Raw]],FIND(",",Parse[[#This Row],[Raw]])-1)),"") -> 2000-12-28 | E106: =IFERROR(VALUE(MID(Parse[[#This Row],[Raw]],FIND(CHAR(1),SUBSTITUTE(Parse[[#This Row],[Raw]],",",CHAR(1),1))+1,FIND(CHAR(1), SUBSTITUTE(Parse[[#This Row],[Raw]],",",CHAR(1),2))-FIND(CHAR(1),SUBSTITUTE(Parse[[#This Row],[Raw]],",",CHAR(1),1))-1)),"") -> 8.6426 | F106: =IFERROR(VALUE(MID(Parse[[#This Row],[Raw]],FIND(CHAR(1),SUBSTITUTE(Parse[[#This Row],[Raw]],",",CHAR(1),2))+1,FIND(CHAR(1), SUBSTITUTE(Parse[[#This Row],[Raw]],",",CHAR(1),3))-FIND(CHAR(1),SUBSTITUTE(Parse[[#This Row],[Raw]],",",CHAR(1),2))-1)),"") -> 8.88242 | G106: =IFERROR(VALUE(MID(Parse[[#This Row],[Raw]],FIND(CHAR(1),SUBSTITUTE(Parse[[#This Row],[Raw]],",",CHAR(1),3))+1,FIND(CHAR(1), SUBSTITUTE(Parse[[#This Row],[Raw]],",",CHAR(1),4))-FIND(CHAR(1),SUBSTITUTE(Parse[[#This Row],[Raw]],",",CHAR(1),3))-1)),"") -> 8.57744 | H106: =IFERROR(VALUE(MID(Parse[[#This Row],[Raw]],FIND(CHAR(1),SUBSTITUTE(Parse[[#This Row],[Raw]],",",CHAR(1),4))+1,FIND(CHAR(1), SUBSTITUTE(Parse[[#This Row],[Raw]],",",CHAR(1),5))-FIND(CHAR(1),SUBSTITUTE(Parse[[#This Row],[Raw]],",",CHAR(1),4))-1)),"") -> 8.87337 | I106: =IFERROR(VALUE(MID(Parse[[#This Row],[Raw]],FIND(CHAR(1),SUBSTITUTE(Parse[[#This Row],[Raw]],",",CHAR(1),5))+1,FIND(CHAR(1), SUBSTITUTE(Parse[[#This Row],[Raw]],",",CHAR(1),6))-FIND(CHAR(1),SUBSTITUTE(Parse[[#This Row],[Raw]],",",CHAR(1),5))-1)),"") -> 4.261889 | J106: =IFERROR(VALUE(RIGHT(Parse[[#This Row],[Raw]],LEN(Parse[[#This Row],[Raw]])-FIND(CHAR(1),SUBSTITUTE(Parse[[#This Row],[Raw]],",",CHAR(1),6)))),"") -> 25727756
A107: 2001-01-04,8.868850,9.004590,8.597350,8.633550,4.146703,31607408 | C107: 2001-01-04,8.868850,9.004590,8.597350,8.633550,4.146703,31607408 | D107: =IFERROR(DATEVALUE(LEFT(Parse[[#This Row],[Raw]],FIND(",",Parse[[#This Row],[Raw]])-1)),"") -> 2001-01-04 | E107: =IFERROR(VALUE(MID(Parse[[#This Row],[Raw]],FIND(CHAR(1),SUBSTITUTE(Parse[[#This Row],[Raw]],",",CHAR(1),1))+1,FIND(CHAR(1), SUBSTITUTE(Parse[[#This Row],[Raw]],",",CHAR(1),2))-FIND(CHAR(1),SUBSTITUTE(Parse[[#This Row],[Raw]],",",CHAR(1),1))-1)),"") -> 8.86885 | F107: =IFERROR(VALUE(MID(Parse[[#This Row],[Raw]],FIND(CHAR(1),SUBSTITUTE(Parse[[#This Row],[Raw]],",",CHAR(1),2))+1,FIND(CHAR(1), SUBSTITUTE(Parse[[#This Row],[Raw]],",",CHAR(1),3))-FIND(CHAR(1),SUBSTITUTE(Parse[[#This Row],[Raw]],",",CHAR(1),2))-1)),"") -> 9.00459 | G107: =IFERROR(VALUE(MID(Parse[[#This Row],[Raw]],FIND(CHAR(1),SUBSTITUTE(Parse[[#This Row],[Raw]],",",CHAR(1),3))+1,FIND(CHAR(1), SUBSTITUTE(Parse[[#This Row],[Raw]],",",CHAR(1),4))-FIND(CHAR(1),SUBSTITUTE(Parse[[#This Row],[Raw]],",",CHAR(1),3))-1)),"") -> 8.59735 | H107: =IFERROR(VALUE(MID(Parse[[#This Row],[Raw]],FIND(CHAR(1),SUBSTITUTE(Parse[[#This Row],[Raw]],",",CHAR(1),4))+1,FIND(CHAR(1), SUBSTITUTE(Parse[[#This Row],[Raw]],",",CHAR(1),5))-FIND(CHAR(1),SUBSTITUTE(Parse[[#This Row],[Raw]],",",CHAR(1),4))-1)),"") -> 8.63355 | I107: =IFERROR(VALUE(MID(Parse[[#This Row],[Raw]],FIND(CHAR(1),SUBSTITUTE(Parse[[#This Row],[Raw]],",",CHAR(1),5))+1,FIND(CHAR(1), SUBSTITUTE(Parse[[#This Row],[Raw]],",",CHAR(1),6))-FIND(CHAR(1),SUBSTITUTE(Parse[[#This Row],[Raw]],",",CHAR(1),5))-1)),"") -> 4.146703 | J107: =IFERROR(VALUE(RIGHT(Parse[[#This Row],[Raw]],LEN(Parse[[#This Row],[Raw]])-FIND(CHAR(1),SUBSTITUTE(Parse[[#This Row],[Raw]],",",CHAR(1),6)))),"") -> 31607408
A108: 2001-01-11,8.642600,8.778350,8.362050,8.447120,4.057160,34542818 | C108: 2001-01-11,8.642600,8.778350,8.362050,8.447120,4.057160,34542818 | D108: =IFERROR(DATEVALUE(LEFT(Parse[[#This Row],[Raw]],FIND(",",Parse[[#This Row],[Raw]])-1)),"") -> 2001-01-11 | E108: =IFERROR(VALUE(MID(Parse[[#This Row],[Raw]],FIND(CHAR(1),SUBSTITUTE(Parse[[#This Row],[Raw]],",",CHAR(1),1))+1,FIND(CHAR(1), SUBSTITUTE(Parse[[#This Row],[Raw]],",",CHAR(1),2))-FIND(CHAR(1),SUBSTITUTE(Parse[[#This Row],[Raw]],",",CHAR(1),1))-1)),"") -> 8.6426 | F108: =IFERROR(VALUE(MID(Parse[[#This Row],[Raw]],FIND(CHAR(1),SUBSTITUTE(Parse[[#This Row],[Raw]],",",CHAR(1),2))+1,FIND(CHAR(1), SUBSTITUTE(Parse[[#This Row],[Raw]],",",CHAR(1),3))-FIND(CHAR(1),SUBSTITUTE(Parse[[#This Row],[Raw]],",",CHAR(1),2))-1)),"") -> 8.77835 | G108: =IFERROR(VALUE(MID(Parse[[#This Row],[Raw]],FIND(CHAR(1),SUBSTITUTE(Parse[[#This Row],[Raw]],",",CHAR(1),3))+1,FIND(CHAR(1), SUBSTITUTE(Parse[[#This Row],[Raw]],",",CHAR(1),4))-FIND(CHAR(1),SUBSTITUTE(Parse[[#This Row],[Raw]],",",CHAR(1),3))-1)),"") -> 8.36205 | H108: =IFERROR(VALUE(MID(Parse[[#This Row],[Raw]],FIND(CHAR(1),SUBSTITUTE(Parse[[#This Row],[Raw]],",",CHAR(1),4))+1,FIND(CHAR(1), SUBSTITUTE(Parse[[#This Row],[Raw]],",",CHAR(1),5))-FIND(CHAR(1),SUBSTITUTE(Parse[[#This Row],[Raw]],",",CHAR(1),4))-1)),"") -> 8.44712 | I108: =IFERROR(VALUE(MID(Parse[[#This Row],[Raw]],FIND(CHAR(1),SUBSTITUTE(Parse[[#This Row],[Raw]],",",CHAR(1),5))+1,FIND(CHAR(1), SUBSTITUTE(Parse[[#This Row],[Raw]],",",CHAR(1),6))-FIND(CHAR(1),SUBSTITUTE(Parse[[#This Row],[Raw]],",",CHAR(1),5))-1)),"") -> 4.05716 | J108: =IFERROR(VALUE(RIGHT(Parse[[#This Row],[Raw]],LEN(Parse[[#This Row],[Raw]])-FIND(CHAR(1),SUBSTITUTE(Parse[[#This Row],[Raw]],",",CHAR(1),6)))),"") -> 34542818
A109: 2001-01-18,8.487390,8.592370,8.208210,8.330380,4.001091,46634189 | C109: 2001-01-18,8.487390,8.592370,8.208210,8.330380,4.001091,46634189 | D109: =IFERROR(DATEVALUE(LEFT(Parse[[#This Row],[Raw]],FIND(",",Parse[[#This Row],[Raw]])-1)),"") -> 2001-01-18 | E109: =IFERROR(VALUE(MID(Parse[[#This Row],[Raw]],FIND(CHAR(1),SUBSTITUTE(Parse[[#This Row],[Raw]],",",CHAR(1),1))+1,FIND(CHAR(1), SUBSTITUTE(Parse[[#This Row],[Raw]],",",CHAR(1),2))-FIND(CHAR(1),SUBSTITUTE(Parse[[#This Row],[Raw]],",",CHAR(1),1))-1)),"") -> 8.48739 | F109: =IFERROR(VALUE(MID(Parse[[#This Row],[Raw]],FIND(CHAR(1),SUBSTITUTE(Parse[[#This Row],[Raw]],",",CHAR(1),2))+1,FIND(CHAR(1), SUBSTITUTE(Parse[[#This Row],[Raw]],",",CHAR(1),3))-FIND(CHAR(1),SUBSTITUTE(Parse[[#This Row],[Raw]],",",CHAR(1),2))-1)),"") -> 8.59237 | G109: =IFERROR(VALUE(MID(Parse[[#This Row],[Raw]],FIND(CHAR(1),SUBSTITUTE(Parse[[#This Row],[Raw]],",",CHAR(1),3))+1,FIND(CHAR(1), SUBSTITUTE(Parse[[#This Row],[Raw]],",",CHAR(1),4))-FIND(CHAR(1),SUBSTITUTE(Parse[[#This Row],[Raw]],",",CHAR(1),3))-1)),"") -> 8.20821 | H109: =IFERROR(VALUE(MID(Parse[[#This Row],[Raw]],FIND(CHAR(1),SUBSTITUTE(Parse[[#This Row],[Raw]],",",CHAR(1),4))+1,FIND(CHAR(1), SUBSTITUTE(Parse[[#This Row],[Raw]],",",CHAR(1),5))-FIND(CHAR(1),SUBSTITUTE(Parse[[#This Row],[Raw]],",",CHAR(1),4))-1)),"") -> 8.33038 | I109: =IFERROR(VALUE(MID(Parse[[#This Row],[Raw]],FIND(CHAR(1),SUBSTITUTE(Parse[[#This Row],[Raw]],",",CHAR(1),5))+1,FIND(CHAR(1), SUBSTITUTE(Parse[[#This Row],[Raw]],",",CHAR(1),6))-FIND(CHAR(1),SUBSTITUTE(Parse[[#This Row],[Raw]],",",CHAR(1),5))-1)),"") -> 4.001091 | J109: =IFERROR(VALUE(RIGHT(Parse[[#This Row],[Raw]],LEN(Parse[[#This Row],[Raw]])-FIND(CHAR(1),SUBSTITUTE(Parse[[#This Row],[Raw]],",",CHAR(1),6)))),"") -> 46634189
A110: 2001-01-25,8.392370,8.735360,8.325860,8.735360,4.195602,52924257 | C110: 2001-01-25,8.392370,8.735360,8.325860,8.735360,4.195602,52924257 | D110: =IFERROR(DATEVALUE(LEFT(Parse[[#This Row],[Raw]],FIND(",",Parse[[#This Row],[Raw]])-1)),"") -> 2001-01-25 | E110: =IFERROR(VALUE(MID(Parse[[#This Row],[Raw]],FIND(CHAR(1),SUBSTITUTE(Parse[[#This Row],[Raw]],",",CHAR(1),1))+1,FIND(CHAR(1), SUBSTITUTE(Parse[[#This Row],[Raw]],",",CHAR(1),2))-FIND(CHAR(1),SUBSTITUTE(Parse[[#This Row],[Raw]],",",CHAR(1),1))-1)),"") -> 8.39237 | F110: =IFERROR(VALUE(MID(Parse[[#This Row],[Raw]],FIND(CHAR(1),SUBSTITUTE(Parse[[#This Row],[Raw]],",",CHAR(1),2))+1,FIND(CHAR(1), SUBSTITUTE(Parse[[#This Row],[Raw]],",",CHAR(1),3))-FIND(CHAR(1),SUBSTITUTE(Parse[[#This Row],[Raw]],",",CHAR(1),2))-1)),"") -> 8.73536 | G110: =IFERROR(VALUE(MID(Parse[[#This Row],[Raw]],FIND(CHAR(1),SUBSTITUTE(Parse[[#This Row],[Raw]],",",CHAR(1),3))+1,FIND(CHAR(1), SUBSTITUTE(Parse[[#This Row],[Raw]],",",CHAR(1),4))-FIND(CHAR(1),SUBSTITUTE(Parse[[#This Row],[Raw]],",",CHAR(1),3))-1)),"") -> 8.32586 | H110: =IFERROR(VALUE(MID(Parse[[#This Row],[Raw]],FIND(CHAR(1),SUBSTITUTE(Parse[[#This Row],[Raw]],",",CHAR(1),4))+1,FIND(CHAR(1), SUBSTITUTE(Parse[[#This Row],[Raw]],",",CHAR(1),5))-FIND(CHAR(1),SUBSTITUTE(Parse[[#This Row],[Raw]],",",CHAR(1),4))-1)),"") -> 8.73536 | I110: =IFERROR(VALUE(MID(Parse[[#This Row],[Raw]],FIND(CHAR(1),SUBSTITUTE(Parse[[#This Row],[Raw]],",",CHAR(1),5))+1,FIND(CHAR(1), SUBSTITUTE(Parse[[#This Row],[Raw]],",",CHAR(1),6))-FIND(CHAR(1),SUBSTITUTE(Parse[[#This Row],[Raw]],",",CHAR(1),5))-1)),"") -> 4.195602 | J110: =IFERROR(VALUE(RIGHT(Parse[[#This Row],[Raw]],LEN(Parse[[#This Row],[Raw]])-FIND(CHAR(1),SUBSTITUTE(Parse[[#This Row],[Raw]],",",CHAR(1),6)))),"") -> 52924257
A111: 2001-02-01,8.665220,8.769300,8.584230,8.584230,4.123014,55417612 | C111: 2001-02-01,8.665220,8.769300,8.584230,8.584230,4.123014,55417612 | D111: =IFERROR(DATEVALUE(LEFT(Parse[[#This Row],[Raw]],FIND(",",Parse[[#This Row],[Raw]])-1)),"") -> 2001-02-01 | E111: =IFERROR(VALUE(MID(Parse[[#This Row],[Raw]],FIND(CHAR(1),SUBSTITUTE(Parse[[#This Row],[Raw]],",",CHAR(1),1))+1,FIND(CHAR(1), SUBSTITUTE(Parse[[#This Row],[Raw]],",",CHAR(1),2))-FIND(CHAR(1),SUBSTITUTE(Parse[[#This Row],[Raw]],",",CHAR(1),1))-1)),"") -> 8.66522 | F111: =IFERROR(VALUE(MID(Parse[[#This Row],[Raw]],FIND(CHAR(1),SUBSTITUTE(Parse[[#This Row],[Raw]],",",CHAR(1),2))+1,FIND(CHAR(1), SUBSTITUTE(Parse[[#This Row],[Raw]],",",CHAR(1),3))-FIND(CHAR(1),SUBSTITUTE(Parse[[#This Row],[Raw]],",",CHAR(1),2))-1)),"") -> 8.7693 | G111: =IFERROR(VALUE(MID(Parse[[#This Row],[Raw]],FIND(CHAR(1),SUBSTITUTE(Parse[[#This Row],[Raw]],",",CHAR(1),3))+1,FIND(CHAR(1), SUBSTITUTE(Parse[[#This Row],[Raw]],",",CHAR(1),4))-FIND(CHAR(1),SUBSTITUTE(Parse[[#This Row],[Raw]],",",CHAR(1),3))-1)),"") -> 8.58423 | H111: =IFERROR(VALUE(MID(Parse[[#This Row],[Raw]],FIND(CHAR(1),SUBSTITUTE(Parse[[#This Row],[Raw]],",",CHAR(1),4))+1,FIND(CHAR(1), SUBSTITUTE(Parse[[#This Row],[Raw]],",",CHAR(1),5))-FIND(CHAR(1),SUBSTITUTE(Parse[[#This Row],[Raw]],",",CHAR(1),4))-1)),"") -> 8.58423 | I111: =IFERROR(VALUE(MID(Parse[[#This Row],[Raw]],FIND(CHAR(1),SUBSTITUTE(Parse[[#This Row],[Raw]],",",CHAR(1),5))+1,FIND(CHAR(1), SUBSTITUTE(Parse[[#This Row],[Raw]],",",CHAR(1),6))-FIND(CHAR(1),SUBSTITUTE(Parse[[#This Row],[Raw]],",",CHAR(1),5))-1)),"") -> 4.123014 | J111: =IFERROR(VALUE(RIGHT(Parse[[#This Row],[Raw]],LEN(Parse[[#This Row],[Raw]])-FIND(CHAR(1),SUBSTITUTE(Parse[[#This Row],[Raw]],",",CHAR(1),6)))),"") -> 55417612
A112: 2001-02-08,8.588300,8.868850,8.402780,8.760250,4.207556,38500463 | C112: 2001-02-08,8.588300,8.868850,8.402780,8.760250,4.207556,38500463 | D112: =IFERROR(DATEVALUE(LEFT(Parse[[#This Row],[Raw]],FIND(",",Parse[[#This Row],[Raw]])-1)),"") -> 2001-02-08 | E112: =IFERROR(VALUE(MID(Parse[[#This Row],[Raw]],FIND(CHAR(1),SUBSTITUTE(Parse[[#This Row],[Raw]],",",CHAR(1),1))+1,FIND(CHAR(1), SUBSTITUTE(Parse[[#This Row],[Raw]],",",CHAR(1),2))-FIND(CHAR(1),SUBSTITUTE(Parse[[#This Row],[Raw]],",",CHAR(1),1))-1)),"") -> 8.5883 | F112: =IFERROR(VALUE(MID(Parse[[#This Row],[Raw]],FIND(CHAR(1),SUBSTITUTE(Parse[[#This Row],[Raw]],",",CHAR(1),2))+1,FIND(CHAR(1), SUBSTITUTE(Parse[[#This Row],[Raw]],",",CHAR(1),3))-FIND(CHAR(1),SUBSTITUTE(Parse[[#This Row],[Raw]],",",CHAR(1),2))-1)),"") -> 8.86885 | G112: =IFERROR(VALUE(MID(Parse[[#This Row],[Raw]],FIND(CHAR(1),SUBSTITUTE(Parse[[#This Row],[Raw]],",",CHAR(1),3))+1,FIND(CHAR(1), SUBSTITUTE(Parse[[#This Row],[Raw]],",",CHAR(1),4))-FIND(CHAR(1),SUBSTITUTE(Parse[[#This Row],[Raw]],",",CHAR(1),3))-1)),"") -> 8.40278 | H112: =IFERROR(VALUE(MID(Parse[[#This Row],[Raw]],FIND(CHAR(1),SUBSTITUTE(Parse[[#This Row],[Raw]],",",CHAR(1),4))+1,FIND(CHAR(1), SUBSTITUTE(Parse[[#This Row],[Raw]],",",CHAR(1),5))-FIND(CHAR(1),SUBSTITUTE(Parse[[#This Row],[Raw]],",",CHAR(1),4))-1)),"") -> 8.76025 | I112: =IFERROR(VALUE(MID(Parse[[#This Row],[Raw]],FIND(CHAR(1),SUBSTITUTE(Parse[[#This Row],[Raw]],",",CHAR(1),5))+1,FIND(CHAR(1), SUBSTITUTE(Parse[[#This Row],[Raw]],",",CHAR(1),6))-FIND(CHAR(1),SUBSTITUTE(Parse[[#This Row],[Raw]],",",CHAR(1),5))-1)),"") -> 4.207556 | J112: =IFERROR(VALUE(RIGHT(Parse[[#This Row],[Raw]],LEN(Parse[[#This Row],[Raw]])-FIND(CHAR(1),SUBSTITUTE(Parse[[#This Row],[Raw]],",",CHAR(1),6)))),"") -> 38500463
A113: 2001-02-15,8.823600,8.995540,8.809570,8.943510,4.295576,39100366 | C113: 2001-02-15,8.823600,8.995540,8.809570,8.943510,4.295576,39100366 | D113: =IFERROR(DATEVALUE(LEFT(Parse[[#This Row],[Raw]],FIND(",",Parse[[#This Row],[Raw]])-1)),"") -> 2001-02-15 | E113: =IFERROR(VALUE(MID(Parse[[#This Row],[Raw]],FIND(CHAR(1),SUBSTITUTE(Parse[[#This Row],[Raw]],",",CHAR(1),1))+1,FIND(CHAR(1), SUBSTITUTE(Parse[[#This Row],[Raw]],",",CHAR(1),2))-FIND(CHAR(1),SUBSTITUTE(Parse[[#This Row],[Raw]],",",CHAR(1),1))-1)),"") -> 8.8236 | F113: =IFERROR(VALUE(MID(Parse[[#This Row],[Raw]],FIND(CHAR(1),SUBSTITUTE(Parse[[#This Row],[Raw]],",",CHAR(1),2))+1,FIND(CHAR(1), SUBSTITUTE(Parse[[#This Row],[Raw]],",",CHAR(1),3))-FIND(CHAR(1),SUBSTITUTE(Parse[[#This Row],[Raw]],",",CHAR(1),2))-1)),"") -> 8.99554 | G113: =IFERROR(VALUE(MID(Parse[[#This Row],[Raw]],FIND(CHAR(1),SUBSTITUTE(Parse[[#This Row],[Raw]],",",CHAR(1),3))+1,FIND(CHAR(1), SUBSTITUTE(Parse[[#This Row],[Raw]],",",CHAR(1),4))-FIND(CHAR(1),SUBSTITUTE(Parse[[#This Row],[Raw]],",",CHAR(1),3))-1)),"") -> 8.80957 | H113: =IFERROR(VALUE(MID(Parse[[#This Row],[Raw]],FIND(CHAR(1),SUBSTITUTE(Parse[[#This Row],[Raw]],",",CHAR(1),4))+1,FIND(CHAR(1), SUBSTITUTE(Parse[[#This Row],[Raw]],",",CHAR(1),5))-FIND(CHAR(1),SUBSTITUTE(Parse[[#This Row],[Raw]],",",CHAR(1),4))-1)),"") -> 8.94351 | I113: =IFERROR(VALUE(MID(Parse[[#This Row],[Raw]],FIND(CHAR(1),SUBSTITUTE(Parse[[#This Row],[Raw]],",",CHAR(1),5))+1,FIND(CHAR(1), SUBSTITUTE(Parse[[#This Row],[Raw]],",",CHAR(1),6))-FIND(CHAR(1),SUBSTITUTE(Parse[[#This Row],[Raw]],",",CHAR(1),5))-1)),"") -> 4.295576 | J113: =IFERROR(VALUE(RIGHT(Parse[[#This Row],[Raw]],LEN(Parse[[#This Row],[Raw]])-FIND(CHAR(1),SUBSTITUTE(Parse[[#This Row],[Raw]],",",CHAR(1),6)))),"") -> 39100366
A114: 2001-02-22,8.959340,9.561160,8.950290,9.457090,4.542250,77973627 | C114: 2001-02-22,8.959340,9.561160,8.950290,9.457090,4.542250,77973627 | D114: =IFERROR(DATEVALUE(LEFT(Parse[[#This Row],[Raw]],FIND(",",Parse[[#This Row],[Raw]])-1)),"") -> 2001-02-22 | E114: =IFERROR(VALUE(MID(Parse[[#This Row],[Raw]],FIND(CHAR(1),SUBSTITUTE(Parse[[#This Row],[Raw]],",",CHAR(1),1))+1,FIND(CHAR(1), SUBSTITUTE(Parse[[#This Row],[Raw]],",",CHAR(1),2))-FIND(CHAR(1),SUBSTITUTE(Parse[[#This Row],[Raw]],",",CHAR(1),1))-1)),"") -> 8.95934 | F114: =IFERROR(VALUE(MID(Parse[[#This Row],[Raw]],FIND(CHAR(1),SUBSTITUTE(Parse[[#This Row],[Raw]],",",CHAR(1),2))+1,FIND(CHAR(1), SUBSTITUTE(Parse[[#This Row],[Raw]],",",CHAR(1),3))-FIND(CHAR(1),SUBSTITUTE(Parse[[#This Row],[Raw]],",",CHAR(1),2))-1)),"") -> 9.56116 | G114: =IFERROR(VALUE(MID(Parse[[#This Row],[Raw]],FIND(CHAR(1),SUBSTITUTE(Parse[[#This Row],[Raw]],",",CHAR(1),3))+1,FIND(CHAR(1), SUBSTITUTE(Parse[[#This Row],[Raw]],",",CHAR(1),4))-FIND(CHAR(1),SUBSTITUTE(Parse[[#This Row],[Raw]],",",CHAR(1),3))-1)),"") -> 8.95029 | H114: =IFERROR(VALUE(MID(Parse[[#This Row],[Raw]],FIND(CHAR(1),SUBSTITUTE(Parse[[#This Row],[Raw]],",",CHAR(1),4))+1,FIND(CHAR(1), SUBSTITUTE(Parse[[#This Row],[Raw]],",",CHAR(1),5))-FIND(CHAR(1),SUBSTITUTE(Parse[[#This Row],[Raw]],",",CHAR(1),4))-1)),"") -> 9.45709 | I114: =IFERROR(VALUE(MID(Parse[[#This Row],[Raw]],FIND(CHAR(1),SUBSTITUTE(Parse[[#This Row],[Raw]],",",CHAR(1),5))+1,FIND(CHAR(1), SUBSTITUTE(Parse[[#This Row],[Raw]],",",CHAR(1),6))-FIND(CHAR(1),SUBSTITUTE(Parse[[#This Row],[Raw]],",",CHAR(1),5))-1)),"") -> 4.54225 | J114: =IFERROR(VALUE(RIGHT(Parse[[#This Row],[Raw]],LEN(Parse[[#This Row],[Raw]])-FIND(CHAR(1),SUBSTITUTE(Parse[[#This Row],[Raw]],",",CHAR(1),6)))),"") -> 77973627
A115: 2001-03-01,9.397810,9.755730,9.230840,9.501880,4.563763,54398275 | C115: 2001-03-01,9.397810,9.755730,9.230840,9.501880,4.563763,54398275 | D115: =IFERROR(DATEVALUE(LEFT(Parse[[#This Row],[Raw]],FIND(",",Parse[[#This Row],[Raw]])-1)),"") -> 2001-03-01 | E115: =IFERROR(VALUE(MID(Parse[[#This Row],[Raw]],FIND(CHAR(1),SUBSTITUTE(Parse[[#This Row],[Raw]],",",CHAR(1),1))+1,FIND(CHAR(1), SUBSTITUTE(Parse[[#This Row],[Raw]],",",CHAR(1),2))-FIND(CHAR(1),SUBSTITUTE(Parse[[#This Row],[Raw]],",",CHAR(1),1))-1)),"") -> 9.39781 | F115: =IFERROR(VALUE(MID(Parse[[#This Row],[Raw]],FIND(CHAR(1),SUBSTITUTE(Parse[[#This Row],[Raw]],",",CHAR(1),2))+1,FIND(CHAR(1), SUBSTITUTE(Parse[[#This Row],[Raw]],",",CHAR(1),3))-FIND(CHAR(1),SUBSTITUTE(Parse[[#This Row],[Raw]],",",CHAR(1),2))-1)),"") -> 9.75573 | G115: =IFERROR(VALUE(MID(Parse[[#This Row],[Raw]],FIND(CHAR(1),SUBSTITUTE(Parse[[#This Row],[Raw]],",",CHAR(1),3))+1,FIND(CHAR(1), SUBSTITUTE(Parse[[#This Row],[Raw]],",",CHAR(1),4))-FIND(CHAR(1),SUBSTITUTE(Parse[[#This Row],[Raw]],",",CHAR(1),3))-1)),"") -> 9.23084 | H115: =IFERROR(VALUE(MID(Parse[[#This Row],[Raw]],FIND(CHAR(1),SUBSTITUTE(Parse[[#This Row],[Raw]],",",CHAR(1),4))+1,FIND(CHAR(1), SUBSTITUTE(Parse[[#This Row],[Raw]],",",CHAR(1),5))-FIND(CHAR(1),SUBSTITUTE(Parse[[#This Row],[Raw]],",",CHAR(1),4))-1)),"") -> 9.50188 | I115: =IFERROR(VALUE(MID(Parse[[#This Row],[Raw]],FIND(CHAR(1),SUBSTITUTE(Parse[[#This Row],[Raw]],",",CHAR(1),5))+1,FIND(CHAR(1), SUBSTITUTE(Parse[[#This Row],[Raw]],",",CHAR(1),6))-FIND(CHAR(1),SUBSTITUTE(Parse[[#This Row],[Raw]],",",CHAR(1),5))-1)),"") -> 4.563763 | J115: =IFERROR(VALUE(RIGHT(Parse[[#This Row],[Raw]],LEN(Parse[[#This Row],[Raw]])-FIND(CHAR(1),SUBSTITUTE(Parse[[#This Row],[Raw]],",",CHAR(1),6)))),"") -> 54398275
A116: 2001-03-08,9.475180,9.497810,9.056180,9.217260,4.427059,53194369 | C116: 2001-03-08,9.475180,9.497810,9.056180,9.217260,4.427059,53194369 | D116: =IFERROR(DATEVALUE(LEFT(Parse[[#This Row],[Raw]],FIND(",",Parse[[#This Row],[Raw]])-1)),"") -> 2001-03-08 | E116: =IFERROR(VALUE(MID(Parse[[#This Row],[Raw]],FIND(CHAR(1),SUBSTITUTE(Parse[[#This Row],[Raw]],",",CHAR(1),1))+1,FIND(CHAR(1), SUBSTITUTE(Parse[[#This Row],[Raw]],",",CHAR(1),2))-FIND(CHAR(1),SUBSTITUTE(Parse[[#This Row],[Raw]],",",CHAR(1),1))-1)),"") -> 9.47518 | F116: =IFERROR(VALUE(MID(Parse[[#This Row],[Raw]],FIND(CHAR(1),SUBSTITUTE(Parse[[#This Row],[Raw]],",",CHAR(1),2))+1,FIND(CHAR(1), SUBSTITUTE(Parse[[#This Row],[Raw]],",",CHAR(1),3))-FIND(CHAR(1),SUBSTITUTE(Parse[[#This Row],[Raw]],",",CHAR(1),2))-1)),"") -> 9.49781 | G116: =IFERROR(VALUE(MID(Parse[[#This Row],[Raw]],FIND(CHAR(1),SUBSTITUTE(Parse[[#This Row],[Raw]],",",CHAR(1),3))+1,FIND(CHAR(1), SUBSTITUTE(Parse[[#This Row],[Raw]],",",CHAR(1),4))-FIND(CHAR(1),SUBSTITUTE(Parse[[#This Row],[Raw]],",",CHAR(1),3))-1)),"") -> 9.05618 | H116: =IFERROR(VALUE(MID(Parse[[#This Row],[Raw]],FIND(CHAR(1),SUBSTITUTE(Parse[[#This Row],[Raw]],",",CHAR(1),4))+1,FIND(CHAR(1), SUBSTITUTE(Parse[[#This Row],[Raw]],",",CHAR(1),5))-FIND(CHAR(1),SUBSTITUTE(Parse[[#This Row],[Raw]],",",CHAR(1),4))-1)),"") -> 9.21726 | I116: =IFERROR(VALUE(MID(Parse[[#This Row],[Raw]],FIND(CHAR(1),SUBSTITUTE(Parse[[#This Row],[Raw]],",",CHAR(1),5))+1,FIND(CHAR(1), SUBSTITUTE(Parse[[#This Row],[Raw]],",",CHAR(1),6))-FIND(CHAR(1),SUBSTITUTE(Parse[[#This Row],[Raw]],",",CHAR(1),5))-1)),"") -> 4.427059 | J116: =IFERROR(VALUE(RIGHT(Parse[[#This Row],[Raw]],LEN(Parse[[#This Row],[Raw]])-FIND(CHAR(1),SUBSTITUTE(Parse[[#This Row],[Raw]],",",CHAR(1),6)))),"") -> 53194369
A117: 2001-03-15,9.230840,9.977450,8.972920,9.343960,4.487914,124417918 | C117: 2001-03-15,9.230840,9.977450,8.972920,9.343960,4.487914,124417918 | D117: =IFERROR(DATEVALUE(LEFT(Parse[[#This Row],[Raw]],FIND(",",Parse[[#This Row],[Raw]])-1)),"") -> 2001-03-15 | E117: =IFERROR(VALUE(MID(Parse[[#This Row],[Raw]],FIND(CHAR(1),SUBSTITUTE(Parse[[#This Row],[Raw]],",",CHAR(1),1))+1,FIND(CHAR(1), SUBSTITUTE(Parse[[#This Row],[Raw]],",",CHAR(1),2))-FIND(CHAR(1),SUBSTITUTE(Parse[[#This Row],[Raw]],",",CHAR(1),1))-1)),"") -> 9.23084 | F117: =IFERROR(VALUE(MID(Parse[[#This Row],[Raw]],FIND(CHAR(1),SUBSTITUTE(Parse[[#This Row],[Raw]],",",CHAR(1),2))+1,FIND(CHAR(1), SUBSTITUTE(Parse[[#This Row],[Raw]],",",CHAR(1),3))-FIND(CHAR(1),SUBSTITUTE(Parse[[#This Row],[Raw]],",",CHAR(1),2))-1)),"") -> 9.97745 | G117: =IFERROR(VALUE(MID(Parse[[#This Row],[Raw]],FIND(CHAR(1),SUBSTITUTE(Parse[[#This Row],[Raw]],",",CHAR(1),3))+1,FIND(CHAR(1), SUBSTITUTE(Parse[[#This Row],[Raw]],",",CHAR(1),4))-FIND(CHAR(1),SUBSTITUTE(Parse[[#This Row],[Raw]],",",CHAR(1),3))-1)),"") -> 8.97292 | H117: =IFERROR(VALUE(MID(Parse[[#This Row],[Raw]],FIND(CHAR(1),SUBSTITUTE(Parse[[#This Row],[Raw]],",",CHAR(1),4))+1,FIND(CHAR(1), SUBSTITUTE(Parse[[#This Row],[Raw]],",",CHAR(1),5))-FIND(CHAR(1),SUBSTITUTE(Parse[[#This Row],[Raw]],",",CHAR(1),4))-1)),"") -> 9.34396 | I117: =IFERROR(VALUE(MID(Parse[[#This Row],[Raw]],FIND(CHAR(1),SUBSTITUTE(Parse[[#This Row],[Raw]],",",CHAR(1),5))+1,FIND(CHAR(1), SUBSTITUTE(Parse[[#This Row],[Raw]],",",CHAR(1),6))-FIND(CHAR(1),SUBSTITUTE(Parse[[#This Row],[Raw]],",",CHAR(1),5))-1)),"") -> 4.487914 | J117: =IFERROR(VALUE(RIGHT(Parse[[#This Row],[Raw]],LEN(Parse[[#This Row],[Raw]])-FIND(CHAR(1),SUBSTITUTE(Parse[[#This Row],[Raw]],",",CHAR(1),6)))),"") -> 124417918
A118: 2001-03-22,8.936720,9.190110,8.891470,8.936720,4.292315,57995240 | C118: 2001-03-22,8.936720,9.190110,8.891470,8.936720,4.292315,57995240 | D118: =IFERROR(DATEVALUE(LEFT(Parse[[#This Row],[Raw]],FIND(",",Parse[[#This Row],[Raw]])-1)),"") -> 2001-03-22 | E118: =IFERROR(VALUE(MID(Parse[[#This Row],[Raw]],FIND(CHAR(1),SUBSTITUTE(Parse[[#This Row],[Raw]],",",CHAR(1),1))+1,FIND(CHAR(1), SUBSTITUTE(Parse[[#This Row],[Raw]],",",CHAR(1),2))-FIND(CHAR(1),SUBSTITUTE(Parse[[#This Row],[Raw]],",",CHAR(1),1))-1)),"") -> 8.93672 | F118: =IFERROR(VALUE(MID(Parse[[#This Row],[Raw]],FIND(CHAR(1),SUBSTITUTE(Parse[[#This Row],[Raw]],",",CHAR(1),2))+1,FIND(CHAR(1), SUBSTITUTE(Parse[[#This Row],[Raw]],",",CHAR(1),3))-FIND(CHAR(1),SUBSTITUTE(Parse[[#This Row],[Raw]],",",CHAR(1),2))-1)),"") -> 9.19011 | G118: =IFERROR(VALUE(MID(Parse[[#This Row],[Raw]],FIND(CHAR(1),SUBSTITUTE(Parse[[#This Row],[Raw]],",",CHAR(1),3))+1,FIND(CHAR(1), SUBSTITUTE(Parse[[#This Row],[Raw]],",",CHAR(1),4))-FIND(CHAR(1),SUBSTITUTE(Parse[[#This Row],[Raw]],",",CHAR(1),3))-1)),"") -> 8.89147 | H118: =IFERROR(VALUE(MID(Parse[[#This Row],[Raw]],FIND(CHAR(1),SUBSTITUTE(Parse[[#This Row],[Raw]],",",CHAR(1),4))+1,FIND(CHAR(1), SUBSTITUTE(Parse[[#This Row],[Raw]],",",CHAR(1),5))-FIND(CHAR(1),SUBSTITUTE(Parse[[#This Row],[Raw]],",",CHAR(1),4))-1)),"") -> 8.93672 | I118: =IFERROR(VALUE(MID(Parse[[#This Row],[Raw]],FIND(CHAR(1),SUBSTITUTE(Parse[[#This Row],[Raw]],",",CHAR(1),5))+1,FIND(CHAR(1), SUBSTITUTE(Parse[[#This Row],[Raw]],",",CHAR(1),6))-FIND(CHAR(1),SUBSTITUTE(Parse[[#This Row],[Raw]],",",CHAR(1),5))-1)),"") -> 4.292315 | J118: =IFERROR(VALUE(RIGHT(Parse[[#This Row],[Raw]],LEN(Parse[[#This Row],[Raw]])-FIND(CHAR(1),SUBSTITUTE(Parse[[#This Row],[Raw]],",",CHAR(1),6)))),"") -> 57995240
A119: 2001-03-29,8.881520,9.212740,8.859800,9.153920,4.396637,82411623 | C119: 2001-03-29,8.881520,9.212740,8.859800,9.153920,4.396637,82411623 | D119: =IFERROR(DATEVALUE(LEFT(Parse[[#This Row],[Raw]],FIND(",",Parse[[#This Row],[Raw]])-1)),"") -> 2001-03-29 | E119: =IFERROR(VALUE(MID(Parse[[#This Row],[Raw]],FIND(CHAR(1),SUBSTITUTE(Parse[[#This Row],[Raw]],",",CHAR(1),1))+1,FIND(CHAR(1), SUBSTITUTE(Parse[[#This Row],[Raw]],",",CHAR(1),2))-FIND(CHAR(1),SUBSTITUTE(Parse[[#This Row],[Raw]],",",CHAR(1),1))-1)),"") -> 8.88152 | F119: =IFERROR(VALUE(MID(Parse[[#This Row],[Raw]],FIND(CHAR(1),SUBSTITUTE(Parse[[#This Row],[Raw]],",",CHAR(1),2))+1,FIND(CHAR(1), SUBSTITUTE(Parse[[#This Row],[Raw]],",",CHAR(1),3))-FIND(CHAR(1),SUBSTITUTE(Parse[[#This Row],[Raw]],",",CHAR(1),2))-1)),"") -> 9.21274 | G119: =IFERROR(VALUE(MID(Parse[[#This Row],[Raw]],FIND(CHAR(1),SUBSTITUTE(Parse[[#This Row],[Raw]],",",CHAR(1),3))+1,FIND(CHAR(1), SUBSTITUTE(Parse[[#This Row],[Raw]],",",CHAR(1),4))-FIND(CHAR(1),SUBSTITUTE(Parse[[#This Row],[Raw]],",",CHAR(1),3))-1)),"") -> 8.8598 | H119: =IFERROR(VALUE(MID(Parse[[#This Row],[Raw]],FIND(CHAR(1),SUBSTITUTE(Parse[[#This Row],[Raw]],",",CHAR(1),4))+1,FIND(CHAR(1), SUBSTITUTE(Parse[[#This Row],[Raw]],",",CHAR(1),5))-FIND(CHAR(1),SUBSTITUTE(Parse[[#This Row],[Raw]],",",CHAR(1),4))-1)),"") -> 9.15392 | I119: =IFERROR(VALUE(MID(Parse[[#This Row],[Raw]],FIND(CHAR(1),SUBSTITUTE(Parse[[#This Row],[Raw]],",",CHAR(1),5))+1,FIND(CHAR(1), SUBSTITUTE(Parse[[#This Row],[Raw]],",",CHAR(1),6))-FIND(CHAR(1),SUBSTITUTE(Parse[[#This Row],[Raw]],",",CHAR(1),5))-1)),"") -> 4.396637 | J119: =IFERROR(VALUE(RIGHT(Parse[[#This Row],[Raw]],LEN(Parse[[#This Row],[Raw]])-FIND(CHAR(1),SUBSTITUTE(Parse[[#This Row],[Raw]],",",CHAR(1),6)))),"") -> 82411623
A120: 2001-04-05,9.253460,9.728580,8.995540,9.647130,4.633527,65470142 | C120: 2001-04-05,9.253460,9.728580,8.995540,9.647130,4.633527,65470142 | D120: =IFERROR(DATEVALUE(LEFT(Parse[[#This Row],[Raw]],FIND(",",Parse[[#This Row],[Raw]])-1)),"") -> 2001-04-05 | E120: =IFERROR(VALUE(MID(Parse[[#This Row],[Raw]],FIND(CHAR(1),SUBSTITUTE(Parse[[#This Row],[Raw]],",",CHAR(1),1))+1,FIND(CHAR(1), SUBSTITUTE(Parse[[#This Row],[Raw]],",",CHAR(1),2))-FIND(CHAR(1),SUBSTITUTE(Parse[[#This Row],[Raw]],",",CHAR(1),1))-1)),"") -> 9.25346 | F120: =IFERROR(VALUE(MID(Parse[[#This Row],[Raw]],FIND(CHAR(1),SUBSTITUTE(Parse[[#This Row],[Raw]],",",CHAR(1),2))+1,FIND(CHAR(1), SUBSTITUTE(Parse[[#This Row],[Raw]],",",CHAR(1),3))-FIND(CHAR(1),SUBSTITUTE(Parse[[#This Row],[Raw]],",",CHAR(1),2))-1)),"") -> 9.72858 | G120: =IFERROR(VALUE(MID(Parse[[#This Row],[Raw]],FIND(CHAR(1),SUBSTITUTE(Parse[[#This Row],[Raw]],",",CHAR(1),3))+1,FIND(CHAR(1), SUBSTITUTE(Parse[[#This Row],[Raw]],",",CHAR(1),4))-FIND(CHAR(1),SUBSTITUTE(Parse[[#This Row],[Raw]],",",CHAR(1),3))-1)),"") -> 8.99554 | H120: =IFERROR(VALUE(MID(Parse[[#This Row],[Raw]],FIND(CHAR(1),SUBSTITUTE(Parse[[#This Row],[Raw]],",",CHAR(1),4))+1,FIND(CHAR(1), SUBSTITUTE(Parse[[#This Row],[Raw]],",",CHAR(1),5))-FIND(CHAR(1),SUBSTITUTE(Parse[[#This Row],[Raw]],",",CHAR(1),4))-1)),"") -> 9.64713 | I120: =IFERROR(VALUE(MID(Parse[[#This Row],[Raw]],FIND(CHAR(1),SUBSTITUTE(Parse[[#This Row],[Raw]],",",CHAR(1),5))+1,FIND(CHAR(1), SUBSTITUTE(Parse[[#This Row],[Raw]],",",CHAR(1),6))-FIND(CHAR(1),SUBSTITUTE(Parse[[#This Row],[Raw]],",",CHAR(1),5))-1)),"") -> 4.633527 | J120: =IFERROR(VALUE(RIGHT(Parse[[#This Row],[Raw]],LEN(Parse[[#This Row],[Raw]])-FIND(CHAR(1),SUBSTITUTE(Parse[[#This Row],[Raw]],",",CHAR(1),6)))),"") -> 65470142
A121: 2001-04-12,9.647130,9.873380,9.524960,9.837180,4.724808,39580008 | C121: 2001-04-12,9.647130,9.873380,9.524960,9.837180,4.724808,39580008 | D121: =IFERROR(DATEVALUE(LEFT(Parse[[#This Row],[Raw]],FIND(",",Parse[[#This Row],[Raw]])-1)),"") -> 2001-04-12 | E121: =IFERROR(VALUE(MID(Parse[[#This Row],[Raw]],FIND(CHAR(1),SUBSTITUTE(Parse[[#This Row],[Raw]],",",CHAR(1),1))+1,FIND(CHAR(1), SUBSTITUTE(Parse[[#This Row],[Raw]],",",CHAR(1),2))-FIND(CHAR(1),SUBSTITUTE(Parse[[#This Row],[Raw]],",",CHAR(1),1))-1)),"") -> 9.64713 | F121: =IFERROR(VALUE(MID(Parse[[#This Row],[Raw]],FIND(CHAR(1),SUBSTITUTE(Parse[[#This Row],[Raw]],",",CHAR(1),2))+1,FIND(CHAR(1), SUBSTITUTE(Parse[[#This Row],[Raw]],",",CHAR(1),3))-FIND(CHAR(1),SUBSTITUTE(Parse[[#This Row],[Raw]],",",CHAR(1),2))-1)),"") -> 9.87338 | G121: =IFERROR(VALUE(MID(Parse[[#This Row],[Raw]],FIND(CHAR(1),SUBSTITUTE(Parse[[#This Row],[Raw]],",",CHAR(1),3))+1,FIND(CHAR(1), SUBSTITUTE(Parse[[#This Row],[Raw]],",",CHAR(1),4))-FIND(CHAR(1),SUBSTITUTE(Parse[[#This Row],[Raw]],",",CHAR(1),3))-1)),"") -> 9.52496 | H121: =IFERROR(VALUE(MID(Parse[[#This Row],[Raw]],FIND(CHAR(1),SUBSTITUTE(Parse[[#This Row],[Raw]],",",CHAR(1),4))+1,FIND(CHAR(1), SUBSTITUTE(Parse[[#This Row],[Raw]],",",CHAR(1),5))-FIND(CHAR(1),SUBSTITUTE(Parse[[#This Row],[Raw]],",",CHAR(1),4))-1)),"") -> 9.83718 | I121: =IFERROR(VALUE(MID(Parse[[#This Row],[Raw]],FIND(CHAR(1),SUBSTITUTE(Parse[[#This Row],[Raw]],",",CHAR(1),5))+1,FIND(CHAR(1), SUBSTITUTE(Parse[[#This Row],[Raw]],",",CHAR(1),6))-FIND(CHAR(1),SUBSTITUTE(Parse[[#This Row],[Raw]],",",CHAR(1),5))-1)),"") -> 4.724808 | J121: =IFERROR(VALUE(RIGHT(Parse[[#This Row],[Raw]],LEN(Parse[[#This Row],[Raw]])-FIND(CHAR(1),SUBSTITUTE(Parse[[#This Row],[Raw]],",",CHAR(1),6)))),"") -> 39580008
A122: 2001-04-19,9.868850,10.194600,9.841700,9.864330,4.737847,89911838 | C122: 2001-04-19,9.868850,10.194600,9.841700,9.864330,4.737847,89911838 | D122: =IFERROR(DATEVALUE(LEFT(Parse[[#This Row],[Raw]],FIND(",",Parse[[#This Row],[Raw]])-1)),"") -> 2001-04-19 | E122: =IFERROR(VALUE(MID(Parse[[#This Row],[Raw]],FIND(CHAR(1),SUBSTITUTE(Parse[[#This Row],[Raw]],",",CHAR(1),1))+1,FIND(CHAR(1), SUBSTITUTE(Parse[[#This Row],[Raw]],",",CHAR(1),2))-FIND(CHAR(1),SUBSTITUTE(Parse[[#This Row],[Raw]],",",CHAR(1),1))-1)),"") -> 9.86885 | F122: =IFERROR(VALUE(MID(Parse[[#This Row],[Raw]],FIND(CHAR(1),SUBSTITUTE(Parse[[#This Row],[Raw]],",",CHAR(1),2))+1,FIND(CHAR(1), SUBSTITUTE(Parse[[#This Row],[Raw]],",",CHAR(1),3))-FIND(CHAR(1),SUBSTITUTE(Parse[[#This Row],[Raw]],",",CHAR(1),2))-1)),"") -> 10.1946 | G122: =IFERROR(VALUE(MID(Parse[[#This Row],[Raw]],FIND(CHAR(1),SUBSTITUTE(Parse[[#This Row],[Raw]],",",CHAR(1),3))+1,FIND(CHAR(1), SUBSTITUTE(Parse[[#This Row],[Raw]],",",CHAR(1),4))-FIND(CHAR(1),SUBSTITUTE(Parse[[#This Row],[Raw]],",",CHAR(1),3))-1)),"") -> 9.8417 | H122: =IFERROR(VALUE(MID(Parse[[#This Row],[Raw]],FIND(CHAR(1),SUBSTITUTE(Parse[[#This Row],[Raw]],",",CHAR(1),4))+1,FIND(CHAR(1), SUBSTITUTE(Parse[[#This Row],[Raw]],",",CHAR(1),5))-FIND(CHAR(1),SUBSTITUTE(Parse[[#This Row],[Raw]],",",CHAR(1),4))-1)),"") -> 9.86433 | I122: =IFERROR(VALUE(MID(Parse[[#This Row],[Raw]],FIND(CHAR(1),SUBSTITUTE(Parse[[#This Row],[Raw]],",",CHAR(1),5))+1,FIND(CHAR(1), SUBSTITUTE(Parse[[#This Row],[Raw]],",",CHAR(1),6))-FIND(CHAR(1),SUBSTITUTE(Parse[[#This Row],[Raw]],",",CHAR(1),5))-1)),"") -> 4.737847 | J122: =IFERROR(VALUE(RIGHT(Parse[[#This Row],[Raw]],LEN(Parse[[#This Row],[Raw]])-FIND(CHAR(1),SUBSTITUTE(Parse[[#This Row],[Raw]],",",CHAR(1),6)))),"") -> 89911838
A123: 2001-04-26,9.389210,9.905050,9.298710,9.719530,4.668300,161261314 | C123: 2001-04-26,9.389210,9.905050,9.298710,9.719530,4.668300,161261314 | D123: =IFERROR(DATEVALUE(LEFT(Parse[[#This Row],[Raw]],FIND(",",Parse[[#This Row],[Raw]])-1)),"") -> 2001-04-26 | E123: =IFERROR(VALUE(MID(Parse[[#This Row],[Raw]],FIND(CHAR(1),SUBSTITUTE(Parse[[#This Row],[Raw]],",",CHAR(1),1))+1,FIND(CHAR(1), SUBSTITUTE(Parse[[#This Row],[Raw]],",",CHAR(1),2))-FIND(CHAR(1),SUBSTITUTE(Parse[[#This Row],[Raw]],",",CHAR(1),1))-1)),"") -> 9.38921 | F123: =IFERROR(VALUE(MID(Parse[[#This Row],[Raw]],FIND(CHAR(1),SUBSTITUTE(Parse[[#This Row],[Raw]],",",CHAR(1),2))+1,FIND(CHAR(1), SUBSTITUTE(Parse[[#This Row],[Raw]],",",CHAR(1),3))-FIND(CHAR(1),SUBSTITUTE(Parse[[#This Row],[Raw]],",",CHAR(1),2))-1)),"") -> 9.90505 | G123: =IFERROR(VALUE(MID(Parse[[#This Row],[Raw]],FIND(CHAR(1),SUBSTITUTE(Parse[[#This Row],[Raw]],",",CHAR(1),3))+1,FIND(CHAR(1), SUBSTITUTE(Parse[[#This Row],[Raw]],",",CHAR(1),4))-FIND(CHAR(1),SUBSTITUTE(Parse[[#This Row],[Raw]],",",CHAR(1),3))-1)),"") -> 9.29871 | H123: =IFERROR(VALUE(MID(Parse[[#This Row],[Raw]],FIND(CHAR(1),SUBSTITUTE(Parse[[#This Row],[Raw]],",",CHAR(1),4))+1,FIND(CHAR(1), SUBSTITUTE(Parse[[#This Row],[Raw]],",",CHAR(1),5))-FIND(CHAR(1),SUBSTITUTE(Parse[[#This Row],[Raw]],",",CHAR(1),4))-1)),"") -> 9.71953 | I123: =IFERROR(VALUE(MID(Parse[[#This Row],[Raw]],FIND(CHAR(1),SUBSTITUTE(Parse[[#This Row],[Raw]],",",CHAR(1),5))+1,FIND(CHAR(1), SUBSTITUTE(Parse[[#This Row],[Raw]],",",CHAR(1),6))-FIND(CHAR(1),SUBSTITUTE(Parse[[#This Row],[Raw]],",",CHAR(1),5))-1)),"") -> 4.6683 | J123: =IFERROR(VALUE(RIGHT(Parse[[#This Row],[Raw]],LEN(Parse[[#This Row],[Raw]])-FIND(CHAR(1),SUBSTITUTE(Parse[[#This Row],[Raw]],",",CHAR(1),6)))),"") -> 161261314
A124: 2001-05-03,9.638080,9.882430,9.570210,9.828130,4.720460,63238463 | C124: 2001-05-03,9.638080,9.882430,9.570210,9.828130,4.720460,63238463 | D124: =IFERROR(DATEVALUE(LEFT(Parse[[#This Row],[Raw]],FIND(",",Parse[[#This Row],[Raw]])-1)),"") -> 2001-05-03 | E124: =IFERROR(VALUE(MID(Parse[[#This Row],[Raw]],FIND(CHAR(1),SUBSTITUTE(Parse[[#This Row],[Raw]],",",CHAR(1),1))+1,FIND(CHAR(1), SUBSTITUTE(Parse[[#This Row],[Raw]],",",CHAR(1),2))-FIND(CHAR(1),SUBSTITUTE(Parse[[#This Row],[Raw]],",",CHAR(1),1))-1)),"") -> 9.63808 | F124: =IFERROR(VALUE(MID(Parse[[#This Row],[Raw]],FIND(CHAR(1),SUBSTITUTE(Parse[[#This Row],[Raw]],",",CHAR(1),2))+1,FIND(CHAR(1), SUBSTITUTE(Parse[[#This Row],[Raw]],",",CHAR(1),3))-FIND(CHAR(1),SUBSTITUTE(Parse[[#This Row],[Raw]],",",CHAR(1),2))-1)),"") -> 9.88243 | G124: =IFERROR(VALUE(MID(Parse[[#This Row],[Raw]],FIND(CHAR(1),SUBSTITUTE(Parse[[#This Row],[Raw]],",",CHAR(1),3))+1,FIND(CHAR(1), SUBSTITUTE(Parse[[#This Row],[Raw]],",",CHAR(1),4))-FIND(CHAR(1),SUBSTITUTE(Parse[[#This Row],[Raw]],",",CHAR(1),3))-1)),"") -> 9.57021 | H124: =IFERROR(VALUE(MID(Parse[[#This Row],[Raw]],FIND(CHAR(1),SUBSTITUTE(Parse[[#This Row],[Raw]],",",CHAR(1),4))+1,FIND(CHAR(1), SUBSTITUTE(Parse[[#This Row],[Raw]],",",CHAR(1),5))-FIND(CHAR(1),SUBSTITUTE(Parse[[#This Row],[Raw]],",",CHAR(1),4))-1)),"") -> 9.82813 | I124: =IFERROR(VALUE(MID(Parse[[#This Row],[Raw]],FIND(CHAR(1),SUBSTITUTE(Parse[[#This Row],[Raw]],",",CHAR(1),5))+1,FIND(CHAR(1), SUBSTITUTE(Parse[[#This Row],[Raw]],",",CHAR(1),6))-FIND(CHAR(1),SUBSTITUTE(Parse[[#This Row],[Raw]],",",CHAR(1),5))-1)),"") -> 4.72046 | J124: =IFERROR(VALUE(RIGHT(Parse[[#This Row],[Raw]],LEN(Parse[[#This Row],[Raw]])-FIND(CHAR(1),SUBSTITUTE(Parse[[#This Row],[Raw]],",",CHAR(1),6)))),"") -> 63238463
A125: 2001-05-10,9.841700,10.226300,9.624510,10.181100,4.889993,90661927 | C125: 2001-05-10,9.841700,10.226300,9.624510,10.181100,4.889993,90661927 | D125: =IFERROR(DATEVALUE(LEFT(Parse[[#This Row],[Raw]],FIND(",",Parse[[#This Row],[Raw]])-1)),"") -> 2001-05-10 | E125: =IFERROR(VALUE(MID(Parse[[#This Row],[Raw]],FIND(CHAR(1),SUBSTITUTE(Parse[[#This Row],[Raw]],",",CHAR(1),1))+1,FIND(CHAR(1), SUBSTITUTE(Parse[[#This Row],[Raw]],",",CHAR(1),2))-FIND(CHAR(1),SUBSTITUTE(Parse[[#This Row],[Raw]],",",CHAR(1),1))-1)),"") -> 9.8417 | F125: =IFERROR(VALUE(MID(Parse[[#This Row],[Raw]],FIND(CHAR(1),SUBSTITUTE(Parse[[#This Row],[Raw]],",",CHAR(1),2))+1,FIND(CHAR(1), SUBSTITUTE(Parse[[#This Row],[Raw]],",",CHAR(1),3))-FIND(CHAR(1),SUBSTITUTE(Parse[[#This Row],[Raw]],",",CHAR(1),2))-1)),"") -> 10.2263 | G125: =IFERROR(VALUE(MID(Parse[[#This Row],[Raw]],FIND(CHAR(1),SUBSTITUTE(Parse[[#This Row],[Raw]],",",CHAR(1),3))+1,FIND(CHAR(1), SUBSTITUTE(Parse[[#This Row],[Raw]],",",CHAR(1),4))-FIND(CHAR(1),SUBSTITUTE(Parse[[#This Row],[Raw]],",",CHAR(1),3))-1)),"") -> 9.62451 | H125: =IFERROR(VALUE(MID(Parse[[#This Row],[Raw]],FIND(CHAR(1),SUBSTITUTE(Parse[[#This Row],[Raw]],",",CHAR(1),4))+1,FIND(CHAR(1), SUBSTITUTE(Parse[[#This Row],[Raw]],",",CHAR(1),5))-FIND(CHAR(1),SUBSTITUTE(Parse[[#This Row],[Raw]],",",CHAR(1),4))-1)),"") -> 10.1811 | I125: =IFERROR(VALUE(MID(Parse[[#This Row],[Raw]],FIND(CHAR(1),SUBSTITUTE(Parse[[#This Row],[Raw]],",",CHAR(1),5))+1,FIND(CHAR(1), SUBSTITUTE(Parse[[#This Row],[Raw]],",",CHAR(1),6))-FIND(CHAR(1),SUBSTITUTE(Parse[[#This Row],[Raw]],",",CHAR(1),5))-1)),"") -> 4.889993 | J125: =IFERROR(VALUE(RIGHT(Parse[[#This Row],[Raw]],LEN(Parse[[#This Row],[Raw]])-FIND(CHAR(1),SUBSTITUTE(Parse[[#This Row],[Raw]],",",CHAR(1),6)))),"") -> 90661927
A126: 2001-05-17,10.321400,10.660700,10.249000,10.457100,5.022557,108839076 | C126: 2001-05-17,10.321400,10.660700,10.249000,10.457100,5.022557,108839076 | D126: =IFERROR(DATEVALUE(LEFT(Parse[[#This Row],[Raw]],FIND(",",Parse[[#This Row],[Raw]])-1)),"") -> 2001-05-17 | E126: =IFERROR(VALUE(MID(Parse[[#This Row],[Raw]],FIND(CHAR(1),SUBSTITUTE(Parse[[#This Row],[Raw]],",",CHAR(1),1))+1,FIND(CHAR(1), SUBSTITUTE(Parse[[#This Row],[Raw]],",",CHAR(1),2))-FIND(CHAR(1),SUBSTITUTE(Parse[[#This Row],[Raw]],",",CHAR(1),1))-1)),"") -> 10.3214 | F126: =IFERROR(VALUE(MID(Parse[[#This Row],[Raw]],FIND(CHAR(1),SUBSTITUTE(Parse[[#This Row],[Raw]],",",CHAR(1),2))+1,FIND(CHAR(1), SUBSTITUTE(Parse[[#This Row],[Raw]],",",CHAR(1),3))-FIND(CHAR(1),SUBSTITUTE(Parse[[#This Row],[Raw]],",",CHAR(1),2))-1)),"") -> 10.6607 | G126: =IFERROR(VALUE(MID(Parse[[#This Row],[Raw]],FIND(CHAR(1),SUBSTITUTE(Parse[[#This Row],[Raw]],",",CHAR(1),3))+1,FIND(CHAR(1), SUBSTITUTE(Parse[[#This Row],[Raw]],",",CHAR(1),4))-FIND(CHAR(1),SUBSTITUTE(Parse[[#This Row],[Raw]],",",CHAR(1),3))-1)),"") -> 10.249 | H126: =IFERROR(VALUE(MID(Parse[[#This Row],[Raw]],FIND(CHAR(1),SUBSTITUTE(Parse[[#This Row],[Raw]],",",CHAR(1),4))+1,FIND(CHAR(1), SUBSTITUTE(Parse[[#This Row],[Raw]],",",CHAR(1),5))-FIND(CHAR(1),SUBSTITUTE(Parse[[#This Row],[Raw]],",",CHAR(1),4))-1)),"") -> 10.4571 | I126: =IFERROR(VALUE(MID(Parse[[#This Row],[Raw]],FIND(CHAR(1),SUBSTITUTE(Parse[[#This Row],[Raw]],",",CHAR(1),5))+1,FIND(CHAR(1), SUBSTITUTE(Parse[[#This Row],[Raw]],",",CHAR(1),6))-FIND(CHAR(1),SUBSTITUTE(Parse[[#This Row],[Raw]],",",CHAR(1),5))-1)),"") -> 5.022557 | J126: =IFERROR(VALUE(RIGHT(Parse[[#This Row],[Raw]],LEN(Parse[[#This Row],[Raw]])-FIND(CHAR(1),SUBSTITUTE(Parse[[#This Row],[Raw]],",",CHAR(1),6)))),"") -> 108839076
A127: 2001-05-24,10.439000,10.493300,10.090600,10.181100,4.889993,76443183 | C127: 2001-05-24,10.439000,10.493300,10.090600,10.181100,4.889993,76443183 | D127: =IFERROR(DATEVALUE(LEFT(Parse[[#This Row],[Raw]],FIND(",",Parse[[#This Row],[Raw]])-1)),"") -> 2001-05-24 | E127: =IFERROR(VALUE(MID(Parse[[#This Row],[Raw]],FIND(CHAR(1),SUBSTITUTE(Parse[[#This Row],[Raw]],",",CHAR(1),1))+1,FIND(CHAR(1), SUBSTITUTE(Parse[[#This Row],[Raw]],",",CHAR(1),2))-FIND(CHAR(1),SUBSTITUTE(Parse[[#This Row],[Raw]],",",CHAR(1),1))-1)),"") -> 10.439 | F127: =IFERROR(VALUE(MID(Parse[[#This Row],[Raw]],FIND(CHAR(1),SUBSTITUTE(Parse[[#This Row],[Raw]],",",CHAR(1),2))+1,FIND(CHAR(1), SUBSTITUTE(Parse[[#This Row],[Raw]],",",CHAR(1),3))-FIND(CHAR(1),SUBSTITUTE(Parse[[#This Row],[Raw]],",",CHAR(1),2))-1)),"") -> 10.4933 | G127: =IFERROR(VALUE(MID(Parse[[#This Row],[Raw]],FIND(CHAR(1),SUBSTITUTE(Parse[[#This Row],[Raw]],",",CHAR(1),3))+1,FIND(CHAR(1), SUBSTITUTE(Parse[[#This Row],[Raw]],",",CHAR(1),4))-FIND(CHAR(1),SUBSTITUTE(Parse[[#This Row],[Raw]],",",CHAR(1),3))-1)),"") -> 10.0906 | H127: =IFERROR(VALUE(MID(Parse[[#This Row],[Raw]],FIND(CHAR(1),SUBSTITUTE(Parse[[#This Row],[Raw]],",",CHAR(1),4))+1,FIND(CHAR(1), SUBSTITUTE(Parse[[#This Row],[Raw]],",",CHAR(1),5))-FIND(CHAR(1),SUBSTITUTE(Parse[[#This Row],[Raw]],",",CHAR(1),4))-1)),"") -> 10.1811 | I127: =IFERROR(VALUE(MID(Parse[[#This Row],[Raw]],FIND(CHAR(1),SUBSTITUTE(Parse[[#This Row],[Raw]],",",CHAR(1),5))+1,FIND(CHAR(1), SUBSTITUTE(Parse[[#This Row],[Raw]],",",CHAR(1),6))-FIND(CHAR(1),SUBSTITUTE(Parse[[#This Row],[Raw]],",",CHAR(1),5))-1)),"") -> 4.889993 | J127: =IFERROR(VALUE(RIGHT(Parse[[#This Row],[Raw]],LEN(Parse[[#This Row],[Raw]])-FIND(CHAR(1),SUBSTITUTE(Parse[[#This Row],[Raw]],",",CHAR(1),6)))),"") -> 76443183
A128: 2001-05-31,10.121300,10.271600,10.022700,10.149400,4.874765,93177567 | C128: 2001-05-31,10.121300,10.271600,10.022700,10.149400,4.874765,93177567 | D128: =IFERROR(DATEVALUE(LEFT(Parse[[#This Row],[Raw]],FIND(",",Parse[[#This Row],[Raw]])-1)),"") -> 2001-05-31 | E128: =IFERROR(VALUE(MID(Parse[[#This Row],[Raw]],FIND(CHAR(1),SUBSTITUTE(Parse[[#This Row],[Raw]],",",CHAR(1),1))+1,FIND(CHAR(1), SUBSTITUTE(Parse[[#This Row],[Raw]],",",CHAR(1),2))-FIND(CHAR(1),SUBSTITUTE(Parse[[#This Row],[Raw]],",",CHAR(1),1))-1)),"") -> 10.1213 | F128: =IFERROR(VALUE(MID(Parse[[#This Row],[Raw]],FIND(CHAR(1),SUBSTITUTE(Parse[[#This Row],[Raw]],",",CHAR(1),2))+1,FIND(CHAR(1), SUBSTITUTE(Parse[[#This Row],[Raw]],",",CHAR(1),3))-FIND(CHAR(1),SUBSTITUTE(Parse[[#This Row],[Raw]],",",CHAR(1),2))-1)),"") -> 10.2716 | G128: =IFERROR(VALUE(MID(Parse[[#This Row],[Raw]],FIND(CHAR(1),SUBSTITUTE(Parse[[#This Row],[Raw]],",",CHAR(1),3))+1,FIND(CHAR(1), SUBSTITUTE(Parse[[#This Row],[Raw]],",",CHAR(1),4))-FIND(CHAR(1),SUBSTITUTE(Parse[[#This Row],[Raw]],",",CHAR(1),3))-1)),"") -> 10.0227 | H128: =IFERROR(VALUE(MID(Parse[[#This Row],[Raw]],FIND(CHAR(1),SUBSTITUTE(Parse[[#This Row],[Raw]],",",CHAR(1),4))+1,FIND(CHAR(1), SUBSTITUTE(Parse[[#This Row],[Raw]],",",CHAR(1),5))-FIND(CHAR(1),SUBSTITUTE(Parse[[#This Row],[Raw]],",",CHAR(1),4))-1)),"") -> 10.1494 | I128: =IFERROR(VALUE(MID(Parse[[#This Row],[Raw]],FIND(CHAR(1),SUBSTITUTE(Parse[[#This Row],[Raw]],",",CHAR(1),5))+1,FIND(CHAR(1), SUBSTITUTE(Parse[[#This Row],[Raw]],",",CHAR(1),6))-FIND(CHAR(1),SUBSTITUTE(Parse[[#This Row],[Raw]],",",CHAR(1),5))-1)),"") -> 4.874765 | J128: =IFERROR(VALUE(RIGHT(Parse[[#This Row],[Raw]],LEN(Parse[[#This Row],[Raw]])-FIND(CHAR(1),SUBSTITUTE(Parse[[#This Row],[Raw]],",",CHAR(1),6)))),"") -> 93177567
A129: 2001-06-07,10.149400,10.226300,9.534010,9.791930,4.882148,57354993 | C129: 2001-06-07,10.149400,10.226300,9.534010,9.791930,4.882148,57354993 | D129: =IFERROR(DATEVALUE(LEFT(Parse[[#This Row],[Raw]],FIND(",",Parse[[#This Row],[Raw]])-1)),"") -> 2001-06-07 | E129: =IFERROR(VALUE(MID(Parse[[#This Row],[Raw]],FIND(CHAR(1),SUBSTITUTE(Parse[[#This Row],[Raw]],",",CHAR(1),1))+1,FIND(CHAR(1), SUBSTITUTE(Parse[[#This Row],[Raw]],",",CHAR(1),2))-FIND(CHAR(1),SUBSTITUTE(Parse[[#This Row],[Raw]],",",CHAR(1),1))-1)),"") -> 10.1494 | F129: =IFERROR(VALUE(MID(Parse[[#This Row],[Raw]],FIND(CHAR(1),SUBSTITUTE(Parse[[#This Row],[Raw]],",",CHAR(1),2))+1,FIND(CHAR(1), SUBSTITUTE(Parse[[#This Row],[Raw]],",",CHAR(1),3))-FIND(CHAR(1),SUBSTITUTE(Parse[[#This Row],[Raw]],",",CHAR(1),2))-1)),"") -> 10.2263 | G129: =IFERROR(VALUE(MID(Parse[[#This Row],[Raw]],FIND(CHAR(1),SUBSTITUTE(Parse[[#This Row],[Raw]],",",CHAR(1),3))+1,FIND(CHAR(1), SUBSTITUTE(Parse[[#This Row],[Raw]],",",CHAR(1),4))-FIND(CHAR(1),SUBSTITUTE(Parse[[#This Row],[Raw]],",",CHAR(1),3))-1)),"") -> 9.53401 | H129: =IFERROR(VALUE(MID(Parse[[#This Row],[Raw]],FIND(CHAR(1),SUBSTITUTE(Parse[[#This Row],[Raw]],",",CHAR(1),4))+1,FIND(CHAR(1), SUBSTITUTE(Parse[[#This Row],[Raw]],",",CHAR(1),5))-FIND(CHAR(1),SUBSTITUTE(Parse[[#This Row],[Raw]],",",CHAR(1),4))-1)),"") -> 9.79193 | I129: =IFERROR(VALUE(MID(Parse[[#This Row],[Raw]],FIND(CHAR(1),SUBSTITUTE(Parse[[#This Row],[Raw]],",",CHAR(1),5))+1,FIND(CHAR(1), SUBSTITUTE(Parse[[#This Row],[Raw]],",",CHAR(1),6))-FIND(CHAR(1),SUBSTITUTE(Parse[[#This Row],[Raw]],",",CHAR(1),5))-1)),"") -> 4.882148 | J129: =IFERROR(VALUE(RIGHT(Parse[[#This Row],[Raw]],LEN(Parse[[#This Row],[Raw]])-FIND(CHAR(1),SUBSTITUTE(Parse[[#This Row],[Raw]],",",CHAR(1),6)))),"") -> 57354993
A130: 2001-06-14,9.683330,9.968400,9.606410,9.633560,4.803187,55042498 | C130: =IF(ISBLANK(OFFSET($A$1,ROW()-1,0)),"",OFFSET($A$1,ROW()-1,0)) -> 2001-06-14,9.683330,9.968400,9.606410,9.633560,4.803187,55042498 | D130: =IFERROR(DATEVALUE(LEFT(Parse[[#This Row],[Raw]],FIND(",",Parse[[#This Row],[Raw]])-1)),"") -> 2001-06-14 | E130: =IFERROR(VALUE(MID(Parse[[#This Row],[Raw]],FIND(CHAR(1),SUBSTITUTE(Parse[[#This Row],[Raw]],",",CHAR(1),1))+1,FIND(CHAR(1), SUBSTITUTE(Parse[[#This Row],[Raw]],",",CHAR(1),2))-FIND(CHAR(1),SUBSTITUTE(Parse[[#This Row],[Raw]],",",CHAR(1),1))-1)),"") -> 9.68333 | F130: =IFERROR(VALUE(MID(Parse[[#This Row],[Raw]],FIND(CHAR(1),SUBSTITUTE(Parse[[#This Row],[Raw]],",",CHAR(1),2))+1,FIND(CHAR(1), SUBSTITUTE(Parse[[#This Row],[Raw]],",",CHAR(1),3))-FIND(CHAR(1),SUBSTITUTE(Parse[[#This Row],[Raw]],",",CHAR(1),2))-1)),"") -> 9.9684 | G130: =IFERROR(VALUE(MID(Parse[[#This Row],[Raw]],FIND(CHAR(1),SUBSTITUTE(Parse[[#This Row],[Raw]],",",CHAR(1),3))+1,FIND(CHAR(1), SUBSTITUTE(Parse[[#This Row],[Raw]],",",CHAR(1),4))-FIND(CHAR(1),SUBSTITUTE(Parse[[#This Row],[Raw]],",",CHAR(1),3))-1)),"") -> 9.60641 | H130: =IFERROR(VALUE(MID(Parse[[#This Row],[Raw]],FIND(CHAR(1),SUBSTITUTE(Parse[[#This Row],[Raw]],",",CHAR(1),4))+1,FIND(CHAR(1), SUBSTITUTE(Parse[[#This Row],[Raw]],",",CHAR(1),5))-FIND(CHAR(1),SUBSTITUTE(Parse[[#This Row],[Raw]],",",CHAR(1),4))-1)),"") -> 9.63356 | I130: =IFERROR(VALUE(MID(Parse[[#This Row],[Raw]],FIND(CHAR(1),SUBSTITUTE(Parse[[#This Row],[Raw]],",",CHAR(1),5))+1,FIND(CHAR(1), SUBSTITUTE(Parse[[#This Row],[Raw]],",",CHAR(1),6))-FIND(CHAR(1),SUBSTITUTE(Parse[[#This Row],[Raw]],",",CHAR(1),5))-1)),"") -> 4.803187 | J130: =IFERROR(VALUE(RIGHT(Parse[[#This Row],[Raw]],LEN(Parse[[#This Row],[Raw]])-FIND(CHAR(1),SUBSTITUTE(Parse[[#This Row],[Raw]],",",CHAR(1),6)))),"") -> 55042498
A131: 2001-06-21,9.547580,9.705960,9.461610,9.692380,4.832514,59230857 | C131: 2001-06-21,9.547580,9.705960,9.461610,9.692380,4.832514,59230857 | D131: =IFERROR(DATEVALUE(LEFT(Parse[[#This Row],[Raw]],FIND(",",Parse[[#This Row],[Raw]])-1)),"") -> 2001-06-21 | E131: =IFERROR(VALUE(MID(Parse[[#This Row],[Raw]],FIND(CHAR(1),SUBSTITUTE(Parse[[#This Row],[Raw]],",",CHAR(1),1))+1,FIND(CHAR(1), SUBSTITUTE(Parse[[#This Row],[Raw]],",",CHAR(1),2))-FIND(CHAR(1),SUBSTITUTE(Parse[[#This Row],[Raw]],",",CHAR(1),1))-1)),"") -> 9.54758 | F131: =IFERROR(VALUE(MID(Parse[[#This Row],[Raw]],FIND(CHAR(1),SUBSTITUTE(Parse[[#This Row],[Raw]],",",CHAR(1),2))+1,FIND(CHAR(1), SUBSTITUTE(Parse[[#This Row],[Raw]],",",CHAR(1),3))-FIND(CHAR(1),SUBSTITUTE(Parse[[#This Row],[Raw]],",",CHAR(1),2))-1)),"") -> 9.70596 | G131: =IFERROR(VALUE(MID(Parse[[#This Row],[Raw]],FIND(CHAR(1),SUBSTITUTE(Parse[[#This Row],[Raw]],",",CHAR(1),3))+1,FIND(CHAR(1), SUBSTITUTE(Parse[[#This Row],[Raw]],",",CHAR(1),4))-FIND(CHAR(1),SUBSTITUTE(Parse[[#This Row],[Raw]],",",CHAR(1),3))-1)),"") -> 9.46161 | H131: =IFERROR(VALUE(MID(Parse[[#This Row],[Raw]],FIND(CHAR(1),SUBSTITUTE(Parse[[#This Row],[Raw]],",",CHAR(1),4))+1,FIND(CHAR(1), SUBSTITUTE(Parse[[#This Row],[Raw]],",",CHAR(1),5))-FIND(CHAR(1),SUBSTITUTE(Parse[[#This Row],[Raw]],",",CHAR(1),4))-1)),"") -> 9.69238 | I131: =IFERROR(VALUE(MID(Parse[[#This Row],[Raw]],FIND(CHAR(1),SUBSTITUTE(Parse[[#This Row],[Raw]],",",CHAR(1),5))+1,FIND(CHAR(1), SUBSTITUTE(Parse[[#This Row],[Raw]],",",CHAR(1),6))-FIND(CHAR(1),SUBSTITUTE(Parse[[#This Row],[Raw]],",",CHAR(1),5))-1)),"") -> 4.832514 | J131: =IFERROR(VALUE(RIGHT(Parse[[#This Row],[Raw]],LEN(Parse[[#This Row],[Raw]])-FIND(CHAR(1),SUBSTITUTE(Parse[[#This Row],[Raw]],",",CHAR(1),6)))),"") -> 59230857
A132: 2001-06-28,9.811640,10.260200,9.578020,10.045200,5.008427,71044897 | C132: 2001-06-28,9.811640,10.260200,9.578020,10.045200,5.008427,71044897 | D132: =IFERROR(DATEVALUE(LEFT(Parse[[#This Row],[Raw]],FIND(",",Parse[[#This Row],[Raw]])-1)),"") -> 2001-06-28 | E132: =IFERROR(VALUE(MID(Parse[[#This Row],[Raw]],FIND(CHAR(1),SUBSTITUTE(Parse[[#This Row],[Raw]],",",CHAR(1),1))+1,FIND(CHAR(1), SUBSTITUTE(Parse[[#This Row],[Raw]],",",CHAR(1),2))-FIND(CHAR(1),SUBSTITUTE(Parse[[#This Row],[Raw]],",",CHAR(1),1))-1)),"") -> 9.81164 | F132: =IFERROR(VALUE(MID(Parse[[#This Row],[Raw]],FIND(CHAR(1),SUBSTITUTE(Parse[[#This Row],[Raw]],",",CHAR(1),2))+1,FIND(CHAR(1), SUBSTITUTE(Parse[[#This Row],[Raw]],",",CHAR(1),3))-FIND(CHAR(1),SUBSTITUTE(Parse[[#This Row],[Raw]],",",CHAR(1),2))-1)),"") -> 10.2602 | G132: =IFERROR(VALUE(MID(Parse[[#This Row],[Raw]],FIND(CHAR(1),SUBSTITUTE(Parse[[#This Row],[Raw]],",",CHAR(1),3))+1,FIND(CHAR(1), SUBSTITUTE(Parse[[#This Row],[Raw]],",",CHAR(1),4))-FIND(CHAR(1),SUBSTITUTE(Parse[[#This Row],[Raw]],",",CHAR(1),3))-1)),"") -> 9.57802 | H132: =IFERROR(VALUE(MID(Parse[[#This Row],[Raw]],FIND(CHAR(1),SUBSTITUTE(Parse[[#This Row],[Raw]],",",CHAR(1),4))+1,FIND(CHAR(1), SUBSTITUTE(Parse[[#This Row],[Raw]],",",CHAR(1),5))-FIND(CHAR(1),SUBSTITUTE(Parse[[#This Row],[Raw]],",",CHAR(1),4))-1)),"") -> 10.0452 | I132: =IFERROR(VALUE(MID(Parse[[#This Row],[Raw]],FIND(CHAR(1),SUBSTITUTE(Parse[[#This Row],[Raw]],",",CHAR(1),5))+1,FIND(CHAR(1), SUBSTITUTE(Parse[[#This Row],[Raw]],",",CHAR(1),6))-FIND(CHAR(1),SUBSTITUTE(Parse[[#This Row],[Raw]],",",CHAR(1),5))-1)),"") -> 5.008427 | J132: =IFERROR(VALUE(RIGHT(Parse[[#This Row],[Raw]],LEN(Parse[[#This Row],[Raw]])-FIND(CHAR(1),SUBSTITUTE(Parse[[#This Row],[Raw]],",",CHAR(1),6)))),"") -> 71044897
A133: 2001-07-05,9.934050,10.017200,9.559340,9.845280,4.908748,59764879 | C133: 2001-07-05,9.934050,10.017200,9.559340,9.845280,4.908748,59764879 | D133: =IFERROR(DATEVALUE(LEFT(Parse[[#This Row],[Raw]],FIND(",",Parse[[#This Row],[Raw]])-1)),"") -> 2001-07-05 | E133: =IFERROR(VALUE(MID(Parse[[#This Row],[Raw]],FIND(CHAR(1),SUBSTITUTE(Parse[[#This Row],[Raw]],",",CHAR(1),1))+1,FIND(CHAR(1), SUBSTITUTE(Parse[[#This Row],[Raw]],",",CHAR(1),2))-FIND(CHAR(1),SUBSTITUTE(Parse[[#This Row],[Raw]],",",CHAR(1),1))-1)),"") -> 9.93405 | F133: =IFERROR(VALUE(MID(Parse[[#This Row],[Raw]],FIND(CHAR(1),SUBSTITUTE(Parse[[#This Row],[Raw]],",",CHAR(1),2))+1,FIND(CHAR(1), SUBSTITUTE(Parse[[#This Row],[Raw]],",",CHAR(1),3))-FIND(CHAR(1),SUBSTITUTE(Parse[[#This Row],[Raw]],",",CHAR(1),2))-1)),"") -> 10.0172 | G133: =IFERROR(VALUE(MID(Parse[[#This Row],[Raw]],FIND(CHAR(1),SUBSTITUTE(Parse[[#This Row],[Raw]],",",CHAR(1),3))+1,FIND(CHAR(1), SUBSTITUTE(Parse[[#This Row],[Raw]],",",CHAR(1),4))-FIND(CHAR(1),SUBSTITUTE(Parse[[#This Row],[Raw]],",",CHAR(1),3))-1)),"") -> 9.55934 | H133: =IFERROR(VALUE(MID(Parse[[#This Row],[Raw]],FIND(CHAR(1),SUBSTITUTE(Parse[[#This Row],[Raw]],",",CHAR(1),4))+1,FIND(CHAR(1), SUBSTITUTE(Parse[[#This Row],[Raw]],",",CHAR(1),5))-FIND(CHAR(1),SUBSTITUTE(Parse[[#This Row],[Raw]],",",CHAR(1),4))-1)),"") -> 9.84528 | I133: =IFERROR(VALUE(MID(Parse[[#This Row],[Raw]],FIND(CHAR(1),SUBSTITUTE(Parse[[#This Row],[Raw]],",",CHAR(1),5))+1,FIND(CHAR(1), SUBSTITUTE(Parse[[#This Row],[Raw]],",",CHAR(1),6))-FIND(CHAR(1),SUBSTITUTE(Parse[[#This Row],[Raw]],",",CHAR(1),5))-1)),"") -> 4.908748 | J133: =IFERROR(VALUE(RIGHT(Parse[[#This Row],[Raw]],LEN(Parse[[#This Row],[Raw]])-FIND(CHAR(1),SUBSTITUTE(Parse[[#This Row],[Raw]],",",CHAR(1),6)))),"") -> 59764879
A134: 2001-07-12,9.956470,9.998520,9.372450,9.503270,4.738226,53130027 | C134: 2001-07-12,9.956470,9.998520,9.372450,9.503270,4.738226,53130027 | D134: =IFERROR(DATEVALUE(LEFT(Parse[[#This Row],[Raw]],FIND(",",Parse[[#This Row],[Raw]])-1)),"") -> 2001-07-12 | E134: =IFERROR(VALUE(MID(Parse[[#This Row],[Raw]],FIND(CHAR(1),SUBSTITUTE(Parse[[#This Row],[Raw]],",",CHAR(1),1))+1,FIND(CHAR(1), SUBSTITUTE(Parse[[#This Row],[Raw]],",",CHAR(1),2))-FIND(CHAR(1),SUBSTITUTE(Parse[[#This Row],[Raw]],",",CHAR(1),1))-1)),"") -> 9.95647 | F134: =IFERROR(VALUE(MID(Parse[[#This Row],[Raw]],FIND(CHAR(1),SUBSTITUTE(Parse[[#This Row],[Raw]],",",CHAR(1),2))+1,FIND(CHAR(1), SUBSTITUTE(Parse[[#This Row],[Raw]],",",CHAR(1),3))-FIND(CHAR(1),SUBSTITUTE(Parse[[#This Row],[Raw]],",",CHAR(1),2))-1)),"") -> 9.99852 | G134: =IFERROR(VALUE(MID(Parse[[#This Row],[Raw]],FIND(CHAR(1),SUBSTITUTE(Parse[[#This Row],[Raw]],",",CHAR(1),3))+1,FIND(CHAR(1), SUBSTITUTE(Parse[[#This Row],[Raw]],",",CHAR(1),4))-FIND(CHAR(1),SUBSTITUTE(Parse[[#This Row],[Raw]],",",CHAR(1),3))-1)),"") -> 9.37245 | H134: =IFERROR(VALUE(MID(Parse[[#This Row],[Raw]],FIND(CHAR(1),SUBSTITUTE(Parse[[#This Row],[Raw]],",",CHAR(1),4))+1,FIND(CHAR(1), SUBSTITUTE(Parse[[#This Row],[Raw]],",",CHAR(1),5))-FIND(CHAR(1),SUBSTITUTE(Parse[[#This Row],[Raw]],",",CHAR(1),4))-1)),"") -> 9.50327 | I134: =IFERROR(VALUE(MID(Parse[[#This Row],[Raw]],FIND(CHAR(1),SUBSTITUTE(Parse[[#This Row],[Raw]],",",CHAR(1),5))+1,FIND(CHAR(1), SUBSTITUTE(Parse[[#This Row],[Raw]],",",CHAR(1),6))-FIND(CHAR(1),SUBSTITUTE(Parse[[#This Row],[Raw]],",",CHAR(1),5))-1)),"") -> 4.738226 | J134: =IFERROR(VALUE(RIGHT(Parse[[#This Row],[Raw]],LEN(Parse[[#This Row],[Raw]])-FIND(CHAR(1),SUBSTITUTE(Parse[[#This Row],[Raw]],",",CHAR(1),6)))),"") -> 53130027
A135: 2001-07-19,9.557470,9.652780,8.568830,8.755720,4.365506,104641216 | C135: 2001-07-19,9.557470,9.652780,8.568830,8.755720,4.365506,104641216 | D135: =IFERROR(DATEVALUE(LEFT(Parse[[#This Row],[Raw]],FIND(",",Parse[[#This Row],[Raw]])-1)),"") -> 2001-07-19 | E135: =IFERROR(VALUE(MID(Parse[[#This Row],[Raw]],FIND(CHAR(1),SUBSTITUTE(Parse[[#This Row],[Raw]],",",CHAR(1),1))+1,FIND(CHAR(1), SUBSTITUTE(Parse[[#This Row],[Raw]],",",CHAR(1),2))-FIND(CHAR(1),SUBSTITUTE(Parse[[#This Row],[Raw]],",",CHAR(1),1))-1)),"") -> 9.55747 | F135: =IFERROR(VALUE(MID(Parse[[#This Row],[Raw]],FIND(CHAR(1),SUBSTITUTE(Parse[[#This Row],[Raw]],",",CHAR(1),2))+1,FIND(CHAR(1), SUBSTITUTE(Parse[[#This Row],[Raw]],",",CHAR(1),3))-FIND(CHAR(1),SUBSTITUTE(Parse[[#This Row],[Raw]],",",CHAR(1),2))-1)),"") -> 9.65278 | G135: =IFERROR(VALUE(MID(Parse[[#This Row],[Raw]],FIND(CHAR(1),SUBSTITUTE(Parse[[#This Row],[Raw]],",",CHAR(1),3))+1,FIND(CHAR(1), SUBSTITUTE(Parse[[#This Row],[Raw]],",",CHAR(1),4))-FIND(CHAR(1),SUBSTITUTE(Parse[[#This Row],[Raw]],",",CHAR(1),3))-1)),"") -> 8.56883 | H135: =IFERROR(VALUE(MID(Parse[[#This Row],[Raw]],FIND(CHAR(1),SUBSTITUTE(Parse[[#This Row],[Raw]],",",CHAR(1),4))+1,FIND(CHAR(1), SUBSTITUTE(Parse[[#This Row],[Raw]],",",CHAR(1),5))-FIND(CHAR(1),SUBSTITUTE(Parse[[#This Row],[Raw]],",",CHAR(1),4))-1)),"") -> 8.75572 | I135: =IFERROR(VALUE(MID(Parse[[#This Row],[Raw]],FIND(CHAR(1),SUBSTITUTE(Parse[[#This Row],[Raw]],",",CHAR(1),5))+1,FIND(CHAR(1), SUBSTITUTE(Parse[[#This Row],[Raw]],",",CHAR(1),6))-FIND(CHAR(1),SUBSTITUTE(Parse[[#This Row],[Raw]],",",CHAR(1),5))-1)),"") -> 4.365506 | J135: =IFERROR(VALUE(RIGHT(Parse[[#This Row],[Raw]],LEN(Parse[[#This Row],[Raw]])-FIND(CHAR(1),SUBSTITUTE(Parse[[#This Row],[Raw]],",",CHAR(1),6)))),"") -> 104641216
A136: 2001-07-26,8.802440,9.437860,8.708990,9.232280,4.603114,87154579 | C136: 2001-07-26,8.802440,9.437860,8.708990,9.232280,4.603114,87154579 | D136: =IFERROR(DATEVALUE(LEFT(Parse[[#This Row],[Raw]],FIND(",",Parse[[#This Row],[Raw]])-1)),"") -> 2001-07-26 | E136: =IFERROR(VALUE(MID(Parse[[#This Row],[Raw]],FIND(CHAR(1),SUBSTITUTE(Parse[[#This Row],[Raw]],",",CHAR(1),1))+1,FIND(CHAR(1), SUBSTITUTE(Parse[[#This Row],[Raw]],",",CHAR(1),2))-FIND(CHAR(1),SUBSTITUTE(Parse[[#This Row],[Raw]],",",CHAR(1),1))-1)),"") -> 8.80244 | F136: =IFERROR(VALUE(MID(Parse[[#This Row],[Raw]],FIND(CHAR(1),SUBSTITUTE(Parse[[#This Row],[Raw]],",",CHAR(1),2))+1,FIND(CHAR(1), SUBSTITUTE(Parse[[#This Row],[Raw]],",",CHAR(1),3))-FIND(CHAR(1),SUBSTITUTE(Parse[[#This Row],[Raw]],",",CHAR(1),2))-1)),"") -> 9.43786 | G136: =IFERROR(VALUE(MID(Parse[[#This Row],[Raw]],FIND(CHAR(1),SUBSTITUTE(Parse[[#This Row],[Raw]],",",CHAR(1),3))+1,FIND(CHAR(1), SUBSTITUTE(Parse[[#This Row],[Raw]],",",CHAR(1),4))-FIND(CHAR(1),SUBSTITUTE(Parse[[#This Row],[Raw]],",",CHAR(1),3))-1)),"") -> 8.70899 | H136: =IFERROR(VALUE(MID(Parse[[#This Row],[Raw]],FIND(CHAR(1),SUBSTITUTE(Parse[[#This Row],[Raw]],",",CHAR(1),4))+1,FIND(CHAR(1), SUBSTITUTE(Parse[[#This Row],[Raw]],",",CHAR(1),5))-FIND(CHAR(1),SUBSTITUTE(Parse[[#This Row],[Raw]],",",CHAR(1),4))-1)),"") -> 9.23228 | I136: =IFERROR(VALUE(MID(Parse[[#This Row],[Raw]],FIND(CHAR(1),SUBSTITUTE(Parse[[#This Row],[Raw]],",",CHAR(1),5))+1,FIND(CHAR(1), SUBSTITUTE(Parse[[#This Row],[Raw]],",",CHAR(1),6))-FIND(CHAR(1),SUBSTITUTE(Parse[[#This Row],[Raw]],",",CHAR(1),5))-1)),"") -> 4.603114 | J136: =IFERROR(VALUE(RIGHT(Parse[[#This Row],[Raw]],LEN(Parse[[#This Row],[Raw]])-FIND(CHAR(1),SUBSTITUTE(Parse[[#This Row],[Raw]],",",CHAR(1),6)))),"") -> 87154579
A137: 2001-08-02,9.232280,9.400480,8.774410,8.839820,4.407437,66621094 | C137: 2001-08-02,9.232280,9.400480,8.774410,8.839820,4.407437,66621094 | D137: =IFERROR(DATEVALUE(LEFT(Parse[[#This Row],[Raw]],FIND(",",Parse[[#This Row],[Raw]])-1)),"") -> 2001-08-02 | E137: =IFERROR(VALUE(MID(Parse[[#This Row],[Raw]],FIND(CHAR(1),SUBSTITUTE(Parse[[#This Row],[Raw]],",",CHAR(1),1))+1,FIND(CHAR(1), SUBSTITUTE(Parse[[#This Row],[Raw]],",",CHAR(1),2))-FIND(CHAR(1),SUBSTITUTE(Parse[[#This Row],[Raw]],",",CHAR(1),1))-1)),"") -> 9.23228 | F137: =IFERROR(VALUE(MID(Parse[[#This Row],[Raw]],FIND(CHAR(1),SUBSTITUTE(Parse[[#This Row],[Raw]],",",CHAR(1),2))+1,FIND(CHAR(1), SUBSTITUTE(Parse[[#This Row],[Raw]],",",CHAR(1),3))-FIND(CHAR(1),SUBSTITUTE(Parse[[#This Row],[Raw]],",",CHAR(1),2))-1)),"") -> 9.40048 | G137: =IFERROR(VALUE(MID(Parse[[#This Row],[Raw]],FIND(CHAR(1),SUBSTITUTE(Parse[[#This Row],[Raw]],",",CHAR(1),3))+1,FIND(CHAR(1), SUBSTITUTE(Parse[[#This Row],[Raw]],",",CHAR(1),4))-FIND(CHAR(1),SUBSTITUTE(Parse[[#This Row],[Raw]],",",CHAR(1),3))-1)),"") -> 8.77441 | H137: =IFERROR(VALUE(MID(Parse[[#This Row],[Raw]],FIND(CHAR(1),SUBSTITUTE(Parse[[#This Row],[Raw]],",",CHAR(1),4))+1,FIND(CHAR(1), SUBSTITUTE(Parse[[#This Row],[Raw]],",",CHAR(1),5))-FIND(CHAR(1),SUBSTITUTE(Parse[[#This Row],[Raw]],",",CHAR(1),4))-1)),"") -> 8.83982 | I137: =IFERROR(VALUE(MID(Parse[[#This Row],[Raw]],FIND(CHAR(1),SUBSTITUTE(Parse[[#This Row],[Raw]],",",CHAR(1),5))+1,FIND(CHAR(1), SUBSTITUTE(Parse[[#This Row],[Raw]],",",CHAR(1),6))-FIND(CHAR(1),SUBSTITUTE(Parse[[#This Row],[Raw]],",",CHAR(1),5))-1)),"") -> 4.407437 | J137: =IFERROR(VALUE(RIGHT(Parse[[#This Row],[Raw]],LEN(Parse[[#This Row],[Raw]])-FIND(CHAR(1),SUBSTITUTE(Parse[[#This Row],[Raw]],",",CHAR(1),6)))),"") -> 66621094
A138: 2001-08-09,8.821130,8.886540,8.550140,8.568830,4.272325,95475134 | C138: 2001-08-09,8.821130,8.886540,8.550140,8.568830,4.272325,95475134 | D138: =IFERROR(DATEVALUE(LEFT(Parse[[#This Row],[Raw]],FIND(",",Parse[[#This Row],[Raw]])-1)),"") -> 2001-08-09 | E138: =IFERROR(VALUE(MID(Parse[[#This Row],[Raw]],FIND(CHAR(1),SUBSTITUTE(Parse[[#This Row],[Raw]],",",CHAR(1),1))+1,FIND(CHAR(1), SUBSTITUTE(Parse[[#This Row],[Raw]],",",CHAR(1),2))-FIND(CHAR(1),SUBSTITUTE(Parse[[#This Row],[Raw]],",",CHAR(1),1))-1)),"") -> 8.82113 | F138: =IFERROR(VALUE(MID(Parse[[#This Row],[Raw]],FIND(CHAR(1),SUBSTITUTE(Parse[[#This Row],[Raw]],",",CHAR(1),2))+1,FIND(CHAR(1), SUBSTITUTE(Parse[[#This Row],[Raw]],",",CHAR(1),3))-FIND(CHAR(1),SUBSTITUTE(Parse[[#This Row],[Raw]],",",CHAR(1),2))-1)),"") -> 8.88654 | G138: =IFERROR(VALUE(MID(Parse[[#This Row],[Raw]],FIND(CHAR(1),SUBSTITUTE(Parse[[#This Row],[Raw]],",",CHAR(1),3))+1,FIND(CHAR(1), SUBSTITUTE(Parse[[#This Row],[Raw]],",",CHAR(1),4))-FIND(CHAR(1),SUBSTITUTE(Parse[[#This Row],[Raw]],",",CHAR(1),3))-1)),"") -> 8.55014 | H138: =IFERROR(VALUE(MID(Parse[[#This Row],[Raw]],FIND(CHAR(1),SUBSTITUTE(Parse[[#This Row],[Raw]],",",CHAR(1),4))+1,FIND(CHAR(1), SUBSTITUTE(Parse[[#This Row],[Raw]],",",CHAR(1),5))-FIND(CHAR(1),SUBSTITUTE(Parse[[#This Row],[Raw]],",",CHAR(1),4))-1)),"") -> 8.56883 | I138: =IFERROR(VALUE(MID(Parse[[#This Row],[Raw]],FIND(CHAR(1),SUBSTITUTE(Parse[[#This Row],[Raw]],",",CHAR(1),5))+1,FIND(CHAR(1), SUBSTITUTE(Parse[[#This Row],[Raw]],",",CHAR(1),6))-FIND(CHAR(1),SUBSTITUTE(Parse[[#This Row],[Raw]],",",CHAR(1),5))-1)),"") -> 4.272325 | J138: =IFERROR(VALUE(RIGHT(Parse[[#This Row],[Raw]],LEN(Parse[[#This Row],[Raw]])-FIND(CHAR(1),SUBSTITUTE(Parse[[#This Row],[Raw]],",",CHAR(1),6)))),"") -> 95475134
A139: 2001-08-16,8.574430,8.671620,8.409970,8.540790,4.258343,60204019 | C139: 2001-08-16,8.574430,8.671620,8.409970,8.540790,4.258343,60204019 | D139: =IFERROR(DATEVALUE(LEFT(Parse[[#This Row],[Raw]],FIND(",",Parse[[#This Row],[Raw]])-1)),"") -> 2001-08-16 | E139: =IFERROR(VALUE(MID(Parse[[#This Row],[Raw]],FIND(CHAR(1),SUBSTITUTE(Parse[[#This Row],[Raw]],",",CHAR(1),1))+1,FIND(CHAR(1), SUBSTITUTE(Parse[[#This Row],[Raw]],",",CHAR(1),2))-FIND(CHAR(1),SUBSTITUTE(Parse[[#This Row],[Raw]],",",CHAR(1),1))-1)),"") -> 8.57443 | F139: =IFERROR(VALUE(MID(Parse[[#This Row],[Raw]],FIND(CHAR(1),SUBSTITUTE(Parse[[#This Row],[Raw]],",",CHAR(1),2))+1,FIND(CHAR(1), SUBSTITUTE(Parse[[#This Row],[Raw]],",",CHAR(1),3))-FIND(CHAR(1),SUBSTITUTE(Parse[[#This Row],[Raw]],",",CHAR(1),2))-1)),"") -> 8.67162 | G139: =IFERROR(VALUE(MID(Parse[[#This Row],[Raw]],FIND(CHAR(1),SUBSTITUTE(Parse[[#This Row],[Raw]],",",CHAR(1),3))+1,FIND(CHAR(1), SUBSTITUTE(Parse[[#This Row],[Raw]],",",CHAR(1),4))-FIND(CHAR(1),SUBSTITUTE(Parse[[#This Row],[Raw]],",",CHAR(1),3))-1)),"") -> 8.40997 | H139: =IFERROR(VALUE(MID(Parse[[#This Row],[Raw]],FIND(CHAR(1),SUBSTITUTE(Parse[[#This Row],[Raw]],",",CHAR(1),4))+1,FIND(CHAR(1), SUBSTITUTE(Parse[[#This Row],[Raw]],",",CHAR(1),5))-FIND(CHAR(1),SUBSTITUTE(Parse[[#This Row],[Raw]],",",CHAR(1),4))-1)),"") -> 8.54079 | I139: =IFERROR(VALUE(MID(Parse[[#This Row],[Raw]],FIND(CHAR(1),SUBSTITUTE(Parse[[#This Row],[Raw]],",",CHAR(1),5))+1,FIND(CHAR(1), SUBSTITUTE(Parse[[#This Row],[Raw]],",",CHAR(1),6))-FIND(CHAR(1),SUBSTITUTE(Parse[[#This Row],[Raw]],",",CHAR(1),5))-1)),"") -> 4.258343 | J139: =IFERROR(VALUE(RIGHT(Parse[[#This Row],[Raw]],LEN(Parse[[#This Row],[Raw]])-FIND(CHAR(1),SUBSTITUTE(Parse[[#This Row],[Raw]],",",CHAR(1),6)))),"") -> 60204019
A140: 2001-08-23,8.652930,9.129490,8.578170,8.961290,4.468000,47249280 | C140: 2001-08-23,8.652930,9.129490,8.578170,8.961290,4.468000,47249280 | D140: =IFERROR(DATEVALUE(LEFT(Parse[[#This Row],[Raw]],FIND(",",Parse[[#This Row],[Raw]])-1)),"") -> 2001-08-23 | E140: =IFERROR(VALUE(MID(Parse[[#This Row],[Raw]],FIND(CHAR(1),SUBSTITUTE(Parse[[#This Row],[Raw]],",",CHAR(1),1))+1,FIND(CHAR(1), SUBSTITUTE(Parse[[#This Row],[Raw]],",",CHAR(1),2))-FIND(CHAR(1),SUBSTITUTE(Parse[[#This Row],[Raw]],",",CHAR(1),1))-1)),"") -> 8.65293 | F140: =IFERROR(VALUE(MID(Parse[[#This Row],[Raw]],FIND(CHAR(1),SUBSTITUTE(Parse[[#This Row],[Raw]],",",CHAR(1),2))+1,FIND(CHAR(1), SUBSTITUTE(Parse[[#This Row],[Raw]],",",CHAR(1),3))-FIND(CHAR(1),SUBSTITUTE(Parse[[#This Row],[Raw]],",",CHAR(1),2))-1)),"") -> 9.12949 | G140: =IFERROR(VALUE(MID(Parse[[#This Row],[Raw]],FIND(CHAR(1),SUBSTITUTE(Parse[[#This Row],[Raw]],",",CHAR(1),3))+1,FIND(CHAR(1), SUBSTITUTE(Parse[[#This Row],[Raw]],",",CHAR(1),4))-FIND(CHAR(1),SUBSTITUTE(Parse[[#This Row],[Raw]],",",CHAR(1),3))-1)),"") -> 8.57817 | H140: =IFERROR(VALUE(MID(Parse[[#This Row],[Raw]],FIND(CHAR(1),SUBSTITUTE(Parse[[#This Row],[Raw]],",",CHAR(1),4))+1,FIND(CHAR(1), SUBSTITUTE(Parse[[#This Row],[Raw]],",",CHAR(1),5))-FIND(CHAR(1),SUBSTITUTE(Parse[[#This Row],[Raw]],",",CHAR(1),4))-1)),"") -> 8.96129 | I140: =IFERROR(VALUE(MID(Parse[[#This Row],[Raw]],FIND(CHAR(1),SUBSTITUTE(Parse[[#This Row],[Raw]],",",CHAR(1),5))+1,FIND(CHAR(1), SUBSTITUTE(Parse[[#This Row],[Raw]],",",CHAR(1),6))-FIND(CHAR(1),SUBSTITUTE(Parse[[#This Row],[Raw]],",",CHAR(1),5))-1)),"") -> 4.468 | J140: =IFERROR(VALUE(RIGHT(Parse[[#This Row],[Raw]],LEN(Parse[[#This Row],[Raw]])-FIND(CHAR(1),SUBSTITUTE(Parse[[#This Row],[Raw]],",",CHAR(1),6)))),"") -> 47249280
A141: 2001-08-30,8.858510,9.232280,8.652930,9.064080,4.519252,43694269 | C141: 2001-08-30,8.858510,9.232280,8.652930,9.064080,4.519252,43694269 | D141: =IFERROR(DATEVALUE(LEFT(Parse[[#This Row],[Raw]],FIND(",",Parse[[#This Row],[Raw]])-1)),"") -> 2001-08-30 | E141: =IFERROR(VALUE(MID(Parse[[#This Row],[Raw]],FIND(CHAR(1),SUBSTITUTE(Parse[[#This Row],[Raw]],",",CHAR(1),1))+1,FIND(CHAR(1), SUBSTITUTE(Parse[[#This Row],[Raw]],",",CHAR(1),2))-FIND(CHAR(1),SUBSTITUTE(Parse[[#This Row],[Raw]],",",CHAR(1),1))-1)),"") -> 8.85851 | F141: =IFERROR(VALUE(MID(Parse[[#This Row],[Raw]],FIND(CHAR(1),SUBSTITUTE(Parse[[#This Row],[Raw]],",",CHAR(1),2))+1,FIND(CHAR(1), SUBSTITUTE(Parse[[#This Row],[Raw]],",",CHAR(1),3))-FIND(CHAR(1),SUBSTITUTE(Parse[[#This Row],[Raw]],",",CHAR(1),2))-1)),"") -> 9.23228 | G141: =IFERROR(VALUE(MID(Parse[[#This Row],[Raw]],FIND(CHAR(1),SUBSTITUTE(Parse[[#This Row],[Raw]],",",CHAR(1),3))+1,FIND(CHAR(1), SUBSTITUTE(Parse[[#This Row],[Raw]],",",CHAR(1),4))-FIND(CHAR(1),SUBSTITUTE(Parse[[#This Row],[Raw]],",",CHAR(1),3))-1)),"") -> 8.65293 | H141: =IFERROR(VALUE(MID(Parse[[#This Row],[Raw]],FIND(CHAR(1),SUBSTITUTE(Parse[[#This Row],[Raw]],",",CHAR(1),4))+1,FIND(CHAR(1), SUBSTITUTE(Parse[[#This Row],[Raw]],",",CHAR(1),5))-FIND(CHAR(1),SUBSTITUTE(Parse[[#This Row],[Raw]],",",CHAR(1),4))-1)),"") -> 9.06408 | I141: =IFERROR(VALUE(MID(Parse[[#This Row],[Raw]],FIND(CHAR(1),SUBSTITUTE(Parse[[#This Row],[Raw]],",",CHAR(1),5))+1,FIND(CHAR(1), SUBSTITUTE(Parse[[#This Row],[Raw]],",",CHAR(1),6))-FIND(CHAR(1),SUBSTITUTE(Parse[[#This Row],[Raw]],",",CHAR(1),5))-1)),"") -> 4.519252 | J141: =IFERROR(VALUE(RIGHT(Parse[[#This Row],[Raw]],LEN(Parse[[#This Row],[Raw]])-FIND(CHAR(1),SUBSTITUTE(Parse[[#This Row],[Raw]],",",CHAR(1),6)))),"") -> 43694269
A142: 2001-09-06,8.970640,9.111740,8.484730,8.509960,4.242972,47356440 | C142: 2001-09-06,8.970640,9.111740,8.484730,8.509960,4.242972,47356440 | D142: =IFERROR(DATEVALUE(LEFT(Parse[[#This Row],[Raw]],FIND(",",Parse[[#This Row],[Raw]])-1)),"") -> 2001-09-06 | E142: =IFERROR(VALUE(MID(Parse[[#This Row],[Raw]],FIND(CHAR(1),SUBSTITUTE(Parse[[#This Row],[Raw]],",",CHAR(1),1))+1,FIND(CHAR(1), SUBSTITUTE(Parse[[#This Row],[Raw]],",",CHAR(1),2))-FIND(CHAR(1),SUBSTITUTE(Parse[[#This Row],[Raw]],",",CHAR(1),1))-1)),"") -> 8.97064 | F142: =IFERROR(VALUE(MID(Parse[[#This Row],[Raw]],FIND(CHAR(1),SUBSTITUTE(Parse[[#This Row],[Raw]],",",CHAR(1),2))+1,FIND(CHAR(1), SUBSTITUTE(Parse[[#This Row],[Raw]],",",CHAR(1),3))-FIND(CHAR(1),SUBSTITUTE(Parse[[#This Row],[Raw]],",",CHAR(1),2))-1)),"") -> 9.11174 | G142: =IFERROR(VALUE(MID(Parse[[#This Row],[Raw]],FIND(CHAR(1),SUBSTITUTE(Parse[[#This Row],[Raw]],",",CHAR(1),3))+1,FIND(CHAR(1), SUBSTITUTE(Parse[[#This Row],[Raw]],",",CHAR(1),4))-FIND(CHAR(1),SUBSTITUTE(Parse[[#This Row],[Raw]],",",CHAR(1),3))-1)),"") -> 8.48473 | H142: =IFERROR(VALUE(MID(Parse[[#This Row],[Raw]],FIND(CHAR(1),SUBSTITUTE(Parse[[#This Row],[Raw]],",",CHAR(1),4))+1,FIND(CHAR(1), SUBSTITUTE(Parse[[#This Row],[Raw]],",",CHAR(1),5))-FIND(CHAR(1),SUBSTITUTE(Parse[[#This Row],[Raw]],",",CHAR(1),4))-1)),"") -> 8.50996 | I142: =IFERROR(VALUE(MID(Parse[[#This Row],[Raw]],FIND(CHAR(1),SUBSTITUTE(Parse[[#This Row],[Raw]],",",CHAR(1),5))+1,FIND(CHAR(1), SUBSTITUTE(Parse[[#This Row],[Raw]],",",CHAR(1),6))-FIND(CHAR(1),SUBSTITUTE(Parse[[#This Row],[Raw]],",",CHAR(1),5))-1)),"") -> 4.242972 | J142: =IFERROR(VALUE(RIGHT(Parse[[#This Row],[Raw]],LEN(Parse[[#This Row],[Raw]])-FIND(CHAR(1),SUBSTITUTE(Parse[[#This Row],[Raw]],",",CHAR(1),6)))),"") -> 47356440
A143: 2001-09-13,8.596860,8.596860,7.896030,7.966110,3.971816,80577703 | C143: 2001-09-13,8.596860,8.596860,7.896030,7.966110,3.971816,80577703 | D143: =IFERROR(DATEVALUE(LEFT(Parse[[#This Row],[Raw]],FIND(",",Parse[[#This Row],[Raw]])-1)),"") -> 2001-09-13 | E143: =IFERROR(VALUE(MID(Parse[[#This Row],[Raw]],FIND(CHAR(1),SUBSTITUTE(Parse[[#This Row],[Raw]],",",CHAR(1),1))+1,FIND(CHAR(1), SUBSTITUTE(Parse[[#This Row],[Raw]],",",CHAR(1),2))-FIND(CHAR(1),SUBSTITUTE(Parse[[#This Row],[Raw]],",",CHAR(1),1))-1)),"") -> 8.59686 | F143: =IFERROR(VALUE(MID(Parse[[#This Row],[Raw]],FIND(CHAR(1),SUBSTITUTE(Parse[[#This Row],[Raw]],",",CHAR(1),2))+1,FIND(CHAR(1), SUBSTITUTE(Parse[[#This Row],[Raw]],",",CHAR(1),3))-FIND(CHAR(1),SUBSTITUTE(Parse[[#This Row],[Raw]],",",CHAR(1),2))-1)),"") -> 8.59686 | G143: =IFERROR(VALUE(MID(Parse[[#This Row],[Raw]],FIND(CHAR(1),SUBSTITUTE(Parse[[#This Row],[Raw]],",",CHAR(1),3))+1,FIND(CHAR(1), SUBSTITUTE(Parse[[#This Row],[Raw]],",",CHAR(1),4))-FIND(CHAR(1),SUBSTITUTE(Parse[[#This Row],[Raw]],",",CHAR(1),3))-1)),"") -> 7.89603 | H143: =IFERROR(VALUE(MID(Parse[[#This Row],[Raw]],FIND(CHAR(1),SUBSTITUTE(Parse[[#This Row],[Raw]],",",CHAR(1),4))+1,FIND(CHAR(1), SUBSTITUTE(Parse[[#This Row],[Raw]],",",CHAR(1),5))-FIND(CHAR(1),SUBSTITUTE(Parse[[#This Row],[Raw]],",",CHAR(1),4))-1)),"") -> 7.96611 | I143: =IFERROR(VALUE(MID(Parse[[#This Row],[Raw]],FIND(CHAR(1),SUBSTITUTE(Parse[[#This Row],[Raw]],",",CHAR(1),5))+1,FIND(CHAR(1), SUBSTITUTE(Parse[[#This Row],[Raw]],",",CHAR(1),6))-FIND(CHAR(1),SUBSTITUTE(Parse[[#This Row],[Raw]],",",CHAR(1),5))-1)),"") -> 3.971816 | J143: =IFERROR(VALUE(RIGHT(Parse[[#This Row],[Raw]],LEN(Parse[[#This Row],[Raw]])-FIND(CHAR(1),SUBSTITUTE(Parse[[#This Row],[Raw]],",",CHAR(1),6)))),"") -> 80577703
A144: 2001-09-20,7.428810,8.026850,7.354050,8.003490,3.990453,83153178 | C144: 2001-09-20,7.428810,8.026850,7.354050,8.003490,3.990453,83153178 | D144: =IFERROR(DATEVALUE(LEFT(Parse[[#This Row],[Raw]],FIND(",",Parse[[#This Row],[Raw]])-1)),"") -> 2001-09-20 | E144: =IFERROR(VALUE(MID(Parse[[#This Row],[Raw]],FIND(CHAR(1),SUBSTITUTE(Parse[[#This Row],[Raw]],",",CHAR(1),1))+1,FIND(CHAR(1), SUBSTITUTE(Parse[[#This Row],[Raw]],",",CHAR(1),2))-FIND(CHAR(1),SUBSTITUTE(Parse[[#This Row],[Raw]],",",CHAR(1),1))-1)),"") -> 7.42881 | F144: =IFERROR(VALUE(MID(Parse[[#This Row],[Raw]],FIND(CHAR(1),SUBSTITUTE(Parse[[#This Row],[Raw]],",",CHAR(1),2))+1,FIND(CHAR(1), SUBSTITUTE(Parse[[#This Row],[Raw]],",",CHAR(1),3))-FIND(CHAR(1),SUBSTITUTE(Parse[[#This Row],[Raw]],",",CHAR(1),2))-1)),"") -> 8.02685 | G144: =IFERROR(VALUE(MID(Parse[[#This Row],[Raw]],FIND(CHAR(1),SUBSTITUTE(Parse[[#This Row],[Raw]],",",CHAR(1),3))+1,FIND(CHAR(1), SUBSTITUTE(Parse[[#This Row],[Raw]],",",CHAR(1),4))-FIND(CHAR(1),SUBSTITUTE(Parse[[#This Row],[Raw]],",",CHAR(1),3))-1)),"") -> 7.35405 | H144: =IFERROR(VALUE(MID(Parse[[#This Row],[Raw]],FIND(CHAR(1),SUBSTITUTE(Parse[[#This Row],[Raw]],",",CHAR(1),4))+1,FIND(CHAR(1), SUBSTITUTE(Parse[[#This Row],[Raw]],",",CHAR(1),5))-FIND(CHAR(1),SUBSTITUTE(Parse[[#This Row],[Raw]],",",CHAR(1),4))-1)),"") -> 8.00349 | I144: =IFERROR(VALUE(MID(Parse[[#This Row],[Raw]],FIND(CHAR(1),SUBSTITUTE(Parse[[#This Row],[Raw]],",",CHAR(1),5))+1,FIND(CHAR(1), SUBSTITUTE(Parse[[#This Row],[Raw]],",",CHAR(1),6))-FIND(CHAR(1),SUBSTITUTE(Parse[[#This Row],[Raw]],",",CHAR(1),5))-1)),"") -> 3.990453 | J144: =IFERROR(VALUE(RIGHT(Parse[[#This Row],[Raw]],LEN(Parse[[#This Row],[Raw]])-FIND(CHAR(1),SUBSTITUTE(Parse[[#This Row],[Raw]],",",CHAR(1),6)))),"") -> 83153178
A145: 2001-09-27,7.989470,8.438010,7.933410,8.372600,4.174487,68850075 | C145: 2001-09-27,7.989470,8.438010,7.933410,8.372600,4.174487,68850075 | D145: =IFERROR(DATEVALUE(LEFT(Parse[[#This Row],[Raw]],FIND(",",Parse[[#This Row],[Raw]])-1)),"") -> 2001-09-27 | E145: =IFERROR(VALUE(MID(Parse[[#This Row],[Raw]],FIND(CHAR(1),SUBSTITUTE(Parse[[#This Row],[Raw]],",",CHAR(1),1))+1,FIND(CHAR(1), SUBSTITUTE(Parse[[#This Row],[Raw]],",",CHAR(1),2))-FIND(CHAR(1),SUBSTITUTE(Parse[[#This Row],[Raw]],",",CHAR(1),1))-1)),"") -> 7.98947 | F145: =IFERROR(VALUE(MID(Parse[[#This Row],[Raw]],FIND(CHAR(1),SUBSTITUTE(Parse[[#This Row],[Raw]],",",CHAR(1),2))+1,FIND(CHAR(1), SUBSTITUTE(Parse[[#This Row],[Raw]],",",CHAR(1),3))-FIND(CHAR(1),SUBSTITUTE(Parse[[#This Row],[Raw]],",",CHAR(1),2))-1)),"") -> 8.43801 | G145: =IFERROR(VALUE(MID(Parse[[#This Row],[Raw]],FIND(CHAR(1),SUBSTITUTE(Parse[[#This Row],[Raw]],",",CHAR(1),3))+1,FIND(CHAR(1), SUBSTITUTE(Parse[[#This Row],[Raw]],",",CHAR(1),4))-FIND(CHAR(1),SUBSTITUTE(Parse[[#This Row],[Raw]],",",CHAR(1),3))-1)),"") -> 7.93341 | H145: =IFERROR(VALUE(MID(Parse[[#This Row],[Raw]],FIND(CHAR(1),SUBSTITUTE(Parse[[#This Row],[Raw]],",",CHAR(1),4))+1,FIND(CHAR(1), SUBSTITUTE(Parse[[#This Row],[Raw]],",",CHAR(1),5))-FIND(CHAR(1),SUBSTITUTE(Parse[[#This Row],[Raw]],",",CHAR(1),4))-1)),"") -> 8.3726 | I145: =IFERROR(VALUE(MID(Parse[[#This Row],[Raw]],FIND(CHAR(1),SUBSTITUTE(Parse[[#This Row],[Raw]],",",CHAR(1),5))+1,FIND(CHAR(1), SUBSTITUTE(Parse[[#This Row],[Raw]],",",CHAR(1),6))-FIND(CHAR(1),SUBSTITUTE(Parse[[#This Row],[Raw]],",",CHAR(1),5))-1)),"") -> 4.174487 | J145: =IFERROR(VALUE(RIGHT(Parse[[#This Row],[Raw]],LEN(Parse[[#This Row],[Raw]])-FIND(CHAR(1),SUBSTITUTE(Parse[[#This Row],[Raw]],",",CHAR(1),6)))),"") -> 68850075
A146: 2001-10-04,8.550140,8.671620,8.241770,8.634240,4.304937,44513077 | C146: 2001-10-04,8.550140,8.671620,8.241770,8.634240,4.304937,44513077 | D146: =IFERROR(DATEVALUE(LEFT(Parse[[#This Row],[Raw]],FIND(",",Parse[[#This Row],[Raw]])-1)),"") -> 2001-10-04 | E146: =IFERROR(VALUE(MID(Parse[[#This Row],[Raw]],FIND(CHAR(1),SUBSTITUTE(Parse[[#This Row],[Raw]],",",CHAR(1),1))+1,FIND(CHAR(1), SUBSTITUTE(Parse[[#This Row],[Raw]],",",CHAR(1),2))-FIND(CHAR(1),SUBSTITUTE(Parse[[#This Row],[Raw]],",",CHAR(1),1))-1)),"") -> 8.55014 | F146: =IFERROR(VALUE(MID(Parse[[#This Row],[Raw]],FIND(CHAR(1),SUBSTITUTE(Parse[[#This Row],[Raw]],",",CHAR(1),2))+1,FIND(CHAR(1), SUBSTITUTE(Parse[[#This Row],[Raw]],",",CHAR(1),3))-FIND(CHAR(1),SUBSTITUTE(Parse[[#This Row],[Raw]],",",CHAR(1),2))-1)),"") -> 8.67162 | G146: =IFERROR(VALUE(MID(Parse[[#This Row],[Raw]],FIND(CHAR(1),SUBSTITUTE(Parse[[#This Row],[Raw]],",",CHAR(1),3))+1,FIND(CHAR(1), SUBSTITUTE(Parse[[#This Row],[Raw]],",",CHAR(1),4))-FIND(CHAR(1),SUBSTITUTE(Parse[[#This Row],[Raw]],",",CHAR(1),3))-1)),"") -> 8.24177 | H146: =IFERROR(VALUE(MID(Parse[[#This Row],[Raw]],FIND(CHAR(1),SUBSTITUTE(Parse[[#This Row],[Raw]],",",CHAR(1),4))+1,FIND(CHAR(1), SUBSTITUTE(Parse[[#This Row],[Raw]],",",CHAR(1),5))-FIND(CHAR(1),SUBSTITUTE(Parse[[#This Row],[Raw]],",",CHAR(1),4))-1)),"") -> 8.63424 | I146: =IFERROR(VALUE(MID(Parse[[#This Row],[Raw]],FIND(CHAR(1),SUBSTITUTE(Parse[[#This Row],[Raw]],",",CHAR(1),5))+1,FIND(CHAR(1), SUBSTITUTE(Parse[[#This Row],[Raw]],",",CHAR(1),6))-FIND(CHAR(1),SUBSTITUTE(Parse[[#This Row],[Raw]],",",CHAR(1),5))-1)),"") -> 4.304937 | J146: =IFERROR(VALUE(RIGHT(Parse[[#This Row],[Raw]],LEN(Parse[[#This Row],[Raw]])-FIND(CHAR(1),SUBSTITUTE(Parse[[#This Row],[Raw]],",",CHAR(1),6)))),"") -> 44513077
A147: 2001-10-11,8.923920,9.045390,8.671620,8.737030,4.356188,61072939 | C147: 2001-10-11,8.923920,9.045390,8.671620,8.737030,4.356188,61072939 | D147: =IFERROR(DATEVALUE(LEFT(Parse[[#This Row],[Raw]],FIND(",",Parse[[#This Row],[Raw]])-1)),"") -> 2001-10-11 | E147: =IFERROR(VALUE(MID(Parse[[#This Row],[Raw]],FIND(CHAR(1),SUBSTITUTE(Parse[[#This Row],[Raw]],",",CHAR(1),1))+1,FIND(CHAR(1), SUBSTITUTE(Parse[[#This Row],[Raw]],",",CHAR(1),2))-FIND(CHAR(1),SUBSTITUTE(Parse[[#This Row],[Raw]],",",CHAR(1),1))-1)),"") -> 8.92392 | F147: =IFERROR(VALUE(MID(Parse[[#This Row],[Raw]],FIND(CHAR(1),SUBSTITUTE(Parse[[#This Row],[Raw]],",",CHAR(1),2))+1,FIND(CHAR(1), SUBSTITUTE(Parse[[#This Row],[Raw]],",",CHAR(1),3))-FIND(CHAR(1),SUBSTITUTE(Parse[[#This Row],[Raw]],",",CHAR(1),2))-1)),"") -> 9.04539 | G147: =IFERROR(VALUE(MID(Parse[[#This Row],[Raw]],FIND(CHAR(1),SUBSTITUTE(Parse[[#This Row],[Raw]],",",CHAR(1),3))+1,FIND(CHAR(1), SUBSTITUTE(Parse[[#This Row],[Raw]],",",CHAR(1),4))-FIND(CHAR(1),SUBSTITUTE(Parse[[#This Row],[Raw]],",",CHAR(1),3))-1)),"") -> 8.67162 | H147: =IFERROR(VALUE(MID(Parse[[#This Row],[Raw]],FIND(CHAR(1),SUBSTITUTE(Parse[[#This Row],[Raw]],",",CHAR(1),4))+1,FIND(CHAR(1), SUBSTITUTE(Parse[[#This Row],[Raw]],",",CHAR(1),5))-FIND(CHAR(1),SUBSTITUTE(Parse[[#This Row],[Raw]],",",CHAR(1),4))-1)),"") -> 8.73703 | I147: =IFERROR(VALUE(MID(Parse[[#This Row],[Raw]],FIND(CHAR(1),SUBSTITUTE(Parse[[#This Row],[Raw]],",",CHAR(1),5))+1,FIND(CHAR(1), SUBSTITUTE(Parse[[#This Row],[Raw]],",",CHAR(1),6))-FIND(CHAR(1),SUBSTITUTE(Parse[[#This Row],[Raw]],",",CHAR(1),5))-1)),"") -> 4.356188 | J147: =IFERROR(VALUE(RIGHT(Parse[[#This Row],[Raw]],LEN(Parse[[#This Row],[Raw]])-FIND(CHAR(1),SUBSTITUTE(Parse[[#This Row],[Raw]],",",CHAR(1),6)))),"") -> 61072939
A148: 2001-10-18,8.737030,8.783750,8.297840,8.718340,4.346868,68693260 | C148: 2001-10-18,8.737030,8.783750,8.297840,8.718340,4.346868,68693260 | D148: =IFERROR(DATEVALUE(LEFT(Parse[[#This Row],[Raw]],FIND(",",Parse[[#This Row],[Raw]])-1)),"") -> 2001-10-18 | E148: =IFERROR(VALUE(MID(Parse[[#This Row],[Raw]],FIND(CHAR(1),SUBSTITUTE(Parse[[#This Row],[Raw]],",",CHAR(1),1))+1,FIND(CHAR(1), SUBSTITUTE(Parse[[#This Row],[Raw]],",",CHAR(1),2))-FIND(CHAR(1),SUBSTITUTE(Parse[[#This Row],[Raw]],",",CHAR(1),1))-1)),"") -> 8.73703 | F148: =IFERROR(VALUE(MID(Parse[[#This Row],[Raw]],FIND(CHAR(1),SUBSTITUTE(Parse[[#This Row],[Raw]],",",CHAR(1),2))+1,FIND(CHAR(1), SUBSTITUTE(Parse[[#This Row],[Raw]],",",CHAR(1),3))-FIND(CHAR(1),SUBSTITUTE(Parse[[#This Row],[Raw]],",",CHAR(1),2))-1)),"") -> 8.78375 | G148: =IFERROR(VALUE(MID(Parse[[#This Row],[Raw]],FIND(CHAR(1),SUBSTITUTE(Parse[[#This Row],[Raw]],",",CHAR(1),3))+1,FIND(CHAR(1), SUBSTITUTE(Parse[[#This Row],[Raw]],",",CHAR(1),4))-FIND(CHAR(1),SUBSTITUTE(Parse[[#This Row],[Raw]],",",CHAR(1),3))-1)),"") -> 8.29784 | H148: =IFERROR(VALUE(MID(Parse[[#This Row],[Raw]],FIND(CHAR(1),SUBSTITUTE(Parse[[#This Row],[Raw]],",",CHAR(1),4))+1,FIND(CHAR(1), SUBSTITUTE(Parse[[#This Row],[Raw]],",",CHAR(1),5))-FIND(CHAR(1),SUBSTITUTE(Parse[[#This Row],[Raw]],",",CHAR(1),4))-1)),"") -> 8.71834 | I148: =IFERROR(VALUE(MID(Parse[[#This Row],[Raw]],FIND(CHAR(1),SUBSTITUTE(Parse[[#This Row],[Raw]],",",CHAR(1),5))+1,FIND(CHAR(1), SUBSTITUTE(Parse[[#This Row],[Raw]],",",CHAR(1),6))-FIND(CHAR(1),SUBSTITUTE(Parse[[#This Row],[Raw]],",",CHAR(1),5))-1)),"") -> 4.346868 | J148: =IFERROR(VALUE(RIGHT(Parse[[#This Row],[Raw]],LEN(Parse[[#This Row],[Raw]])-FIND(CHAR(1),SUBSTITUTE(Parse[[#This Row],[Raw]],",",CHAR(1),6)))),"") -> 68693260
A149: 2001-10-25,8.777210,8.867850,8.325870,8.363250,4.169825,50254098 | C149: 2001-10-25,8.777210,8.867850,8.325870,8.363250,4.169825,50254098 | D149: =IFERROR(DATEVALUE(LEFT(Parse[[#This Row],[Raw]],FIND(",",Parse[[#This Row],[Raw]])-1)),"") -> 2001-10-25 | E149: =IFERROR(VALUE(MID(Parse[[#This Row],[Raw]],FIND(CHAR(1),SUBSTITUTE(Parse[[#This Row],[Raw]],",",CHAR(1),1))+1,FIND(CHAR(1), SUBSTITUTE(Parse[[#This Row],[Raw]],",",CHAR(1),2))-FIND(CHAR(1),SUBSTITUTE(Parse[[#This Row],[Raw]],",",CHAR(1),1))-1)),"") -> 8.77721 | F149: =IFERROR(VALUE(MID(Parse[[#This Row],[Raw]],FIND(CHAR(1),SUBSTITUTE(Parse[[#This Row],[Raw]],",",CHAR(1),2))+1,FIND(CHAR(1), SUBSTITUTE(Parse[[#This Row],[Raw]],",",CHAR(1),3))-FIND(CHAR(1),SUBSTITUTE(Parse[[#This Row],[Raw]],",",CHAR(1),2))-1)),"") -> 8.86785 | G149: =IFERROR(VALUE(MID(Parse[[#This Row],[Raw]],FIND(CHAR(1),SUBSTITUTE(Parse[[#This Row],[Raw]],",",CHAR(1),3))+1,FIND(CHAR(1), SUBSTITUTE(Parse[[#This Row],[Raw]],",",CHAR(1),4))-FIND(CHAR(1),SUBSTITUTE(Parse[[#This Row],[Raw]],",",CHAR(1),3))-1)),"") -> 8.32587 | H149: =IFERROR(VALUE(MID(Parse[[#This Row],[Raw]],FIND(CHAR(1),SUBSTITUTE(Parse[[#This Row],[Raw]],",",CHAR(1),4))+1,FIND(CHAR(1), SUBSTITUTE(Parse[[#This Row],[Raw]],",",CHAR(1),5))-FIND(CHAR(1),SUBSTITUTE(Parse[[#This Row],[Raw]],",",CHAR(1),4))-1)),"") -> 8.36325 | I149: =IFERROR(VALUE(MID(Parse[[#This Row],[Raw]],FIND(CHAR(1),SUBSTITUTE(Parse[[#This Row],[Raw]],",",CHAR(1),5))+1,FIND(CHAR(1), SUBSTITUTE(Parse[[#This Row],[Raw]],",",CHAR(1),6))-FIND(CHAR(1),SUBSTITUTE(Parse[[#This Row],[Raw]],",",CHAR(1),5))-1)),"") -> 4.169825 | J149: =IFERROR(VALUE(RIGHT(Parse[[#This Row],[Raw]],LEN(Parse[[#This Row],[Raw]])-FIND(CHAR(1),SUBSTITUTE(Parse[[#This Row],[Raw]],",",CHAR(1),6)))),"") -> 50254098
A150: 2001-11-01,8.409970,8.540790,8.232430,8.260460,4.118575,48530071 | C150: 2001-11-01,8.409970,8.540790,8.232430,8.260460,4.118575,48530071 | D150: =IFERROR(DATEVALUE(LEFT(Parse[[#This Row],[Raw]],FIND(",",Parse[[#This Row],[Raw]])-1)),"") -> 2001-11-01 | E150: =IFERROR(VALUE(MID(Parse[[#This Row],[Raw]],FIND(CHAR(1),SUBSTITUTE(Parse[[#This Row],[Raw]],",",CHAR(1),1))+1,FIND(CHAR(1), SUBSTITUTE(Parse[[#This Row],[Raw]],",",CHAR(1),2))-FIND(CHAR(1),SUBSTITUTE(Parse[[#This Row],[Raw]],",",CHAR(1),1))-1)),"") -> 8.40997 | F150: =IFERROR(VALUE(MID(Parse[[#This Row],[Raw]],FIND(CHAR(1),SUBSTITUTE(Parse[[#This Row],[Raw]],",",CHAR(1),2))+1,FIND(CHAR(1), SUBSTITUTE(Parse[[#This Row],[Raw]],",",CHAR(1),3))-FIND(CHAR(1),SUBSTITUTE(Parse[[#This Row],[Raw]],",",CHAR(1),2))-1)),"") -> 8.54079 | G150: =IFERROR(VALUE(MID(Parse[[#This Row],[Raw]],FIND(CHAR(1),SUBSTITUTE(Parse[[#This Row],[Raw]],",",CHAR(1),3))+1,FIND(CHAR(1), SUBSTITUTE(Parse[[#This Row],[Raw]],",",CHAR(1),4))-FIND(CHAR(1),SUBSTITUTE(Parse[[#This Row],[Raw]],",",CHAR(1),3))-1)),"") -> 8.23243 | H150: =IFERROR(VALUE(MID(Parse[[#This Row],[Raw]],FIND(CHAR(1),SUBSTITUTE(Parse[[#This Row],[Raw]],",",CHAR(1),4))+1,FIND(CHAR(1), SUBSTITUTE(Parse[[#This Row],[Raw]],",",CHAR(1),5))-FIND(CHAR(1),SUBSTITUTE(Parse[[#This Row],[Raw]],",",CHAR(1),4))-1)),"") -> 8.26046 | I150: =IFERROR(VALUE(MID(Parse[[#This Row],[Raw]],FIND(CHAR(1),SUBSTITUTE(Parse[[#This Row],[Raw]],",",CHAR(1),5))+1,FIND(CHAR(1), SUBSTITUTE(Parse[[#This Row],[Raw]],",",CHAR(1),6))-FIND(CHAR(1),SUBSTITUTE(Parse[[#This Row],[Raw]],",",CHAR(1),5))-1)),"") -> 4.118575 | J150: =IFERROR(VALUE(RIGHT(Parse[[#This Row],[Raw]],LEN(Parse[[#This Row],[Raw]])-FIND(CHAR(1),SUBSTITUTE(Parse[[#This Row],[Raw]],",",CHAR(1),6)))),"") -> 48530071
A151: 2001-11-08,8.409970,9.783600,8.279150,9.708850,4.840727,101344935 | C151: 2001-11-08,8.409970,9.783600,8.279150,9.708850,4.840727,101344935 | D151: =IFERROR(DATEVALUE(LEFT(Parse[[#This Row],[Raw]],FIND(",",Parse[[#This Row],[Raw]])-1)),"") -> 2001-11-08 | E151: =IFERROR(VALUE(MID(Parse[[#This Row],[Raw]],FIND(CHAR(1),SUBSTITUTE(Parse[[#This Row],[Raw]],",",CHAR(1),1))+1,FIND(CHAR(1), SUBSTITUTE(Parse[[#This Row],[Raw]],",",CHAR(1),2))-FIND(CHAR(1),SUBSTITUTE(Parse[[#This Row],[Raw]],",",CHAR(1),1))-1)),"") -> 8.40997 | F151: =IFERROR(VALUE(MID(Parse[[#This Row],[Raw]],FIND(CHAR(1),SUBSTITUTE(Parse[[#This Row],[Raw]],",",CHAR(1),2))+1,FIND(CHAR(1), SUBSTITUTE(Parse[[#This Row],[Raw]],",",CHAR(1),3))-FIND(CHAR(1),SUBSTITUTE(Parse[[#This Row],[Raw]],",",CHAR(1),2))-1)),"") -> 9.7836 | G151: =IFERROR(VALUE(MID(Parse[[#This Row],[Raw]],FIND(CHAR(1),SUBSTITUTE(Parse[[#This Row],[Raw]],",",CHAR(1),3))+1,FIND(CHAR(1), SUBSTITUTE(Parse[[#This Row],[Raw]],",",CHAR(1),4))-FIND(CHAR(1),SUBSTITUTE(Parse[[#This Row],[Raw]],",",CHAR(1),3))-1)),"") -> 8.27915 | H151: =IFERROR(VALUE(MID(Parse[[#This Row],[Raw]],FIND(CHAR(1),SUBSTITUTE(Parse[[#This Row],[Raw]],",",CHAR(1),4))+1,FIND(CHAR(1), SUBSTITUTE(Parse[[#This Row],[Raw]],",",CHAR(1),5))-FIND(CHAR(1),SUBSTITUTE(Parse[[#This Row],[Raw]],",",CHAR(1),4))-1)),"") -> 9.70885 | I151: =IFERROR(VALUE(MID(Parse[[#This Row],[Raw]],FIND(CHAR(1),SUBSTITUTE(Parse[[#This Row],[Raw]],",",CHAR(1),5))+1,FIND(CHAR(1), SUBSTITUTE(Parse[[#This Row],[Raw]],",",CHAR(1),6))-FIND(CHAR(1),SUBSTITUTE(Parse[[#This Row],[Raw]],",",CHAR(1),5))-1)),"") -> 4.840727 | J151: =IFERROR(VALUE(RIGHT(Parse[[#This Row],[Raw]],LEN(Parse[[#This Row],[Raw]])-FIND(CHAR(1),SUBSTITUTE(Parse[[#This Row],[Raw]],",",CHAR(1),6)))),"") -> 101344935
A152: 2001-11-15,9.297690,9.391140,8.699650,8.942600,4.508745,63128978 | C152: 2001-11-15,9.297690,9.391140,8.699650,8.942600,4.508745,63128978 | D152: =IFERROR(DATEVALUE(LEFT(Parse[[#This Row],[Raw]],FIND(",",Parse[[#This Row],[Raw]])-1)),"") -> 2001-11-15 | E152: =IFERROR(VALUE(MID(Parse[[#This Row],[Raw]],FIND(CHAR(1),SUBSTITUTE(Parse[[#This Row],[Raw]],",",CHAR(1),1))+1,FIND(CHAR(1), SUBSTITUTE(Parse[[#This Row],[Raw]],",",CHAR(1),2))-FIND(CHAR(1),SUBSTITUTE(Parse[[#This Row],[Raw]],",",CHAR(1),1))-1)),"") -> 9.29769 | F152: =IFERROR(VALUE(MID(Parse[[#This Row],[Raw]],FIND(CHAR(1),SUBSTITUTE(Parse[[#This Row],[Raw]],",",CHAR(1),2))+1,FIND(CHAR(1), SUBSTITUTE(Parse[[#This Row],[Raw]],",",CHAR(1),3))-FIND(CHAR(1),SUBSTITUTE(Parse[[#This Row],[Raw]],",",CHAR(1),2))-1)),"") -> 9.39114 | G152: =IFERROR(VALUE(MID(Parse[[#This Row],[Raw]],FIND(CHAR(1),SUBSTITUTE(Parse[[#This Row],[Raw]],",",CHAR(1),3))+1,FIND(CHAR(1), SUBSTITUTE(Parse[[#This Row],[Raw]],",",CHAR(1),4))-FIND(CHAR(1),SUBSTITUTE(Parse[[#This Row],[Raw]],",",CHAR(1),3))-1)),"") -> 8.69965 | H152: =IFERROR(VALUE(MID(Parse[[#This Row],[Raw]],FIND(CHAR(1),SUBSTITUTE(Parse[[#This Row],[Raw]],",",CHAR(1),4))+1,FIND(CHAR(1), SUBSTITUTE(Parse[[#This Row],[Raw]],",",CHAR(1),5))-FIND(CHAR(1),SUBSTITUTE(Parse[[#This Row],[Raw]],",",CHAR(1),4))-1)),"") -> 8.9426 | I152: =IFERROR(VALUE(MID(Parse[[#This Row],[Raw]],FIND(CHAR(1),SUBSTITUTE(Parse[[#This Row],[Raw]],",",CHAR(1),5))+1,FIND(CHAR(1), SUBSTITUTE(Parse[[#This Row],[Raw]],",",CHAR(1),6))-FIND(CHAR(1),SUBSTITUTE(Parse[[#This Row],[Raw]],",",CHAR(1),5))-1)),"") -> 4.508745 | J152: =IFERROR(VALUE(RIGHT(Parse[[#This Row],[Raw]],LEN(Parse[[#This Row],[Raw]])-FIND(CHAR(1),SUBSTITUTE(Parse[[#This Row],[Raw]],",",CHAR(1),6)))),"") -> 63128978
A153: 2001-11-22,8.984650,9.372450,8.979980,9.166870,4.621818,50102253 | C153: 2001-11-22,8.984650,9.372450,8.979980,9.166870,4.621818,50102253 | D153: =IFERROR(DATEVALUE(LEFT(Parse[[#This Row],[Raw]],FIND(",",Parse[[#This Row],[Raw]])-1)),"") -> 2001-11-22 | E153: =IFERROR(VALUE(MID(Parse[[#This Row],[Raw]],FIND(CHAR(1),SUBSTITUTE(Parse[[#This Row],[Raw]],",",CHAR(1),1))+1,FIND(CHAR(1), SUBSTITUTE(Parse[[#This Row],[Raw]],",",CHAR(1),2))-FIND(CHAR(1),SUBSTITUTE(Parse[[#This Row],[Raw]],",",CHAR(1),1))-1)),"") -> 8.98465 | F153: =IFERROR(VALUE(MID(Parse[[#This Row],[Raw]],FIND(CHAR(1),SUBSTITUTE(Parse[[#This Row],[Raw]],",",CHAR(1),2))+1,FIND(CHAR(1), SUBSTITUTE(Parse[[#This Row],[Raw]],",",CHAR(1),3))-FIND(CHAR(1),SUBSTITUTE(Parse[[#This Row],[Raw]],",",CHAR(1),2))-1)),"") -> 9.37245 | G153: =IFERROR(VALUE(MID(Parse[[#This Row],[Raw]],FIND(CHAR(1),SUBSTITUTE(Parse[[#This Row],[Raw]],",",CHAR(1),3))+1,FIND(CHAR(1), SUBSTITUTE(Parse[[#This Row],[Raw]],",",CHAR(1),4))-FIND(CHAR(1),SUBSTITUTE(Parse[[#This Row],[Raw]],",",CHAR(1),3))-1)),"") -> 8.97998 | H153: =IFERROR(VALUE(MID(Parse[[#This Row],[Raw]],FIND(CHAR(1),SUBSTITUTE(Parse[[#This Row],[Raw]],",",CHAR(1),4))+1,FIND(CHAR(1), SUBSTITUTE(Parse[[#This Row],[Raw]],",",CHAR(1),5))-FIND(CHAR(1),SUBSTITUTE(Parse[[#This Row],[Raw]],",",CHAR(1),4))-1)),"") -> 9.16687 | I153: =IFERROR(VALUE(MID(Parse[[#This Row],[Raw]],FIND(CHAR(1),SUBSTITUTE(Parse[[#This Row],[Raw]],",",CHAR(1),5))+1,FIND(CHAR(1), SUBSTITUTE(Parse[[#This Row],[Raw]],",",CHAR(1),6))-FIND(CHAR(1),SUBSTITUTE(Parse[[#This Row],[Raw]],",",CHAR(1),5))-1)),"") -> 4.621818 | J153: =IFERROR(VALUE(RIGHT(Parse[[#This Row],[Raw]],LEN(Parse[[#This Row],[Raw]])-FIND(CHAR(1),SUBSTITUTE(Parse[[#This Row],[Raw]],",",CHAR(1),6)))),"") -> 50102253
A154: 2001-11-29,9.269660,9.755570,9.269660,9.540650,4.810272,75346666 | C154: 2001-11-29,9.269660,9.755570,9.269660,9.540650,4.810272,75346666 | D154: =IFERROR(DATEVALUE(LEFT(Parse[[#This Row],[Raw]],FIND(",",Parse[[#This Row],[Raw]])-1)),"") -> 2001-11-29 | E154: =IFERROR(VALUE(MID(Parse[[#This Row],[Raw]],FIND(CHAR(1),SUBSTITUTE(Parse[[#This Row],[Raw]],",",CHAR(1),1))+1,FIND(CHAR(1), SUBSTITUTE(Parse[[#This Row],[Raw]],",",CHAR(1),2))-FIND(CHAR(1),SUBSTITUTE(Parse[[#This Row],[Raw]],",",CHAR(1),1))-1)),"") -> 9.26966 | F154: =IFERROR(VALUE(MID(Parse[[#This Row],[Raw]],FIND(CHAR(1),SUBSTITUTE(Parse[[#This Row],[Raw]],",",CHAR(1),2))+1,FIND(CHAR(1), SUBSTITUTE(Parse[[#This Row],[Raw]],",",CHAR(1),3))-FIND(CHAR(1),SUBSTITUTE(Parse[[#This Row],[Raw]],",",CHAR(1),2))-1)),"") -> 9.75557 | G154: =IFERROR(VALUE(MID(Parse[[#This Row],[Raw]],FIND(CHAR(1),SUBSTITUTE(Parse[[#This Row],[Raw]],",",CHAR(1),3))+1,FIND(CHAR(1), SUBSTITUTE(Parse[[#This Row],[Raw]],",",CHAR(1),4))-FIND(CHAR(1),SUBSTITUTE(Parse[[#This Row],[Raw]],",",CHAR(1),3))-1)),"") -> 9.26966 | H154: =IFERROR(VALUE(MID(Parse[[#This Row],[Raw]],FIND(CHAR(1),SUBSTITUTE(Parse[[#This Row],[Raw]],",",CHAR(1),4))+1,FIND(CHAR(1), SUBSTITUTE(Parse[[#This Row],[Raw]],",",CHAR(1),5))-FIND(CHAR(1),SUBSTITUTE(Parse[[#This Row],[Raw]],",",CHAR(1),4))-1)),"") -> 9.54065 | I154: =IFERROR(VALUE(MID(Parse[[#This Row],[Raw]],FIND(CHAR(1),SUBSTITUTE(Parse[[#This Row],[Raw]],",",CHAR(1),5))+1,FIND(CHAR(1), SUBSTITUTE(Parse[[#This Row],[Raw]],",",CHAR(1),6))-FIND(CHAR(1),SUBSTITUTE(Parse[[#This Row],[Raw]],",",CHAR(1),5))-1)),"") -> 4.810272 | J154: =IFERROR(VALUE(RIGHT(Parse[[#This Row],[Raw]],LEN(Parse[[#This Row],[Raw]])-FIND(CHAR(1),SUBSTITUTE(Parse[[#This Row],[Raw]],",",CHAR(1),6)))),"") -> 75346666
A155: 2001-12-06,9.615400,9.811640,9.344410,9.372450,4.725468,66159524 | C155: 2001-12-06,9.615400,9.811640,9.344410,9.372450,4.725468,66159524 | D155: =IFERROR(DATEVALUE(LEFT(Parse[[#This Row],[Raw]],FIND(",",Parse[[#This Row],[Raw]])-1)),"") -> 2001-12-06 | E155: =IFERROR(VALUE(MID(Parse[[#This Row],[Raw]],FIND(CHAR(1),SUBSTITUTE(Parse[[#This Row],[Raw]],",",CHAR(1),1))+1,FIND(CHAR(1), SUBSTITUTE(Parse[[#This Row],[Raw]],",",CHAR(1),2))-FIND(CHAR(1),SUBSTITUTE(Parse[[#This Row],[Raw]],",",CHAR(1),1))-1)),"") -> 9.6154 | F155: =IFERROR(VALUE(MID(Parse[[#This Row],[Raw]],FIND(CHAR(1),SUBSTITUTE(Parse[[#This Row],[Raw]],",",CHAR(1),2))+1,FIND(CHAR(1), SUBSTITUTE(Parse[[#This Row],[Raw]],",",CHAR(1),3))-FIND(CHAR(1),SUBSTITUTE(Parse[[#This Row],[Raw]],",",CHAR(1),2))-1)),"") -> 9.81164 | G155: =IFERROR(VALUE(MID(Parse[[#This Row],[Raw]],FIND(CHAR(1),SUBSTITUTE(Parse[[#This Row],[Raw]],",",CHAR(1),3))+1,FIND(CHAR(1), SUBSTITUTE(Parse[[#This Row],[Raw]],",",CHAR(1),4))-FIND(CHAR(1),SUBSTITUTE(Parse[[#This Row],[Raw]],",",CHAR(1),3))-1)),"") -> 9.34441 | H155: =IFERROR(VALUE(MID(Parse[[#This Row],[Raw]],FIND(CHAR(1),SUBSTITUTE(Parse[[#This Row],[Raw]],",",CHAR(1),4))+1,FIND(CHAR(1), SUBSTITUTE(Parse[[#This Row],[Raw]],",",CHAR(1),5))-FIND(CHAR(1),SUBSTITUTE(Parse[[#This Row],[Raw]],",",CHAR(1),4))-1)),"") -> 9.37245 | I155: =IFERROR(VALUE(MID(Parse[[#This Row],[Raw]],FIND(CHAR(1),SUBSTITUTE(Parse[[#This Row],[Raw]],",",CHAR(1),5))+1,FIND(CHAR(1), SUBSTITUTE(Parse[[#This Row],[Raw]],",",CHAR(1),6))-FIND(CHAR(1),SUBSTITUTE(Parse[[#This Row],[Raw]],",",CHAR(1),5))-1)),"") -> 4.725468 | J155: =IFERROR(VALUE(RIGHT(Parse[[#This Row],[Raw]],LEN(Parse[[#This Row],[Raw]])-FIND(CHAR(1),SUBSTITUTE(Parse[[#This Row],[Raw]],",",CHAR(1),6)))),"") -> 66159524
A156: 2001-12-13,9.250970,9.690160,9.185560,9.596710,4.838536,50654395 | C156: 2001-12-13,9.250970,9.690160,9.185560,9.596710,4.838536,50654395 | D156: =IFERROR(DATEVALUE(LEFT(Parse[[#This Row],[Raw]],FIND(",",Parse[[#This Row],[Raw]])-1)),"") -> 2001-12-13 | E156: =IFERROR(VALUE(MID(Parse[[#This Row],[Raw]],FIND(CHAR(1),SUBSTITUTE(Parse[[#This Row],[Raw]],",",CHAR(1),1))+1,FIND(CHAR(1), SUBSTITUTE(Parse[[#This Row],[Raw]],",",CHAR(1),2))-FIND(CHAR(1),SUBSTITUTE(Parse[[#This Row],[Raw]],",",CHAR(1),1))-1)),"") -> 9.25097 | F156: =IFERROR(VALUE(MID(Parse[[#This Row],[Raw]],FIND(CHAR(1),SUBSTITUTE(Parse[[#This Row],[Raw]],",",CHAR(1),2))+1,FIND(CHAR(1), SUBSTITUTE(Parse[[#This Row],[Raw]],",",CHAR(1),3))-FIND(CHAR(1),SUBSTITUTE(Parse[[#This Row],[Raw]],",",CHAR(1),2))-1)),"") -> 9.69016 | G156: =IFERROR(VALUE(MID(Parse[[#This Row],[Raw]],FIND(CHAR(1),SUBSTITUTE(Parse[[#This Row],[Raw]],",",CHAR(1),3))+1,FIND(CHAR(1), SUBSTITUTE(Parse[[#This Row],[Raw]],",",CHAR(1),4))-FIND(CHAR(1),SUBSTITUTE(Parse[[#This Row],[Raw]],",",CHAR(1),3))-1)),"") -> 9.18556 | H156: =IFERROR(VALUE(MID(Parse[[#This Row],[Raw]],FIND(CHAR(1),SUBSTITUTE(Parse[[#This Row],[Raw]],",",CHAR(1),4))+1,FIND(CHAR(1), SUBSTITUTE(Parse[[#This Row],[Raw]],",",CHAR(1),5))-FIND(CHAR(1),SUBSTITUTE(Parse[[#This Row],[Raw]],",",CHAR(1),4))-1)),"") -> 9.59671 | I156: =IFERROR(VALUE(MID(Parse[[#This Row],[Raw]],FIND(CHAR(1),SUBSTITUTE(Parse[[#This Row],[Raw]],",",CHAR(1),5))+1,FIND(CHAR(1), SUBSTITUTE(Parse[[#This Row],[Raw]],",",CHAR(1),6))-FIND(CHAR(1),SUBSTITUTE(Parse[[#This Row],[Raw]],",",CHAR(1),5))-1)),"") -> 4.838536 | J156: =IFERROR(VALUE(RIGHT(Parse[[#This Row],[Raw]],LEN(Parse[[#This Row],[Raw]])-FIND(CHAR(1),SUBSTITUTE(Parse[[#This Row],[Raw]],",",CHAR(1),6)))),"") -> 50654395
A157: 2001-12-20,9.531300,9.811640,9.456550,9.802290,4.942188,57514544 | C157: 2001-12-20,9.531300,9.811640,9.456550,9.802290,4.942188,57514544 | D157: =IFERROR(DATEVALUE(LEFT(Parse[[#This Row],[Raw]],FIND(",",Parse[[#This Row],[Raw]])-1)),"") -> 2001-12-20 | E157: =IFERROR(VALUE(MID(Parse[[#This Row],[Raw]],FIND(CHAR(1),SUBSTITUTE(Parse[[#This Row],[Raw]],",",CHAR(1),1))+1,FIND(CHAR(1), SUBSTITUTE(Parse[[#This Row],[Raw]],",",CHAR(1),2))-FIND(CHAR(1),SUBSTITUTE(Parse[[#This Row],[Raw]],",",CHAR(1),1))-1)),"") -> 9.5313 | F157: =IFERROR(VALUE(MID(Parse[[#This Row],[Raw]],FIND(CHAR(1),SUBSTITUTE(Parse[[#This Row],[Raw]],",",CHAR(1),2))+1,FIND(CHAR(1), SUBSTITUTE(Parse[[#This Row],[Raw]],",",CHAR(1),3))-FIND(CHAR(1),SUBSTITUTE(Parse[[#This Row],[Raw]],",",CHAR(1),2))-1)),"") -> 9.81164 | G157: =IFERROR(VALUE(MID(Parse[[#This Row],[Raw]],FIND(CHAR(1),SUBSTITUTE(Parse[[#This Row],[Raw]],",",CHAR(1),3))+1,FIND(CHAR(1), SUBSTITUTE(Parse[[#This Row],[Raw]],",",CHAR(1),4))-FIND(CHAR(1),SUBSTITUTE(Parse[[#This Row],[Raw]],",",CHAR(1),3))-1)),"") -> 9.45655 | H157: =IFERROR(VALUE(MID(Parse[[#This Row],[Raw]],FIND(CHAR(1),SUBSTITUTE(Parse[[#This Row],[Raw]],",",CHAR(1),4))+1,FIND(CHAR(1), SUBSTITUTE(Parse[[#This Row],[Raw]],",",CHAR(1),5))-FIND(CHAR(1),SUBSTITUTE(Parse[[#This Row],[Raw]],",",CHAR(1),4))-1)),"") -> 9.80229 | I157: =IFERROR(VALUE(MID(Parse[[#This Row],[Raw]],FIND(CHAR(1),SUBSTITUTE(Parse[[#This Row],[Raw]],",",CHAR(1),5))+1,FIND(CHAR(1), SUBSTITUTE(Parse[[#This Row],[Raw]],",",CHAR(1),6))-FIND(CHAR(1),SUBSTITUTE(Parse[[#This Row],[Raw]],",",CHAR(1),5))-1)),"") -> 4.942188 | J157: =IFERROR(VALUE(RIGHT(Parse[[#This Row],[Raw]],LEN(Parse[[#This Row],[Raw]])-FIND(CHAR(1),SUBSTITUTE(Parse[[#This Row],[Raw]],",",CHAR(1),6)))),"") -> 57514544
A158: 2001-12-27,9.802290,10.035900,9.755570,10.017200,5.050542,26079915 | C158: 2001-12-27,9.802290,10.035900,9.755570,10.017200,5.050542,26079915 | D158: =IFERROR(DATEVALUE(LEFT(Parse[[#This Row],[Raw]],FIND(",",Parse[[#This Row],[Raw]])-1)),"") -> 2001-12-27 | E158: =IFERROR(VALUE(MID(Parse[[#This Row],[Raw]],FIND(CHAR(1),SUBSTITUTE(Parse[[#This Row],[Raw]],",",CHAR(1),1))+1,FIND(CHAR(1), SUBSTITUTE(Parse[[#This Row],[Raw]],",",CHAR(1),2))-FIND(CHAR(1),SUBSTITUTE(Parse[[#This Row],[Raw]],",",CHAR(1),1))-1)),"") -> 9.80229 | F158: =IFERROR(VALUE(MID(Parse[[#This Row],[Raw]],FIND(CHAR(1),SUBSTITUTE(Parse[[#This Row],[Raw]],",",CHAR(1),2))+1,FIND(CHAR(1), SUBSTITUTE(Parse[[#This Row],[Raw]],",",CHAR(1),3))-FIND(CHAR(1),SUBSTITUTE(Parse[[#This Row],[Raw]],",",CHAR(1),2))-1)),"") -> 10.0359 | G158: =IFERROR(VALUE(MID(Parse[[#This Row],[Raw]],FIND(CHAR(1),SUBSTITUTE(Parse[[#This Row],[Raw]],",",CHAR(1),3))+1,FIND(CHAR(1), SUBSTITUTE(Parse[[#This Row],[Raw]],",",CHAR(1),4))-FIND(CHAR(1),SUBSTITUTE(Parse[[#This Row],[Raw]],",",CHAR(1),3))-1)),"") -> 9.75557 | H158: =IFERROR(VALUE(MID(Parse[[#This Row],[Raw]],FIND(CHAR(1),SUBSTITUTE(Parse[[#This Row],[Raw]],",",CHAR(1),4))+1,FIND(CHAR(1), SUBSTITUTE(Parse[[#This Row],[Raw]],",",CHAR(1),5))-FIND(CHAR(1),SUBSTITUTE(Parse[[#This Row],[Raw]],",",CHAR(1),4))-1)),"") -> 10.0172 | I158: =IFERROR(VALUE(MID(Parse[[#This Row],[Raw]],FIND(CHAR(1),SUBSTITUTE(Parse[[#This Row],[Raw]],",",CHAR(1),5))+1,FIND(CHAR(1), SUBSTITUTE(Parse[[#This Row],[Raw]],",",CHAR(1),6))-FIND(CHAR(1),SUBSTITUTE(Parse[[#This Row],[Raw]],",",CHAR(1),5))-1)),"") -> 5.050542 | J158: =IFERROR(VALUE(RIGHT(Parse[[#This Row],[Raw]],LEN(Parse[[#This Row],[Raw]])-FIND(CHAR(1),SUBSTITUTE(Parse[[#This Row],[Raw]],",",CHAR(1),6)))),"") -> 26079915
A159: 2002-01-03,10.185400,10.652600,10.166700,10.419000,5.253123,67534044 | C159: 2002-01-03,10.185400,10.652600,10.166700,10.419000,5.253123,67534044 | D159: =IFERROR(DATEVALUE(LEFT(Parse[[#This Row],[Raw]],FIND(",",Parse[[#This Row],[Raw]])-1)),"") -> 2002-01-03 | E159: =IFERROR(VALUE(MID(Parse[[#This Row],[Raw]],FIND(CHAR(1),SUBSTITUTE(Parse[[#This Row],[Raw]],",",CHAR(1),1))+1,FIND(CHAR(1), SUBSTITUTE(Parse[[#This Row],[Raw]],",",CHAR(1),2))-FIND(CHAR(1),SUBSTITUTE(Parse[[#This Row],[Raw]],",",CHAR(1),1))-1)),"") -> 10.1854 | F159: =IFERROR(VALUE(MID(Parse[[#This Row],[Raw]],FIND(CHAR(1),SUBSTITUTE(Parse[[#This Row],[Raw]],",",CHAR(1),2))+1,FIND(CHAR(1), SUBSTITUTE(Parse[[#This Row],[Raw]],",",CHAR(1),3))-FIND(CHAR(1),SUBSTITUTE(Parse[[#This Row],[Raw]],",",CHAR(1),2))-1)),"") -> 10.6526 | G159: =IFERROR(VALUE(MID(Parse[[#This Row],[Raw]],FIND(CHAR(1),SUBSTITUTE(Parse[[#This Row],[Raw]],",",CHAR(1),3))+1,FIND(CHAR(1), SUBSTITUTE(Parse[[#This Row],[Raw]],",",CHAR(1),4))-FIND(CHAR(1),SUBSTITUTE(Parse[[#This Row],[Raw]],",",CHAR(1),3))-1)),"") -> 10.1667 | H159: =IFERROR(VALUE(MID(Parse[[#This Row],[Raw]],FIND(CHAR(1),SUBSTITUTE(Parse[[#This Row],[Raw]],",",CHAR(1),4))+1,FIND(CHAR(1), SUBSTITUTE(Parse[[#This Row],[Raw]],",",CHAR(1),5))-FIND(CHAR(1),SUBSTITUTE(Parse[[#This Row],[Raw]],",",CHAR(1),4))-1)),"") -> 10.419 | I159: =IFERROR(VALUE(MID(Parse[[#This Row],[Raw]],FIND(CHAR(1),SUBSTITUTE(Parse[[#This Row],[Raw]],",",CHAR(1),5))+1,FIND(CHAR(1), SUBSTITUTE(Parse[[#This Row],[Raw]],",",CHAR(1),6))-FIND(CHAR(1),SUBSTITUTE(Parse[[#This Row],[Raw]],",",CHAR(1),5))-1)),"") -> 5.253123 | J159: =IFERROR(VALUE(RIGHT(Parse[[#This Row],[Raw]],LEN(Parse[[#This Row],[Raw]])-FIND(CHAR(1),SUBSTITUTE(Parse[[#This Row],[Raw]],",",CHAR(1),6)))),"") -> 67534044
A160: 2002-01-10,10.372300,10.428400,10.007900,10.017200,5.050542,48489507 | C160: 2002-01-10,10.372300,10.428400,10.007900,10.017200,5.050542,48489507 | D160: =IFERROR(DATEVALUE(LEFT(Parse[[#This Row],[Raw]],FIND(",",Parse[[#This Row],[Raw]])-1)),"") -> 2002-01-10 | E160: =IFERROR(VALUE(MID(Parse[[#This Row],[Raw]],FIND(CHAR(1),SUBSTITUTE(Parse[[#This Row],[Raw]],",",CHAR(1),1))+1,FIND(CHAR(1), SUBSTITUTE(Parse[[#This Row],[Raw]],",",CHAR(1),2))-FIND(CHAR(1),SUBSTITUTE(Parse[[#This Row],[Raw]],",",CHAR(1),1))-1)),"") -> 10.3723 | F160: =IFERROR(VALUE(MID(Parse[[#This Row],[Raw]],FIND(CHAR(1),SUBSTITUTE(Parse[[#This Row],[Raw]],",",CHAR(1),2))+1,FIND(CHAR(1), SUBSTITUTE(Parse[[#This Row],[Raw]],",",CHAR(1),3))-FIND(CHAR(1),SUBSTITUTE(Parse[[#This Row],[Raw]],",",CHAR(1),2))-1)),"") -> 10.4284 | G160: =IFERROR(VALUE(MID(Parse[[#This Row],[Raw]],FIND(CHAR(1),SUBSTITUTE(Parse[[#This Row],[Raw]],",",CHAR(1),3))+1,FIND(CHAR(1), SUBSTITUTE(Parse[[#This Row],[Raw]],",",CHAR(1),4))-FIND(CHAR(1),SUBSTITUTE(Parse[[#This Row],[Raw]],",",CHAR(1),3))-1)),"") -> 10.0079 | H160: =IFERROR(VALUE(MID(Parse[[#This Row],[Raw]],FIND(CHAR(1),SUBSTITUTE(Parse[[#This Row],[Raw]],",",CHAR(1),4))+1,FIND(CHAR(1), SUBSTITUTE(Parse[[#This Row],[Raw]],",",CHAR(1),5))-FIND(CHAR(1),SUBSTITUTE(Parse[[#This Row],[Raw]],",",CHAR(1),4))-1)),"") -> 10.0172 | I160: =IFERROR(VALUE(MID(Parse[[#This Row],[Raw]],FIND(CHAR(1),SUBSTITUTE(Parse[[#This Row],[Raw]],",",CHAR(1),5))+1,FIND(CHAR(1), SUBSTITUTE(Parse[[#This Row],[Raw]],",",CHAR(1),6))-FIND(CHAR(1),SUBSTITUTE(Parse[[#This Row],[Raw]],",",CHAR(1),5))-1)),"") -> 5.050542 | J160: =IFERROR(VALUE(RIGHT(Parse[[#This Row],[Raw]],LEN(Parse[[#This Row],[Raw]])-FIND(CHAR(1),SUBSTITUTE(Parse[[#This Row],[Raw]],",",CHAR(1),6)))),"") -> 48489507
A161: 2002-01-17,9.998520,10.764800,9.970490,10.755400,5.422735,65235773 | C161: 2002-01-17,9.998520,10.764800,9.970490,10.755400,5.422735,65235773 | D161: =IFERROR(DATEVALUE(LEFT(Parse[[#This Row],[Raw]],FIND(",",Parse[[#This Row],[Raw]])-1)),"") -> 2002-01-17 | E161: =IFERROR(VALUE(MID(Parse[[#This Row],[Raw]],FIND(CHAR(1),SUBSTITUTE(Parse[[#This Row],[Raw]],",",CHAR(1),1))+1,FIND(CHAR(1), SUBSTITUTE(Parse[[#This Row],[Raw]],",",CHAR(1),2))-FIND(CHAR(1),SUBSTITUTE(Parse[[#This Row],[Raw]],",",CHAR(1),1))-1)),"") -> 9.99852 | F161: =IFERROR(VALUE(MID(Parse[[#This Row],[Raw]],FIND(CHAR(1),SUBSTITUTE(Parse[[#This Row],[Raw]],",",CHAR(1),2))+1,FIND(CHAR(1), SUBSTITUTE(Parse[[#This Row],[Raw]],",",CHAR(1),3))-FIND(CHAR(1),SUBSTITUTE(Parse[[#This Row],[Raw]],",",CHAR(1),2))-1)),"") -> 10.7648 | G161: =IFERROR(VALUE(MID(Parse[[#This Row],[Raw]],FIND(CHAR(1),SUBSTITUTE(Parse[[#This Row],[Raw]],",",CHAR(1),3))+1,FIND(CHAR(1), SUBSTITUTE(Parse[[#This Row],[Raw]],",",CHAR(1),4))-FIND(CHAR(1),SUBSTITUTE(Parse[[#This Row],[Raw]],",",CHAR(1),3))-1)),"") -> 9.97049 | H161: =IFERROR(VALUE(MID(Parse[[#This Row],[Raw]],FIND(CHAR(1),SUBSTITUTE(Parse[[#This Row],[Raw]],",",CHAR(1),4))+1,FIND(CHAR(1), SUBSTITUTE(Parse[[#This Row],[Raw]],",",CHAR(1),5))-FIND(CHAR(1),SUBSTITUTE(Parse[[#This Row],[Raw]],",",CHAR(1),4))-1)),"") -> 10.7554 | I161: =IFERROR(VALUE(MID(Parse[[#This Row],[Raw]],FIND(CHAR(1),SUBSTITUTE(Parse[[#This Row],[Raw]],",",CHAR(1),5))+1,FIND(CHAR(1), SUBSTITUTE(Parse[[#This Row],[Raw]],",",CHAR(1),6))-FIND(CHAR(1),SUBSTITUTE(Parse[[#This Row],[Raw]],",",CHAR(1),5))-1)),"") -> 5.422735 | J161: =IFERROR(VALUE(RIGHT(Parse[[#This Row],[Raw]],LEN(Parse[[#This Row],[Raw]])-FIND(CHAR(1),SUBSTITUTE(Parse[[#This Row],[Raw]],",",CHAR(1),6)))),"") -> 65235773
A162: 2002-01-24,10.830200,10.951600,10.344300,10.447100,5.267291,63612115 | C162: 2002-01-24,10.830200,10.951600,10.344300,10.447100,5.267291,63612115 | D162: =IFERROR(DATEVALUE(LEFT(Parse[[#This Row],[Raw]],FIND(",",Parse[[#This Row],[Raw]])-1)),"") -> 2002-01-24 | E162: =IFERROR(VALUE(MID(Parse[[#This Row],[Raw]],FIND(CHAR(1),SUBSTITUTE(Parse[[#This Row],[Raw]],",",CHAR(1),1))+1,FIND(CHAR(1), SUBSTITUTE(Parse[[#This Row],[Raw]],",",CHAR(1),2))-FIND(CHAR(1),SUBSTITUTE(Parse[[#This Row],[Raw]],",",CHAR(1),1))-1)),"") -> 10.8302 | F162: =IFERROR(VALUE(MID(Parse[[#This Row],[Raw]],FIND(CHAR(1),SUBSTITUTE(Parse[[#This Row],[Raw]],",",CHAR(1),2))+1,FIND(CHAR(1), SUBSTITUTE(Parse[[#This Row],[Raw]],",",CHAR(1),3))-FIND(CHAR(1),SUBSTITUTE(Parse[[#This Row],[Raw]],",",CHAR(1),2))-1)),"") -> 10.9516 | G162: =IFERROR(VALUE(MID(Parse[[#This Row],[Raw]],FIND(CHAR(1),SUBSTITUTE(Parse[[#This Row],[Raw]],",",CHAR(1),3))+1,FIND(CHAR(1), SUBSTITUTE(Parse[[#This Row],[Raw]],",",CHAR(1),4))-FIND(CHAR(1),SUBSTITUTE(Parse[[#This Row],[Raw]],",",CHAR(1),3))-1)),"") -> 10.3443 | H162: =IFERROR(VALUE(MID(Parse[[#This Row],[Raw]],FIND(CHAR(1),SUBSTITUTE(Parse[[#This Row],[Raw]],",",CHAR(1),4))+1,FIND(CHAR(1), SUBSTITUTE(Parse[[#This Row],[Raw]],",",CHAR(1),5))-FIND(CHAR(1),SUBSTITUTE(Parse[[#This Row],[Raw]],",",CHAR(1),4))-1)),"") -> 10.4471 | I162: =IFERROR(VALUE(MID(Parse[[#This Row],[Raw]],FIND(CHAR(1),SUBSTITUTE(Parse[[#This Row],[Raw]],",",CHAR(1),5))+1,FIND(CHAR(1), SUBSTITUTE(Parse[[#This Row],[Raw]],",",CHAR(1),6))-FIND(CHAR(1),SUBSTITUTE(Parse[[#This Row],[Raw]],",",CHAR(1),5))-1)),"") -> 5.267291 | J162: =IFERROR(VALUE(RIGHT(Parse[[#This Row],[Raw]],LEN(Parse[[#This Row],[Raw]])-FIND(CHAR(1),SUBSTITUTE(Parse[[#This Row],[Raw]],",",CHAR(1),6)))),"") -> 63612115
A163: 2002-01-31,10.746100,11.222600,10.559200,10.886200,5.488681,94939317 | C163: 2002-01-31,10.746100,11.222600,10.559200,10.886200,5.488681,94939317 | D163: =IFERROR(DATEVALUE(LEFT(Parse[[#This Row],[Raw]],FIND(",",Parse[[#This Row],[Raw]])-1)),"") -> 2002-01-31 | E163: =IFERROR(VALUE(MID(Parse[[#This Row],[Raw]],FIND(CHAR(1),SUBSTITUTE(Parse[[#This Row],[Raw]],",",CHAR(1),1))+1,FIND(CHAR(1), SUBSTITUTE(Parse[[#This Row],[Raw]],",",CHAR(1),2))-FIND(CHAR(1),SUBSTITUTE(Parse[[#This Row],[Raw]],",",CHAR(1),1))-1)),"") -> 10.7461 | F163: =IFERROR(VALUE(MID(Parse[[#This Row],[Raw]],FIND(CHAR(1),SUBSTITUTE(Parse[[#This Row],[Raw]],",",CHAR(1),2))+1,FIND(CHAR(1), SUBSTITUTE(Parse[[#This Row],[Raw]],",",CHAR(1),3))-FIND(CHAR(1),SUBSTITUTE(Parse[[#This Row],[Raw]],",",CHAR(1),2))-1)),"") -> 11.2226 | G163: =IFERROR(VALUE(MID(Parse[[#This Row],[Raw]],FIND(CHAR(1),SUBSTITUTE(Parse[[#This Row],[Raw]],",",CHAR(1),3))+1,FIND(CHAR(1), SUBSTITUTE(Parse[[#This Row],[Raw]],",",CHAR(1),4))-FIND(CHAR(1),SUBSTITUTE(Parse[[#This Row],[Raw]],",",CHAR(1),3))-1)),"") -> 10.5592 | H163: =IFERROR(VALUE(MID(Parse[[#This Row],[Raw]],FIND(CHAR(1),SUBSTITUTE(Parse[[#This Row],[Raw]],",",CHAR(1),4))+1,FIND(CHAR(1), SUBSTITUTE(Parse[[#This Row],[Raw]],",",CHAR(1),5))-FIND(CHAR(1),SUBSTITUTE(Parse[[#This Row],[Raw]],",",CHAR(1),4))-1)),"") -> 10.8862 | I163: =IFERROR(VALUE(MID(Parse[[#This Row],[Raw]],FIND(CHAR(1),SUBSTITUTE(Parse[[#This Row],[Raw]],",",CHAR(1),5))+1,FIND(CHAR(1), SUBSTITUTE(Parse[[#This Row],[Raw]],",",CHAR(1),6))-FIND(CHAR(1),SUBSTITUTE(Parse[[#This Row],[Raw]],",",CHAR(1),5))-1)),"") -> 5.488681 | J163: =IFERROR(VALUE(RIGHT(Parse[[#This Row],[Raw]],LEN(Parse[[#This Row],[Raw]])-FIND(CHAR(1),SUBSTITUTE(Parse[[#This Row],[Raw]],",",CHAR(1),6)))),"") -> 94939317
A164: 2002-02-07,10.792800,11.671200,10.718000,11.577700,5.837327,61215375 | C164: 2002-02-07,10.792800,11.671200,10.718000,11.577700,5.837327,61215375 | D164: =IFERROR(DATEVALUE(LEFT(Parse[[#This Row],[Raw]],FIND(",",Parse[[#This Row],[Raw]])-1)),"") -> 2002-02-07 | E164: =IFERROR(VALUE(MID(Parse[[#This Row],[Raw]],FIND(CHAR(1),SUBSTITUTE(Parse[[#This Row],[Raw]],",",CHAR(1),1))+1,FIND(CHAR(1), SUBSTITUTE(Parse[[#This Row],[Raw]],",",CHAR(1),2))-FIND(CHAR(1),SUBSTITUTE(Parse[[#This Row],[Raw]],",",CHAR(1),1))-1)),"") -> 10.7928 | F164: =IFERROR(VALUE(MID(Parse[[#This Row],[Raw]],FIND(CHAR(1),SUBSTITUTE(Parse[[#This Row],[Raw]],",",CHAR(1),2))+1,FIND(CHAR(1), SUBSTITUTE(Parse[[#This Row],[Raw]],",",CHAR(1),3))-FIND(CHAR(1),SUBSTITUTE(Parse[[#This Row],[Raw]],",",CHAR(1),2))-1)),"") -> 11.6712 | G164: =IFERROR(VALUE(MID(Parse[[#This Row],[Raw]],FIND(CHAR(1),SUBSTITUTE(Parse[[#This Row],[Raw]],",",CHAR(1),3))+1,FIND(CHAR(1), SUBSTITUTE(Parse[[#This Row],[Raw]],",",CHAR(1),4))-FIND(CHAR(1),SUBSTITUTE(Parse[[#This Row],[Raw]],",",CHAR(1),3))-1)),"") -> 10.718 | H164: =IFERROR(VALUE(MID(Parse[[#This Row],[Raw]],FIND(CHAR(1),SUBSTITUTE(Parse[[#This Row],[Raw]],",",CHAR(1),4))+1,FIND(CHAR(1), SUBSTITUTE(Parse[[#This Row],[Raw]],",",CHAR(1),5))-FIND(CHAR(1),SUBSTITUTE(Parse[[#This Row],[Raw]],",",CHAR(1),4))-1)),"") -> 11.5777 | I164: =IFERROR(VALUE(MID(Parse[[#This Row],[Raw]],FIND(CHAR(1),SUBSTITUTE(Parse[[#This Row],[Raw]],",",CHAR(1),5))+1,FIND(CHAR(1), SUBSTITUTE(Parse[[#This Row],[Raw]],",",CHAR(1),6))-FIND(CHAR(1),SUBSTITUTE(Parse[[#This Row],[Raw]],",",CHAR(1),5))-1)),"") -> 5.837327 | J164: =IFERROR(VALUE(RIGHT(Parse[[#This Row],[Raw]],LEN(Parse[[#This Row],[Raw]])-FIND(CHAR(1),SUBSTITUTE(Parse[[#This Row],[Raw]],",",CHAR(1),6)))),"") -> 61215375
A165: 2002-02-14,11.446900,11.446900,10.782500,10.839500,5.465134,71607470 | C165: 2002-02-14,11.446900,11.446900,10.782500,10.839500,5.465134,71607470 | D165: =IFERROR(DATEVALUE(LEFT(Parse[[#This Row],[Raw]],FIND(",",Parse[[#This Row],[Raw]])-1)),"") -> 2002-02-14 | E165: =IFERROR(VALUE(MID(Parse[[#This Row],[Raw]],FIND(CHAR(1),SUBSTITUTE(Parse[[#This Row],[Raw]],",",CHAR(1),1))+1,FIND(CHAR(1), SUBSTITUTE(Parse[[#This Row],[Raw]],",",CHAR(1),2))-FIND(CHAR(1),SUBSTITUTE(Parse[[#This Row],[Raw]],",",CHAR(1),1))-1)),"") -> 11.4469 | F165: =IFERROR(VALUE(MID(Parse[[#This Row],[Raw]],FIND(CHAR(1),SUBSTITUTE(Parse[[#This Row],[Raw]],",",CHAR(1),2))+1,FIND(CHAR(1), SUBSTITUTE(Parse[[#This Row],[Raw]],",",CHAR(1),3))-FIND(CHAR(1),SUBSTITUTE(Parse[[#This Row],[Raw]],",",CHAR(1),2))-1)),"") -> 11.4469 | G165: =IFERROR(VALUE(MID(Parse[[#This Row],[Raw]],FIND(CHAR(1),SUBSTITUTE(Parse[[#This Row],[Raw]],",",CHAR(1),3))+1,FIND(CHAR(1), SUBSTITUTE(Parse[[#This Row],[Raw]],",",CHAR(1),4))-FIND(CHAR(1),SUBSTITUTE(Parse[[#This Row],[Raw]],",",CHAR(1),3))-1)),"") -> 10.7825 | H165: =IFERROR(VALUE(MID(Parse[[#This Row],[Raw]],FIND(CHAR(1),SUBSTITUTE(Parse[[#This Row],[Raw]],",",CHAR(1),4))+1,FIND(CHAR(1), SUBSTITUTE(Parse[[#This Row],[Raw]],",",CHAR(1),5))-FIND(CHAR(1),SUBSTITUTE(Parse[[#This Row],[Raw]],",",CHAR(1),4))-1)),"") -> 10.8395 | I165: =IFERROR(VALUE(MID(Parse[[#This Row],[Raw]],FIND(CHAR(1),SUBSTITUTE(Parse[[#This Row],[Raw]],",",CHAR(1),5))+1,FIND(CHAR(1), SUBSTITUTE(Parse[[#This Row],[Raw]],",",CHAR(1),6))-FIND(CHAR(1),SUBSTITUTE(Parse[[#This Row],[Raw]],",",CHAR(1),5))-1)),"") -> 5.465134 | J165: =IFERROR(VALUE(RIGHT(Parse[[#This Row],[Raw]],LEN(Parse[[#This Row],[Raw]])-FIND(CHAR(1),SUBSTITUTE(Parse[[#This Row],[Raw]],",",CHAR(1),6)))),"") -> 71607470
A166: 2002-02-21,10.830200,11.101200,10.605900,11.017100,5.554679,61144009 | C166: 2002-02-21,10.830200,11.101200,10.605900,11.017100,5.554679,61144009 | D166: =IFERROR(DATEVALUE(LEFT(Parse[[#This Row],[Raw]],FIND(",",Parse[[#This Row],[Raw]])-1)),"") -> 2002-02-21 | E166: =IFERROR(VALUE(MID(Parse[[#This Row],[Raw]],FIND(CHAR(1),SUBSTITUTE(Parse[[#This Row],[Raw]],",",CHAR(1),1))+1,FIND(CHAR(1), SUBSTITUTE(Parse[[#This Row],[Raw]],",",CHAR(1),2))-FIND(CHAR(1),SUBSTITUTE(Parse[[#This Row],[Raw]],",",CHAR(1),1))-1)),"") -> 10.8302 | F166: =IFERROR(VALUE(MID(Parse[[#This Row],[Raw]],FIND(CHAR(1),SUBSTITUTE(Parse[[#This Row],[Raw]],",",CHAR(1),2))+1,FIND(CHAR(1), SUBSTITUTE(Parse[[#This Row],[Raw]],",",CHAR(1),3))-FIND(CHAR(1),SUBSTITUTE(Parse[[#This Row],[Raw]],",",CHAR(1),2))-1)),"") -> 11.1012 | G166: =IFERROR(VALUE(MID(Parse[[#This Row],[Raw]],FIND(CHAR(1),SUBSTITUTE(Parse[[#This Row],[Raw]],",",CHAR(1),3))+1,FIND(CHAR(1), SUBSTITUTE(Parse[[#This Row],[Raw]],",",CHAR(1),4))-FIND(CHAR(1),SUBSTITUTE(Parse[[#This Row],[Raw]],",",CHAR(1),3))-1)),"") -> 10.6059 | H166: =IFERROR(VALUE(MID(Parse[[#This Row],[Raw]],FIND(CHAR(1),SUBSTITUTE(Parse[[#This Row],[Raw]],",",CHAR(1),4))+1,FIND(CHAR(1), SUBSTITUTE(Parse[[#This Row],[Raw]],",",CHAR(1),5))-FIND(CHAR(1),SUBSTITUTE(Parse[[#This Row],[Raw]],",",CHAR(1),4))-1)),"") -> 11.0171 | I166: =IFERROR(VALUE(MID(Parse[[#This Row],[Raw]],FIND(CHAR(1),SUBSTITUTE(Parse[[#This Row],[Raw]],",",CHAR(1),5))+1,FIND(CHAR(1), SUBSTITUTE(Parse[[#This Row],[Raw]],",",CHAR(1),6))-FIND(CHAR(1),SUBSTITUTE(Parse[[#This Row],[Raw]],",",CHAR(1),5))-1)),"") -> 5.554679 | J166: =IFERROR(VALUE(RIGHT(Parse[[#This Row],[Raw]],LEN(Parse[[#This Row],[Raw]])-FIND(CHAR(1),SUBSTITUTE(Parse[[#This Row],[Raw]],",",CHAR(1),6)))),"") -> 61144009
A167: 2002-02-28,10.961000,11.372200,10.802100,11.288000,5.691265,56240836 | C167: 2002-02-28,10.961000,11.372200,10.802100,11.288000,5.691265,56240836 | D167: =IFERROR(DATEVALUE(LEFT(Parse[[#This Row],[Raw]],FIND(",",Parse[[#This Row],[Raw]])-1)),"") -> 2002-02-28 | E167: =IFERROR(VALUE(MID(Parse[[#This Row],[Raw]],FIND(CHAR(1),SUBSTITUTE(Parse[[#This Row],[Raw]],",",CHAR(1),1))+1,FIND(CHAR(1), SUBSTITUTE(Parse[[#This Row],[Raw]],",",CHAR(1),2))-FIND(CHAR(1),SUBSTITUTE(Parse[[#This Row],[Raw]],",",CHAR(1),1))-1)),"") -> 10.961 | F167: =IFERROR(VALUE(MID(Parse[[#This Row],[Raw]],FIND(CHAR(1),SUBSTITUTE(Parse[[#This Row],[Raw]],",",CHAR(1),2))+1,FIND(CHAR(1), SUBSTITUTE(Parse[[#This Row],[Raw]],",",CHAR(1),3))-FIND(CHAR(1),SUBSTITUTE(Parse[[#This Row],[Raw]],",",CHAR(1),2))-1)),"") -> 11.3722 | G167: =IFERROR(VALUE(MID(Parse[[#This Row],[Raw]],FIND(CHAR(1),SUBSTITUTE(Parse[[#This Row],[Raw]],",",CHAR(1),3))+1,FIND(CHAR(1), SUBSTITUTE(Parse[[#This Row],[Raw]],",",CHAR(1),4))-FIND(CHAR(1),SUBSTITUTE(Parse[[#This Row],[Raw]],",",CHAR(1),3))-1)),"") -> 10.8021 | H167: =IFERROR(VALUE(MID(Parse[[#This Row],[Raw]],FIND(CHAR(1),SUBSTITUTE(Parse[[#This Row],[Raw]],",",CHAR(1),4))+1,FIND(CHAR(1), SUBSTITUTE(Parse[[#This Row],[Raw]],",",CHAR(1),5))-FIND(CHAR(1),SUBSTITUTE(Parse[[#This Row],[Raw]],",",CHAR(1),4))-1)),"") -> 11.288 | I167: =IFERROR(VALUE(MID(Parse[[#This Row],[Raw]],FIND(CHAR(1),SUBSTITUTE(Parse[[#This Row],[Raw]],",",CHAR(1),5))+1,FIND(CHAR(1), SUBSTITUTE(Parse[[#This Row],[Raw]],",",CHAR(1),6))-FIND(CHAR(1),SUBSTITUTE(Parse[[#This Row],[Raw]],",",CHAR(1),5))-1)),"") -> 5.691265 | J167: =IFERROR(VALUE(RIGHT(Parse[[#This Row],[Raw]],LEN(Parse[[#This Row],[Raw]])-FIND(CHAR(1),SUBSTITUTE(Parse[[#This Row],[Raw]],",",CHAR(1),6)))),"") -> 56240836
A168: 2002-03-07,11.324500,11.362800,10.746100,10.747900,5.418953,39885844 | C168: 2002-03-07,11.324500,11.362800,10.746100,10.747900,5.418953,39885844 | D168: =IFERROR(DATEVALUE(LEFT(Parse[[#This Row],[Raw]],FIND(",",Parse[[#This Row],[Raw]])-1)),"") -> 2002-03-07 | E168: =IFERROR(VALUE(MID(Parse[[#This Row],[Raw]],FIND(CHAR(1),SUBSTITUTE(Parse[[#This Row],[Raw]],",",CHAR(1),1))+1,FIND(CHAR(1), SUBSTITUTE(Parse[[#This Row],[Raw]],",",CHAR(1),2))-FIND(CHAR(1),SUBSTITUTE(Parse[[#This Row],[Raw]],",",CHAR(1),1))-1)),"") -> 11.3245 | F168: =IFERROR(VALUE(MID(Parse[[#This Row],[Raw]],FIND(CHAR(1),SUBSTITUTE(Parse[[#This Row],[Raw]],",",CHAR(1),2))+1,FIND(CHAR(1), SUBSTITUTE(Parse[[#This Row],[Raw]],",",CHAR(1),3))-FIND(CHAR(1),SUBSTITUTE(Parse[[#This Row],[Raw]],",",CHAR(1),2))-1)),"") -> 11.3628 | G168: =IFERROR(VALUE(MID(Parse[[#This Row],[Raw]],FIND(CHAR(1),SUBSTITUTE(Parse[[#This Row],[Raw]],",",CHAR(1),3))+1,FIND(CHAR(1), SUBSTITUTE(Parse[[#This Row],[Raw]],",",CHAR(1),4))-FIND(CHAR(1),SUBSTITUTE(Parse[[#This Row],[Raw]],",",CHAR(1),3))-1)),"") -> 10.7461 | H168: =IFERROR(VALUE(MID(Parse[[#This Row],[Raw]],FIND(CHAR(1),SUBSTITUTE(Parse[[#This Row],[Raw]],",",CHAR(1),4))+1,FIND(CHAR(1), SUBSTITUTE(Parse[[#This Row],[Raw]],",",CHAR(1),5))-FIND(CHAR(1),SUBSTITUTE(Parse[[#This Row],[Raw]],",",CHAR(1),4))-1)),"") -> 10.7479 | I168: =IFERROR(VALUE(MID(Parse[[#This Row],[Raw]],FIND(CHAR(1),SUBSTITUTE(Parse[[#This Row],[Raw]],",",CHAR(1),5))+1,FIND(CHAR(1), SUBSTITUTE(Parse[[#This Row],[Raw]],",",CHAR(1),6))-FIND(CHAR(1),SUBSTITUTE(Parse[[#This Row],[Raw]],",",CHAR(1),5))-1)),"") -> 5.418953 | J168: =IFERROR(VALUE(RIGHT(Parse[[#This Row],[Raw]],LEN(Parse[[#This Row],[Raw]])-FIND(CHAR(1),SUBSTITUTE(Parse[[#This Row],[Raw]],",",CHAR(1),6)))),"") -> 39885844
A169: 2002-03-14,10.690000,11.063800,10.512500,10.755400,5.422735,62558765 | C169: 2002-03-14,10.690000,11.063800,10.512500,10.755400,5.422735,62558765 | D169: =IFERROR(DATEVALUE(LEFT(Parse[[#This Row],[Raw]],FIND(",",Parse[[#This Row],[Raw]])-1)),"") -> 2002-03-14 | E169: =IFERROR(VALUE(MID(Parse[[#This Row],[Raw]],FIND(CHAR(1),SUBSTITUTE(Parse[[#This Row],[Raw]],",",CHAR(1),1))+1,FIND(CHAR(1), SUBSTITUTE(Parse[[#This Row],[Raw]],",",CHAR(1),2))-FIND(CHAR(1),SUBSTITUTE(Parse[[#This Row],[Raw]],",",CHAR(1),1))-1)),"") -> 10.69 | F169: =IFERROR(VALUE(MID(Parse[[#This Row],[Raw]],FIND(CHAR(1),SUBSTITUTE(Parse[[#This Row],[Raw]],",",CHAR(1),2))+1,FIND(CHAR(1), SUBSTITUTE(Parse[[#This Row],[Raw]],",",CHAR(1),3))-FIND(CHAR(1),SUBSTITUTE(Parse[[#This Row],[Raw]],",",CHAR(1),2))-1)),"") -> 11.0638 | G169: =IFERROR(VALUE(MID(Parse[[#This Row],[Raw]],FIND(CHAR(1),SUBSTITUTE(Parse[[#This Row],[Raw]],",",CHAR(1),3))+1,FIND(CHAR(1), SUBSTITUTE(Parse[[#This Row],[Raw]],",",CHAR(1),4))-FIND(CHAR(1),SUBSTITUTE(Parse[[#This Row],[Raw]],",",CHAR(1),3))-1)),"") -> 10.5125 | H169: =IFERROR(VALUE(MID(Parse[[#This Row],[Raw]],FIND(CHAR(1),SUBSTITUTE(Parse[[#This Row],[Raw]],",",CHAR(1),4))+1,FIND(CHAR(1), SUBSTITUTE(Parse[[#This Row],[Raw]],",",CHAR(1),5))-FIND(CHAR(1),SUBSTITUTE(Parse[[#This Row],[Raw]],",",CHAR(1),4))-1)),"") -> 10.7554 | I169: =IFERROR(VALUE(MID(Parse[[#This Row],[Raw]],FIND(CHAR(1),SUBSTITUTE(Parse[[#This Row],[Raw]],",",CHAR(1),5))+1,FIND(CHAR(1), SUBSTITUTE(Parse[[#This Row],[Raw]],",",CHAR(1),6))-FIND(CHAR(1),SUBSTITUTE(Parse[[#This Row],[Raw]],",",CHAR(1),5))-1)),"") -> 5.422735 | J169: =IFERROR(VALUE(RIGHT(Parse[[#This Row],[Raw]],LEN(Parse[[#This Row],[Raw]])-FIND(CHAR(1),SUBSTITUTE(Parse[[#This Row],[Raw]],",",CHAR(1),6)))),"") -> 62558765
A170: 2002-03-21,10.699400,10.764800,10.306900,10.652600,5.370903,100892347 | C170: 2002-03-21,10.699400,10.764800,10.306900,10.652600,5.370903,100892347 | D170: =IFERROR(DATEVALUE(LEFT(Parse[[#This Row],[Raw]],FIND(",",Parse[[#This Row],[Raw]])-1)),"") -> 2002-03-21 | E170: =IFERROR(VALUE(MID(Parse[[#This Row],[Raw]],FIND(CHAR(1),SUBSTITUTE(Parse[[#This Row],[Raw]],",",CHAR(1),1))+1,FIND(CHAR(1), SUBSTITUTE(Parse[[#This Row],[Raw]],",",CHAR(1),2))-FIND(CHAR(1),SUBSTITUTE(Parse[[#This Row],[Raw]],",",CHAR(1),1))-1)),"") -> 10.6994 | F170: =IFERROR(VALUE(MID(Parse[[#This Row],[Raw]],FIND(CHAR(1),SUBSTITUTE(Parse[[#This Row],[Raw]],",",CHAR(1),2))+1,FIND(CHAR(1), SUBSTITUTE(Parse[[#This Row],[Raw]],",",CHAR(1),3))-FIND(CHAR(1),SUBSTITUTE(Parse[[#This Row],[Raw]],",",CHAR(1),2))-1)),"") -> 10.7648 | G170: =IFERROR(VALUE(MID(Parse[[#This Row],[Raw]],FIND(CHAR(1),SUBSTITUTE(Parse[[#This Row],[Raw]],",",CHAR(1),3))+1,FIND(CHAR(1), SUBSTITUTE(Parse[[#This Row],[Raw]],",",CHAR(1),4))-FIND(CHAR(1),SUBSTITUTE(Parse[[#This Row],[Raw]],",",CHAR(1),3))-1)),"") -> 10.3069 | H170: =IFERROR(VALUE(MID(Parse[[#This Row],[Raw]],FIND(CHAR(1),SUBSTITUTE(Parse[[#This Row],[Raw]],",",CHAR(1),4))+1,FIND(CHAR(1), SUBSTITUTE(Parse[[#This Row],[Raw]],",",CHAR(1),5))-FIND(CHAR(1),SUBSTITUTE(Parse[[#This Row],[Raw]],",",CHAR(1),4))-1)),"") -> 10.6526 | I170: =IFERROR(VALUE(MID(Parse[[#This Row],[Raw]],FIND(CHAR(1),SUBSTITUTE(Parse[[#This Row],[Raw]],",",CHAR(1),5))+1,FIND(CHAR(1), SUBSTITUTE(Parse[[#This Row],[Raw]],",",CHAR(1),6))-FIND(CHAR(1),SUBSTITUTE(Parse[[#This Row],[Raw]],",",CHAR(1),5))-1)),"") -> 5.370903 | J170: =IFERROR(VALUE(RIGHT(Parse[[#This Row],[Raw]],LEN(Parse[[#This Row],[Raw]])-FIND(CHAR(1),SUBSTITUTE(Parse[[#This Row],[Raw]],",",CHAR(1),6)))),"") -> 100892347
